Workbook

Sheet Simulador Port
O1: V.20250011
B2: CONVÊNIO | C2: INSS
B3: Prazo simulado (meses) | C3: 96
E6: Observação | H6: TABELA PORT | J6: =C18 -> FLEX 1 | M6: =E18 -> FLEX 1
B7: Data Saldo* | C7: =TODAY() -> 2025-09-30
B8: Saldo Portado** | C8: 10000 | D8: =IF('Planilha 1'!K8="","",'Planilha 1'!K8) ->  | J8: =C20 -> 1. Otimiza Pzo * | M8: =E20 -> 2.Redução Vlr Parcela**
B9: Valor Parcela | C9: 250 | H9: Tabela | J9: Val Fin Novo | K9: Troco | M9: Val Fin Novo | N9: Troco
B10: Nº de Parcelas Restantes | C10: 60 | D10: =IF('Planilha 1'!K10="","",'Planilha 1'!K10) ->  | G10: 1 | H10: =IF('Planilha 1'!M8="","",'Planilha 1'!M8) -> INSS RfnPort Tx1,599%~1,550% Flex5 | J10: =IF('Planilha 1'!O8="","",'Planilha 1'!O8) -> 12195.16429 | K10: =IF('Planilha 1'!P8="","",'Planilha 1'!P8) -> 2108.323463 | M10: =IF('Planilha 1'!Q8="","",'Planilha 1'!Q8) -> 12195.16429 | N10: =IF('Planilha 1'!R8="","",'Planilha 1'!R8) -> 2108.323463
B11: Taxa de Juros | C11: =IFERROR('Planilha 1'!J17,"") -> 0.01406512714 | D11: =IF('Planilha 1'!K17="","",'Planilha 1'!K17) ->  | G11: =G10+1 -> 2 | H11: =IF('Planilha 1'!M9="","",'Planilha 1'!M9) ->  | J11: =IF('Planilha 1'!O9="","",'Planilha 1'!O9) ->  | K11: =IF('Planilha 1'!P9="","",'Planilha 1'!P9) ->  | M11: =IF('Planilha 1'!Q9="","",'Planilha 1'!Q9) ->  | N11: =IF('Planilha 1'!R9="","",'Planilha 1'!R9) -> 
D12: ='Planilha 1'!T18 ->  | G12: =G11+1 -> 3 | H12: =IF('Planilha 1'!M10="","",'Planilha 1'!M10) ->  | J12: =IF('Planilha 1'!O10="","",'Planilha 1'!O10) ->  | K12: =IF('Planilha 1'!P10="","",'Planilha 1'!P10) ->  | M12: =IF('Planilha 1'!Q10="","",'Planilha 1'!Q10) ->  | N12: =IF('Planilha 1'!R10="","",'Planilha 1'!R10) -> 
B13: *Data Saldo = data de consulta do valor | G13: 4 | H13: =IF('Planilha 1'!M11="","",'Planilha 1'!M11) ->  | J13: =IF('Planilha 1'!O11="","",'Planilha 1'!O11) ->  | K13: =IF('Planilha 1'!P11="","",'Planilha 1'!P11) ->  | M13: =IF('Planilha 1'!Q11="","",'Planilha 1'!Q11) ->  | N13: =IF('Planilha 1'!R11="","",'Planilha 1'!R11) -> 
B14: **Saldo Portado = valor informado do banco origem | G14: 5 | H14: =IF('Planilha 1'!M12="","",'Planilha 1'!M12) ->  | J14: =IF('Planilha 1'!O12="","",'Planilha 1'!O12) ->  | K14: =IF('Planilha 1'!P12="","",'Planilha 1'!P12) ->  | M14: =IF('Planilha 1'!Q12="","",'Planilha 1'!Q12) ->  | N14: =IF('Planilha 1'!R12="","",'Planilha 1'!R12) -> 
G15: 6 | H15: =IF('Planilha 1'!M13="","",'Planilha 1'!M13) ->  | J15: =IF('Planilha 1'!O13="","",'Planilha 1'!O13) ->  | K15: =IF('Planilha 1'!P13="","",'Planilha 1'!P13) ->  | M15: =IF('Planilha 1'!Q13="","",'Planilha 1'!Q13) ->  | N15: =IF('Planilha 1'!R13="","",'Planilha 1'!R13) -> 
G16: 7 | H16: =IF('Planilha 1'!M14="","",'Planilha 1'!M14) ->  | J16: =IF('Planilha 1'!O14="","",'Planilha 1'!O14) ->  | K16: =IF('Planilha 1'!P14="","",'Planilha 1'!P14) ->  | M16: =IF('Planilha 1'!Q14="","",'Planilha 1'!Q14) ->  | N16: =IF('Planilha 1'!R14="","",'Planilha 1'!R14) -> 
G17: 8 | H17: =IF('Planilha 1'!M15="","",'Planilha 1'!M15) ->  | J17: =IF('Planilha 1'!O15="","",'Planilha 1'!O15) ->  | K17: =IF('Planilha 1'!P15="","",'Planilha 1'!P15) ->  | M17: =IF('Planilha 1'!Q15="","",'Planilha 1'!Q15) ->  | N17: =IF('Planilha 1'!R15="","",'Planilha 1'!R15) -> 
B18: TABELA PORT | C18: =UPPER(IFERROR('Planilha 1'!I26,"")) -> FLEX 1 | E18: =UPPER(IFERROR('Planilha 1'!I27,"")) -> FLEX 1 | G18: 9 | H18: =IF('Planilha 1'!M16="","",'Planilha 1'!M16) ->  | J18: =IF('Planilha 1'!O16="","",'Planilha 1'!O16) ->  | K18: =IF('Planilha 1'!P16="","",'Planilha 1'!P16) ->  | M18: =IF('Planilha 1'!Q16="","",'Planilha 1'!Q16) ->  | N18: =IF('Planilha 1'!R16="","",'Planilha 1'!R16) -> 
G19: 10 | H19: =IF('Planilha 1'!M17="","",'Planilha 1'!M17) ->  | J19: =IF('Planilha 1'!O17="","",'Planilha 1'!O17) ->  | K19: =IF('Planilha 1'!P17="","",'Planilha 1'!P17) ->  | M19: =IF('Planilha 1'!Q17="","",'Planilha 1'!Q17) ->  | N19: =IF('Planilha 1'!R17="","",'Planilha 1'!R17) -> 
C20: 1. Otimiza Pzo * | E20: 2.Redução Vlr Parcela** | G20: 11 | H20: =IF('Planilha 1'!M18="","",'Planilha 1'!M18) ->  | J20: =IF('Planilha 1'!O18="","",'Planilha 1'!O18) ->  | K20: =IF('Planilha 1'!P18="","",'Planilha 1'!P18) ->  | M20: =IF('Planilha 1'!Q18="","",'Planilha 1'!Q18) ->  | N20: =IF('Planilha 1'!R18="","",'Planilha 1'!R18) -> 
B21: Prazo | C21: =IFERROR('Planilha 1'!BU31,"") -> 60 | D21: =IF(C21<>C10,1,0) -> 0 | E21: =IF(E23="","",'Planilha 1'!BZ16) -> 60 | F21: =IF(E21<>C10,1,0) -> 0 | G21: 12
B22: Valor Parcela | C22: =IFERROR('Planilha 1'!BU32,"") -> 250 | D22: =IF(C22<>C9,1,0) -> 0 | E22: =IF(E23="","",'Planilha 1'!BZ17) -> 250 | F22: =IF(E22<>C9,1,0) -> 0
B23: Taxa de Juros | C23: =IFERROR('Planilha 1'!BU33,"") -> 0.01406512714 | E23: =IFERROR('Planilha 1'!BS32,"") -> 0.01406512714
Q25: INSS
Q26: SIAPE

Sheet Planilha 1 (hidden)
A1: IOF ad | B1: =ROUND(3%/365,6) -> 8.2e-05 | U1: TETO | W1: =J16 -> 0.01406512714 | X1: =IF($P$2=$AH$4,AH1,AP1) -> INSS | Y1: =IF($P$2=$AH$4,AI1,AQ1) -> 0.0135 | Z1: =IF($P$2=$AH$4,AJ1,AR1) -> 0.0185 | AA1: =IF($P$2=$AH$4,AK1,AS1) -> Port | AH1: INSS | AI1: 0.0135 | AJ1: =MAX(AI4:AJ15) -> 0.0185 | AK1: Port | AP1: SIAPE | AQ1: 0.016 | AR1: 0.018 | AS1: Port
A2: IOF adic. | B2: 0.0038 | H2: CONVÊNIO | P2: ='Simulador Port'!C2 -> INSS | U2: TAXA TETO PONDERADO | V2: =((W1*W2)+(Z1*(Z2-W2)))/P3 -> 0.01572820447 | W2: =J10 -> 60 | Z2: =P3 -> 96 | AQ2: 96 | BD2: ='Simulador Port'!C20 -> 1. Otimiza Pzo * | BF2: ='Simulador Port'!E20 -> 2.Redução Vlr Parcela**
O3: Prazo simulado (meses) | P3: ='Simulador Port'!C3 -> 96 | X3: Convenio | Y3: TxMax | Z3: TxMin | AA3: Nome | AC3: Fator um jr | AD3: Novo Saldo | AE3: IOF | AF3: TROCO | AG3: VLR FIN | AH3: Convenio | AI3: TxMax | AJ3: TxMin | AK3: Nome | AL3: Nome | AP3: Convenio | AQ3: TxMax | AR3: TxMin | AS3: Nome | AT3: Nome | AY3: Convenio | AZ3: TxMax | BA3: TxMin | BB3: Nome | BD3: Val Fin Novo | BE3: Troco | BF3: Val Fin Novo | BG3: Troco
U4: Torco min % | V4: 0 | W4: =IF(PZO!W4+VL_PARC!W4>0,'Planilha 1'!W3+1,0) -> 0 | X4: =IF($P$2=$AH$4,AH4,AP4) -> INSS | Y4: =IF($P$2=$AH$4,AI4,AQ4) -> 0.0185 | Z4: =IF($P$2=$AH$4,AJ4,AR4) -> 0.0178 | AA4: =IF($P$2=$AH$4,AK4,AS4) -> Normal | AB4: =IF($P$2=$AH$4,AL4,AT4) -> INSS RfnPort Tx1,850%~1,780% Normal | AC4: =(1+MIN(Y4,$V$2))^(1/30) -> 1.000520329 | AD4: =OFFSET($U$32,,ROW()-ROW($AD$4)) -> 12195.16429 | AE4: =OFFSET($AH$29,,ROW()-ROW($AE$4)) -> 86.84090718 | AF4: =AD4-AE4-$J$8 -> 2108.323463 | AG4: =SUM(AD4,AF4) -> 14303.48776 | AH4: INSS | AI4: 0.0185 | AJ4: 0.0178 | AK4: Normal | AL4: INSS RfnPort Tx1,850%~1,780% Normal | AP4: SIAPE | AQ4: 0.01799 | AR4: 0.01799 | AS4: Normal | AT4: SIAPE RfnPort Tx1.799 Normal Web | AX4: =W4 -> 0 | AY4: =X4 -> INSS | AZ4: =Y4 -> 0.0185 | BA4: =Z4 -> 0.0178 | BB4: =AA4 -> Normal | BC4: =AB4 -> INSS RfnPort Tx1,850%~1,780% Normal | BD4: =IF(PZO!$W4=0,"",PZO!AD4) ->  | BE4: =IF(PZO!$W4=0,"",PZO!AF4) ->  | BF4: =IF(VL_PARC!$W4=0,"",VL_PARC!AD4) ->  | BG4: =IF(VL_PARC!$W4=0,"",VL_PARC!AF4) -> 
A5: 96 | U5: Torco min R$ | V5: 50 | W5: =IF(PZO!W5+VL_PARC!W5>0,'Planilha 1'!W4+1,0) -> 0 | X5: =IF($P$2=$AH$4,AH5,AP5) -> INSS | Y5: =IF($P$2=$AH$4,AI5,AQ5) -> 0.01779 | Z5: =IF($P$2=$AH$4,AJ5,AR5) -> 0.0174 | AA5: =IF($P$2=$AH$4,AK5,AS5) -> Flex 1 | AB5: =IF($P$2=$AH$4,AL5,AT5) -> INSS RfnPort Tx1,779%~1,740% Flex1 | AC5: =(1+MIN(Y5,$V$2))^(1/30) -> 1.000520329 | AD5: =OFFSET($U$32,,ROW()-ROW($AD$4)) -> 12195.16429 | AE5: =OFFSET($AH$29,,ROW()-ROW($AE$4)) -> 86.84090718 | AF5: =AD5-AE5-$J$8 -> 2108.323463 | AG5: =SUM(AD5,AF5) -> 14303.48776 | AH5: INSS | AI5: 0.01779 | AJ5: 0.0174 | AK5: Flex 1 | AL5: INSS RfnPort Tx1,779%~1,740% Flex1 | AP5: SIAPE | AQ5: 0.01798 | AR5: 0.0175 | AS5: Flex 1 | AT5: SIAPE RfnPort Tx1.798 ~ 1.75 Flex 1 Web | AX5: =W5 -> 0 | AY5: =X5 -> INSS | AZ5: 0.01779 | BA5: 0.0174 | BB5: Flex 1 | BC5: INSS RfnPort Tx1,779%~1,740% Flex1 | BD5: =IF(PZO!$W5=0,"",PZO!AD5) ->  | BE5: =IF(PZO!$W5=0,"",PZO!AF5) ->  | BF5: =IF(VL_PARC!$W5=0,"",VL_PARC!AD5) ->  | BG5: =IF(VL_PARC!$W5=0,"",VL_PARC!AF5) -> 
A6: INSS | B6: INSS | C6: 96 | K6: Observação | M6: Tabela | O6: Val Fin Novo | P6: Troco | U6: Ticket Min | V6: 2000 | W6: =IF(PZO!W6+VL_PARC!W6>0,'Planilha 1'!W5+1,0) -> 0 | X6: INSS | Y6: 0.01739 | Z6: 0.017 | AA6: =IF($P$2=$AH$4,AK6,AS6) -> Flex 2 | AB6: INSS RfnPort Tx1,739%~1,700% Flex2 | AC6: 1.000520329 | AD6: 12195.16429 | AE6: 86.84090718 | AF6: 2108.323463 | AG6: 14303.48776 | AH6: INSS | AI6: 0.01739 | AJ6: 0.017 | AK6: Flex 2 | AL6: INSS RfnPort Tx1,739%~1,700% Flex2 | AP6: SIAPE | AQ6: 0.01749 | AR6: 0.017 | AS6: Flex 2 | AT6: SIAPE RfnPort Tx1.749 ~ 1.70 Flex 2 Web | AX6: 0 | AY6: INSS | AZ6: 0.01739 | BA6: 0.017 | BB6: Flex 2 | BC6: INSS RfnPort Tx1,739%~1,700% Flex2 | BD6: =IF(PZO!$W6=0,"",PZO!AD6) ->  | BE6: =IF(PZO!$W6=0,"",PZO!AF6) ->  | BF6: =IF(VL_PARC!$W6=0,"",VL_PARC!AD6) ->  | BG6: =IF(VL_PARC!$W6=0,"",VL_PARC!AF6) -> 
A7: SIAPE | B7: SIAPE | C7: 96 | H7: Data Saldo | I7: ='Simulador Port'!C7 -> 2025-09-30 | J7: =TODAY() -> 2025-09-30 | K7: ='Simulador Port'!D7 -> 0 | W7: =IF(PZO!W7+VL_PARC!W7>0,'Planilha 1'!W6+1,0) -> 0 | X7: INSS | Y7: 0.01699 | Z7: 0.0165 | AA7: Flex 3 | AB7: INSS RfnPort Tx1,699%~1,650% Flex3 | AC7: 1.000520329 | AD7: 12195.16429 | AE7: 86.84090718 | AF7: 2108.323463 | AG7: 14303.48776 | AH7: INSS | AI7: 0.01699 | AJ7: 0.0165 | AK7: Flex 3 | AL7: INSS RfnPort Tx1,699%~1,650% Flex3 | AP7: SIAPE | AQ7: 0.01699 | AR7: 0.0165 | AS7: Flex 3 | AT7: SIAPE RfnPort Tx1.699 ~ 1.65 Flex 3 Web | AX7: 0 | AY7: INSS | AZ7: 0.01699 | BA7: 0.0165 | BB7: Flex 3 | BC7: INSS RfnPort Tx1,699%~1,650% Flex3 | BD7: =IF(PZO!$W7=0,"",PZO!AD7) ->  | BE7: =IF(PZO!$W7=0,"",PZO!AF7) ->  | BF7: =IF(VL_PARC!$W7=0,"",VL_PARC!AD7) ->  | BG7: =IF(VL_PARC!$W7=0,"",VL_PARC!AF7) -> 
H8: Saldo Portado | I8: ='Simulador Port'!C8 -> 10000 | J8: =SUM('Planilha 1'!J35:J131) -> 9999.999922 | K8: =T8 ->  | L8: 1 | M8: =IFERROR(VLOOKUP(L8,$W$4:$AF$15,6,0),"") -> INSS RfnPort Tx1,599%~1,550% Flex5 | O8: =IFERROR(VLOOKUP(L8,$AX$4:$BG$15,7,0),"") -> 12195.16429 | P8: =IFERROR(VLOOKUP(L8,$AX$4:$BG$15,8,0),"") -> 2108.323463 | Q8: =IFERROR(VLOOKUP(L8,$AX$4:$BG$15,9,0),"") -> 12195.16429 | R8: =IFERROR(VLOOKUP(L8,$AX$4:$BG$15,10,0),"") -> 2108.323463 | T8: =IFERROR(IF(OR((J17-I17)/I17>2%,(J17-I17)/I17<-2%),"Saldo e Parcela não correspondem à taxa informada",""),"") ->  | U8: TAXA TROCO | W8: =IF(PZO!W8+VL_PARC!W8>0,'Planilha 1'!W7+1,0) -> 0 | X8: INSS | Y8: 0.01649 | Z8: 0.016 | AA8: Flex 4 | AB8: INSS RfnPort Tx1,649%~1,600% Flex4 | AC8: 1.000520329 | AD8: 12195.16429 | AE8: 86.84090718 | AF8: 2108.323463 | AG8: 14303.48776 | AH8: INSS | AI8: 0.01649 | AJ8: 0.016 | AK8: Flex 4 | AL8: INSS RfnPort Tx1,649%~1,600% Flex4 | AX8: 0 | AY8: INSS | AZ8: 0.01649 | BA8: 0.016 | BB8: Flex 4 | BC8: INSS RfnPort Tx1,649%~1,600% Flex4 | BD8: =IF(PZO!$W8=0,"",PZO!AD8) ->  | BE8: =IF(PZO!$W8=0,"",PZO!AF8) ->  | BF8: =IF(VL_PARC!$W8=0,"",VL_PARC!AD8) ->  | BG8: =IF(VL_PARC!$W8=0,"",VL_PARC!AF8) -> 
H9: Valor Parcela | I9: ='Simulador Port'!C9 -> 250 | J9: =I9 -> 250 | K9: ='Simulador Port'!D9 -> 0 | L9: =L8+1 -> 2 | M9: =IFERROR(VLOOKUP(L9,$W$4:$AF$15,6,0),"") ->  | O9: =IFERROR(VLOOKUP(L9,$AX$4:$BG$15,7,0),"") ->  | P9: =IFERROR(VLOOKUP(L9,$AX$4:$BG$15,8,0),"") ->  | Q9: =IFERROR(VLOOKUP(L9,$AX$4:$BG$15,9,0),"") ->  | R9: =IFERROR(VLOOKUP(L9,$AX$4:$BG$15,10,0),"") ->  | U9: TAXA Port MIN | V9: =IF(SUM(PZO!$W$4:$W$15,VL_PARC!$W$4:$W$15)=0,"Refin Indisponivel","") ->  | W9: =IF(PZO!W9+VL_PARC!W9>0,'Planilha 1'!W8+1,0) -> 1 | X9: INSS | Y9: 0.01599 | Z9: 0.0155 | AA9: Flex 5 | AB9: INSS RfnPort Tx1,599%~1,550% Flex5 | AC9: 1.000520329 | AD9: 12195.16429 | AE9: 86.84090718 | AF9: 2108.323463 | AG9: 14303.48776 | AH9: INSS | AI9: 0.01599 | AJ9: 0.0155 | AK9: Flex 5 | AL9: INSS RfnPort Tx1,599%~1,550% Flex5 | AX9: 1 | AY9: INSS | AZ9: 0.01599 | BA9: 0.0155 | BB9: Flex 5 | BC9: INSS RfnPort Tx1,599%~1,550% Flex5 | BD9: =IF(PZO!$W9=0,"",PZO!AD9) -> 12195.16429 | BE9: =IF(PZO!$W9=0,"",PZO!AF9) -> 2108.323463 | BF9: =IF(VL_PARC!$W9=0,"",VL_PARC!AD9) -> 12195.16429 | BG9: =IF(VL_PARC!$W9=0,"",VL_PARC!AF9) -> 2108.323463
H10: Nº de Parcelas Restantes | I10: ='Simulador Port'!C10 -> 60 | J10: =I10 -> 60 | K10: =T10 ->  | L10: =L9+1 -> 3 | T10: =IF(P3-J10<12,"Contrato com menos de 12 parcelas pagas","") ->  | W10: =IF(PZO!W10+VL_PARC!W10>0,'Planilha 1'!W9+1,0) -> 0 | X10: 0 | Y10: 0 | Z10: 0 | AA10: 0 | AB10: 0 | AC10: 1 | AX10: 0 | AY10: 0 | AZ10: 0 | BA10: 0 | BB10: 0 | BC10: 0 | BD10: =IF(PZO!$W10=0,"",PZO!AD10) ->  | BE10: =IF(PZO!$W10=0,"",PZO!AF10) ->  | BF10: =IF(VL_PARC!$W10=0,"",VL_PARC!AD10) ->  | BG10: =IF(VL_PARC!$W10=0,"",VL_PARC!AF10) -> 
L11: 4 | W11: =IF(PZO!W11+VL_PARC!W11>0,'Planilha 1'!W10+1,0) -> 0 | X11: 0 | Y11: 0 | Z11: 0 | AA11: 0 | AB11: 0 | AC11: 1 | AX11: 0 | AY11: 0 | AZ11: 0 | BA11: 0 | BB11: 0 | BC11: 0 | BD11: =IF(PZO!$W11=0,"",PZO!AD11) ->  | BE11: =IF(PZO!$W11=0,"",PZO!AF11) ->  | BF11: =IF(VL_PARC!$W11=0,"",VL_PARC!AD11) ->  | BG11: =IF(VL_PARC!$W11=0,"",VL_PARC!AF11) -> 
L12: 5 | W12: =IF(PZO!W12+VL_PARC!W12>0,'Planilha 1'!W11+1,0) -> 0 | X12: 0 | Y12: 0 | Z12: 0 | AA12: 0 | AB12: 0 | AC12: 1 | AW12: ; | AX12: 0 | AY12: 0 | AZ12: 0 | BA12: 0 | BB12: 0 | BC12: 0 | BD12: =IF(PZO!$W12=0,"",PZO!AD12) ->  | BE12: =IF(PZO!$W12=0,"",PZO!AF12) ->  | BF12: =IF(VL_PARC!$W12=0,"",VL_PARC!AD12) ->  | BG12: =IF(VL_PARC!$W12=0,"",VL_PARC!AF12) -> 
L13: 6 | W13: =IF(PZO!W13+VL_PARC!W13>0,'Planilha 1'!W12+1,0) -> 0 | X13: 0 | Y13: 0 | Z13: 0 | AA13: 0 | AB13: 0 | AC13: 1 | AX13: 0 | AY13: 0 | AZ13: 0 | BA13: 0 | BB13: 0 | BC13: 0 | BD13: =IF(PZO!$W13=0,"",PZO!AD13) ->  | BE13: =IF(PZO!$W13=0,"",PZO!AF13) ->  | BF13: =IF(VL_PARC!$W13=0,"",VL_PARC!AD13) ->  | BG13: =IF(VL_PARC!$W13=0,"",VL_PARC!AF13) -> 
L14: 7 | W14: =IF(PZO!W14+VL_PARC!W14>0,'Planilha 1'!W13+1,0) -> 0 | X14: 0 | Y14: 0 | Z14: 0 | AA14: 0 | AB14: 0 | AC14: 1 | AX14: 0 | AY14: 0 | AZ14: 0 | BA14: 0 | BB14: 0 | BC14: 0 | BD14: =IF(PZO!$W14=0,"",PZO!AD14) ->  | BE14: =IF(PZO!$W14=0,"",PZO!AF14) ->  | BF14: =IF(VL_PARC!$W14=0,"",VL_PARC!AD14) ->  | BG14: =IF(VL_PARC!$W14=0,"",VL_PARC!AF14) ->  | BY14: Maior Parcela
L15: 8 | W15: =IF(PZO!W15+VL_PARC!W15>0,'Planilha 1'!W14+1,0) -> 0 | X15: 0 | Y15: 0 | Z15: 0 | AA15: 0 | AB15: 0 | AC15: 1 | AX15: 0 | AY15: 0 | AZ15: 0 | BA15: 0 | BB15: 0 | BC15: 0 | BD15: =IF(PZO!$W15=0,"",PZO!AD15) ->  | BE15: =IF(PZO!$W15=0,"",PZO!AF15) ->  | BF15: =IF(VL_PARC!$W15=0,"",VL_PARC!AD15) ->  | BG15: =IF(VL_PARC!$W15=0,"",VL_PARC!AF15) ->  | BY15: Maior Parcela
J16: =(1+XIRR('Planilha 1'!$I$35:$I$131,'Planilha 1'!$H$35:$H$131))^(360/365)^(30/360)-1 -> 0.01406512714 | L16: 9 | BY16: Pzo | BZ16: =I10 -> 60
H17: Taxa de Juros | I17: =J17 -> 0.01406512714 | J17: =(1+XIRR('Planilha 1'!$I$35:$I$131,'Planilha 1'!$H$35:$H$131))^(360/365)^(30/360)-1 -> 0.01406512714 | K17: =T17 ->  | L17: 10 | T17: =IFERROR(IF(J17<'Planilha 1'!Y1,"Taxa original inferior a mínima",IF(J17>'Planilha 1'!Z1,"Atenção! Enquadrar valores p/ port.",IF(SUM(PZO!$W$4:$W$15,VL_PARC!$W$4:$W$15)=0,"Refin Indisponivel",""))),"") ->  | BY17: Parcela | BZ17: =BS36 -> 250
H18: Saldo Calculado pela Taxa | I18: =SUM('Planilha 1'!K36:K131) -> 9999.999922 | J18: =SUM(J36:J131) -> 9999.999922 | L18: 11 | T18: =IFERROR(IF(J17<'Planilha 1'!Y1,2,IF(J17>'Planilha 1'!Z1,1,"")),"") ->  | BK18: saldo | BL18: 14510.87162
L19: 12 | BY19: Maior Prazo | CA19: 1 | CC19: Maior Prazo | CD19: =MAX(BY29:EX29)-1 -> 2
AB20: =IFERROR(VLOOKUP(Y20,$W$4:$AF$15,8,0),"") -> 12195.16429 | BY20: Pzo | BZ20: =MIN(HLOOKUP(CA19,$BY$29:$EX$31,3,0),'Planilha 1'!I10) -> 60 | CC20: Pzo
BL21: =BL32*1000 -> 15.03309254 | BY21: Taxa | BZ21: =MIN(HLOOKUP(CA19,$BY$29:$EX$32,4,0),'Planilha 1'!I17) -> 0.01406512714 | CC21: Taxa
H22: Taxa AP considerando base 365 | I22: =J16 -> 0.01406512714 | BL22: =1.55%*1000 -> 15.5 | BM22: =BL22-BL21 -> 0.4669074615
H23: Taxa CET da PORT | I23: =J17 -> 0.01406512714 | BW23: Teto Conv | BX23: =Z1 -> 0.0185
BW24: Pzo Conv | BX24: =Z2 -> 96
H25: Enquadramento Port | N25: Taxa minima TAB PORT | BY25: =IF(((BY31*BY30)+($BX$23*($BX$24-BY30)))/$BX$24<$BX$23,1,0) -> 0
H26: 1. Otimiza Pzo * | I26: =IF('Simulador Port'!$C$2="INSS",'Planilha 1'!J26,"NORMAL") -> Flex 1 | J26: =IF('Simulador Port'!C23>=$N$26,"Normal",IF('Simulador Port'!C23>=$N$27,"Flex 1",NA())) -> Flex 1 | L26: Normal | N26: 0.0168 | BJ26: SEM MUDA PRAZO | BK26: SOMAR 1 PARCELA | BL26: SOMAR 2 PARCELAS | BM26: TIRAR 1 PARCELA | BN26: TIRAR 2 PARCELAS | BW26: Tx Alvo | BX26: Teto Pond | BY26: =IF(((BY32*BY31)+($BX$23*($BX$24-BY31)))/$BX$24<$BX$23,1,0) -> 0 | BZ26: =IF(((BZ32*BZ31)+($BX$23*($BX$24-BZ31)))/$BX$24<$BX$23,1,0) -> 0 | CA26: 0 | CB26: 0 | CC26: 0 | CD26: 0 | CE26: 0 | CF26: 0 | CG26: 0 | CH26: 0 | CI26: 0 | CJ26: 0 | CK26: 0 | CL26: 0 | CM26: 0 | CN26: 0 | CO26: 0 | CP26: 0 | CQ26: 0 | CR26: 0 | CS26: 0 | CT26: 1 | CU26: 1 | CV26: 1 | CW26: 1 | CX26: 1 | CY26: 1 | CZ26: 1 | DA26: 1 | DB26: 1 | DC26: 1 | DD26: 1 | DE26: 1 | DF26: =IF(((DF32*DF31)+($BX$23*($BX$24-DF31)))/$BX$24<$BX$23,1,0) -> 1 | DG26: 1 | DH26: 1 | DI26: 1 | DJ26: 1 | DK26: 1 | DL26: 1 | DM26: 1 | DN26: 1 | DO26: 1 | DP26: 1 | DQ26: 1 | DR26: 1 | DS26: 1 | DT26: 1 | DU26: 1 | DV26: 1 | DW26: 1 | DX26: 1 | DY26: 1 | DZ26: 1 | EA26: 1 | EB26: 1 | EC26: 1 | ED26: 1 | EE26: 1 | EF26: 1 | EG26: 1 | EH26: 1 | EI26: 1 | EJ26: 1 | EK26: 1 | EL26: =IF(((EL32*EL31)+($BX$23*($BX$24-EL31)))/$BX$24<$BX$23,1,0) -> 1 | EM26: 1 | EN26: 1 | EO26: 1 | EP26: 1 | EQ26: 1 | ER26: 1 | ES26: 1 | ET26: 1 | EU26: 1 | EV26: 1 | EW26: 1 | EX26: 1
H27: 2.Redução Vlr Parcela** | I27: =IF('Simulador Port'!$C$2="INSS",'Planilha 1'!J27,"NORMAL") -> Flex 1 | J27: =IF('Simulador Port'!E23>=$N$26,"Normal",IF('Simulador Port'!E23>=$N$27,"Flex 1",NA())) -> Flex 1 | L27: Flex1 | N27: 0.0135 | AT27: =XIRR(AU$35:AU$131,$H$35:$H$131) -> 0.019681409 | AU27: 0.019681409 | AV27: 0.019681409 | AW27: 0.019681409 | AX27: 0.019681409 | AY27: 0.019681409 | BJ27: =IF(K17<>"","Taxa original inferior a mínima","") ->  | BK27: =IF(BK32<'Planilha 1'!$Y$1,"Taxa original inferior a mínima","") ->  | BL27: =IF(BL32<'Planilha 1'!$Y$1,"Taxa original inferior a mínima","") ->  | BM27: =IF(BM32<'Planilha 1'!$Y$1,"Taxa original inferior a mínima","") ->  | BN27: =IF(BN32<'Planilha 1'!$Y$1,"Taxa original inferior a mínima","") -> Taxa original inferior a mínima | BX27: VAlid1 | BY27: =IF(BY31>$P$3-12,0,IF(BY31>$I$10,0,1)) -> 0 | BZ27: =IF(BZ31>$P$3-12,0,IF(BZ31>$I$10,0,1)) -> 0 | CA27: =IF(CA31>$P$3-12,0,IF(CA31>$I$10,0,1)) -> 0 | CB27: 0 | CC27: 0 | CD27: 0 | CE27: 0 | CF27: 0 | CG27: 0 | CH27: 0 | CI27: 0 | CJ27: 0 | CK27: 0 | CL27: 0 | CM27: 0 | CN27: 0 | CO27: 0 | CP27: 0 | CQ27: 0 | CR27: 0 | CS27: 0 | CT27: =IF(CT31>$P$3-12,0,IF(CT31>$I$10,0,1)) -> 0 | CU27: 0 | CV27: 0 | CW27: 0 | CX27: 0 | CY27: 0 | CZ27: 0 | DA27: 0 | DB27: 0 | DC27: 0 | DD27: 0 | DE27: 0 | DF27: 0 | DG27: 0 | DH27: 0 | DI27: 1 | DJ27: 1 | DK27: 1 | DL27: 1 | DM27: 1 | DN27: 1 | DO27: 1 | DP27: 1 | DQ27: 1 | DR27: 1 | DS27: 1 | DT27: 1 | DU27: 1 | DV27: 1 | DW27: 1 | DX27: 1 | DY27: 1 | DZ27: 1 | EA27: 1 | EB27: 1 | EC27: 1 | ED27: 1 | EE27: 1 | EF27: 1 | EG27: 1 | EH27: 1 | EI27: 1 | EJ27: 1 | EK27: 1 | EL27: =IF(EL31>$P$3-12,0,IF(EL31>$I$10,0,1)) -> 1 | EM27: 1 | EN27: 1 | EO27: 1 | EP27: 1 | EQ27: 1 | ER27: 1 | ES27: 1 | ET27: 1 | EU27: 1 | EV27: 1 | EW27: 1 | EX27: 1
AH28: =U32-$J$8 -> 2195.164371 | AI28: =V32-$J$8 -> 2195.164371 | AJ28: 2195.164371 | AK28: 2195.164371 | AL28: 2195.164371 | AM28: 2195.164371 | BW28: Tx Alvo | BX28: =Y1 -> 0.0135 | BY28: =MAX((BY32-$BX$28)*BY27*BY26,0) -> 0 | BZ28: =MAX((BZ32-$BX$28)*BZ27*BZ26,0) -> 0 | CA28: 0 | CB28: 0 | CC28: 0 | CD28: 0 | CE28: 0 | CF28: 0 | CG28: 0 | CH28: 0 | CI28: 0 | CJ28: 0 | CK28: 0 | CL28: 0 | CM28: 0 | CN28: 0 | CO28: 0 | CP28: 0 | CQ28: 0 | CR28: 0 | CS28: 0 | CT28: 0 | CU28: 0 | CV28: 0 | CW28: 0 | CX28: 0 | CY28: 0 | CZ28: 0 | DA28: 0 | DB28: 0 | DC28: 0 | DD28: 0 | DE28: 0 | DF28: 0 | DG28: 0 | DH28: 0 | DI28: 0.000565127145 | DJ28: 0.0001570869583 | DK28: 0 | DL28: 0 | DM28: 0 | DN28: 0 | DO28: 0 | DP28: 0 | DQ28: 0 | DR28: 0 | DS28: 0 | DT28: 0 | DU28: 0 | DV28: 0 | DW28: 0 | DX28: 0 | DY28: 0 | DZ28: 0 | EA28: 0 | EB28: 0 | EC28: 0 | ED28: 0 | EE28: 0 | EF28: 0 | EG28: 0 | EH28: 0 | EI28: 0 | EJ28: 0 | EK28: 0 | EL28: =MAX((EL32-$BX$28)*EL27*EL26,0) -> 0 | EM28: 0 | EN28: =MAX((EN32-$BX$28)*EN27*EN26,0) -> 0 | EO28: 0 | EP28: 0 | EQ28: 0 | ER28: 0 | ES28: 0 | ET28: 0 | EU28: 0 | EV28: 0 | EW28: 0 | EX28: 0
T29: Taxa REFIN | U29: =VLOOKUP(U34,$AA$4:$AC$15,3,0) -> 1.000520329 | V29: =VLOOKUP(V34,$AA$4:$AC$15,3,0) -> 1.000520329 | W29: =VLOOKUP(W34,$AA$4:$AC$15,3,0) -> 1.000520329 | X29: =VLOOKUP(X34,$AA$4:$AC$15,3,0) -> 1.000520329 | Y29: 1.000520329 | Z29: 1.000520329 | AH29: =SUM(AH35:AH131) -> 86.84090718 | AI29: =SUM(AI35:AI131) -> 86.84090718 | AJ29: 86.84090718 | AK29: 86.84090718 | AL29: 86.84090718 | AM29: 86.84090718 | AU29: =(1+AT27)^(30/365)-1 -> 0.00160322086 | AV29: 0.00160322086 | AW29: 0.00160322086 | AX29: 0.00160322086 | AY29: 0.00160322086 | AZ29: 0.00160322086 | BY29: =RANK(BY28,$BY$28:$EX$28,0) -> 3 | BZ29: =RANK(BZ28,$BY$28:$EX$28,0) -> 3 | CA29: 3 | CB29: 3 | CC29: 3 | CD29: 3 | CE29: 3 | CF29: 3 | CG29: 3 | CH29: 3 | CI29: 3 | CJ29: 3 | CK29: 3 | CL29: 3 | CM29: 3 | CN29: 3 | CO29: 3 | CP29: 3 | CQ29: 3 | CR29: 3 | CS29: 3 | CT29: 3 | CU29: 3 | CV29: 3 | CW29: 3 | CX29: 3 | CY29: 3 | CZ29: 3 | DA29: 3 | DB29: 3 | DC29: 3 | DD29: 3 | DE29: 3 | DF29: 3 | DG29: 3 | DH29: 3 | DI29: 1 | DJ29: 2 | DK29: 3 | DL29: 3 | DM29: 3 | DN29: 3 | DO29: 3 | DP29: 3 | DQ29: 3 | DR29: 3 | DS29: 3 | DT29: 3 | DU29: 3 | DV29: 3 | DW29: 3 | DX29: 3 | DY29: 3 | DZ29: 3 | EA29: 3 | EB29: 3 | EC29: 3 | ED29: 3 | EE29: 3 | EF29: 3 | EG29: 3 | EH29: 3 | EI29: 3 | EJ29: 3 | EK29: 3 | EL29: =RANK(EL28,$BY$28:$EX$28,0) -> 3 | EM29: 3 | EN29: 3 | EO29: 3 | EP29: 3 | EQ29: 3 | ER29: 3 | ES29: 3 | ET29: 3 | EU29: 3 | EV29: 3 | EW29: 3 | EX29: 3
H30: dt ini fx pmt | J30: =NETWORKDAYS(EOMONTH(I7,-1)+1,I7,$A$34:$A$1297) -> 22
H31: Prox Vencimento | J31: =IF(I31="",IF(P2="INSS",IF(J30<3,EOMONTH(I7,0)+7,EOMONTH(I7,1)+7),IF(DAY(I7)<11,EOMONTH(I7,0)+10,EOMONTH(I7,1)+10)),I31) -> 2025-11-07 | U31: =U32-$I$8 -> 2195.164293 | V31: =V32-$I$8 -> 2195.164293 | W31: 2195.164293 | X31: 2195.164293 | Y31: 2195.164293 | Z31: 2195.164293 | AE31: =AE32-$I$8 ->  | BJ31: Prox Vencimento | BL31: =J31 -> 2025-11-07 | BR31: =(1+BX23)^((364.6/12)/30)-1 -> 0.01873859007 | BT31: =MAX($I$10-3,BZ20) -> 60 | BU31: =MAX($I$10-3,BZ20) -> 60 | BX31: Pzo | BY31: =COUNTIFS(BY36:BY131,">"&0) -> 96 | BZ31: =COUNTIFS(BZ36:BZ131,">"&0) -> 95 | CA31: =COUNTIFS(CA36:CA131,">"&0) -> 94 | CB31: 93 | CC31: 92 | CD31: 91 | CE31: 90 | CF31: 89 | CG31: 88 | CH31: 87 | CI31: 86 | CJ31: 85 | CK31: 84 | CL31: 83 | CM31: 82 | CN31: 81 | CO31: 80 | CP31: 79 | CQ31: 78 | CR31: 77 | CS31: 76 | CT31: 75 | CU31: 74 | CV31: 73 | CW31: 72 | CX31: =COUNTIFS(CX36:CX131,">"&0) -> 71 | CY31: 70 | CZ31: 69 | DA31: 68 | DB31: 67 | DC31: 66 | DD31: 65 | DE31: 64 | DF31: 63 | DG31: 62 | DH31: 61 | DI31: 60 | DJ31: 59 | DK31: 58 | DL31: 57 | DM31: 56 | DN31: 55 | DO31: 54 | DP31: 53 | DQ31: 52 | DR31: 51 | DS31: 50 | DT31: 49 | DU31: 48 | DV31: 47 | DW31: 46 | DX31: 45 | DY31: 44 | DZ31: 43 | EA31: 42 | EB31: 41 | EC31: 40 | ED31: 39 | EE31: 38 | EF31: 37 | EG31: 36 | EH31: 35 | EI31: 34 | EJ31: 33 | EK31: 32 | EL31: 31 | EM31: 30 | EN31: 29 | EO31: 28 | EP31: 27 | EQ31: 26 | ER31: 25 | ES31: 24 | ET31: 23 | EU31: 22 | EV31: 21 | EW31: 20 | EX31: 19
H32: Fator Dia | I32: =(1+I17)^(1/30) -> 1.000465679 | J32: =(1+J17)^(1/30) -> 1.000465679 | T32: Vlr Troco | U32: =SUM(U36:U131) -> 12195.16429 | V32: =SUM(V36:V131) -> 12195.16429 | W32: =SUM(W36:W131) -> 12195.16429 | X32: =SUM(X36:X131) -> 12195.16429 | Y32: 12195.16429 | Z32: 12195.16429 | BJ32: XITR | BK32: =(1+XIRR('Planilha 1'!BK$35:BK$131,'Planilha 1'!$BJ$35:$BJ$131))^(30/360)-1 -> 0.01465644156 | BL32: =(1+XIRR('Planilha 1'!BL$35:BL$131,'Planilha 1'!$BJ$35:$BJ$131))^(30/360)-1 -> 0.01503309254 | BM32: =(1+XIRR('Planilha 1'!BM$35:BM$131,'Planilha 1'!$BJ$35:$BJ$131))^(30/360)-1 -> 0.01384807611 | BN32: =(1+XIRR('Planilha 1'!BN$35:BN$131,'Planilha 1'!$BJ$35:$BJ$131))^(30/360)-1 -> 0.0134140948 | BR32: =BX23 -> 0.0185 | BS32: =(1+XIRR('Planilha 1'!BS$35:BS$131,'Planilha 1'!$BJ$35:$BJ$131))^(30/365)-1 -> 0.01406512714 | BT32: =MIN(PMT($BR$31,MAX($I$10-3,BZ20),$BR$35),I9) -> 250 | BU32: =MIN(PMT($BR$31,MAX($I$10-3,BZ20),$BR$35),I9) -> 250 | BX32: Tx | BY32: =(1+XIRR(BY35:BY131,'Planilha 1'!$H$35:$H$131))^(30/365)-1 -> 0.02140074967 | BZ32: =(1+XIRR(BZ35:BZ131,'Planilha 1'!$H$35:$H$131))^(30/365)-1 -> 0.02130445979 | CA32: =(1+XIRR(CA35:CA131,'Planilha 1'!$H$35:$H$131))^(30/365)-1 -> 0.02120478269 | CB32: =(1+XIRR(CB35:CB131,'Planilha 1'!$H$35:$H$131))^(30/365)-1 -> 0.02110150328 | CC32: =(1+XIRR(CC35:CC131,'Planilha 1'!$H$35:$H$131))^(30/365)-1 -> 0.02099446883 | CD32: =(1+XIRR(CD35:CD131,'Planilha 1'!$H$35:$H$131))^(30/365)-1 -> 0.02088359394 | CE32: =(1+XIRR(CE35:CE131,'Planilha 1'!$H$35:$H$131))^(30/365)-1 -> 0.02076863498 | CF32: =(1+XIRR(CF35:CF131,'Planilha 1'!$H$35:$H$131))^(30/365)-1 -> 0.02064949481 | CG32: =(1+XIRR(CG35:CG131,'Planilha 1'!$H$35:$H$131))^(30/365)-1 -> 0.02052590655 | CH32: =(1+XIRR(CH35:CH131,'Planilha 1'!$H$35:$H$131))^(30/365)-1 -> 0.02039793288 | CI32: =(1+XIRR(CI35:CI131,'Planilha 1'!$H$35:$H$131))^(30/365)-1 -> 0.02026511544 | CJ32: =(1+XIRR(CJ35:CJ131,'Planilha 1'!$H$35:$H$131))^(30/365)-1 -> 0.02012723408 | CK32: =(1+XIRR(CK35:CK131,'Planilha 1'!$H$35:$H$131))^(30/365)-1 -> 0.01998415222 | CL32: =(1+XIRR(CL35:CL131,'Planilha 1'!$H$35:$H$131))^(30/365)-1 -> 0.01983553409 | CM32: =(1+XIRR(CM35:CM131,'Planilha 1'!$H$35:$H$131))^(30/365)-1 -> 0.01968122291 | CN32: =(1+XIRR(CN35:CN131,'Planilha 1'!$H$35:$H$131))^(30/365)-1 -> 0.01952084907 | CO32: =(1+XIRR(CO35:CO131,'Planilha 1'!$H$35:$H$131))^(30/365)-1 -> 0.01935412469 | CP32: =(1+XIRR(CP35:CP131,'Planilha 1'!$H$35:$H$131))^(30/365)-1 -> 0.0191808561 | CQ32: =(1+XIRR(CQ35:CQ131,'Planilha 1'!$H$35:$H$131))^(30/365)-1 -> 0.01900061344 | CR32: =(1+XIRR(CR35:CR131,'Planilha 1'!$H$35:$H$131))^(30/365)-1 -> 0.01881317528 | CS32: =(1+XIRR(CS35:CS131,'Planilha 1'!$H$35:$H$131))^(30/365)-1 -> 0.01861806487 | CT32: =(1+XIRR(CT35:CT131,'Planilha 1'!$H$35:$H$131))^(30/365)-1 -> 0.01841515053 | CU32: =(1+XIRR(CU35:CU131,'Planilha 1'!$H$35:$H$131))^(30/365)-1 -> 0.01820378493 | CV32: =(1+XIRR(CV35:CV131,'Planilha 1'!$H$35:$H$131))^(30/365)-1 -> 0.01798353678 | CW32: =(1+XIRR(CW35:CW131,'Planilha 1'!$H$35:$H$131))^(30/365)-1 -> 0.01775408422 | CX32: =(1+XIRR(CX35:CX131,'Planilha 1'!$H$35:$H$131))^(30/365)-1 -> 0.01751480837 | CY32: =(1+XIRR(CY35:CY131,'Planilha 1'!$H$35:$H$131))^(30/365)-1 -> 0.01726533682 | CZ32: =(1+XIRR(CZ35:CZ131,'Planilha 1'!$H$35:$H$131))^(30/365)-1 -> 0.01700497685 | DA32: =(1+XIRR(DA35:DA131,'Planilha 1'!$H$35:$H$131))^(30/365)-1 -> 0.01673314165 | DB32: =(1+XIRR(DB35:DB131,'Planilha 1'!$H$35:$H$131))^(30/365)-1 -> 0.0164493603 | DC32: =(1+XIRR(DC35:DC131,'Planilha 1'!$H$35:$H$131))^(30/365)-1 -> 0.01615281194 | DD32: =(1+XIRR(DD35:DD131,'Planilha 1'!$H$35:$H$131))^(30/365)-1 -> 0.0158429482 | DE32: =(1+XIRR(DE35:DE131,'Planilha 1'!$H$35:$H$131))^(30/365)-1 -> 0.01551884444 | DF32: =(1+XIRR(DF35:DF131,'Planilha 1'!$H$35:$H$131))^(30/365)-1 -> 0.01518020067 | DG32: =(1+XIRR(DG35:DG131,'Planilha 1'!$H$35:$H$131))^(30/365)-1 -> 0.01482564076 | DH32: =(1+XIRR(DH35:DH131,'Planilha 1'!$H$35:$H$131))^(30/365)-1 -> 0.01445422437 | DI32: =(1+XIRR(DI35:DI131,'Planilha 1'!$H$35:$H$131))^(30/365)-1 -> 0.01406512714 | DJ32: =(1+XIRR(DJ35:DJ131,'Planilha 1'!$H$35:$H$131))^(30/365)-1 -> 0.01365708696 | DK32: =(1+XIRR(DK35:DK131,'Planilha 1'!$H$35:$H$131))^(30/365)-1 -> 0.01322912998 | DL32: =(1+XIRR(DL35:DL131,'Planilha 1'!$H$35:$H$131))^(30/365)-1 -> 0.01277981544 | DM32: =(1+XIRR(DM35:DM131,'Planilha 1'!$H$35:$H$131))^(30/365)-1 -> 0.01230779267 | DN32: =(1+XIRR(DN35:DN131,'Planilha 1'!$H$35:$H$131))^(30/365)-1 -> 0.01181179985 | DO32: =(1+XIRR(DO35:DO131,'Planilha 1'!$H$35:$H$131))^(30/365)-1 -> 0.01129006735 | DP32: =(1+XIRR(DP35:DP131,'Planilha 1'!$H$35:$H$131))^(30/365)-1 -> 0.01074109017 | DQ32: =(1+XIRR(DQ35:DQ131,'Planilha 1'!$H$35:$H$131))^(30/365)-1 -> 0.01016282445 | DR32: =(1+XIRR(DR35:DR131,'Planilha 1'!$H$35:$H$131))^(30/365)-1 -> 0.009553860531 | DS32: =(1+XIRR(DS35:DS131,'Planilha 1'!$H$35:$H$131))^(30/365)-1 -> 0.008911415187 | DT32: =(1+XIRR(DT35:DT131,'Planilha 1'!$H$35:$H$131))^(30/365)-1 -> 0.008233117437 | DU32: =(1+XIRR(DU35:DU131,'Planilha 1'!$H$35:$H$131))^(30/365)-1 -> 0.007516571609 | DV32: =(1+XIRR(DV35:DV131,'Planilha 1'!$H$35:$H$131))^(30/365)-1 -> 0.006758764744 | DW32: =(1+XIRR(DW35:DW131,'Planilha 1'!$H$35:$H$131))^(30/365)-1 -> 0.005956783854 | DX32: =(1+XIRR(DX35:DX131,'Planilha 1'!$H$35:$H$131))^(30/365)-1 -> 0.005107074365 | DY32: =(1+XIRR(DY35:DY131,'Planilha 1'!$H$35:$H$131))^(30/365)-1 -> 0.004205944724 | DZ32: =(1+XIRR(DZ35:DZ131,'Planilha 1'!$H$35:$H$131))^(30/365)-1 -> 0.003249453168 | EA32: =(1+XIRR(EA35:EA131,'Planilha 1'!$H$35:$H$131))^(30/365)-1 -> 0.002232988641 | EB32: =(1+XIRR(EB35:EB131,'Planilha 1'!$H$35:$H$131))^(30/365)-1 -> 0.00115168461 | EC32: =(1+XIRR(EC35:EC131,'Planilha 1'!$H$35:$H$131))^(30/365)-1 -> 2.449505043e-10 | ED32: =(1+XIRR(ED35:ED131,'Planilha 1'!$H$35:$H$131))^(30/365)-1 -> -0.001228223768 | EE32: =(1+XIRR(EE35:EE131,'Planilha 1'!$H$35:$H$131))^(30/365)-1 -> -0.002539850927 | EF32: =(1+XIRR(EF35:EF131,'Planilha 1'!$H$35:$H$131))^(30/365)-1 -> -0.003942364635 | EG32: =(1+XIRR(EG35:EG131,'Planilha 1'!$H$35:$H$131))^(30/365)-1 -> -0.00544437554 | EH32: =(1+XIRR(EH35:EH131,'Planilha 1'!$H$35:$H$131))^(30/365)-1 -> -0.007055113358 | EI32: =(1+XIRR(EI35:EI131,'Planilha 1'!$H$35:$H$131))^(30/365)-1 -> -0.008785558629 | EJ32: =(1+XIRR(EJ35:EJ131,'Planilha 1'!$H$35:$H$131))^(30/365)-1 -> -0.01064722615 | EK32: =(1+XIRR(EK35:EK131,'Planilha 1'!$H$35:$H$131))^(30/365)-1 -> -0.0126533849 | EL32: =(1+XIRR(EL35:EL131,'Planilha 1'!$H$35:$H$131))^(30/365)-1 -> -0.01482011594 | EM32: =(1+XIRR(EM35:EM131,'Planilha 1'!$H$35:$H$131))^(30/365)-1 -> -0.01716378098 | EN32: =(1+XIRR(EN35:EN131,'Planilha 1'!$H$35:$H$131))^(30/365)-1 -> -0.01970548086 | EO32: =(1+XIRR(EO35:EO131,'Planilha 1'!$H$35:$H$131))^(30/365)-1 -> -0.02246631407 | EP32: =(1+XIRR(EP35:EP131,'Planilha 1'!$H$35:$H$131))^(30/365)-1 -> -0.02547709303 | EQ32: =(1+XIRR(EQ35:EQ131,'Planilha 1'!$H$35:$H$131))^(30/365)-1 -> -0.02876412508 | ER32: =(1+XIRR(ER35:ER131,'Planilha 1'!$H$35:$H$131))^(30/365)-1 -> -0.03236174374 | ES32: =(1+XIRR(ES35:ES131,'Planilha 1'!$H$35:$H$131))^(30/365)-1 -> -0.03631483933 | ET32: =(1+XIRR(ET35:ET131,'Planilha 1'!$H$35:$H$131))^(30/365)-1 -> -0.04066696221 | EU32: =(1+XIRR(EU35:EU131,'Planilha 1'!$H$35:$H$131))^(30/365)-1 -> -0.04548078563 | EV32: =(1+XIRR(EV35:EV131,'Planilha 1'!$H$35:$H$131))^(30/365)-1 -> -0.05081664828 | EW32: =(1+XIRR(EW35:EW131,'Planilha 1'!$H$35:$H$131))^(30/365)-1 -> -0.05675154206 | EX32: =(1+XIRR(EX35:EX131,'Planilha 1'!$H$35:$H$131))^(30/365)-1 -> -0.06339215357
A33: Data | B33: Dia da Semana | C33: Feriado | H33: OPERAÇÃO ORIGINAL | T33: REFINANCIAMENTO | AH33: IOF | AU33: REFINANCIAMENTO | BJ33: OPERAÇÃO ORIGINAL | BR33: =(1+BX23)^(1/30) -> 1.000611219 | BS33: =(1+XIRR('Planilha 1'!BR$35:BR$131,'Planilha 1'!$BP$35:$BP$131))^(30/365)-1 -> 0.01847048331 | BT33: =(1+XIRR('Planilha 1'!BT$35:BT$131,'Planilha 1'!$BO$35:$BO$131))^(30/365)-1 -> 0.01406512714 | BU33: =(1+XIRR('Planilha 1'!BU$35:BU$131,'Planilha 1'!$BO$35:$BO$131))^(30/365)-1 -> 0.01406512714 | BY33: 96 | BZ33: =BY33-1 -> 95 | CA33: =BZ33-1 -> 94 | CB33: 93 | CC33: 92 | CD33: 91 | CE33: 90 | CF33: 89 | CG33: 88 | CH33: 87 | CI33: 86 | CJ33: 85 | CK33: 84 | CL33: 83 | CM33: 82 | CN33: 81 | CO33: 80 | CP33: 79 | CQ33: 78 | CR33: 77 | CS33: 76 | CT33: 75 | CU33: 74 | CV33: 73 | CW33: 72 | CX33: =CW33-1 -> 71 | CY33: 70 | CZ33: 69 | DA33: 68 | DB33: 67 | DC33: 66 | DD33: 65 | DE33: 64 | DF33: 63 | DG33: 62 | DH33: 61 | DI33: 60 | DJ33: 59 | DK33: 58 | DL33: 57 | DM33: 56 | DN33: 55 | DO33: 54 | DP33: 53 | DQ33: 52 | DR33: 51 | DS33: 50 | DT33: 49 | DU33: 48 | DV33: 47 | DW33: 46 | DX33: 45 | DY33: 44 | DZ33: 43 | EA33: 42 | EB33: 41 | EC33: 40 | ED33: 39 | EE33: 38 | EF33: 37 | EG33: 36 | EH33: 35 | EI33: 34 | EJ33: 33 | EK33: 32 | EL33: 31 | EM33: 30 | EN33: 29 | EO33: 28 | EP33: 27 | EQ33: 26 | ER33: 25 | ES33: 24 | ET33: 23 | EU33: 22 | EV33: 21 | EW33: 20 | EX33: 19
A34: 2001-01-01 | B34: segunda-feira | C34: Confraternização Universal | H34: DATA EV | I34: FLUXO | J34: Principal | K34: Principal2 | L34: IOF | T34: FX Refin | U34: Normal | V34: Flex 1 | W34: Flex 2 | X34: Flex 3 | Y34: Flex 4 | Z34: Flex 5 | AA34: Flex 6 | AB34: Flex 7 | AC34: Flex 8 | AD34: Flex 9 | AE34: Flex 10 | AF34: Flex 11 | AH34: Normal | AI34: Flex 1 | AJ34: Flex 2 | AK34: Flex 3 | AL34: Flex 4 | AM34: Flex 5 | AN34: Flex 6 | AO34: Flex 7 | AP34: Flex 8 | AQ34: Flex 9 | AR34: Flex 10 | AS34: Flex 11 | AU34: Normal | AV34: Flex 1 | AW34: Flex 2 | AX34: Flex 3 | AY34: Flex 4 | AZ34: Flex 5 | BA34: Flex 6 | BB34: Flex 7 | BC34: Flex 8 | BD34: Flex 9 | BE34: Flex 10 | BF34: Flex 11 | BJ34: DATA EV | BK34: FLUXO1 | BL34: FLUXO2 | BM34: FLUXO3 | BN34: FLUXO4 | BR34: FLUX06 | BY34: FLUXO | BZ34: FLUXO | CA34: FLUXO | CB34: FLUXO | CC34: FLUXO | CD34: FLUXO | CE34: FLUXO | CF34: FLUXO | CG34: FLUXO | CH34: FLUXO | CI34: FLUXO | CJ34: FLUXO | CK34: FLUXO | CL34: FLUXO | CM34: FLUXO | CN34: FLUXO | CO34: FLUXO | CP34: FLUXO | CQ34: FLUXO | CR34: FLUXO | CS34: FLUXO | CT34: FLUXO | CU34: FLUXO | CV34: FLUXO | CW34: FLUXO | CX34: FLUXO | CY34: FLUXO | CZ34: FLUXO | DA34: FLUXO | DB34: FLUXO | DC34: FLUXO | DD34: FLUXO | DE34: FLUXO | DF34: FLUXO | DG34: FLUXO | DH34: FLUXO | DI34: FLUXO | DJ34: FLUXO | DK34: FLUXO | DL34: FLUXO | DM34: FLUXO | DN34: FLUXO | DO34: FLUXO | DP34: FLUXO | DQ34: FLUXO | DR34: FLUXO | DS34: FLUXO | DT34: FLUXO | DU34: FLUXO | DV34: FLUXO | DW34: FLUXO | DX34: FLUXO | DY34: FLUXO | DZ34: FLUXO | EA34: FLUXO | EB34: FLUXO | EC34: FLUXO | ED34: FLUXO | EE34: FLUXO | EF34: FLUXO | EG34: FLUXO | EH34: FLUXO | EI34: FLUXO | EJ34: FLUXO | EK34: FLUXO | EL34: FLUXO | EM34: FLUXO | EN34: FLUXO | EO34: FLUXO | EP34: FLUXO | EQ34: FLUXO | ER34: FLUXO | ES34: FLUXO | ET34: FLUXO | EU34: FLUXO | EV34: FLUXO | EW34: FLUXO | EX34: FLUXO
A35: 2001-02-26 | B35: segunda-feira | C35: Carnaval | G35: 0 | H35: =I7 -> 2025-09-30 | I35: =-I8 -> -10000 | L35: =I35*-0.38% -> 38 | T35: =I35 -> -10000 | AH35: =(U31)*$B$2 -> 8.341624312 | AI35: =(V31)*$B$2 -> 8.341624312 | AJ35: 8.341624312 | AK35: 8.341624312 | AL35: 8.341624312 | AM35: 8.341624312 | AU35: =-U32+$I$35 -> -22195.16429 | AV35: =-V32+$I$35 -> -22195.16429 | AW35: -22195.16429 | AX35: -22195.16429 | AY35: -22195.16429 | AZ35: -22195.16429 | BI35: 0 | BJ35: =H35 -> 2025-09-30 | BK35: =I35 -> -10000 | BL35: =BK35 -> -10000 | BM35: =BL35 -> -10000 | BN35: =BM35 -> -10000 | BO35: =H35 -> 2025-09-30 | BP35: =EDATE(BJ36,-1) -> 2025-10-07 | BQ35: =-BJ35+BP35 -> 7 | BR35: =-((-BN35)*BR33^BQ35) -> -10042.86384 | BS35: =BN35 -> -10000 | BT35: =BM35 -> -10000 | BU35: =BN35 -> -10000 | BY35: =BN35 -> -10000 | BZ35: =BY35 -> -10000 | CA35: =BZ35 -> -10000 | CB35: -10000 | CC35: -10000 | CD35: -10000 | CE35: -10000 | CF35: -10000 | CG35: -10000 | CH35: -10000 | CI35: -10000 | CJ35: -10000 | CK35: -10000 | CL35: -10000 | CM35: -10000 | CN35: -10000 | CO35: -10000 | CP35: -10000 | CQ35: -10000 | CR35: -10000 | CS35: -10000 | CT35: -10000 | CU35: -10000 | CV35: -10000 | CW35: -10000 | CX35: =CW35 -> -10000 | CY35: -10000 | CZ35: -10000 | DA35: -10000 | DB35: -10000 | DC35: -10000 | DD35: -10000 | DE35: -10000 | DF35: -10000 | DG35: -10000 | DH35: -10000 | DI35: -10000 | DJ35: -10000 | DK35: -10000 | DL35: -10000 | DM35: -10000 | DN35: -10000 | DO35: -10000 | DP35: -10000 | DQ35: -10000 | DR35: -10000 | DS35: -10000 | DT35: -10000 | DU35: -10000 | DV35: -10000 | DW35: -10000 | DX35: -10000 | DY35: -10000 | DZ35: -10000 | EA35: -10000 | EB35: -10000 | EC35: -10000 | ED35: -10000 | EE35: -10000 | EF35: -10000 | EG35: -10000 | EH35: -10000 | EI35: -10000 | EJ35: -10000 | EK35: -10000 | EL35: -10000 | EM35: -10000 | EN35: -10000 | EO35: -10000 | EP35: -10000 | EQ35: -10000 | ER35: -10000 | ES35: -10000 | ET35: -10000 | EU35: -10000 | EV35: -10000 | EW35: -10000 | EX35: -10000
A36: 2001-02-27 | B36: terça-feira | C36: Carnaval | F36: =H36-$H$35 -> 38 | G36: 1 | H36: =J31 -> 2025-11-07 | I36: =IF($G36>$I$10,0,$I$9) -> 250 | J36: =I36/($J$32^(H36-$H$35)) -> 245.61597 | K36: =I36/($I$32^(H36-$H$35)) -> 245.61597 | L36: =J36*0.0082%*MIN(F36,365) -> 0.7653393625 | S36: 1 | T36: =IF($G36>$P$3,0,$J$9) -> 250 | U36: =$T36/((U$29)^($H36-$H$35)) -> 245.1066872 | V36: =$T36/((V$29)^($H36-$H$35)) -> 245.1066872 | W36: 245.1066872 | X36: =$T36/((X$29)^($H36-$H$35)) -> 245.1066872 | Y36: 245.1066872 | Z36: 245.1066872 | AH36: =IF($I36<>0,0,U36*$B$1*MIN($F36,365)) -> 0 | AI36: =IF($I36<>0,0,V36*$B$1*MIN($F36,365)) -> 0 | AJ36: =IF($I36<>0,0,W36*$B$1*MIN($F36,365)) -> 0 | AK36: =IF($I36<>0,0,X36*$B$1*MIN($F36,365)) -> 0 | AL36: =IF($I36<>0,0,Y36*$B$1*MIN($F36,365)) -> 0 | AM36: =IF($I36<>0,0,Z36*$B$1*MIN($F36,365)) -> 0 | AN36: =IF($I36<>0,0,AA36*$B$1*MIN($F36,365)) -> 0 | AO36: =IF($I36<>0,0,AB36*$B$1*MIN($F36,365)) -> 0 | AP36: =IF($I36<>0,0,AC36*$B$1*MIN($F36,365)) -> 0 | AQ36: =IF($I36<>0,0,AD36*$B$1*MIN($F36,365)) -> 0 | AR36: =IF($I36<>0,0,AE36*$B$1*MIN($F36,365)) -> 0 | AS36: =IF($I36<>0,0,AF36*$B$1*MIN($F36,365)) -> 0 | AU36: =$T36 -> 250 | AV36: 250 | AW36: 250 | AX36: 250 | AY36: 250 | AZ36: 250 | BA36: 250 | BB36: 250 | BC36: 250 | BD36: 250 | BE36: 250 | BF36: 250 | BH36: =BJ36-$H$35 -> 38 | BI36: 1 | BJ36: =BL31 -> 2025-11-07 | BK36: =I36 -> 250 | BL36: =BK36 -> 250 | BM36: =I37 -> 250 | BN36: =BM37 -> 250 | BO36: =H36 -> 2025-11-07 | BP36: =BJ36 -> 2025-11-07 | BR36: =IF(G36>$I$10-3,0,PMT($BR$31,$I$10,$BR$35)) -> 280.1569336 | BS36: =MIN(BR36,$I$9) -> 250 | BT36: =IF(F36>$BU$31,0,$BU$32) -> 250 | BU36: =IF(G36>$BU$31,0,$BU$32) -> 250 | BY36: =IF($G36>BY$33,0,$I$9) -> 250 | BZ36: =IF($G36>BZ$33,0,$I$9) -> 250 | CA36: 250 | CB36: 250 | CC36: 250 | CD36: 250 | CE36: 250 | CF36: 250 | CG36: 250 | CH36: 250 | CI36: 250 | CJ36: 250 | CK36: 250 | CL36: 250 | CM36: 250 | CN36: 250 | CO36: 250 | CP36: =IF($G36>CP$33,0,$I$9) -> 250 | CQ36: 250 | CR36: 250 | CS36: 250 | CT36: 250 | CU36: 250 | CV36: 250 | CW36: 250 | CX36: 250 | CY36: 250 | CZ36: 250 | DA36: 250 | DB36: 250 | DC36: 250 | DD36: 250 | DE36: 250 | DF36: =IF($G36>DF$33,0,$I$9) -> 250 | DG36: 250 | DH36: 250 | DI36: 250 | DJ36: 250 | DK36: 250 | DL36: 250 | DM36: 250 | DN36: 250 | DO36: 250 | DP36: 250 | DQ36: 250 | DR36: 250 | DS36: 250 | DT36: 250 | DU36: 250 | DV36: 250 | DW36: 250 | DX36: 250 | DY36: 250 | DZ36: 250 | EA36: 250 | EB36: 250 | EC36: 250 | ED36: 250 | EE36: 250 | EF36: 250 | EG36: 250 | EH36: 250 | EI36: 250 | EJ36: 250 | EK36: 250 | EL36: 250 | EM36: 250 | EN36: 250 | EO36: 250 | EP36: 250 | EQ36: 250 | ER36: 250 | ES36: 250 | ET36: 250 | EU36: 250 | EV36: 250 | EW36: 250 | EX36: 250
A37: 2001-04-13 | B37: sexta-feira | C37: Paixão de Cristo | F37: =H37-$H$35 -> 68 | G37: =G36+1 -> 2 | H37: =EDATE(H36,1) -> 2025-12-07 | I37: =IF($G37>$I$10,0,$I$9) -> 250 | J37: =I37/($J$32^(H37-$H$35)) -> 242.2092659 | K37: 242.2092659 | L37: =J37*0.0082%*MIN(F37,365) -> 1.350558866 | S37: =S36+1 -> 2 | T37: 250 | U37: 241.3112938 | V37: 241.3112938 | W37: 241.3112938 | X37: =$T37/((X$29)^($H37-$H$35)) -> 241.3112938 | Y37: 241.3112938 | Z37: 241.3112938 | AE37: =$T37/((AE$29)^($H37-$H$35)) ->  | AH37: =IF($I37<>0,0,U37*$B$1*MIN($F37,365)) -> 0 | AI37: 0 | AJ37: 0 | AK37: 0 | AL37: 0 | AM37: 0 | AN37: 0 | AO37: 0 | AP37: 0 | AQ37: 0 | AR37: 0 | AS37: 0 | AU37: 250 | AV37: 250 | AW37: 250 | AX37: 250 | AY37: 250 | AZ37: 250 | BA37: 250 | BB37: 250 | BC37: 250 | BD37: 250 | BE37: 250 | BF37: 250 | BH37: =BJ37-$H$35 -> 68 | BI37: =BI36+1 -> 2 | BJ37: =EDATE(BJ36,1) -> 2025-12-07 | BK37: =I36 -> 250 | BL37: =BK36 -> 250 | BM37: =I38 -> 250 | BN37: =BM38 -> 250 | BO37: 2025-12-07 | BP37: =BJ37 -> 2025-12-07 | BR37: =IF(I37=0,0,PMT($BR$31,$I$10,$BR$35)) -> 280.1569336 | BS37: =MIN(BR37,$I$9) -> 250 | BT37: =IF(G37>$BT$31,0,$BT$32) -> 250 | BU37: =IF(G37>$BU$31,0,$BU$32) -> 250 | BY37: 250 | BZ37: 250 | CA37: 250 | CB37: 250 | CC37: 250 | CD37: 250 | CE37: 250 | CF37: 250 | CG37: 250 | CH37: 250 | CI37: 250 | CJ37: 250 | CK37: 250 | CL37: 250 | CM37: 250 | CN37: 250 | CO37: 250 | CP37: 250 | CQ37: 250 | CR37: 250 | CS37: 250 | CT37: 250 | CU37: 250 | CV37: 250 | CW37: 250 | CX37: 250 | CY37: 250 | CZ37: 250 | DA37: 250 | DB37: 250 | DC37: 250 | DD37: 250 | DE37: 250 | DF37: 250 | DG37: 250 | DH37: 250 | DI37: 250 | DJ37: 250 | DK37: 250 | DL37: 250 | DM37: 250 | DN37: 250 | DO37: 250 | DP37: 250 | DQ37: 250 | DR37: 250 | DS37: 250 | DT37: 250 | DU37: 250 | DV37: 250 | DW37: 250 | DX37: 250 | DY37: 250 | DZ37: 250 | EA37: 250 | EB37: 250 | EC37: 250 | ED37: 250 | EE37: 250 | EF37: 250 | EG37: 250 | EH37: 250 | EI37: 250 | EJ37: 250 | EK37: 250 | EL37: 250 | EM37: 250 | EN37: 250 | EO37: 250 | EP37: 250 | EQ37: 250 | ER37: 250 | ES37: 250 | ET37: 250 | EU37: 250 | EV37: 250 | EW37: 250 | EX37: 250
A38: 2001-04-21 | B38: sábado | C38: Tiradentes | F38: 99 | G38: =G37+1 -> 3 | H38: =EDATE(H37,1) -> 2026-01-07 | I38: =IF($G38>$I$10,0,$I$9) -> 250 | J38: 238.7386372 | K38: 238.7386372 | L38: 1.938080257 | S38: 3 | T38: 250 | U38: 237.4511182 | V38: 237.4511182 | W38: 237.4511182 | X38: 237.4511182 | Y38: 237.4511182 | Z38: 237.4511182 | AH38: 0 | AI38: 0 | AJ38: 0 | AK38: 0 | AL38: 0 | AM38: 0 | AN38: 0 | AO38: 0 | AP38: 0 | AQ38: 0 | AR38: 0 | AS38: 0 | AU38: 250 | AV38: 250 | AW38: 250 | AX38: 250 | AY38: 250 | AZ38: 250 | BA38: 250 | BB38: 250 | BC38: 250 | BD38: 250 | BE38: 250 | BF38: 250 | BH38: 99 | BI38: =BI37+1 -> 3 | BJ38: =EDATE(BJ37,1) -> 2026-01-07 | BK38: =I37 -> 250 | BL38: =BK37 -> 250 | BM38: 250 | BN38: 250 | BO38: 2026-01-07 | BP38: 2026-01-07 | BR38: 280.1569336 | BS38: 250 | BT38: =IF(G38>$BT$31,0,$BT$32) -> 250 | BU38: 250 | BY38: 250 | BZ38: 250 | CA38: 250 | CB38: 250 | CC38: 250 | CD38: 250 | CE38: 250 | CF38: 250 | CG38: 250 | CH38: 250 | CI38: 250 | CJ38: 250 | CK38: 250 | CL38: 250 | CM38: 250 | CN38: 250 | CO38: 250 | CP38: 250 | CQ38: 250 | CR38: 250 | CS38: 250 | CT38: 250 | CU38: 250 | CV38: 250 | CW38: 250 | CX38: 250 | CY38: 250 | CZ38: 250 | DA38: 250 | DB38: 250 | DC38: 250 | DD38: 250 | DE38: 250 | DF38: 250 | DG38: 250 | DH38: 250 | DI38: 250 | DJ38: 250 | DK38: 250 | DL38: 250 | DM38: 250 | DN38: 250 | DO38: 250 | DP38: 250 | DQ38: 250 | DR38: 250 | DS38: 250 | DT38: 250 | DU38: 250 | DV38: 250 | DW38: 250 | DX38: 250 | DY38: 250 | DZ38: 250 | EA38: 250 | EB38: 250 | EC38: 250 | ED38: 250 | EE38: 250 | EF38: 250 | EG38: 250 | EH38: 250 | EI38: 250 | EJ38: 250 | EK38: 250 | EL38: 250 | EM38: 250 | EN38: 250 | EO38: 250 | EP38: 250 | EQ38: 250 | ER38: 250 | ES38: 250 | ET38: 250 | EU38: 250 | EV38: 250 | EW38: 250 | EX38: 250
A39: 2001-05-01 | B39: terça-feira | C39: Dia do Trabalho | F39: 130 | G39: 4 | H39: 2026-02-07 | I39: 250 | J39: 235.3177394 | K39: 235.3177394 | L39: 2.508487102 | S39: 4 | T39: 250 | U39: 233.6526925 | V39: 233.6526925 | W39: 233.6526925 | X39: 233.6526925 | Y39: 233.6526925 | Z39: 233.6526925 | AH39: 0 | AI39: 0 | AJ39: 0 | AK39: 0 | AL39: 0 | AM39: 0 | AN39: 0 | AO39: 0 | AP39: 0 | AQ39: 0 | AR39: 0 | AS39: 0 | AU39: 250 | AV39: 250 | AW39: 250 | AX39: 250 | AY39: 250 | AZ39: 250 | BA39: 250 | BB39: 250 | BC39: 250 | BD39: 250 | BE39: 250 | BF39: 250 | BH39: 130 | BI39: 4 | BJ39: 2026-02-07 | BK39: 250 | BL39: 250 | BM39: 250 | BN39: 250 | BO39: 2026-02-07 | BP39: 2026-02-07 | BR39: 280.1569336 | BS39: 250 | BT39: 250 | BU39: 250 | BY39: 250 | BZ39: 250 | CA39: 250 | CB39: 250 | CC39: 250 | CD39: 250 | CE39: 250 | CF39: 250 | CG39: 250 | CH39: 250 | CI39: 250 | CJ39: 250 | CK39: 250 | CL39: 250 | CM39: 250 | CN39: 250 | CO39: 250 | CP39: 250 | CQ39: 250 | CR39: 250 | CS39: 250 | CT39: 250 | CU39: 250 | CV39: 250 | CW39: 250 | CX39: 250 | CY39: 250 | CZ39: 250 | DA39: 250 | DB39: 250 | DC39: 250 | DD39: 250 | DE39: 250 | DF39: 250 | DG39: 250 | DH39: 250 | DI39: 250 | DJ39: 250 | DK39: 250 | DL39: 250 | DM39: 250 | DN39: 250 | DO39: 250 | DP39: 250 | DQ39: 250 | DR39: 250 | DS39: 250 | DT39: 250 | DU39: 250 | DV39: 250 | DW39: 250 | DX39: 250 | DY39: 250 | DZ39: 250 | EA39: 250 | EB39: 250 | EC39: 250 | ED39: 250 | EE39: 250 | EF39: 250 | EG39: 250 | EH39: 250 | EI39: 250 | EJ39: 250 | EK39: 250 | EL39: 250 | EM39: 250 | EN39: 250 | EO39: 250 | EP39: 250 | EQ39: 250 | ER39: 250 | ES39: 250 | ET39: 250 | EU39: 250 | EV39: 250 | EW39: 250 | EX39: 250
A40: 2001-06-14 | B40: quinta-feira | C40: Corpus Christi | F40: 158 | G40: 5 | H40: 2026-03-07 | I40: 250 | J40: 232.2700479 | K40: 232.2700479 | L40: 3.00929074 | S40: 5 | T40: 250 | U40: 230.2741099 | V40: 230.2741099 | W40: 230.2741099 | X40: 230.2741099 | Y40: 230.2741099 | Z40: 230.2741099 | AH40: 0 | AI40: 0 | AJ40: 0 | AK40: 0 | AL40: 0 | AM40: 0 | AN40: 0 | AO40: 0 | AP40: 0 | AQ40: 0 | AR40: 0 | AS40: 0 | AU40: 250 | AV40: 250 | AW40: 250 | AX40: 250 | AY40: 250 | AZ40: 250 | BA40: 250 | BB40: 250 | BC40: 250 | BD40: 250 | BE40: 250 | BF40: 250 | BH40: 158 | BI40: 5 | BJ40: 2026-03-07 | BK40: 250 | BL40: 250 | BM40: 250 | BN40: 250 | BO40: 2026-03-07 | BP40: 2026-03-07 | BR40: 280.1569336 | BS40: 250 | BT40: 250 | BU40: 250 | BY40: 250 | BZ40: 250 | CA40: 250 | CB40: 250 | CC40: 250 | CD40: 250 | CE40: 250 | CF40: 250 | CG40: 250 | CH40: 250 | CI40: 250 | CJ40: 250 | CK40: 250 | CL40: 250 | CM40: 250 | CN40: 250 | CO40: 250 | CP40: 250 | CQ40: 250 | CR40: 250 | CS40: 250 | CT40: 250 | CU40: 250 | CV40: 250 | CW40: 250 | CX40: 250 | CY40: 250 | CZ40: 250 | DA40: 250 | DB40: 250 | DC40: 250 | DD40: 250 | DE40: 250 | DF40: 250 | DG40: 250 | DH40: 250 | DI40: 250 | DJ40: 250 | DK40: 250 | DL40: 250 | DM40: 250 | DN40: 250 | DO40: 250 | DP40: 250 | DQ40: 250 | DR40: 250 | DS40: 250 | DT40: 250 | DU40: 250 | DV40: 250 | DW40: 250 | DX40: 250 | DY40: 250 | DZ40: 250 | EA40: 250 | EB40: 250 | EC40: 250 | ED40: 250 | EE40: 250 | EF40: 250 | EG40: 250 | EH40: 250 | EI40: 250 | EJ40: 250 | EK40: 250 | EL40: 250 | EM40: 250 | EN40: 250 | EO40: 250 | EP40: 250 | EQ40: 250 | ER40: 250 | ES40: 250 | ET40: 250 | EU40: 250 | EV40: 250 | EW40: =IF($G40>EW$33,0,$I$9) -> 250 | EX40: 250
A41: 2001-09-07 | B41: sexta-feira | C41: Independência do Brasil | F41: 189 | G41: 6 | H41: 2026-04-07 | I41: 250 | J41: 228.9418388 | K41: 228.9418388 | L41: 3.548140617 | S41: 6 | T41: 250 | U41: 226.5904924 | V41: 226.5904924 | W41: 226.5904924 | X41: 226.5904924 | Y41: 226.5904924 | Z41: 226.5904924 | AH41: 0 | AI41: 0 | AJ41: 0 | AK41: 0 | AL41: 0 | AM41: 0 | AN41: 0 | AO41: 0 | AP41: 0 | AQ41: 0 | AR41: 0 | AS41: 0 | AU41: 250 | AV41: 250 | AW41: 250 | AX41: 250 | AY41: 250 | AZ41: 250 | BA41: 250 | BB41: 250 | BC41: 250 | BD41: 250 | BE41: 250 | BF41: 250 | BH41: 189 | BI41: 6 | BJ41: 2026-04-07 | BK41: 250 | BL41: 250 | BM41: 250 | BN41: 250 | BO41: 2026-04-07 | BP41: 2026-04-07 | BR41: 280.1569336 | BS41: 250 | BT41: 250 | BU41: 250 | BY41: 250 | BZ41: 250 | CA41: 250 | CB41: 250 | CC41: 250 | CD41: 250 | CE41: 250 | CF41: 250 | CG41: 250 | CH41: 250 | CI41: 250 | CJ41: 250 | CK41: 250 | CL41: 250 | CM41: 250 | CN41: 250 | CO41: 250 | CP41: 250 | CQ41: 250 | CR41: 250 | CS41: 250 | CT41: 250 | CU41: 250 | CV41: 250 | CW41: 250 | CX41: 250 | CY41: 250 | CZ41: 250 | DA41: 250 | DB41: 250 | DC41: 250 | DD41: 250 | DE41: 250 | DF41: 250 | DG41: 250 | DH41: 250 | DI41: 250 | DJ41: 250 | DK41: 250 | DL41: 250 | DM41: 250 | DN41: 250 | DO41: 250 | DP41: 250 | DQ41: 250 | DR41: 250 | DS41: 250 | DT41: 250 | DU41: 250 | DV41: 250 | DW41: 250 | DX41: 250 | DY41: 250 | DZ41: 250 | EA41: 250 | EB41: 250 | EC41: 250 | ED41: 250 | EE41: 250 | EF41: 250 | EG41: 250 | EH41: 250 | EI41: 250 | EJ41: 250 | EK41: 250 | EL41: 250 | EM41: 250 | EN41: 250 | EO41: 250 | EP41: 250 | EQ41: 250 | ER41: 250 | ES41: 250 | ET41: 250 | EU41: 250 | EV41: 250 | EW41: 250 | EX41: 250
A42: 2001-10-12 | B42: sexta-feira | C42: Nossa Sr.a Aparecida - Padroeira do Brasil | F42: 219 | G42: 7 | H42: 2026-05-07 | I42: 250 | J42: 225.7664056 | K42: 225.7664056 | L42: 4.054313111 | S42: 7 | T42: 250 | U42: 223.081816 | V42: 223.081816 | W42: 223.081816 | X42: 223.081816 | Y42: 223.081816 | Z42: 223.081816 | AH42: 0 | AI42: 0 | AJ42: 0 | AK42: 0 | AL42: 0 | AM42: 0 | AN42: 0 | AO42: 0 | AP42: 0 | AQ42: 0 | AR42: 0 | AS42: 0 | AU42: 250 | AV42: 250 | AW42: 250 | AX42: 250 | AY42: 250 | AZ42: 250 | BA42: 250 | BB42: 250 | BC42: 250 | BD42: 250 | BE42: 250 | BF42: 250 | BH42: 219 | BI42: 7 | BJ42: 2026-05-07 | BK42: 250 | BL42: 250 | BM42: 250 | BN42: 250 | BO42: 2026-05-07 | BP42: 2026-05-07 | BR42: =IF(I42=0,0,PMT($BR$31,$I$10,$BR$35)) -> 280.1569336 | BS42: 250 | BT42: 250 | BU42: 250 | BY42: 250 | BZ42: 250 | CA42: 250 | CB42: 250 | CC42: 250 | CD42: 250 | CE42: 250 | CF42: 250 | CG42: 250 | CH42: 250 | CI42: 250 | CJ42: 250 | CK42: 250 | CL42: 250 | CM42: 250 | CN42: 250 | CO42: 250 | CP42: 250 | CQ42: 250 | CR42: 250 | CS42: 250 | CT42: 250 | CU42: 250 | CV42: 250 | CW42: 250 | CX42: 250 | CY42: 250 | CZ42: 250 | DA42: 250 | DB42: 250 | DC42: 250 | DD42: 250 | DE42: 250 | DF42: 250 | DG42: 250 | DH42: 250 | DI42: 250 | DJ42: 250 | DK42: 250 | DL42: 250 | DM42: 250 | DN42: 250 | DO42: 250 | DP42: 250 | DQ42: 250 | DR42: 250 | DS42: 250 | DT42: 250 | DU42: 250 | DV42: 250 | DW42: 250 | DX42: 250 | DY42: 250 | DZ42: 250 | EA42: 250 | EB42: 250 | EC42: 250 | ED42: 250 | EE42: 250 | EF42: 250 | EG42: 250 | EH42: 250 | EI42: 250 | EJ42: 250 | EK42: 250 | EL42: 250 | EM42: 250 | EN42: 250 | EO42: 250 | EP42: 250 | EQ42: 250 | ER42: 250 | ES42: 250 | ET42: 250 | EU42: 250 | EV42: 250 | EW42: 250 | EX42: 250
A43: 2001-11-02 | B43: sexta-feira | C43: Finados | F43: 250 | G43: 8 | H43: 2026-06-07 | I43: 250 | J43: 222.5313875 | K43: 222.5313875 | L43: 4.561893444 | S43: 8 | T43: 250 | U43: 219.5132512 | V43: 219.5132512 | W43: 219.5132512 | X43: 219.5132512 | Y43: 219.5132512 | Z43: 219.5132512 | AH43: 0 | AI43: 0 | AJ43: 0 | AK43: 0 | AL43: 0 | AM43: 0 | AN43: 0 | AO43: 0 | AP43: 0 | AQ43: 0 | AR43: 0 | AS43: 0 | AU43: 250 | AV43: 250 | AW43: 250 | AX43: 250 | AY43: 250 | AZ43: 250 | BA43: 250 | BB43: 250 | BC43: 250 | BD43: 250 | BE43: 250 | BF43: 250 | BH43: 250 | BI43: 8 | BJ43: 2026-06-07 | BK43: 250 | BL43: 250 | BM43: 250 | BN43: 250 | BO43: 2026-06-07 | BP43: 2026-06-07 | BR43: 280.1569336 | BS43: 250 | BT43: 250 | BU43: 250 | BY43: 250 | BZ43: 250 | CA43: 250 | CB43: 250 | CC43: 250 | CD43: 250 | CE43: 250 | CF43: 250 | CG43: 250 | CH43: 250 | CI43: 250 | CJ43: 250 | CK43: 250 | CL43: 250 | CM43: 250 | CN43: 250 | CO43: 250 | CP43: 250 | CQ43: 250 | CR43: 250 | CS43: 250 | CT43: 250 | CU43: 250 | CV43: 250 | CW43: 250 | CX43: 250 | CY43: 250 | CZ43: 250 | DA43: 250 | DB43: 250 | DC43: 250 | DD43: 250 | DE43: 250 | DF43: 250 | DG43: 250 | DH43: 250 | DI43: 250 | DJ43: 250 | DK43: 250 | DL43: 250 | DM43: 250 | DN43: 250 | DO43: 250 | DP43: 250 | DQ43: 250 | DR43: 250 | DS43: 250 | DT43: 250 | DU43: 250 | DV43: 250 | DW43: 250 | DX43: 250 | DY43: 250 | DZ43: 250 | EA43: 250 | EB43: 250 | EC43: 250 | ED43: 250 | EE43: 250 | EF43: 250 | EG43: 250 | EH43: 250 | EI43: 250 | EJ43: 250 | EK43: 250 | EL43: 250 | EM43: 250 | EN43: 250 | EO43: 250 | EP43: 250 | EQ43: 250 | ER43: 250 | ES43: 250 | ET43: 250 | EU43: 250 | EV43: 250 | EW43: 250 | EX43: 250
A44: 2001-11-15 | B44: quinta-feira | C44: Proclamação da República | F44: 280 | G44: 9 | H44: 2026-07-07 | I44: 250 | J44: 219.4448675 | K44: 219.4448675 | L44: 5.038454158 | S44: 9 | T44: 250 | U44: 216.1141634 | V44: 216.1141634 | W44: 216.1141634 | X44: 216.1141634 | Y44: 216.1141634 | Z44: 216.1141634 | AH44: 0 | AI44: 0 | AJ44: 0 | AK44: 0 | AL44: 0 | AM44: 0 | AN44: 0 | AO44: 0 | AP44: 0 | AQ44: 0 | AR44: 0 | AS44: 0 | AU44: 250 | AV44: 250 | AW44: 250 | AX44: 250 | AY44: 250 | AZ44: 250 | BA44: 250 | BB44: 250 | BC44: 250 | BD44: 250 | BE44: 250 | BF44: 250 | BH44: 280 | BI44: 9 | BJ44: 2026-07-07 | BK44: 250 | BL44: 250 | BM44: 250 | BN44: 250 | BO44: 2026-07-07 | BP44: 2026-07-07 | BR44: 280.1569336 | BS44: 250 | BT44: 250 | BU44: 250 | BY44: 250 | BZ44: 250 | CA44: 250 | CB44: 250 | CC44: 250 | CD44: 250 | CE44: 250 | CF44: 250 | CG44: 250 | CH44: 250 | CI44: 250 | CJ44: 250 | CK44: 250 | CL44: 250 | CM44: 250 | CN44: 250 | CO44: 250 | CP44: 250 | CQ44: 250 | CR44: 250 | CS44: 250 | CT44: 250 | CU44: 250 | CV44: 250 | CW44: 250 | CX44: 250 | CY44: 250 | CZ44: 250 | DA44: 250 | DB44: 250 | DC44: 250 | DD44: 250 | DE44: 250 | DF44: 250 | DG44: 250 | DH44: 250 | DI44: 250 | DJ44: 250 | DK44: 250 | DL44: 250 | DM44: 250 | DN44: 250 | DO44: 250 | DP44: 250 | DQ44: 250 | DR44: 250 | DS44: 250 | DT44: 250 | DU44: 250 | DV44: 250 | DW44: 250 | DX44: 250 | DY44: 250 | DZ44: 250 | EA44: 250 | EB44: 250 | EC44: 250 | ED44: 250 | EE44: 250 | EF44: 250 | EG44: 250 | EH44: 250 | EI44: 250 | EJ44: 250 | EK44: 250 | EL44: 250 | EM44: 250 | EN44: 250 | EO44: 250 | EP44: 250 | EQ44: 250 | ER44: 250 | ES44: 250 | ET44: 250 | EU44: 250 | EV44: 250 | EW44: 250 | EX44: 250
A45: 2001-12-25 | B45: terça-feira | C45: Natal | F45: 311 | G45: 10 | H45: 2026-08-07 | I45: 250 | J45: 216.3004311 | K45: 216.3004311 | L45: 5.516093593 | S45: 10 | T45: 250 | U45: 212.6570578 | V45: 212.6570578 | W45: 212.6570578 | X45: 212.6570578 | Y45: 212.6570578 | Z45: 212.6570578 | AH45: 0 | AI45: 0 | AJ45: 0 | AK45: 0 | AL45: 0 | AM45: 0 | AN45: 0 | AO45: 0 | AP45: 0 | AQ45: 0 | AR45: 0 | AS45: 0 | AU45: 250 | AV45: 250 | AW45: 250 | AX45: 250 | AY45: 250 | AZ45: 250 | BA45: 250 | BB45: 250 | BC45: 250 | BD45: 250 | BE45: 250 | BF45: 250 | BH45: 311 | BI45: 10 | BJ45: 2026-08-07 | BK45: 250 | BL45: 250 | BM45: 250 | BN45: 250 | BO45: 2026-08-07 | BP45: 2026-08-07 | BR45: 280.1569336 | BS45: 250 | BT45: 250 | BU45: 250 | BY45: 250 | BZ45: 250 | CA45: 250 | CB45: 250 | CC45: 250 | CD45: 250 | CE45: 250 | CF45: 250 | CG45: 250 | CH45: 250 | CI45: 250 | CJ45: 250 | CK45: 250 | CL45: 250 | CM45: 250 | CN45: 250 | CO45: 250 | CP45: 250 | CQ45: 250 | CR45: 250 | CS45: 250 | CT45: 250 | CU45: 250 | CV45: 250 | CW45: 250 | CX45: 250 | CY45: 250 | CZ45: 250 | DA45: 250 | DB45: 250 | DC45: 250 | DD45: 250 | DE45: 250 | DF45: 250 | DG45: 250 | DH45: 250 | DI45: 250 | DJ45: 250 | DK45: 250 | DL45: 250 | DM45: 250 | DN45: 250 | DO45: 250 | DP45: 250 | DQ45: 250 | DR45: 250 | DS45: 250 | DT45: 250 | DU45: 250 | DV45: 250 | DW45: 250 | DX45: 250 | DY45: 250 | DZ45: 250 | EA45: 250 | EB45: 250 | EC45: 250 | ED45: 250 | EE45: 250 | EF45: 250 | EG45: 250 | EH45: 250 | EI45: 250 | EJ45: 250 | EK45: 250 | EL45: 250 | EM45: =IF($G45>EM$33,0,$I$9) -> 250 | EN45: 250 | EO45: 250 | EP45: 250 | EQ45: 250 | ER45: 250 | ES45: 250 | ET45: 250 | EU45: 250 | EV45: 250 | EW45: 250 | EX45: 250
A46: 2002-01-01 | B46: terça-feira | C46: Confraternização Universal | F46: 342 | G46: 11 | H46: 2026-09-07 | I46: 250 | J46: 213.2010514 | K46: 213.2010514 | L46: 5.979010285 | S46: 11 | T46: 250 | U46: 209.2552544 | V46: 209.2552544 | W46: 209.2552544 | X46: 209.2552544 | Y46: 209.2552544 | Z46: 209.2552544 | AH46: 0 | AI46: 0 | AJ46: 0 | AK46: 0 | AL46: 0 | AM46: 0 | AN46: 0 | AO46: 0 | AP46: 0 | AQ46: 0 | AR46: 0 | AS46: 0 | AU46: 250 | AV46: 250 | AW46: 250 | AX46: 250 | AY46: 250 | AZ46: 250 | BA46: 250 | BB46: 250 | BC46: 250 | BD46: 250 | BE46: 250 | BF46: 250 | BH46: 342 | BI46: 11 | BJ46: 2026-09-07 | BK46: 250 | BL46: 250 | BM46: 250 | BN46: 250 | BO46: 2026-09-07 | BP46: 2026-09-07 | BR46: 280.1569336 | BS46: 250 | BT46: 250 | BU46: 250 | BY46: 250 | BZ46: 250 | CA46: 250 | CB46: 250 | CC46: 250 | CD46: 250 | CE46: 250 | CF46: 250 | CG46: 250 | CH46: 250 | CI46: 250 | CJ46: 250 | CK46: 250 | CL46: 250 | CM46: 250 | CN46: 250 | CO46: 250 | CP46: 250 | CQ46: 250 | CR46: 250 | CS46: 250 | CT46: 250 | CU46: 250 | CV46: 250 | CW46: 250 | CX46: 250 | CY46: 250 | CZ46: 250 | DA46: 250 | DB46: 250 | DC46: 250 | DD46: 250 | DE46: 250 | DF46: 250 | DG46: 250 | DH46: 250 | DI46: 250 | DJ46: 250 | DK46: 250 | DL46: 250 | DM46: 250 | DN46: 250 | DO46: 250 | DP46: 250 | DQ46: 250 | DR46: 250 | DS46: 250 | DT46: 250 | DU46: 250 | DV46: 250 | DW46: 250 | DX46: 250 | DY46: 250 | DZ46: 250 | EA46: 250 | EB46: 250 | EC46: 250 | ED46: 250 | EE46: 250 | EF46: 250 | EG46: 250 | EH46: 250 | EI46: 250 | EJ46: 250 | EK46: 250 | EL46: 250 | EM46: 250 | EN46: 250 | EO46: 250 | EP46: 250 | EQ46: 250 | ER46: 250 | ES46: 250 | ET46: 250 | EU46: 250 | EV46: 250 | EW46: 250 | EX46: 250
A47: 2002-02-11 | B47: segunda-feira | C47: Carnaval | F47: 372 | G47: 12 | H47: 2026-10-07 | I47: 250 | J47: 210.2439436 | K47: 210.2439436 | L47: 6.292601232 | S47: 12 | T47: 250 | U47: 206.0150082 | V47: 206.0150082 | W47: 206.0150082 | X47: 206.0150082 | Y47: 206.0150082 | Z47: 206.0150082 | AH47: 0 | AI47: 0 | AJ47: 0 | AK47: 0 | AL47: 0 | AM47: 0 | AN47: 0 | AO47: 0 | AP47: 0 | AQ47: 0 | AR47: 0 | AS47: 0 | AU47: 250 | AV47: 250 | AW47: 250 | AX47: 250 | AY47: 250 | AZ47: 250 | BA47: 250 | BB47: 250 | BC47: 250 | BD47: 250 | BE47: 250 | BF47: 250 | BH47: 372 | BI47: 12 | BJ47: 2026-10-07 | BK47: 250 | BL47: 250 | BM47: 250 | BN47: 250 | BO47: 2026-10-07 | BP47: 2026-10-07 | BR47: 280.1569336 | BS47: 250 | BT47: 250 | BU47: 250 | BY47: 250 | BZ47: 250 | CA47: 250 | CB47: 250 | CC47: 250 | CD47: 250 | CE47: 250 | CF47: 250 | CG47: 250 | CH47: 250 | CI47: 250 | CJ47: 250 | CK47: 250 | CL47: 250 | CM47: 250 | CN47: 250 | CO47: 250 | CP47: 250 | CQ47: 250 | CR47: 250 | CS47: 250 | CT47: 250 | CU47: 250 | CV47: 250 | CW47: 250 | CX47: 250 | CY47: 250 | CZ47: 250 | DA47: 250 | DB47: 250 | DC47: 250 | DD47: 250 | DE47: 250 | DF47: 250 | DG47: 250 | DH47: 250 | DI47: 250 | DJ47: 250 | DK47: 250 | DL47: 250 | DM47: 250 | DN47: 250 | DO47: 250 | DP47: 250 | DQ47: 250 | DR47: 250 | DS47: 250 | DT47: 250 | DU47: 250 | DV47: 250 | DW47: 250 | DX47: 250 | DY47: 250 | DZ47: 250 | EA47: 250 | EB47: 250 | EC47: 250 | ED47: 250 | EE47: 250 | EF47: 250 | EG47: 250 | EH47: 250 | EI47: 250 | EJ47: 250 | EK47: 250 | EL47: 250 | EM47: 250 | EN47: 250 | EO47: 250 | EP47: 250 | EQ47: 250 | ER47: 250 | ES47: 250 | ET47: 250 | EU47: 250 | EV47: 250 | EW47: 250 | EX47: 250
A48: 2002-02-12 | B48: terça-feira | C48: Carnaval | F48: 403 | G48: 13 | H48: 2026-11-07 | I48: 250 | J48: 207.2313476 | K48: 207.2313476 | L48: 6.202434235 | S48: 13 | T48: 250 | U48: 202.7194554 | V48: 202.7194554 | W48: 202.7194554 | X48: 202.7194554 | Y48: 202.7194554 | Z48: 202.7194554 | AH48: 0 | AI48: 0 | AJ48: 0 | AK48: 0 | AL48: 0 | AM48: 0 | AN48: 0 | AO48: 0 | AP48: 0 | AQ48: 0 | AR48: 0 | AS48: 0 | AU48: 250 | AV48: 250 | AW48: 250 | AX48: 250 | AY48: 250 | AZ48: 250 | BA48: 250 | BB48: 250 | BC48: 250 | BD48: 250 | BE48: 250 | BF48: 250 | BH48: 403 | BI48: 13 | BJ48: 2026-11-07 | BK48: 250 | BL48: 250 | BM48: 250 | BN48: 250 | BO48: 2026-11-07 | BP48: 2026-11-07 | BR48: 280.1569336 | BS48: 250 | BT48: 250 | BU48: 250 | BY48: 250 | BZ48: 250 | CA48: 250 | CB48: 250 | CC48: 250 | CD48: 250 | CE48: 250 | CF48: 250 | CG48: 250 | CH48: 250 | CI48: 250 | CJ48: 250 | CK48: 250 | CL48: 250 | CM48: 250 | CN48: 250 | CO48: 250 | CP48: 250 | CQ48: 250 | CR48: 250 | CS48: 250 | CT48: 250 | CU48: 250 | CV48: 250 | CW48: 250 | CX48: 250 | CY48: 250 | CZ48: 250 | DA48: 250 | DB48: 250 | DC48: 250 | DD48: 250 | DE48: 250 | DF48: 250 | DG48: 250 | DH48: 250 | DI48: 250 | DJ48: 250 | DK48: 250 | DL48: 250 | DM48: 250 | DN48: 250 | DO48: 250 | DP48: 250 | DQ48: 250 | DR48: 250 | DS48: 250 | DT48: 250 | DU48: 250 | DV48: 250 | DW48: 250 | DX48: 250 | DY48: 250 | DZ48: 250 | EA48: 250 | EB48: 250 | EC48: 250 | ED48: 250 | EE48: 250 | EF48: 250 | EG48: 250 | EH48: 250 | EI48: 250 | EJ48: 250 | EK48: 250 | EL48: 250 | EM48: 250 | EN48: 250 | EO48: 250 | EP48: 250 | EQ48: 250 | ER48: 250 | ES48: 250 | ET48: 250 | EU48: 250 | EV48: 250 | EW48: 250 | EX48: 250
A49: 2002-03-29 | B49: sexta-feira | C49: Paixão de Cristo | F49: 433 | G49: 14 | H49: 2026-12-07 | I49: 250 | J49: 204.3570399 | K49: 204.3570399 | L49: 6.116406204 | S49: 14 | T49: 250 | U49: 199.5804139 | V49: 199.5804139 | W49: 199.5804139 | X49: 199.5804139 | Y49: 199.5804139 | Z49: 199.5804139 | AH49: 0 | AI49: 0 | AJ49: 0 | AK49: 0 | AL49: 0 | AM49: 0 | AN49: 0 | AO49: 0 | AP49: 0 | AQ49: 0 | AR49: 0 | AS49: 0 | AU49: 250 | AV49: 250 | AW49: 250 | AX49: 250 | AY49: 250 | AZ49: 250 | BA49: 250 | BB49: 250 | BC49: 250 | BD49: 250 | BE49: 250 | BF49: 250 | BH49: 433 | BI49: 14 | BJ49: 2026-12-07 | BK49: 250 | BL49: 250 | BM49: 250 | BN49: 250 | BO49: 2026-12-07 | BP49: 2026-12-07 | BR49: 280.1569336 | BS49: 250 | BT49: 250 | BU49: 250 | BY49: 250 | BZ49: 250 | CA49: 250 | CB49: 250 | CC49: 250 | CD49: 250 | CE49: 250 | CF49: 250 | CG49: 250 | CH49: 250 | CI49: 250 | CJ49: 250 | CK49: 250 | CL49: 250 | CM49: 250 | CN49: 250 | CO49: 250 | CP49: 250 | CQ49: 250 | CR49: 250 | CS49: 250 | CT49: 250 | CU49: 250 | CV49: 250 | CW49: 250 | CX49: 250 | CY49: 250 | CZ49: 250 | DA49: 250 | DB49: 250 | DC49: 250 | DD49: 250 | DE49: 250 | DF49: 250 | DG49: 250 | DH49: 250 | DI49: 250 | DJ49: 250 | DK49: 250 | DL49: 250 | DM49: 250 | DN49: 250 | DO49: 250 | DP49: 250 | DQ49: 250 | DR49: 250 | DS49: 250 | DT49: 250 | DU49: 250 | DV49: 250 | DW49: 250 | DX49: 250 | DY49: 250 | DZ49: 250 | EA49: 250 | EB49: 250 | EC49: 250 | ED49: 250 | EE49: 250 | EF49: 250 | EG49: 250 | EH49: 250 | EI49: 250 | EJ49: 250 | EK49: 250 | EL49: 250 | EM49: 250 | EN49: 250 | EO49: 250 | EP49: 250 | EQ49: 250 | ER49: 250 | ES49: 250 | ET49: 250 | EU49: 250 | EV49: 250 | EW49: 250 | EX49: 250
A50: 2002-04-21 | B50: domingo | C50: Tiradentes | F50: 464 | G50: 15 | H50: 2027-01-07 | I50: 250 | J50: 201.4287977 | K50: 201.4287977 | L50: 6.028763914 | S50: 15 | T50: 250 | U50: 196.3877931 | V50: 196.3877931 | W50: 196.3877931 | X50: 196.3877931 | Y50: 196.3877931 | Z50: 196.3877931 | AH50: 0 | AI50: 0 | AJ50: 0 | AK50: 0 | AL50: 0 | AM50: 0 | AN50: 0 | AO50: 0 | AP50: 0 | AQ50: 0 | AR50: 0 | AS50: 0 | AU50: 250 | AV50: 250 | AW50: 250 | AX50: 250 | AY50: 250 | AZ50: 250 | BA50: 250 | BB50: 250 | BC50: 250 | BD50: 250 | BE50: 250 | BF50: 250 | BH50: 464 | BI50: 15 | BJ50: 2027-01-07 | BK50: 250 | BL50: 250 | BM50: 250 | BN50: 250 | BO50: 2027-01-07 | BP50: 2027-01-07 | BR50: 280.1569336 | BS50: 250 | BT50: 250 | BU50: 250 | BY50: 250 | BZ50: 250 | CA50: 250 | CB50: 250 | CC50: 250 | CD50: 250 | CE50: 250 | CF50: 250 | CG50: 250 | CH50: 250 | CI50: 250 | CJ50: 250 | CK50: 250 | CL50: 250 | CM50: 250 | CN50: 250 | CO50: 250 | CP50: 250 | CQ50: 250 | CR50: 250 | CS50: 250 | CT50: 250 | CU50: 250 | CV50: 250 | CW50: 250 | CX50: 250 | CY50: 250 | CZ50: 250 | DA50: 250 | DB50: 250 | DC50: 250 | DD50: 250 | DE50: 250 | DF50: 250 | DG50: 250 | DH50: 250 | DI50: 250 | DJ50: 250 | DK50: 250 | DL50: 250 | DM50: 250 | DN50: 250 | DO50: 250 | DP50: 250 | DQ50: 250 | DR50: 250 | DS50: 250 | DT50: 250 | DU50: 250 | DV50: 250 | DW50: 250 | DX50: 250 | DY50: 250 | DZ50: 250 | EA50: 250 | EB50: 250 | EC50: =IF($G50>EC$33,0,$I$9) -> 250 | ED50: 250 | EE50: 250 | EF50: 250 | EG50: 250 | EH50: 250 | EI50: 250 | EJ50: 250 | EK50: 250 | EL50: 250 | EM50: 250 | EN50: 250 | EO50: 250 | EP50: 250 | EQ50: 250 | ER50: 250 | ES50: 250 | ET50: 250 | EU50: 250 | EV50: 250 | EW50: 250 | EX50: 250
A51: 2002-05-01 | B51: quarta-feira | C51: Dia do Trabalho | F51: 495 | G51: 16 | H51: 2027-02-07 | I51: 250 | J51: 198.5425144 | K51: 198.5425144 | L51: 5.942377455 | S51: 16 | T51: 250 | U51: 193.2462437 | V51: 193.2462437 | W51: 193.2462437 | X51: 193.2462437 | Y51: 193.2462437 | Z51: 193.2462437 | AH51: 0 | AI51: 0 | AJ51: 0 | AK51: 0 | AL51: 0 | AM51: 0 | AN51: 0 | AO51: 0 | AP51: 0 | AQ51: 0 | AR51: 0 | AS51: 0 | AU51: 250 | AV51: 250 | AW51: 250 | AX51: 250 | AY51: 250 | AZ51: 250 | BA51: 250 | BB51: 250 | BC51: 250 | BD51: 250 | BE51: 250 | BF51: 250 | BH51: 495 | BI51: 16 | BJ51: 2027-02-07 | BK51: 250 | BL51: 250 | BM51: 250 | BN51: 250 | BO51: 2027-02-07 | BP51: 2027-02-07 | BR51: 280.1569336 | BS51: 250 | BT51: 250 | BU51: 250 | BY51: 250 | BZ51: 250 | CA51: 250 | CB51: 250 | CC51: 250 | CD51: 250 | CE51: 250 | CF51: 250 | CG51: 250 | CH51: 250 | CI51: 250 | CJ51: 250 | CK51: 250 | CL51: 250 | CM51: 250 | CN51: 250 | CO51: =IF($G51>CO$33,0,$I$9) -> 250 | CP51: 250 | CQ51: 250 | CR51: 250 | CS51: 250 | CT51: 250 | CU51: 250 | CV51: 250 | CW51: 250 | CX51: 250 | CY51: 250 | CZ51: 250 | DA51: 250 | DB51: 250 | DC51: 250 | DD51: 250 | DE51: 250 | DF51: 250 | DG51: 250 | DH51: 250 | DI51: 250 | DJ51: 250 | DK51: 250 | DL51: 250 | DM51: 250 | DN51: 250 | DO51: 250 | DP51: 250 | DQ51: 250 | DR51: 250 | DS51: 250 | DT51: 250 | DU51: 250 | DV51: 250 | DW51: 250 | DX51: 250 | DY51: 250 | DZ51: 250 | EA51: 250 | EB51: 250 | EC51: 250 | ED51: 250 | EE51: 250 | EF51: 250 | EG51: 250 | EH51: 250 | EI51: 250 | EJ51: 250 | EK51: 250 | EL51: 250 | EM51: 250 | EN51: 250 | EO51: 250 | EP51: 250 | EQ51: 250 | ER51: 250 | ES51: 250 | ET51: 250 | EU51: 250 | EV51: 250 | EW51: 250 | EX51: 250
A52: 2002-05-30 | B52: quinta-feira | C52: Corpus Christi | F52: 523 | G52: 17 | H52: 2027-03-07 | I52: 250 | J52: 195.9711131 | K52: 195.9711131 | L52: 5.865415416 | S52: 17 | T52: 250 | U52: =$T52/((U$29)^($H52-$H$35)) -> 190.4519321 | V52: 190.4519321 | W52: 190.4519321 | X52: 190.4519321 | Y52: 190.4519321 | Z52: 190.4519321 | AE52: =$T52/((AE$29)^($H52-$H$35)) ->  | AH52: 0 | AI52: 0 | AJ52: 0 | AK52: 0 | AL52: 0 | AM52: 0 | AN52: 0 | AO52: 0 | AP52: 0 | AQ52: 0 | AR52: 0 | AS52: 0 | AU52: =$T52 -> 250 | AV52: 250 | AW52: 250 | AX52: 250 | AY52: 250 | AZ52: 250 | BA52: 250 | BB52: 250 | BC52: 250 | BD52: 250 | BE52: 250 | BF52: 250 | BH52: 523 | BI52: 17 | BJ52: 2027-03-07 | BK52: 250 | BL52: 250 | BM52: 250 | BN52: 250 | BO52: 2027-03-07 | BP52: 2027-03-07 | BR52: 280.1569336 | BS52: 250 | BT52: 250 | BU52: 250 | BY52: 250 | BZ52: =IF($G52>BZ$33,0,$I$9) -> 250 | CA52: 250 | CB52: 250 | CC52: 250 | CD52: 250 | CE52: 250 | CF52: 250 | CG52: 250 | CH52: 250 | CI52: 250 | CJ52: 250 | CK52: 250 | CL52: 250 | CM52: 250 | CN52: 250 | CO52: 250 | CP52: 250 | CQ52: 250 | CR52: 250 | CS52: 250 | CT52: 250 | CU52: 250 | CV52: 250 | CW52: 250 | CX52: 250 | CY52: 250 | CZ52: 250 | DA52: 250 | DB52: 250 | DC52: 250 | DD52: 250 | DE52: 250 | DF52: 250 | DG52: 250 | DH52: 250 | DI52: 250 | DJ52: 250 | DK52: 250 | DL52: 250 | DM52: 250 | DN52: 250 | DO52: 250 | DP52: 250 | DQ52: 250 | DR52: 250 | DS52: 250 | DT52: 250 | DU52: 250 | DV52: 250 | DW52: 250 | DX52: 250 | DY52: 250 | DZ52: 250 | EA52: 250 | EB52: 250 | EC52: 250 | ED52: 250 | EE52: 250 | EF52: 250 | EG52: 250 | EH52: 250 | EI52: 250 | EJ52: 250 | EK52: 250 | EL52: 250 | EM52: 250 | EN52: 250 | EO52: 250 | EP52: 250 | EQ52: 250 | ER52: 250 | ES52: 250 | ET52: 250 | EU52: 250 | EV52: 250 | EW52: 250 | EX52: 250
A53: 2002-09-07 | B53: sábado | C53: Independência do Brasil | F53: 554 | G53: 18 | H53: 2027-04-07 | I53: 250 | J53: 193.1630333 | K53: 193.1630333 | L53: 5.781369586 | S53: 18 | T53: 250 | U53: 187.4053366 | V53: 187.4053366 | W53: 187.4053366 | X53: 187.4053366 | Y53: 187.4053366 | Z53: 187.4053366 | AH53: 0 | AI53: 0 | AJ53: 0 | AK53: 0 | AL53: 0 | AM53: 0 | AN53: 0 | AO53: 0 | AP53: 0 | AQ53: 0 | AR53: 0 | AS53: 0 | AU53: 250 | AV53: 250 | AW53: 250 | AX53: 250 | AY53: 250 | AZ53: 250 | BA53: 250 | BB53: 250 | BC53: 250 | BD53: 250 | BE53: 250 | BF53: 250 | BH53: 554 | BI53: 18 | BJ53: 2027-04-07 | BK53: 250 | BL53: 250 | BM53: 250 | BN53: 250 | BO53: 2027-04-07 | BP53: 2027-04-07 | BR53: 280.1569336 | BS53: 250 | BT53: 250 | BU53: 250 | BY53: =IF($G53>BY$33,0,$I$9) -> 250 | BZ53: 250 | CA53: 250 | CB53: 250 | CC53: 250 | CD53: 250 | CE53: 250 | CF53: 250 | CG53: 250 | CH53: 250 | CI53: 250 | CJ53: 250 | CK53: 250 | CL53: 250 | CM53: 250 | CN53: 250 | CO53: 250 | CP53: 250 | CQ53: 250 | CR53: 250 | CS53: 250 | CT53: 250 | CU53: 250 | CV53: 250 | CW53: 250 | CX53: 250 | CY53: 250 | CZ53: 250 | DA53: 250 | DB53: 250 | DC53: 250 | DD53: 250 | DE53: 250 | DF53: 250 | DG53: 250 | DH53: 250 | DI53: 250 | DJ53: 250 | DK53: 250 | DL53: 250 | DM53: 250 | DN53: 250 | DO53: 250 | DP53: 250 | DQ53: 250 | DR53: 250 | DS53: 250 | DT53: 250 | DU53: 250 | DV53: 250 | DW53: 250 | DX53: 250 | DY53: 250 | DZ53: 250 | EA53: 250 | EB53: 250 | EC53: 250 | ED53: 250 | EE53: 250 | EF53: 250 | EG53: 250 | EH53: 250 | EI53: 250 | EJ53: 250 | EK53: 250 | EL53: 250 | EM53: 250 | EN53: 250 | EO53: 250 | EP53: 250 | EQ53: 250 | ER53: 250 | ES53: 250 | ET53: 250 | EU53: 250 | EV53: 250 | EW53: 250 | EX53: 250
A54: 2002-10-12 | B54: sábado | C54: Nossa Sr.a Aparecida - Padroeira do Brasil | F54: 584 | G54: 19 | H54: 2027-05-07 | I54: 250 | J54: 190.4838536 | K54: 190.4838536 | L54: 5.70118174 | S54: 19 | T54: 250 | U54: 184.503429 | V54: 184.503429 | W54: 184.503429 | X54: 184.503429 | Y54: 184.503429 | Z54: 184.503429 | AH54: 0 | AI54: 0 | AJ54: 0 | AK54: 0 | AL54: 0 | AM54: 0 | AN54: 0 | AO54: 0 | AP54: 0 | AQ54: 0 | AR54: 0 | AS54: 0 | AU54: 250 | AV54: 250 | AW54: 250 | AX54: 250 | AY54: 250 | AZ54: 250 | BA54: 250 | BB54: 250 | BC54: 250 | BD54: 250 | BE54: 250 | BF54: 250 | BH54: 584 | BI54: 19 | BJ54: 2027-05-07 | BK54: 250 | BL54: 250 | BM54: 250 | BN54: 250 | BO54: 2027-05-07 | BP54: 2027-05-07 | BR54: 280.1569336 | BS54: 250 | BT54: 250 | BU54: 250 | BY54: 250 | BZ54: 250 | CA54: 250 | CB54: 250 | CC54: 250 | CD54: 250 | CE54: 250 | CF54: 250 | CG54: 250 | CH54: 250 | CI54: 250 | CJ54: 250 | CK54: 250 | CL54: 250 | CM54: 250 | CN54: 250 | CO54: 250 | CP54: 250 | CQ54: 250 | CR54: 250 | CS54: 250 | CT54: 250 | CU54: 250 | CV54: 250 | CW54: 250 | CX54: 250 | CY54: 250 | CZ54: 250 | DA54: 250 | DB54: 250 | DC54: 250 | DD54: 250 | DE54: 250 | DF54: 250 | DG54: 250 | DH54: 250 | DI54: 250 | DJ54: 250 | DK54: 250 | DL54: 250 | DM54: 250 | DN54: 250 | DO54: 250 | DP54: 250 | DQ54: 250 | DR54: 250 | DS54: 250 | DT54: 250 | DU54: 250 | DV54: 250 | DW54: 250 | DX54: 250 | DY54: 250 | DZ54: 250 | EA54: 250 | EB54: 250 | EC54: 250 | ED54: 250 | EE54: 250 | EF54: 250 | EG54: 250 | EH54: 250 | EI54: 250 | EJ54: 250 | EK54: 250 | EL54: 250 | EM54: 250 | EN54: 250 | EO54: 250 | EP54: 250 | EQ54: 250 | ER54: 250 | ES54: 250 | ET54: 250 | EU54: 250 | EV54: 250 | EW54: 250 | EX54: 250
A55: 2002-11-02 | B55: sábado | C55: Finados | F55: 615 | G55: 20 | H55: 2027-06-07 | I55: 250 | J55: 187.754401 | K55: 187.754401 | L55: 5.619489222 | S55: 20 | T55: 250 | U55: 181.5519897 | V55: 181.5519897 | W55: 181.5519897 | X55: 181.5519897 | Y55: 181.5519897 | Z55: 181.5519897 | AH55: 0 | AI55: 0 | AJ55: 0 | AK55: 0 | AL55: 0 | AM55: 0 | AN55: 0 | AO55: 0 | AP55: 0 | AQ55: 0 | AR55: 0 | AS55: 0 | AU55: 250 | AV55: 250 | AW55: 250 | AX55: 250 | AY55: 250 | AZ55: 250 | BA55: 250 | BB55: 250 | BC55: 250 | BD55: 250 | BE55: 250 | BF55: 250 | BH55: 615 | BI55: 20 | BJ55: 2027-06-07 | BK55: 250 | BL55: 250 | BM55: 250 | BN55: 250 | BO55: 2027-06-07 | BP55: 2027-06-07 | BR55: 280.1569336 | BS55: 250 | BT55: 250 | BU55: 250 | BY55: 250 | BZ55: 250 | CA55: 250 | CB55: 250 | CC55: 250 | CD55: 250 | CE55: 250 | CF55: 250 | CG55: 250 | CH55: 250 | CI55: 250 | CJ55: 250 | CK55: 250 | CL55: 250 | CM55: 250 | CN55: 250 | CO55: 250 | CP55: 250 | CQ55: 250 | CR55: 250 | CS55: 250 | CT55: 250 | CU55: 250 | CV55: 250 | CW55: 250 | CX55: 250 | CY55: 250 | CZ55: 250 | DA55: 250 | DB55: 250 | DC55: 250 | DD55: 250 | DE55: 250 | DF55: 250 | DG55: 250 | DH55: 250 | DI55: 250 | DJ55: 250 | DK55: 250 | DL55: 250 | DM55: 250 | DN55: 250 | DO55: 250 | DP55: 250 | DQ55: 250 | DR55: 250 | DS55: 250 | DT55: 250 | DU55: 250 | DV55: 250 | DW55: 250 | DX55: 250 | DY55: 250 | DZ55: =IF($G55>DZ$33,0,$I$9) -> 250 | EA55: 250 | EB55: 250 | EC55: 250 | ED55: 250 | EE55: 250 | EF55: 250 | EG55: 250 | EH55: 250 | EI55: 250 | EJ55: 250 | EK55: 250 | EL55: 250 | EM55: 250 | EN55: 250 | EO55: 250 | EP55: 250 | EQ55: 250 | ER55: 250 | ES55: 250 | ET55: 250 | EU55: 250 | EV55: 250 | EW55: 250 | EX55: 0
A56: 2002-11-15 | B56: sexta-feira | C56: Proclamação da República | F56: 645 | G56: 21 | H56: 2027-07-07 | I56: 250 | J56: 185.1502393 | K56: 185.1502393 | L56: 5.541546664 | S56: 21 | T56: 250 | U56: 178.7407191 | V56: 178.7407191 | W56: 178.7407191 | X56: 178.7407191 | Y56: 178.7407191 | Z56: 178.7407191 | AH56: 0 | AI56: 0 | AJ56: 0 | AK56: 0 | AL56: 0 | AM56: 0 | AN56: 0 | AO56: 0 | AP56: 0 | AQ56: 0 | AR56: 0 | AS56: 0 | AU56: 250 | AV56: 250 | AW56: 250 | AX56: 250 | AY56: 250 | AZ56: 250 | BA56: 250 | BB56: 250 | BC56: 250 | BD56: 250 | BE56: 250 | BF56: 250 | BH56: 645 | BI56: 21 | BJ56: 2027-07-07 | BK56: 250 | BL56: 250 | BM56: 250 | BN56: 250 | BO56: 2027-07-07 | BP56: 2027-07-07 | BR56: 280.1569336 | BS56: 250 | BT56: 250 | BU56: 250 | BY56: 250 | BZ56: 250 | CA56: 250 | CB56: 250 | CC56: 250 | CD56: 250 | CE56: 250 | CF56: 250 | CG56: 250 | CH56: 250 | CI56: 250 | CJ56: 250 | CK56: 250 | CL56: 250 | CM56: 250 | CN56: 250 | CO56: 250 | CP56: 250 | CQ56: 250 | CR56: 250 | CS56: 250 | CT56: 250 | CU56: 250 | CV56: 250 | CW56: 250 | CX56: 250 | CY56: 250 | CZ56: 250 | DA56: 250 | DB56: 250 | DC56: 250 | DD56: 250 | DE56: 250 | DF56: 250 | DG56: 250 | DH56: 250 | DI56: 250 | DJ56: 250 | DK56: 250 | DL56: 250 | DM56: 250 | DN56: 250 | DO56: 250 | DP56: 250 | DQ56: 250 | DR56: 250 | DS56: 250 | DT56: 250 | DU56: 250 | DV56: 250 | DW56: 250 | DX56: 250 | DY56: 250 | DZ56: 250 | EA56: 250 | EB56: 250 | EC56: 250 | ED56: 250 | EE56: 250 | EF56: 250 | EG56: 250 | EH56: 250 | EI56: 250 | EJ56: 250 | EK56: 250 | EL56: 250 | EM56: 250 | EN56: 250 | EO56: 250 | EP56: 250 | EQ56: 250 | ER56: 250 | ES56: 250 | ET56: 250 | EU56: 250 | EV56: 250 | EW56: 0 | EX56: 0
A57: 2002-12-25 | B57: quarta-feira | C57: Natal | F57: 676 | G57: 22 | H57: 2027-08-07 | I57: 250 | J57: 182.4972123 | K57: 182.4972123 | L57: 5.462141565 | S57: 22 | T57: 250 | U57: 175.8814639 | V57: 175.8814639 | W57: 175.8814639 | X57: 175.8814639 | Y57: 175.8814639 | Z57: 175.8814639 | AH57: 0 | AI57: 0 | AJ57: 0 | AK57: 0 | AL57: 0 | AM57: 0 | AN57: 0 | AO57: 0 | AP57: 0 | AQ57: 0 | AR57: 0 | AS57: 0 | AU57: 250 | AV57: 250 | AW57: 250 | AX57: 250 | AY57: 250 | AZ57: 250 | BA57: 250 | BB57: 250 | BC57: 250 | BD57: 250 | BE57: 250 | BF57: 250 | BH57: 676 | BI57: 22 | BJ57: 2027-08-07 | BK57: 250 | BL57: 250 | BM57: 250 | BN57: 250 | BO57: 2027-08-07 | BP57: 2027-08-07 | BR57: 280.1569336 | BS57: 250 | BT57: 250 | BU57: 250 | BY57: 250 | BZ57: 250 | CA57: 250 | CB57: 250 | CC57: 250 | CD57: 250 | CE57: 250 | CF57: 250 | CG57: 250 | CH57: 250 | CI57: 250 | CJ57: 250 | CK57: 250 | CL57: 250 | CM57: 250 | CN57: 250 | CO57: 250 | CP57: 250 | CQ57: 250 | CR57: 250 | CS57: 250 | CT57: 250 | CU57: 250 | CV57: 250 | CW57: 250 | CX57: 250 | CY57: 250 | CZ57: 250 | DA57: 250 | DB57: 250 | DC57: 250 | DD57: 250 | DE57: 250 | DF57: 250 | DG57: 250 | DH57: 250 | DI57: 250 | DJ57: 250 | DK57: 250 | DL57: 250 | DM57: 250 | DN57: 250 | DO57: 250 | DP57: 250 | DQ57: 250 | DR57: 250 | DS57: 250 | DT57: 250 | DU57: 250 | DV57: 250 | DW57: 250 | DX57: 250 | DY57: 250 | DZ57: 250 | EA57: 250 | EB57: 250 | EC57: 250 | ED57: 250 | EE57: 250 | EF57: 250 | EG57: 250 | EH57: 250 | EI57: 250 | EJ57: 250 | EK57: 250 | EL57: 250 | EM57: 250 | EN57: 250 | EO57: 250 | EP57: 250 | EQ57: 250 | ER57: 250 | ES57: 250 | ET57: 250 | EU57: 250 | EV57: 0 | EW57: 0 | EX57: 0
A58: 2003-01-01 | B58: quarta-feira | C58: Confraternização Universal | F58: 707 | G58: 23 | H58: 2027-09-07 | I58: 250 | J58: 179.8822007 | K58: 179.8822007 | L58: 5.383874266 | S58: 23 | T58: 250 | U58: 173.0679473 | V58: 173.0679473 | W58: 173.0679473 | X58: 173.0679473 | Y58: 173.0679473 | Z58: 173.0679473 | AH58: 0 | AI58: 0 | AJ58: 0 | AK58: 0 | AL58: 0 | AM58: 0 | AN58: 0 | AO58: 0 | AP58: 0 | AQ58: 0 | AR58: 0 | AS58: 0 | AU58: 250 | AV58: 250 | AW58: 250 | AX58: 250 | AY58: 250 | AZ58: 250 | BA58: 250 | BB58: 250 | BC58: 250 | BD58: 250 | BE58: 250 | BF58: 250 | BH58: 707 | BI58: 23 | BJ58: 2027-09-07 | BK58: 250 | BL58: 250 | BM58: 250 | BN58: 250 | BO58: 2027-09-07 | BP58: 2027-09-07 | BR58: 280.1569336 | BS58: 250 | BT58: 250 | BU58: 250 | BY58: 250 | BZ58: 250 | CA58: 250 | CB58: 250 | CC58: 250 | CD58: 250 | CE58: 250 | CF58: 250 | CG58: 250 | CH58: 250 | CI58: 250 | CJ58: 250 | CK58: 250 | CL58: 250 | CM58: 250 | CN58: 250 | CO58: 250 | CP58: 250 | CQ58: 250 | CR58: 250 | CS58: 250 | CT58: 250 | CU58: 250 | CV58: 250 | CW58: 250 | CX58: 250 | CY58: 250 | CZ58: 250 | DA58: 250 | DB58: 250 | DC58: 250 | DD58: 250 | DE58: 250 | DF58: 250 | DG58: 250 | DH58: 250 | DI58: 250 | DJ58: 250 | DK58: 250 | DL58: 250 | DM58: 250 | DN58: 250 | DO58: 250 | DP58: 250 | DQ58: 250 | DR58: 250 | DS58: 250 | DT58: 250 | DU58: 250 | DV58: 250 | DW58: 250 | DX58: 250 | DY58: 250 | DZ58: 250 | EA58: 250 | EB58: 250 | EC58: 250 | ED58: 250 | EE58: 250 | EF58: 250 | EG58: 250 | EH58: 250 | EI58: 250 | EJ58: 250 | EK58: 250 | EL58: 250 | EM58: 250 | EN58: 250 | EO58: 250 | EP58: 250 | EQ58: 250 | ER58: 250 | ES58: 250 | ET58: 250 | EU58: 0 | EV58: 0 | EW58: 0 | EX58: 0
A59: 2003-03-03 | B59: segunda-feira | C59: Carnaval | F59: 737 | G59: 24 | H59: 2027-10-07 | I59: 250 | J59: 177.3872268 | K59: 177.3872268 | L59: 5.309199697 | S59: 24 | T59: 250 | U59: 170.3880492 | V59: 170.3880492 | W59: 170.3880492 | X59: 170.3880492 | Y59: 170.3880492 | Z59: 170.3880492 | AH59: 0 | AI59: 0 | AJ59: 0 | AK59: 0 | AL59: 0 | AM59: 0 | AN59: 0 | AO59: 0 | AP59: 0 | AQ59: 0 | AR59: 0 | AS59: 0 | AU59: 250 | AV59: 250 | AW59: 250 | AX59: 250 | AY59: 250 | AZ59: 250 | BA59: 250 | BB59: 250 | BC59: 250 | BD59: 250 | BE59: 250 | BF59: 250 | BH59: 737 | BI59: 24 | BJ59: 2027-10-07 | BK59: 250 | BL59: 250 | BM59: 250 | BN59: 250 | BO59: 2027-10-07 | BP59: 2027-10-07 | BR59: 280.1569336 | BS59: 250 | BT59: 250 | BU59: 250 | BY59: 250 | BZ59: 250 | CA59: 250 | CB59: 250 | CC59: 250 | CD59: 250 | CE59: 250 | CF59: 250 | CG59: 250 | CH59: 250 | CI59: 250 | CJ59: 250 | CK59: 250 | CL59: 250 | CM59: 250 | CN59: 250 | CO59: 250 | CP59: 250 | CQ59: 250 | CR59: 250 | CS59: 250 | CT59: 250 | CU59: 250 | CV59: 250 | CW59: 250 | CX59: 250 | CY59: 250 | CZ59: 250 | DA59: 250 | DB59: 250 | DC59: 250 | DD59: 250 | DE59: 250 | DF59: 250 | DG59: 250 | DH59: 250 | DI59: 250 | DJ59: 250 | DK59: 250 | DL59: 250 | DM59: 250 | DN59: 250 | DO59: 250 | DP59: 250 | DQ59: 250 | DR59: 250 | DS59: 250 | DT59: 250 | DU59: 250 | DV59: 250 | DW59: 250 | DX59: 250 | DY59: 250 | DZ59: 250 | EA59: 250 | EB59: 250 | EC59: 250 | ED59: 250 | EE59: 250 | EF59: 250 | EG59: 250 | EH59: 250 | EI59: 250 | EJ59: 250 | EK59: 250 | EL59: 250 | EM59: 250 | EN59: 250 | EO59: 250 | EP59: 250 | EQ59: 250 | ER59: 250 | ES59: 250 | ET59: 0 | EU59: 0 | EV59: 0 | EW59: 0 | EX59: 0
A60: 2003-03-04 | B60: terça-feira | C60: Carnaval | F60: 768 | G60: 25 | H60: 2027-11-07 | I60: 250 | J60: 174.8454363 | K60: 174.8454363 | L60: 5.23312391 | S60: 25 | T60: 250 | U60: 167.6624089 | V60: 167.6624089 | W60: 167.6624089 | X60: 167.6624089 | Y60: 167.6624089 | Z60: 167.6624089 | AH60: 0 | AI60: 0 | AJ60: 0 | AK60: 0 | AL60: 0 | AM60: 0 | AN60: 0 | AO60: 0 | AP60: 0 | AQ60: 0 | AR60: 0 | AS60: 0 | AU60: 250 | AV60: 250 | AW60: 250 | AX60: 250 | AY60: 250 | AZ60: 250 | BA60: 250 | BB60: 250 | BC60: 250 | BD60: 250 | BE60: 250 | BF60: 250 | BH60: 768 | BI60: 25 | BJ60: 2027-11-07 | BK60: 250 | BL60: 250 | BM60: 250 | BN60: 250 | BO60: 2027-11-07 | BP60: 2027-11-07 | BR60: 280.1569336 | BS60: 250 | BT60: 250 | BU60: 250 | BY60: 250 | BZ60: 250 | CA60: 250 | CB60: 250 | CC60: 250 | CD60: 250 | CE60: 250 | CF60: 250 | CG60: 250 | CH60: 250 | CI60: 250 | CJ60: 250 | CK60: 250 | CL60: 250 | CM60: 250 | CN60: 250 | CO60: 250 | CP60: 250 | CQ60: 250 | CR60: 250 | CS60: 250 | CT60: 250 | CU60: 250 | CV60: 250 | CW60: 250 | CX60: 250 | CY60: 250 | CZ60: 250 | DA60: 250 | DB60: 250 | DC60: 250 | DD60: 250 | DE60: 250 | DF60: 250 | DG60: 250 | DH60: 250 | DI60: 250 | DJ60: 250 | DK60: 250 | DL60: 250 | DM60: 250 | DN60: 250 | DO60: 250 | DP60: =IF($G60>DP$33,0,$I$9) -> 250 | DQ60: 250 | DR60: 250 | DS60: 250 | DT60: 250 | DU60: 250 | DV60: 250 | DW60: 250 | DX60: 250 | DY60: 250 | DZ60: 250 | EA60: 250 | EB60: 250 | EC60: 250 | ED60: 250 | EE60: 250 | EF60: 250 | EG60: 250 | EH60: 250 | EI60: 250 | EJ60: 250 | EK60: 250 | EL60: 250 | EM60: 250 | EN60: 250 | EO60: 250 | EP60: 250 | EQ60: 250 | ER60: 250 | ES60: 0 | ET60: 0 | EU60: 0 | EV60: 0 | EW60: 0 | EX60: 0
A61: 2003-04-18 | B61: sexta-feira | C61: Paixão de Cristo | F61: 798 | G61: 26 | H61: 2027-12-07 | I61: 250 | J61: 172.4203226 | K61: 172.4203226 | L61: 5.160540255 | S61: 26 | T61: 250 | U61: 165.0662138 | V61: 165.0662138 | W61: 165.0662138 | X61: 165.0662138 | Y61: 165.0662138 | Z61: 165.0662138 | AH61: 0 | AI61: 0 | AJ61: 0 | AK61: 0 | AL61: 0 | AM61: 0 | AN61: 0 | AO61: 0 | AP61: 0 | AQ61: 0 | AR61: 0 | AS61: 0 | AU61: 250 | AV61: 250 | AW61: 250 | AX61: 250 | AY61: 250 | AZ61: 250 | BA61: 250 | BB61: 250 | BC61: 250 | BD61: 250 | BE61: 250 | BF61: 250 | BH61: 798 | BI61: 26 | BJ61: 2027-12-07 | BK61: 250 | BL61: 250 | BM61: 250 | BN61: 250 | BO61: 2027-12-07 | BP61: 2027-12-07 | BR61: 280.1569336 | BS61: 250 | BT61: 250 | BU61: 250 | BY61: 250 | BZ61: 250 | CA61: 250 | CB61: 250 | CC61: 250 | CD61: 250 | CE61: 250 | CF61: 250 | CG61: 250 | CH61: 250 | CI61: 250 | CJ61: 250 | CK61: 250 | CL61: 250 | CM61: 250 | CN61: 250 | CO61: 250 | CP61: 250 | CQ61: 250 | CR61: 250 | CS61: 250 | CT61: 250 | CU61: 250 | CV61: 250 | CW61: 250 | CX61: 250 | CY61: 250 | CZ61: 250 | DA61: 250 | DB61: 250 | DC61: 250 | DD61: 250 | DE61: 250 | DF61: 250 | DG61: 250 | DH61: 250 | DI61: 250 | DJ61: 250 | DK61: 250 | DL61: 250 | DM61: 250 | DN61: 250 | DO61: 250 | DP61: 250 | DQ61: 250 | DR61: 250 | DS61: 250 | DT61: 250 | DU61: 250 | DV61: 250 | DW61: 250 | DX61: 250 | DY61: 250 | DZ61: 250 | EA61: 250 | EB61: 250 | EC61: 250 | ED61: 250 | EE61: 250 | EF61: 250 | EG61: 250 | EH61: 250 | EI61: 250 | EJ61: 250 | EK61: 250 | EL61: 250 | EM61: 250 | EN61: 250 | EO61: 250 | EP61: 250 | EQ61: 250 | ER61: 0 | ES61: 0 | ET61: 0 | EU61: 0 | EV61: 0 | EW61: 0 | EX61: 0
A62: 2003-04-21 | B62: segunda-feira | C62: Tiradentes | F62: 829 | G62: 27 | H62: 2028-01-07 | I62: 250 | J62: 169.9497032 | K62: 169.9497032 | L62: 5.086594616 | S62: 27 | T62: 250 | U62: 162.4257051 | V62: 162.4257051 | W62: 162.4257051 | X62: 162.4257051 | Y62: 162.4257051 | Z62: 162.4257051 | AB62: =$T62/((AB$29)^($H62-$H$35)) ->  | AH62: 0 | AI62: 0 | AJ62: 0 | AK62: 0 | AL62: 0 | AM62: 0 | AN62: 0 | AO62: 0 | AP62: 0 | AQ62: 0 | AR62: 0 | AS62: 0 | AU62: 250 | AV62: 250 | AW62: 250 | AX62: 250 | AY62: 250 | AZ62: 250 | BA62: 250 | BB62: 250 | BC62: 250 | BD62: 250 | BE62: 250 | BF62: 250 | BH62: 829 | BI62: 27 | BJ62: 2028-01-07 | BK62: 250 | BL62: 250 | BM62: 250 | BN62: 250 | BO62: 2028-01-07 | BP62: 2028-01-07 | BR62: 280.1569336 | BS62: 250 | BT62: 250 | BU62: 250 | BY62: 250 | BZ62: 250 | CA62: 250 | CB62: 250 | CC62: 250 | CD62: 250 | CE62: 250 | CF62: 250 | CG62: 250 | CH62: 250 | CI62: 250 | CJ62: 250 | CK62: 250 | CL62: 250 | CM62: 250 | CN62: 250 | CO62: 250 | CP62: 250 | CQ62: 250 | CR62: 250 | CS62: 250 | CT62: 250 | CU62: 250 | CV62: 250 | CW62: 250 | CX62: 250 | CY62: 250 | CZ62: 250 | DA62: 250 | DB62: 250 | DC62: 250 | DD62: 250 | DE62: 250 | DF62: 250 | DG62: 250 | DH62: 250 | DI62: 250 | DJ62: 250 | DK62: 250 | DL62: 250 | DM62: 250 | DN62: 250 | DO62: 250 | DP62: 250 | DQ62: 250 | DR62: 250 | DS62: 250 | DT62: 250 | DU62: 250 | DV62: 250 | DW62: 250 | DX62: 250 | DY62: 250 | DZ62: 250 | EA62: 250 | EB62: 250 | EC62: 250 | ED62: 250 | EE62: 250 | EF62: 250 | EG62: 250 | EH62: 250 | EI62: 250 | EJ62: 250 | EK62: 250 | EL62: 250 | EM62: 250 | EN62: 250 | EO62: 250 | EP62: 250 | EQ62: 0 | ER62: 0 | ES62: 0 | ET62: 0 | EU62: 0 | EV62: 0 | EW62: 0 | EX62: 0
A63: 2003-05-01 | B63: quinta-feira | C63: Dia do Trabalho | F63: 860 | G63: 28 | H63: 2028-02-07 | I63: 250 | J63: 167.5144854 | K63: 167.5144854 | L63: 5.013708548 | S63: 28 | T63: 250 | U63: 159.8274357 | V63: 159.8274357 | W63: 159.8274357 | X63: 159.8274357 | Y63: 159.8274357 | Z63: 159.8274357 | AH63: 0 | AI63: 0 | AJ63: 0 | AK63: 0 | AL63: 0 | AM63: 0 | AN63: 0 | AO63: 0 | AP63: 0 | AQ63: 0 | AR63: 0 | AS63: 0 | AU63: 250 | AV63: 250 | AW63: 250 | AX63: 250 | AY63: 250 | AZ63: 250 | BA63: 250 | BB63: 250 | BC63: 250 | BD63: 250 | BE63: 250 | BF63: 250 | BH63: 860 | BI63: 28 | BJ63: 2028-02-07 | BK63: 250 | BL63: 250 | BM63: 250 | BN63: 250 | BO63: 2028-02-07 | BP63: 2028-02-07 | BR63: 280.1569336 | BS63: 250 | BT63: 250 | BU63: 250 | BY63: 250 | BZ63: 250 | CA63: 250 | CB63: 250 | CC63: 250 | CD63: 250 | CE63: 250 | CF63: 250 | CG63: 250 | CH63: 250 | CI63: 250 | CJ63: 250 | CK63: 250 | CL63: 250 | CM63: 250 | CN63: 250 | CO63: 250 | CP63: 250 | CQ63: 250 | CR63: 250 | CS63: 250 | CT63: 250 | CU63: 250 | CV63: 250 | CW63: 250 | CX63: 250 | CY63: 250 | CZ63: 250 | DA63: 250 | DB63: 250 | DC63: 250 | DD63: 250 | DE63: 250 | DF63: 250 | DG63: 250 | DH63: 250 | DI63: 250 | DJ63: 250 | DK63: 250 | DL63: 250 | DM63: 250 | DN63: 250 | DO63: 250 | DP63: 250 | DQ63: 250 | DR63: 250 | DS63: 250 | DT63: 250 | DU63: 250 | DV63: 250 | DW63: 250 | DX63: 250 | DY63: 250 | DZ63: 250 | EA63: 250 | EB63: 250 | EC63: 250 | ED63: 250 | EE63: 250 | EF63: 250 | EG63: 250 | EH63: 250 | EI63: 250 | EJ63: 250 | EK63: 250 | EL63: 250 | EM63: 250 | EN63: 250 | EO63: 250 | EP63: 0 | EQ63: 0 | ER63: 0 | ES63: 0 | ET63: 0 | EU63: 0 | EV63: 0 | EW63: 0 | EX63: 0
A64: 2003-06-19 | B64: quinta-feira | C64: Corpus Christi | F64: 889 | G64: 29 | H64: 2028-03-07 | I64: 250 | J64: 165.2679783 | K64: 165.2679783 | L64: 4.946470591 | S64: 29 | T64: 250 | U64: 157.4344375 | V64: 157.4344375 | W64: 157.4344375 | X64: 157.4344375 | Y64: 157.4344375 | Z64: 157.4344375 | AH64: 0 | AI64: 0 | AJ64: 0 | AK64: 0 | AL64: 0 | AM64: 0 | AN64: 0 | AO64: 0 | AP64: 0 | AQ64: 0 | AR64: 0 | AS64: 0 | AU64: 250 | AV64: 250 | AW64: 250 | AX64: 250 | AY64: 250 | AZ64: 250 | BA64: 250 | BB64: 250 | BC64: 250 | BD64: 250 | BE64: 250 | BF64: 250 | BH64: 889 | BI64: 29 | BJ64: 2028-03-07 | BK64: 250 | BL64: 250 | BM64: 250 | BN64: 250 | BO64: 2028-03-07 | BP64: 2028-03-07 | BR64: 280.1569336 | BS64: 250 | BT64: 250 | BU64: 250 | BY64: 250 | BZ64: 250 | CA64: 250 | CB64: 250 | CC64: 250 | CD64: 250 | CE64: 250 | CF64: 250 | CG64: 250 | CH64: 250 | CI64: 250 | CJ64: 250 | CK64: 250 | CL64: 250 | CM64: 250 | CN64: 250 | CO64: 250 | CP64: 250 | CQ64: 250 | CR64: 250 | CS64: 250 | CT64: 250 | CU64: 250 | CV64: 250 | CW64: 250 | CX64: 250 | CY64: 250 | CZ64: 250 | DA64: 250 | DB64: 250 | DC64: 250 | DD64: 250 | DE64: 250 | DF64: 250 | DG64: 250 | DH64: 250 | DI64: 250 | DJ64: 250 | DK64: 250 | DL64: 250 | DM64: 250 | DN64: 250 | DO64: 250 | DP64: 250 | DQ64: 250 | DR64: 250 | DS64: 250 | DT64: 250 | DU64: 250 | DV64: 250 | DW64: 250 | DX64: 250 | DY64: 250 | DZ64: 250 | EA64: 250 | EB64: 250 | EC64: 250 | ED64: 250 | EE64: 250 | EF64: 250 | EG64: 250 | EH64: 250 | EI64: 250 | EJ64: 250 | EK64: 250 | EL64: 250 | EM64: 250 | EN64: 250 | EO64: 0 | EP64: 0 | EQ64: 0 | ER64: 0 | ES64: 0 | ET64: 0 | EU64: 0 | EV64: 0 | EW64: 0 | EX64: 0
A65: 2003-09-07 | B65: domingo | C65: Independência do Brasil | F65: 920 | G65: 30 | H65: 2028-04-07 | I65: 250 | J65: 162.8998452 | K65: 162.8998452 | L65: 4.875592367 | S65: 30 | T65: 250 | U65: 154.9160117 | V65: 154.9160117 | W65: 154.9160117 | X65: 154.9160117 | Y65: 154.9160117 | Z65: 154.9160117 | AH65: 0 | AI65: 0 | AJ65: 0 | AK65: 0 | AL65: 0 | AM65: 0 | AN65: 0 | AO65: 0 | AP65: 0 | AQ65: 0 | AR65: 0 | AS65: 0 | AU65: 250 | AV65: 250 | AW65: 250 | AX65: 250 | AY65: 250 | AZ65: 250 | BA65: 250 | BB65: 250 | BC65: 250 | BD65: 250 | BE65: 250 | BF65: 250 | BH65: 920 | BI65: 30 | BJ65: 2028-04-07 | BK65: 250 | BL65: 250 | BM65: 250 | BN65: 250 | BO65: 2028-04-07 | BP65: 2028-04-07 | BR65: 280.1569336 | BS65: 250 | BT65: 250 | BU65: 250 | BY65: 250 | BZ65: 250 | CA65: 250 | CB65: 250 | CC65: 250 | CD65: 250 | CE65: 250 | CF65: 250 | CG65: 250 | CH65: 250 | CI65: 250 | CJ65: 250 | CK65: 250 | CL65: 250 | CM65: 250 | CN65: 250 | CO65: 250 | CP65: 250 | CQ65: 250 | CR65: 250 | CS65: 250 | CT65: 250 | CU65: 250 | CV65: 250 | CW65: 250 | CX65: 250 | CY65: 250 | CZ65: 250 | DA65: 250 | DB65: 250 | DC65: 250 | DD65: 250 | DE65: 250 | DF65: =IF($G65>DF$33,0,$I$9) -> 250 | DG65: 250 | DH65: 250 | DI65: 250 | DJ65: 250 | DK65: 250 | DL65: 250 | DM65: 250 | DN65: 250 | DO65: 250 | DP65: 250 | DQ65: 250 | DR65: 250 | DS65: 250 | DT65: 250 | DU65: 250 | DV65: 250 | DW65: 250 | DX65: 250 | DY65: 250 | DZ65: 250 | EA65: 250 | EB65: 250 | EC65: 250 | ED65: 250 | EE65: 250 | EF65: 250 | EG65: 250 | EH65: 250 | EI65: 250 | EJ65: 250 | EK65: 250 | EL65: 250 | EM65: 250 | EN65: 0 | EO65: 0 | EP65: 0 | EQ65: 0 | ER65: 0 | ES65: 0 | ET65: 0 | EU65: 0 | EV65: 0 | EW65: 0 | EX65: 0
A66: 2003-10-12 | B66: domingo | C66: Nossa Sr.a Aparecida - Padroeira do Brasil | F66: 950 | G66: 31 | H66: 2028-05-07 | I66: 250 | J66: 160.6404173 | K66: 160.6404173 | L66: 4.80796769 | S66: 31 | T66: 250 | U66: 152.5171902 | V66: 152.5171902 | W66: 152.5171902 | X66: 152.5171902 | Y66: 152.5171902 | Z66: 152.5171902 | AH66: 0 | AI66: 0 | AJ66: 0 | AK66: 0 | AL66: 0 | AM66: 0 | AN66: 0 | AO66: 0 | AP66: 0 | AQ66: 0 | AR66: 0 | AS66: 0 | AU66: 250 | AV66: 250 | AW66: 250 | AX66: 250 | AY66: 250 | AZ66: 250 | BA66: 250 | BB66: 250 | BC66: 250 | BD66: 250 | BE66: 250 | BF66: 250 | BH66: 950 | BI66: 31 | BJ66: 2028-05-07 | BK66: 250 | BL66: 250 | BM66: 250 | BN66: 250 | BO66: 2028-05-07 | BP66: 2028-05-07 | BR66: 280.1569336 | BS66: 250 | BT66: 250 | BU66: 250 | BY66: 250 | BZ66: 250 | CA66: 250 | CB66: 250 | CC66: 250 | CD66: 250 | CE66: 250 | CF66: 250 | CG66: 250 | CH66: 250 | CI66: 250 | CJ66: 250 | CK66: 250 | CL66: 250 | CM66: 250 | CN66: 250 | CO66: 250 | CP66: 250 | CQ66: 250 | CR66: 250 | CS66: 250 | CT66: 250 | CU66: 250 | CV66: 250 | CW66: 250 | CX66: 250 | CY66: 250 | CZ66: 250 | DA66: 250 | DB66: 250 | DC66: 250 | DD66: 250 | DE66: 250 | DF66: 250 | DG66: 250 | DH66: 250 | DI66: 250 | DJ66: 250 | DK66: 250 | DL66: 250 | DM66: 250 | DN66: 250 | DO66: 250 | DP66: 250 | DQ66: 250 | DR66: 250 | DS66: 250 | DT66: 250 | DU66: 250 | DV66: 250 | DW66: 250 | DX66: 250 | DY66: 250 | DZ66: 250 | EA66: 250 | EB66: 250 | EC66: 250 | ED66: 250 | EE66: 250 | EF66: 250 | EG66: 250 | EH66: 250 | EI66: 250 | EJ66: 250 | EK66: 250 | EL66: 250 | EM66: 0 | EN66: 0 | EO66: 0 | EP66: 0 | EQ66: 0 | ER66: 0 | ES66: 0 | ET66: 0 | EU66: 0 | EV66: 0 | EW66: 0 | EX66: 0
A67: 2003-11-02 | B67: domingo | C67: Finados | F67: 981 | G67: 32 | H67: 2028-06-07 | I67: 250 | J67: 158.3385928 | K67: 158.3385928 | L67: 4.739074081 | S67: 32 | T67: 250 | U67: 150.077424 | V67: 150.077424 | W67: 150.077424 | X67: 150.077424 | Y67: 150.077424 | Z67: 150.077424 | AH67: 0 | AI67: 0 | AJ67: 0 | AK67: 0 | AL67: 0 | AM67: 0 | AN67: 0 | AO67: 0 | AP67: 0 | AQ67: 0 | AR67: 0 | AS67: 0 | AU67: 250 | AV67: 250 | AW67: 250 | AX67: 250 | AY67: 250 | AZ67: 250 | BA67: 250 | BB67: 250 | BC67: 250 | BD67: 250 | BE67: 250 | BF67: 250 | BH67: 981 | BI67: 32 | BJ67: 2028-06-07 | BK67: 250 | BL67: 250 | BM67: 250 | BN67: 250 | BO67: 2028-06-07 | BP67: 2028-06-07 | BR67: 280.1569336 | BS67: 250 | BT67: 250 | BU67: 250 | BY67: 250 | BZ67: 250 | CA67: 250 | CB67: 250 | CC67: 250 | CD67: 250 | CE67: 250 | CF67: 250 | CG67: 250 | CH67: 250 | CI67: 250 | CJ67: 250 | CK67: 250 | CL67: 250 | CM67: 250 | CN67: 250 | CO67: =IF($G67>CO$33,0,$I$9) -> 250 | CP67: 250 | CQ67: 250 | CR67: 250 | CS67: 250 | CT67: 250 | CU67: 250 | CV67: 250 | CW67: 250 | CX67: 250 | CY67: 250 | CZ67: 250 | DA67: 250 | DB67: 250 | DC67: 250 | DD67: 250 | DE67: 250 | DF67: 250 | DG67: 250 | DH67: 250 | DI67: 250 | DJ67: 250 | DK67: 250 | DL67: 250 | DM67: 250 | DN67: 250 | DO67: 250 | DP67: 250 | DQ67: 250 | DR67: 250 | DS67: 250 | DT67: 250 | DU67: 250 | DV67: 250 | DW67: 250 | DX67: 250 | DY67: 250 | DZ67: 250 | EA67: 250 | EB67: 250 | EC67: 250 | ED67: 250 | EE67: 250 | EF67: 250 | EG67: 250 | EH67: 250 | EI67: 250 | EJ67: 250 | EK67: 250 | EL67: 0 | EM67: 0 | EN67: 0 | EO67: 0 | EP67: 0 | EQ67: 0 | ER67: 0 | ES67: 0 | ET67: 0 | EU67: 0 | EV67: 0 | EW67: 0 | EX67: 0
A68: 2003-11-15 | B68: sábado | C68: Proclamação da República | F68: 1011 | G68: 33 | H68: 2028-07-07 | I68: 250 | J68: 156.1424296 | K68: 156.1424296 | L68: 4.673342919 | S68: 33 | T68: 250 | U68: =$T68/((U$29)^($H68-$H$35)) -> 147.7535263 | V68: 147.7535263 | W68: 147.7535263 | X68: 147.7535263 | Y68: 147.7535263 | Z68: 147.7535263 | AH68: 0 | AI68: 0 | AJ68: 0 | AK68: 0 | AL68: 0 | AM68: 0 | AN68: 0 | AO68: 0 | AP68: 0 | AQ68: 0 | AR68: 0 | AS68: 0 | AU68: =$T68 -> 250 | AV68: 250 | AW68: 250 | AX68: 250 | AY68: 250 | AZ68: 250 | BA68: 250 | BB68: 250 | BC68: 250 | BD68: 250 | BE68: 250 | BF68: 250 | BH68: 1011 | BI68: 33 | BJ68: 2028-07-07 | BK68: 250 | BL68: 250 | BM68: 250 | BN68: 250 | BO68: 2028-07-07 | BP68: 2028-07-07 | BR68: 280.1569336 | BS68: 250 | BT68: 250 | BU68: 250 | BY68: 250 | BZ68: 250 | CA68: 250 | CB68: 250 | CC68: 250 | CD68: 250 | CE68: 250 | CF68: 250 | CG68: 250 | CH68: 250 | CI68: 250 | CJ68: 250 | CK68: 250 | CL68: 250 | CM68: 250 | CN68: =IF($G68>CN$33,0,$I$9) -> 250 | CO68: 250 | CP68: 250 | CQ68: 250 | CR68: 250 | CS68: 250 | CT68: 250 | CU68: 250 | CV68: 250 | CW68: 250 | CX68: 250 | CY68: 250 | CZ68: 250 | DA68: 250 | DB68: 250 | DC68: 250 | DD68: 250 | DE68: 250 | DF68: 250 | DG68: 250 | DH68: 250 | DI68: 250 | DJ68: 250 | DK68: 250 | DL68: 250 | DM68: 250 | DN68: 250 | DO68: 250 | DP68: 250 | DQ68: 250 | DR68: 250 | DS68: 250 | DT68: 250 | DU68: 250 | DV68: 250 | DW68: 250 | DX68: 250 | DY68: 250 | DZ68: 250 | EA68: 250 | EB68: 250 | EC68: 250 | ED68: 250 | EE68: 250 | EF68: 250 | EG68: 250 | EH68: 250 | EI68: 250 | EJ68: 250 | EK68: 0 | EL68: 0 | EM68: 0 | EN68: 0 | EO68: 0 | EP68: 0 | EQ68: 0 | ER68: 0 | ES68: 0 | ET68: 0 | EU68: 0 | EV68: 0 | EW68: 0 | EX68: 0
A69: 2003-12-25 | B69: quinta-feira | C69: Natal | F69: 1042 | G69: 34 | H69: 2028-08-07 | I69: 250 | J69: 153.905057 | K69: 153.905057 | L69: 4.606378355 | S69: 34 | T69: 250 | U69: 145.3899628 | V69: 145.3899628 | W69: 145.3899628 | X69: 145.3899628 | Y69: 145.3899628 | Z69: 145.3899628 | AH69: 0 | AI69: 0 | AJ69: 0 | AK69: 0 | AL69: 0 | AM69: 0 | AN69: 0 | AO69: 0 | AP69: 0 | AQ69: 0 | AR69: 0 | AS69: 0 | AU69: 250 | AV69: 250 | AW69: 250 | AX69: 250 | AY69: 250 | AZ69: 250 | BA69: 250 | BB69: 250 | BC69: 250 | BD69: 250 | BE69: 250 | BF69: 250 | BH69: 1042 | BI69: 34 | BJ69: 2028-08-07 | BK69: 250 | BL69: 250 | BM69: 250 | BN69: 250 | BO69: 2028-08-07 | BP69: 2028-08-07 | BR69: 280.1569336 | BS69: 250 | BT69: 250 | BU69: =IF(G69>$BU$31,0,$BU$32) -> 250 | BY69: =IF($G69>BY$33,0,$I$9) -> 250 | BZ69: 250 | CA69: 250 | CB69: 250 | CC69: 250 | CD69: 250 | CE69: 250 | CF69: 250 | CG69: 250 | CH69: 250 | CI69: 250 | CJ69: 250 | CK69: 250 | CL69: 250 | CM69: 250 | CN69: 250 | CO69: 250 | CP69: 250 | CQ69: 250 | CR69: 250 | CS69: 250 | CT69: 250 | CU69: 250 | CV69: 250 | CW69: 250 | CX69: 250 | CY69: 250 | CZ69: 250 | DA69: 250 | DB69: 250 | DC69: 250 | DD69: 250 | DE69: 250 | DF69: 250 | DG69: 250 | DH69: 250 | DI69: 250 | DJ69: 250 | DK69: 250 | DL69: 250 | DM69: 250 | DN69: 250 | DO69: 250 | DP69: 250 | DQ69: 250 | DR69: 250 | DS69: 250 | DT69: 250 | DU69: 250 | DV69: 250 | DW69: 250 | DX69: 250 | DY69: 250 | DZ69: 250 | EA69: 250 | EB69: 250 | EC69: 250 | ED69: 250 | EE69: 250 | EF69: 250 | EG69: 250 | EH69: 250 | EI69: 250 | EJ69: 0 | EK69: 0 | EL69: 0 | EM69: 0 | EN69: 0 | EO69: 0 | EP69: 0 | EQ69: 0 | ER69: 0 | ES69: 0 | ET69: 0 | EU69: 0 | EV69: 0 | EW69: 0 | EX69: 0
A70: 2004-01-01 | B70: quinta-feira | C70: Confraternização Universal | F70: 1073 | G70: 35 | H70: 2028-09-07 | I70: 250 | J70: 151.6997437 | K70: 151.6997437 | L70: 4.540373329 | S70: 35 | T70: 250 | U70: 143.0642085 | V70: 143.0642085 | W70: 143.0642085 | X70: 143.0642085 | Y70: 143.0642085 | Z70: 143.0642085 | AH70: 0 | AI70: 0 | AJ70: 0 | AK70: 0 | AL70: 0 | AM70: 0 | AN70: 0 | AO70: 0 | AP70: 0 | AQ70: 0 | AR70: 0 | AS70: 0 | AU70: 250 | AV70: 250 | AW70: 250 | AX70: 250 | AY70: 250 | AZ70: 250 | BA70: 250 | BB70: 250 | BC70: 250 | BD70: 250 | BE70: 250 | BF70: 250 | BH70: 1073 | BI70: 35 | BJ70: 2028-09-07 | BK70: 250 | BL70: 250 | BM70: 250 | BN70: 250 | BO70: 2028-09-07 | BP70: 2028-09-07 | BR70: 280.1569336 | BS70: 250 | BT70: 250 | BU70: 250 | BY70: 250 | BZ70: 250 | CA70: 250 | CB70: 250 | CC70: 250 | CD70: 250 | CE70: 250 | CF70: 250 | CG70: 250 | CH70: 250 | CI70: 250 | CJ70: 250 | CK70: 250 | CL70: 250 | CM70: 250 | CN70: 250 | CO70: 250 | CP70: 250 | CQ70: 250 | CR70: 250 | CS70: 250 | CT70: 250 | CU70: 250 | CV70: 250 | CW70: 250 | CX70: 250 | CY70: 250 | CZ70: 250 | DA70: 250 | DB70: 250 | DC70: =IF($G70>DC$33,0,$I$9) -> 250 | DD70: 250 | DE70: 250 | DF70: 250 | DG70: 250 | DH70: 250 | DI70: 250 | DJ70: 250 | DK70: 250 | DL70: 250 | DM70: 250 | DN70: 250 | DO70: 250 | DP70: 250 | DQ70: 250 | DR70: 250 | DS70: 250 | DT70: 250 | DU70: 250 | DV70: 250 | DW70: 250 | DX70: 250 | DY70: 250 | DZ70: 250 | EA70: 250 | EB70: 250 | EC70: 250 | ED70: 250 | EE70: 250 | EF70: 250 | EG70: 250 | EH70: 250 | EI70: 0 | EJ70: 0 | EK70: 0 | EL70: 0 | EM70: 0 | EN70: 0 | EO70: 0 | EP70: 0 | EQ70: 0 | ER70: 0 | ES70: 0 | ET70: 0 | EU70: 0 | EV70: 0 | EW70: 0 | EX70: 0
A71: 2004-02-23 | B71: segunda-feira | C71: Carnaval | F71: 1103 | G71: 36 | H71: 2028-10-07 | I71: 250 | J71: 149.5956617 | K71: 149.5956617 | L71: 4.477398155 | S71: 36 | T71: 250 | U71: 140.8489081 | V71: 140.8489081 | W71: 140.8489081 | X71: 140.8489081 | Y71: 140.8489081 | Z71: 140.8489081 | AH71: 0 | AI71: 0 | AJ71: 0 | AK71: 0 | AL71: 0 | AM71: 0 | AN71: 0 | AO71: 0 | AP71: 0 | AQ71: 0 | AR71: 0 | AS71: 0 | AU71: 250 | AV71: 250 | AW71: 250 | AX71: 250 | AY71: 250 | AZ71: 250 | BA71: 250 | BB71: 250 | BC71: 250 | BD71: 250 | BE71: 250 | BF71: 250 | BH71: 1103 | BI71: 36 | BJ71: 2028-10-07 | BK71: 250 | BL71: 250 | BM71: 250 | BN71: 250 | BO71: 2028-10-07 | BP71: 2028-10-07 | BR71: 280.1569336 | BS71: 250 | BT71: 250 | BU71: 250 | BY71: 250 | BZ71: 250 | CA71: 250 | CB71: 250 | CC71: 250 | CD71: 250 | CE71: 250 | CF71: 250 | CG71: 250 | CH71: 250 | CI71: 250 | CJ71: 250 | CK71: 250 | CL71: 250 | CM71: 250 | CN71: 250 | CO71: 250 | CP71: 250 | CQ71: 250 | CR71: 250 | CS71: 250 | CT71: 250 | CU71: 250 | CV71: 250 | CW71: 250 | CX71: 250 | CY71: 250 | CZ71: 250 | DA71: 250 | DB71: 250 | DC71: 250 | DD71: 250 | DE71: 250 | DF71: 250 | DG71: 250 | DH71: 250 | DI71: 250 | DJ71: 250 | DK71: 250 | DL71: 250 | DM71: 250 | DN71: 250 | DO71: 250 | DP71: 250 | DQ71: 250 | DR71: 250 | DS71: 250 | DT71: 250 | DU71: 250 | DV71: 250 | DW71: 250 | DX71: 250 | DY71: 250 | DZ71: 250 | EA71: 250 | EB71: 250 | EC71: 250 | ED71: 250 | EE71: 250 | EF71: 250 | EG71: 250 | EH71: 0 | EI71: 0 | EJ71: 0 | EK71: 0 | EL71: 0 | EM71: 0 | EN71: 0 | EO71: 0 | EP71: 0 | EQ71: 0 | ER71: 0 | ES71: 0 | ET71: 0 | EU71: 0 | EV71: 0 | EW71: 0 | EX71: 0
A72: 2004-02-24 | B72: terça-feira | C72: Carnaval | F72: 1134 | G72: 37 | H72: 2028-11-07 | I72: 250 | J72: 147.452098 | K72: 147.452098 | L72: 4.413241293 | S72: 37 | T72: 250 | U72: 138.5957955 | V72: 138.5957955 | W72: 138.5957955 | X72: 138.5957955 | Y72: 138.5957955 | Z72: 138.5957955 | AH72: 0 | AI72: 0 | AJ72: 0 | AK72: 0 | AL72: 0 | AM72: 0 | AN72: 0 | AO72: 0 | AP72: 0 | AQ72: 0 | AR72: 0 | AS72: 0 | AU72: 250 | AV72: 250 | AW72: 250 | AX72: 250 | AY72: 250 | AZ72: 250 | BA72: 250 | BB72: 250 | BC72: 250 | BD72: 250 | BE72: 250 | BF72: 250 | BH72: 1134 | BI72: 37 | BJ72: 2028-11-07 | BK72: 250 | BL72: 250 | BM72: 250 | BN72: 250 | BO72: 2028-11-07 | BP72: 2028-11-07 | BR72: 280.1569336 | BS72: 250 | BT72: 250 | BU72: 250 | BY72: 250 | BZ72: 250 | CA72: 250 | CB72: 250 | CC72: 250 | CD72: 250 | CE72: 250 | CF72: 250 | CG72: 250 | CH72: 250 | CI72: 250 | CJ72: 250 | CK72: 250 | CL72: 250 | CM72: 250 | CN72: 250 | CO72: 250 | CP72: 250 | CQ72: 250 | CR72: 250 | CS72: 250 | CT72: 250 | CU72: 250 | CV72: 250 | CW72: 250 | CX72: 250 | CY72: 250 | CZ72: 250 | DA72: 250 | DB72: 250 | DC72: 250 | DD72: 250 | DE72: 250 | DF72: 250 | DG72: 250 | DH72: 250 | DI72: 250 | DJ72: 250 | DK72: 250 | DL72: 250 | DM72: 250 | DN72: 250 | DO72: 250 | DP72: 250 | DQ72: 250 | DR72: 250 | DS72: 250 | DT72: 250 | DU72: 250 | DV72: 250 | DW72: 250 | DX72: 250 | DY72: 250 | DZ72: 250 | EA72: 250 | EB72: 250 | EC72: 250 | ED72: 250 | EE72: 250 | EF72: 250 | EG72: 0 | EH72: 0 | EI72: 0 | EJ72: 0 | EK72: 0 | EL72: 0 | EM72: 0 | EN72: 0 | EO72: 0 | EP72: 0 | EQ72: 0 | ER72: 0 | ES72: 0 | ET72: 0 | EU72: 0 | EV72: 0 | EW72: 0 | EX72: 0
A73: 2004-04-09 | B73: sexta-feira | C73: Paixão de Cristo | F73: 1164 | G73: 38 | H73: 2028-12-07 | I73: 250 | J73: 145.406931 | K73: 145.406931 | L73: 4.352029446 | S73: 38 | T73: 250 | U73: 136.4496869 | V73: 136.4496869 | W73: 136.4496869 | X73: 136.4496869 | Y73: 136.4496869 | Z73: 136.4496869 | AH73: 0 | AI73: 0 | AJ73: 0 | AK73: 0 | AL73: 0 | AM73: 0 | AN73: 0 | AO73: 0 | AP73: 0 | AQ73: 0 | AR73: 0 | AS73: 0 | AU73: 250 | AV73: 250 | AW73: 250 | AX73: 250 | AY73: 250 | AZ73: 250 | BA73: 250 | BB73: 250 | BC73: 250 | BD73: 250 | BE73: 250 | BF73: 250 | BH73: 1164 | BI73: 38 | BJ73: 2028-12-07 | BK73: 250 | BL73: 250 | BM73: 250 | BN73: 250 | BO73: 2028-12-07 | BP73: 2028-12-07 | BR73: 280.1569336 | BS73: 250 | BT73: 250 | BU73: 250 | BY73: 250 | BZ73: 250 | CA73: 250 | CB73: 250 | CC73: 250 | CD73: 250 | CE73: 250 | CF73: 250 | CG73: 250 | CH73: 250 | CI73: 250 | CJ73: 250 | CK73: 250 | CL73: 250 | CM73: 250 | CN73: 250 | CO73: 250 | CP73: 250 | CQ73: 250 | CR73: 250 | CS73: 250 | CT73: 250 | CU73: 250 | CV73: 250 | CW73: 250 | CX73: 250 | CY73: 250 | CZ73: 250 | DA73: 250 | DB73: 250 | DC73: 250 | DD73: 250 | DE73: 250 | DF73: 250 | DG73: 250 | DH73: 250 | DI73: 250 | DJ73: 250 | DK73: 250 | DL73: 250 | DM73: 250 | DN73: 250 | DO73: 250 | DP73: 250 | DQ73: 250 | DR73: 250 | DS73: 250 | DT73: 250 | DU73: 250 | DV73: 250 | DW73: 250 | DX73: 250 | DY73: 250 | DZ73: 250 | EA73: 250 | EB73: 250 | EC73: 250 | ED73: 250 | EE73: 250 | EF73: 0 | EG73: 0 | EH73: 0 | EI73: 0 | EJ73: 0 | EK73: 0 | EL73: 0 | EM73: 0 | EN73: 0 | EO73: 0 | EP73: 0 | EQ73: 0 | ER73: 0 | ES73: 0 | ET73: 0 | EU73: 0 | EV73: 0 | EW73: 0 | EX73: 0
A74: 2004-04-21 | B74: quarta-feira | C74: Tiradentes | F74: 1195 | G74: 39 | H74: 2029-01-07 | I74: 250 | J74: 143.3233879 | K74: 143.3233879 | L74: 4.289668999 | S74: 39 | T74: 250 | U74: 134.2669471 | V74: 134.2669471 | W74: 134.2669471 | X74: 134.2669471 | Y74: 134.2669471 | Z74: 134.2669471 | AH74: 0 | AI74: 0 | AJ74: 0 | AK74: 0 | AL74: 0 | AM74: 0 | AN74: 0 | AO74: 0 | AP74: 0 | AQ74: 0 | AR74: 0 | AS74: 0 | AU74: 250 | AV74: 250 | AW74: 250 | AX74: 250 | AY74: 250 | AZ74: 250 | BA74: 250 | BB74: 250 | BC74: 250 | BD74: 250 | BE74: 250 | BF74: 250 | BH74: 1195 | BI74: 39 | BJ74: 2029-01-07 | BK74: 250 | BL74: 250 | BM74: 250 | BN74: 250 | BO74: 2029-01-07 | BP74: 2029-01-07 | BR74: 280.1569336 | BS74: 250 | BT74: 250 | BU74: 250 | BY74: 250 | BZ74: 250 | CA74: 250 | CB74: 250 | CC74: 250 | CD74: 250 | CE74: 250 | CF74: 250 | CG74: 250 | CH74: 250 | CI74: 250 | CJ74: 250 | CK74: 250 | CL74: 250 | CM74: 250 | CN74: 250 | CO74: 250 | CP74: 250 | CQ74: 250 | CR74: 250 | CS74: 250 | CT74: 250 | CU74: 250 | CV74: 250 | CW74: 250 | CX74: 250 | CY74: 250 | CZ74: 250 | DA74: 250 | DB74: 250 | DC74: 250 | DD74: 250 | DE74: 250 | DF74: 250 | DG74: 250 | DH74: 250 | DI74: 250 | DJ74: 250 | DK74: 250 | DL74: 250 | DM74: 250 | DN74: 250 | DO74: 250 | DP74: 250 | DQ74: 250 | DR74: 250 | DS74: 250 | DT74: 250 | DU74: 250 | DV74: 250 | DW74: 250 | DX74: 250 | DY74: 250 | DZ74: 250 | EA74: 250 | EB74: 250 | EC74: 250 | ED74: 250 | EE74: 0 | EF74: 0 | EG74: 0 | EH74: 0 | EI74: 0 | EJ74: 0 | EK74: 0 | EL74: 0 | EM74: 0 | EN74: 0 | EO74: 0 | EP74: 0 | EQ74: 0 | ER74: 0 | ES74: 0 | ET74: =IF($G74>ET$33,0,$I$9) -> 0 | EU74: 0 | EV74: 0 | EW74: 0 | EX74: 0
A75: 2004-05-01 | B75: sábado | C75: Dia do Trabalho | F75: 1226 | G75: 40 | H75: 2029-02-07 | I75: 250 | J75: 141.2696999 | K75: 141.2696999 | L75: 4.228202118 | S75: 40 | T75: 250 | U75: 132.1191239 | V75: 132.1191239 | W75: 132.1191239 | X75: 132.1191239 | Y75: 132.1191239 | Z75: 132.1191239 | AH75: 0 | AI75: 0 | AJ75: 0 | AK75: 0 | AL75: 0 | AM75: 0 | AN75: 0 | AO75: 0 | AP75: 0 | AQ75: 0 | AR75: 0 | AS75: 0 | AU75: 250 | AV75: 250 | AW75: 250 | AX75: 250 | AY75: 250 | AZ75: 250 | BA75: 250 | BB75: 250 | BC75: 250 | BD75: 250 | BE75: 250 | BF75: 250 | BH75: 1226 | BI75: 40 | BJ75: 2029-02-07 | BK75: 250 | BL75: 250 | BM75: 250 | BN75: 250 | BO75: 2029-02-07 | BP75: 2029-02-07 | BR75: 280.1569336 | BS75: 250 | BT75: 250 | BU75: 250 | BY75: 250 | BZ75: 250 | CA75: 250 | CB75: 250 | CC75: 250 | CD75: 250 | CE75: 250 | CF75: 250 | CG75: 250 | CH75: 250 | CI75: 250 | CJ75: 250 | CK75: 250 | CL75: 250 | CM75: 250 | CN75: 250 | CO75: 250 | CP75: 250 | CQ75: 250 | CR75: 250 | CS75: 250 | CT75: 250 | CU75: 250 | CV75: 250 | CW75: 250 | CX75: 250 | CY75: 250 | CZ75: 250 | DA75: 250 | DB75: 250 | DC75: 250 | DD75: 250 | DE75: 250 | DF75: 250 | DG75: 250 | DH75: 250 | DI75: 250 | DJ75: 250 | DK75: 250 | DL75: 250 | DM75: 250 | DN75: 250 | DO75: 250 | DP75: 250 | DQ75: 250 | DR75: 250 | DS75: 250 | DT75: 250 | DU75: 250 | DV75: 250 | DW75: 250 | DX75: 250 | DY75: 250 | DZ75: 250 | EA75: 250 | EB75: 250 | EC75: 250 | ED75: 0 | EE75: 0 | EF75: 0 | EG75: 0 | EH75: 0 | EI75: 0 | EJ75: 0 | EK75: 0 | EL75: 0 | EM75: 0 | EN75: 0 | EO75: 0 | EP75: 0 | EQ75: 0 | ER75: 0 | ES75: 0 | ET75: 0 | EU75: 0 | EV75: 0 | EW75: 0 | EX75: 0
A76: 2004-06-10 | B76: quinta-feira | C76: Corpus Christi | F76: 1254 | G76: 41 | H76: 2029-03-07 | I76: 250 | J76: 139.4400611 | K76: 139.4400611 | L76: 4.173441029 | S76: 41 | T76: 250 | U76: 130.2087014 | V76: 130.2087014 | W76: 130.2087014 | X76: 130.2087014 | Y76: 130.2087014 | Z76: 130.2087014 | AH76: 0 | AI76: 0 | AJ76: 0 | AK76: 0 | AL76: 0 | AM76: 0 | AN76: 0 | AO76: 0 | AP76: 0 | AQ76: 0 | AR76: 0 | AS76: 0 | AU76: 250 | AV76: 250 | AW76: 250 | AX76: 250 | AY76: 250 | AZ76: 250 | BA76: 250 | BB76: 250 | BC76: 250 | BD76: 250 | BE76: 250 | BF76: 250 | BH76: 1254 | BI76: 41 | BJ76: 2029-03-07 | BK76: 250 | BL76: 250 | BM76: 250 | BN76: 250 | BO76: 2029-03-07 | BP76: 2029-03-07 | BR76: 280.1569336 | BS76: 250 | BT76: 250 | BU76: 250 | BY76: 250 | BZ76: 250 | CA76: 250 | CB76: 250 | CC76: 250 | CD76: 250 | CE76: 250 | CF76: 250 | CG76: 250 | CH76: 250 | CI76: 250 | CJ76: 250 | CK76: 250 | CL76: 250 | CM76: 250 | CN76: 250 | CO76: 250 | CP76: 250 | CQ76: 250 | CR76: 250 | CS76: 250 | CT76: 250 | CU76: 250 | CV76: 250 | CW76: 250 | CX76: 250 | CY76: 250 | CZ76: 250 | DA76: 250 | DB76: 250 | DC76: 250 | DD76: 250 | DE76: 250 | DF76: 250 | DG76: 250 | DH76: 250 | DI76: 250 | DJ76: 250 | DK76: 250 | DL76: 250 | DM76: 250 | DN76: 250 | DO76: 250 | DP76: 250 | DQ76: 250 | DR76: 250 | DS76: 250 | DT76: 250 | DU76: 250 | DV76: 250 | DW76: 250 | DX76: 250 | DY76: 250 | DZ76: 250 | EA76: 250 | EB76: 250 | EC76: 0 | ED76: 0 | EE76: 0 | EF76: 0 | EG76: 0 | EH76: 0 | EI76: 0 | EJ76: 0 | EK76: 0 | EL76: 0 | EM76: 0 | EN76: 0 | EO76: 0 | EP76: 0 | EQ76: 0 | ER76: 0 | ES76: 0 | ET76: 0 | EU76: 0 | EV76: 0 | EW76: 0 | EX76: 0
A77: 2004-09-07 | B77: terça-feira | C77: Independência do Brasil | F77: 1285 | G77: 42 | H77: 2029-04-07 | I77: 250 | J77: 137.4420175 | K77: 137.4420175 | L77: 4.113639585 | S77: 42 | T77: 250 | U77: 128.1257966 | V77: 128.1257966 | W77: 128.1257966 | X77: 128.1257966 | Y77: 128.1257966 | Z77: 128.1257966 | AH77: 0 | AI77: 0 | AJ77: 0 | AK77: 0 | AL77: 0 | AM77: 0 | AN77: 0 | AO77: 0 | AP77: 0 | AQ77: 0 | AR77: 0 | AS77: 0 | AU77: 250 | AV77: 250 | AW77: 250 | AX77: 250 | AY77: 250 | AZ77: 250 | BA77: 250 | BB77: 250 | BC77: 250 | BD77: 250 | BE77: 250 | BF77: 250 | BH77: 1285 | BI77: 42 | BJ77: 2029-04-07 | BK77: 250 | BL77: 250 | BM77: 250 | BN77: 250 | BO77: 2029-04-07 | BP77: 2029-04-07 | BR77: 280.1569336 | BS77: 250 | BT77: 250 | BU77: 250 | BY77: 250 | BZ77: 250 | CA77: 250 | CB77: 250 | CC77: 250 | CD77: 250 | CE77: 250 | CF77: 250 | CG77: 250 | CH77: 250 | CI77: 250 | CJ77: 250 | CK77: 250 | CL77: 250 | CM77: 250 | CN77: 250 | CO77: 250 | CP77: 250 | CQ77: 250 | CR77: 250 | CS77: 250 | CT77: 250 | CU77: 250 | CV77: 250 | CW77: 250 | CX77: 250 | CY77: 250 | CZ77: 250 | DA77: 250 | DB77: 250 | DC77: 250 | DD77: 250 | DE77: 250 | DF77: 250 | DG77: 250 | DH77: 250 | DI77: 250 | DJ77: 250 | DK77: 250 | DL77: 250 | DM77: 250 | DN77: 250 | DO77: 250 | DP77: 250 | DQ77: 250 | DR77: 250 | DS77: 250 | DT77: 250 | DU77: 250 | DV77: 250 | DW77: 250 | DX77: 250 | DY77: 250 | DZ77: 250 | EA77: 250 | EB77: 0 | EC77: 0 | ED77: 0 | EE77: 0 | EF77: 0 | EG77: 0 | EH77: 0 | EI77: 0 | EJ77: 0 | EK77: 0 | EL77: 0 | EM77: 0 | EN77: 0 | EO77: 0 | EP77: 0 | EQ77: 0 | ER77: 0 | ES77: 0 | ET77: 0 | EU77: 0 | EV77: 0 | EW77: 0 | EX77: 0
A78: 2004-10-12 | B78: terça-feira | C78: Nossa Sr.a Aparecida - Padroeira do Brasil | F78: 1315 | G78: 43 | H78: 2029-05-07 | I78: 250 | J78: 135.5356908 | K78: 135.5356908 | L78: 4.056583226 | S78: 43 | T78: 250 | U78: 126.1418123 | V78: 126.1418123 | W78: 126.1418123 | X78: 126.1418123 | Y78: 126.1418123 | Z78: =$T78/((Z$29)^($H78-$H$35)) -> 126.1418123 | AH78: 0 | AI78: 0 | AJ78: 0 | AK78: 0 | AL78: 0 | AM78: 0 | AN78: 0 | AO78: 0 | AP78: 0 | AQ78: 0 | AR78: 0 | AS78: 0 | AU78: 250 | AV78: 250 | AW78: 250 | AX78: 250 | AY78: 250 | AZ78: 250 | BA78: 250 | BB78: 250 | BC78: 250 | BD78: 250 | BE78: 250 | BF78: 250 | BH78: 1315 | BI78: 43 | BJ78: 2029-05-07 | BK78: 250 | BL78: 250 | BM78: 250 | BN78: 250 | BO78: 2029-05-07 | BP78: 2029-05-07 | BR78: 280.1569336 | BS78: 250 | BT78: 250 | BU78: 250 | BY78: 250 | BZ78: 250 | CA78: 250 | CB78: 250 | CC78: 250 | CD78: 250 | CE78: 250 | CF78: 250 | CG78: 250 | CH78: 250 | CI78: 250 | CJ78: 250 | CK78: 250 | CL78: 250 | CM78: 250 | CN78: 250 | CO78: 250 | CP78: 250 | CQ78: 250 | CR78: 250 | CS78: 250 | CT78: 250 | CU78: 250 | CV78: 250 | CW78: 250 | CX78: 250 | CY78: 250 | CZ78: 250 | DA78: 250 | DB78: 250 | DC78: 250 | DD78: 250 | DE78: 250 | DF78: 250 | DG78: 250 | DH78: 250 | DI78: 250 | DJ78: 250 | DK78: 250 | DL78: 250 | DM78: 250 | DN78: 250 | DO78: 250 | DP78: 250 | DQ78: 250 | DR78: 250 | DS78: 250 | DT78: 250 | DU78: 250 | DV78: 250 | DW78: 250 | DX78: 250 | DY78: 250 | DZ78: 250 | EA78: 0 | EB78: 0 | EC78: 0 | ED78: 0 | EE78: 0 | EF78: 0 | EG78: 0 | EH78: 0 | EI78: 0 | EJ78: 0 | EK78: 0 | EL78: 0 | EM78: 0 | EN78: 0 | EO78: 0 | EP78: 0 | EQ78: 0 | ER78: 0 | ES78: 0 | ET78: 0 | EU78: 0 | EV78: 0 | EW78: 0 | EX78: 0
A79: 2004-11-02 | B79: terça-feira | C79: Finados | F79: 1346 | G79: 44 | H79: 2029-06-07 | I79: 250 | J79: 133.5935931 | K79: 133.5935931 | L79: 3.998456242 | S79: 44 | T79: 250 | U79: 124.1239642 | V79: 124.1239642 | W79: 124.1239642 | X79: 124.1239642 | Y79: 124.1239642 | Z79: 124.1239642 | AH79: 0 | AI79: 0 | AJ79: 0 | AK79: 0 | AL79: 0 | AM79: 0 | AN79: 0 | AO79: 0 | AP79: 0 | AQ79: 0 | AR79: 0 | AS79: 0 | AU79: 250 | AV79: 250 | AW79: 250 | AX79: 250 | AY79: 250 | AZ79: 250 | BA79: 250 | BB79: 250 | BC79: 250 | BD79: 250 | BE79: 250 | BF79: 250 | BH79: 1346 | BI79: 44 | BJ79: 2029-06-07 | BK79: 250 | BL79: 250 | BM79: 250 | BN79: 250 | BO79: 2029-06-07 | BP79: 2029-06-07 | BR79: 280.1569336 | BS79: 250 | BT79: 250 | BU79: 250 | BY79: 250 | BZ79: 250 | CA79: 250 | CB79: 250 | CC79: 250 | CD79: 250 | CE79: 250 | CF79: 250 | CG79: 250 | CH79: 250 | CI79: 250 | CJ79: 250 | CK79: 250 | CL79: 250 | CM79: 250 | CN79: 250 | CO79: 250 | CP79: 250 | CQ79: 250 | CR79: 250 | CS79: 250 | CT79: 250 | CU79: 250 | CV79: 250 | CW79: 250 | CX79: 250 | CY79: 250 | CZ79: 250 | DA79: 250 | DB79: 250 | DC79: 250 | DD79: 250 | DE79: 250 | DF79: 250 | DG79: 250 | DH79: 250 | DI79: 250 | DJ79: 250 | DK79: 250 | DL79: 250 | DM79: 250 | DN79: 250 | DO79: 250 | DP79: 250 | DQ79: 250 | DR79: 250 | DS79: 250 | DT79: 250 | DU79: 250 | DV79: 250 | DW79: 250 | DX79: 250 | DY79: 250 | DZ79: 0 | EA79: 0 | EB79: 0 | EC79: 0 | ED79: 0 | EE79: 0 | EF79: 0 | EG79: 0 | EH79: 0 | EI79: 0 | EJ79: =IF($G79>EJ$33,0,$I$9) -> 0 | EK79: 0 | EL79: 0 | EM79: 0 | EN79: 0 | EO79: 0 | EP79: 0 | EQ79: 0 | ER79: 0 | ES79: 0 | ET79: 0 | EU79: 0 | EV79: 0 | EW79: 0 | EX79: 0
A80: 2004-11-15 | B80: segunda-feira | C80: Proclamação da República | F80: 1376 | G80: 45 | H80: 2029-07-07 | I80: 250 | J80: 131.7406442 | K80: 131.7406442 | L80: 3.942997481 | S80: 45 | T80: 250 | U80: 122.201947 | V80: 122.201947 | W80: 122.201947 | X80: 122.201947 | Y80: 122.201947 | Z80: 122.201947 | AH80: 0 | AI80: 0 | AJ80: 0 | AK80: 0 | AL80: 0 | AM80: 0 | AN80: 0 | AO80: 0 | AP80: 0 | AQ80: 0 | AR80: 0 | AS80: 0 | AU80: 250 | AV80: 250 | AW80: 250 | AX80: 250 | AY80: 250 | AZ80: 250 | BA80: 250 | BB80: 250 | BC80: 250 | BD80: 250 | BE80: 250 | BF80: 250 | BH80: 1376 | BI80: 45 | BJ80: 2029-07-07 | BK80: 250 | BL80: 250 | BM80: 250 | BN80: 250 | BO80: 2029-07-07 | BP80: 2029-07-07 | BR80: 280.1569336 | BS80: 250 | BT80: 250 | BU80: 250 | BY80: 250 | BZ80: 250 | CA80: 250 | CB80: 250 | CC80: 250 | CD80: 250 | CE80: 250 | CF80: 250 | CG80: 250 | CH80: 250 | CI80: 250 | CJ80: 250 | CK80: 250 | CL80: 250 | CM80: 250 | CN80: 250 | CO80: 250 | CP80: 250 | CQ80: 250 | CR80: 250 | CS80: 250 | CT80: 250 | CU80: 250 | CV80: 250 | CW80: 250 | CX80: 250 | CY80: 250 | CZ80: 250 | DA80: 250 | DB80: 250 | DC80: 250 | DD80: 250 | DE80: 250 | DF80: 250 | DG80: 250 | DH80: 250 | DI80: 250 | DJ80: 250 | DK80: 250 | DL80: 250 | DM80: 250 | DN80: 250 | DO80: 250 | DP80: 250 | DQ80: 250 | DR80: 250 | DS80: 250 | DT80: 250 | DU80: 250 | DV80: 250 | DW80: 250 | DX80: 250 | DY80: 0 | DZ80: 0 | EA80: 0 | EB80: 0 | EC80: 0 | ED80: 0 | EE80: 0 | EF80: 0 | EG80: 0 | EH80: 0 | EI80: 0 | EJ80: 0 | EK80: 0 | EL80: 0 | EM80: 0 | EN80: 0 | EO80: 0 | EP80: 0 | EQ80: 0 | ER80: 0 | ES80: 0 | ET80: 0 | EU80: 0 | EV80: 0 | EW80: 0 | EX80: 0
A81: 2004-12-25 | B81: sábado | C81: Natal | F81: 1407 | G81: 46 | H81: 2029-08-07 | I81: 250 | J81: 129.8529259 | K81: 129.8529259 | L81: 3.886498074 | S81: 46 | T81: 250 | U81: 120.2471235 | V81: 120.2471235 | W81: 120.2471235 | X81: 120.2471235 | Y81: 120.2471235 | Z81: 120.2471235 | AH81: 0 | AI81: 0 | AJ81: 0 | AK81: 0 | AL81: 0 | AM81: 0 | AN81: 0 | AO81: 0 | AP81: 0 | AQ81: 0 | AR81: 0 | AS81: 0 | AU81: 250 | AV81: 250 | AW81: 250 | AX81: 250 | AY81: 250 | AZ81: 250 | BA81: 250 | BB81: 250 | BC81: 250 | BD81: 250 | BE81: 250 | BF81: 250 | BH81: 1407 | BI81: 46 | BJ81: 2029-08-07 | BK81: 250 | BL81: 250 | BM81: 250 | BN81: 250 | BO81: 2029-08-07 | BP81: 2029-08-07 | BR81: 280.1569336 | BS81: 250 | BT81: 250 | BU81: 250 | BY81: 250 | BZ81: 250 | CA81: 250 | CB81: 250 | CC81: 250 | CD81: 250 | CE81: 250 | CF81: 250 | CG81: 250 | CH81: 250 | CI81: 250 | CJ81: 250 | CK81: 250 | CL81: 250 | CM81: 250 | CN81: 250 | CO81: 250 | CP81: 250 | CQ81: 250 | CR81: 250 | CS81: 250 | CT81: 250 | CU81: 250 | CV81: 250 | CW81: 250 | CX81: 250 | CY81: 250 | CZ81: 250 | DA81: 250 | DB81: 250 | DC81: 250 | DD81: 250 | DE81: 250 | DF81: 250 | DG81: 250 | DH81: 250 | DI81: 250 | DJ81: 250 | DK81: 250 | DL81: 250 | DM81: 250 | DN81: 250 | DO81: 250 | DP81: 250 | DQ81: 250 | DR81: 250 | DS81: 250 | DT81: 250 | DU81: 250 | DV81: 250 | DW81: 250 | DX81: 0 | DY81: 0 | DZ81: 0 | EA81: 0 | EB81: 0 | EC81: 0 | ED81: 0 | EE81: 0 | EF81: 0 | EG81: 0 | EH81: 0 | EI81: 0 | EJ81: 0 | EK81: 0 | EL81: 0 | EM81: 0 | EN81: 0 | EO81: 0 | EP81: 0 | EQ81: 0 | ER81: 0 | ES81: 0 | ET81: 0 | EU81: 0 | EV81: 0 | EW81: 0 | EX81: 0
A82: 2005-01-01 | B82: sábado | C82: Confraternização Universal | F82: 1438 | G82: 47 | H82: 2029-09-07 | I82: 250 | J82: 127.9922569 | K82: 127.9922569 | L82: 3.830808249 | S82: 47 | T82: 250 | U82: 118.3235707 | V82: 118.3235707 | W82: 118.3235707 | X82: 118.3235707 | Y82: 118.3235707 | Z82: 118.3235707 | AH82: 0 | AI82: 0 | AJ82: 0 | AK82: 0 | AL82: 0 | AM82: 0 | AN82: 0 | AO82: 0 | AP82: 0 | AQ82: 0 | AR82: 0 | AS82: 0 | AU82: 250 | AV82: 250 | AW82: 250 | AX82: 250 | AY82: 250 | AZ82: 250 | BA82: 250 | BB82: 250 | BC82: 250 | BD82: 250 | BE82: 250 | BF82: 250 | BH82: 1438 | BI82: 47 | BJ82: 2029-09-07 | BK82: 250 | BL82: 250 | BM82: 250 | BN82: 250 | BO82: 2029-09-07 | BP82: 2029-09-07 | BR82: 280.1569336 | BS82: 250 | BT82: 250 | BU82: 250 | BY82: 250 | BZ82: 250 | CA82: 250 | CB82: 250 | CC82: 250 | CD82: 250 | CE82: 250 | CF82: 250 | CG82: 250 | CH82: 250 | CI82: 250 | CJ82: 250 | CK82: 250 | CL82: 250 | CM82: 250 | CN82: 250 | CO82: 250 | CP82: 250 | CQ82: 250 | CR82: 250 | CS82: 250 | CT82: 250 | CU82: 250 | CV82: 250 | CW82: 250 | CX82: 250 | CY82: 250 | CZ82: 250 | DA82: 250 | DB82: 250 | DC82: 250 | DD82: 250 | DE82: 250 | DF82: 250 | DG82: 250 | DH82: 250 | DI82: 250 | DJ82: 250 | DK82: 250 | DL82: 250 | DM82: 250 | DN82: 250 | DO82: 250 | DP82: 250 | DQ82: 250 | DR82: 250 | DS82: 250 | DT82: 250 | DU82: 250 | DV82: 250 | DW82: 0 | DX82: 0 | DY82: 0 | DZ82: 0 | EA82: 0 | EB82: 0 | EC82: 0 | ED82: 0 | EE82: 0 | EF82: 0 | EG82: 0 | EH82: 0 | EI82: 0 | EJ82: 0 | EK82: 0 | EL82: 0 | EM82: 0 | EN82: 0 | EO82: 0 | EP82: 0 | EQ82: 0 | ER82: 0 | ES82: 0 | ET82: 0 | EU82: 0 | EV82: 0 | EW82: 0 | EX82: 0
A83: 2005-02-07 | B83: segunda-feira | C83: Carnaval | F83: 1468 | G83: 48 | H83: 2029-10-07 | I83: 250 | J83: 126.2169988 | K83: 126.2169988 | L83: 3.777674773 | S83: 48 | T83: 250 | U83: 116.4913706 | V83: 116.4913706 | W83: 116.4913706 | X83: 116.4913706 | Y83: 116.4913706 | Z83: 116.4913706 | AH83: 0 | AI83: 0 | AJ83: 0 | AK83: 0 | AL83: 0 | AM83: 0 | AN83: 0 | AO83: 0 | AP83: 0 | AQ83: 0 | AR83: 0 | AS83: 0 | AU83: 250 | AV83: 250 | AW83: 250 | AX83: 250 | AY83: 250 | AZ83: 250 | BA83: 250 | BB83: 250 | BC83: 250 | BD83: 250 | BE83: 250 | BF83: 250 | BH83: 1468 | BI83: 48 | BJ83: 2029-10-07 | BK83: 250 | BL83: 250 | BM83: 250 | BN83: 250 | BO83: 2029-10-07 | BP83: 2029-10-07 | BR83: 280.1569336 | BS83: 250 | BT83: 250 | BU83: 250 | BY83: 250 | BZ83: 250 | CA83: 250 | CB83: 250 | CC83: 250 | CD83: 250 | CE83: 250 | CF83: 250 | CG83: 250 | CH83: 250 | CI83: 250 | CJ83: 250 | CK83: 250 | CL83: 250 | CM83: 250 | CN83: 250 | CO83: =IF($G83>CO$33,0,$I$9) -> 250 | CP83: 250 | CQ83: 250 | CR83: 250 | CS83: 250 | CT83: 250 | CU83: 250 | CV83: 250 | CW83: 250 | CX83: 250 | CY83: 250 | CZ83: 250 | DA83: 250 | DB83: 250 | DC83: 250 | DD83: 250 | DE83: 250 | DF83: 250 | DG83: 250 | DH83: 250 | DI83: 250 | DJ83: 250 | DK83: 250 | DL83: 250 | DM83: 250 | DN83: 250 | DO83: 250 | DP83: 250 | DQ83: 250 | DR83: 250 | DS83: 250 | DT83: 250 | DU83: 250 | DV83: 0 | DW83: 0 | DX83: 0 | DY83: 0 | DZ83: 0 | EA83: 0 | EB83: 0 | EC83: 0 | ED83: 0 | EE83: 0 | EF83: 0 | EG83: 0 | EH83: 0 | EI83: 0 | EJ83: 0 | EK83: 0 | EL83: 0 | EM83: 0 | EN83: 0 | EO83: 0 | EP83: 0 | EQ83: 0 | ER83: 0 | ES83: 0 | ET83: 0 | EU83: 0 | EV83: 0 | EW83: 0 | EX83: 0
A84: 2005-02-08 | B84: terça-feira | C84: Carnaval | F84: 1499 | G84: 49 | H84: 2029-11-07 | I84: 250 | J84: 124.4084291 | K84: 124.4084291 | L84: 3.723544282 | S84: 49 | T84: 250 | U84: =$T84/((U$29)^($H84-$H$35)) -> 114.6278974 | V84: 114.6278974 | W84: 114.6278974 | X84: 114.6278974 | Y84: 114.6278974 | Z84: 114.6278974 | AH84: 0 | AI84: 0 | AJ84: 0 | AK84: 0 | AL84: 0 | AM84: 0 | AN84: 0 | AO84: 0 | AP84: 0 | AQ84: 0 | AR84: 0 | AS84: 0 | AU84: =$T84 -> 250 | AV84: 250 | AW84: 250 | AX84: 250 | AY84: 250 | AZ84: 250 | BA84: 250 | BB84: 250 | BC84: 250 | BD84: 250 | BE84: 250 | BF84: 250 | BH84: 1499 | BI84: 49 | BJ84: 2029-11-07 | BK84: 250 | BL84: 250 | BM84: 250 | BN84: 250 | BO84: 2029-11-07 | BP84: 2029-11-07 | BR84: 280.1569336 | BS84: 250 | BT84: 250 | BU84: 250 | BY84: 250 | BZ84: 250 | CA84: 250 | CB84: 250 | CC84: 250 | CD84: 250 | CE84: 250 | CF84: 250 | CG84: 250 | CH84: 250 | CI84: 250 | CJ84: 250 | CK84: 250 | CL84: 250 | CM84: 250 | CN84: 250 | CO84: =IF($G84>CO$33,0,$I$9) -> 250 | CP84: 250 | CQ84: 250 | CR84: 250 | CS84: 250 | CT84: 250 | CU84: 250 | CV84: 250 | CW84: 250 | CX84: 250 | CY84: 250 | CZ84: 250 | DA84: 250 | DB84: 250 | DC84: 250 | DD84: 250 | DE84: 250 | DF84: 250 | DG84: 250 | DH84: 250 | DI84: 250 | DJ84: 250 | DK84: 250 | DL84: 250 | DM84: 250 | DN84: 250 | DO84: 250 | DP84: 250 | DQ84: 250 | DR84: 250 | DS84: 250 | DT84: 250 | DU84: 0 | DV84: 0 | DW84: 0 | DX84: 0 | DY84: 0 | DZ84: 0 | EA84: 0 | EB84: 0 | EC84: 0 | ED84: 0 | EE84: 0 | EF84: 0 | EG84: 0 | EH84: 0 | EI84: 0 | EJ84: 0 | EK84: 0 | EL84: 0 | EM84: =IF($G84>EM$33,0,$I$9) -> 0 | EN84: 0 | EO84: 0 | EP84: 0 | EQ84: 0 | ER84: 0 | ES84: 0 | ET84: 0 | EU84: 0 | EV84: 0 | EW84: 0 | EX84: 0
A85: 2005-03-25 | B85: sexta-feira | C85: Paixão de Cristo | F85: 1529 | G85: 50 | H85: 2029-12-07 | I85: 250 | J85: 122.6828788 | K85: 122.6828788 | L85: 3.671898562 | S85: 50 | T85: 250 | U85: 112.8529235 | V85: 112.8529235 | W85: 112.8529235 | X85: 112.8529235 | Y85: 112.8529235 | Z85: 112.8529235 | AH85: 0 | AI85: 0 | AJ85: 0 | AK85: 0 | AL85: 0 | AM85: 0 | AN85: 0 | AO85: 0 | AP85: 0 | AQ85: 0 | AR85: 0 | AS85: 0 | AU85: 250 | AV85: 250 | AW85: 250 | AX85: 250 | AY85: 250 | AZ85: 250 | BA85: 250 | BB85: 250 | BC85: 250 | BD85: 250 | BE85: 250 | BF85: 250 | BH85: 1529 | BI85: 50 | BJ85: 2029-12-07 | BK85: 250 | BL85: 250 | BM85: 250 | BN85: 250 | BO85: 2029-12-07 | BP85: 2029-12-07 | BR85: 280.1569336 | BS85: 250 | BT85: 250 | BU85: 250 | BY85: =IF($G85>BY$33,0,$I$9) -> 250 | BZ85: 250 | CA85: 250 | CB85: 250 | CC85: 250 | CD85: 250 | CE85: 250 | CF85: 250 | CG85: 250 | CH85: 250 | CI85: 250 | CJ85: 250 | CK85: 250 | CL85: 250 | CM85: 250 | CN85: 250 | CO85: 250 | CP85: 250 | CQ85: 250 | CR85: 250 | CS85: 250 | CT85: 250 | CU85: 250 | CV85: 250 | CW85: 250 | CX85: 250 | CY85: 250 | CZ85: 250 | DA85: 250 | DB85: 250 | DC85: 250 | DD85: 250 | DE85: 250 | DF85: 250 | DG85: 250 | DH85: 250 | DI85: 250 | DJ85: 250 | DK85: 250 | DL85: 250 | DM85: 250 | DN85: 250 | DO85: 250 | DP85: 250 | DQ85: 250 | DR85: 250 | DS85: 250 | DT85: 0 | DU85: 0 | DV85: 0 | DW85: 0 | DX85: 0 | DY85: 0 | DZ85: 0 | EA85: 0 | EB85: 0 | EC85: 0 | ED85: 0 | EE85: 0 | EF85: 0 | EG85: 0 | EH85: 0 | EI85: 0 | EJ85: 0 | EK85: 0 | EL85: 0 | EM85: 0 | EN85: 0 | EO85: 0 | EP85: 0 | EQ85: 0 | ER85: 0 | ES85: 0 | ET85: 0 | EU85: 0 | EV85: 0 | EW85: 0 | EX85: 0
A86: 2005-04-21 | B86: quinta-feira | C86: Tiradentes | F86: 1560 | G86: 51 | H86: 2030-01-07 | I86: 250 | J86: 120.9249497 | K86: 120.9249497 | L86: 3.619283744 | S86: 51 | T86: 250 | U86: 111.0476533 | V86: 111.0476533 | W86: 111.0476533 | X86: 111.0476533 | Y86: 111.0476533 | Z86: 111.0476533 | AH86: 0 | AI86: 0 | AJ86: 0 | AK86: 0 | AL86: 0 | AM86: 0 | AN86: 0 | AO86: 0 | AP86: 0 | AQ86: 0 | AR86: 0 | AS86: 0 | AU86: 250 | AV86: 250 | AW86: 250 | AX86: 250 | AY86: 250 | AZ86: 250 | BA86: 250 | BB86: 250 | BC86: 250 | BD86: 250 | BE86: 250 | BF86: 250 | BH86: 1560 | BI86: 51 | BJ86: 2030-01-07 | BK86: 250 | BL86: 250 | BM86: 250 | BN86: 250 | BO86: 2030-01-07 | BP86: 2030-01-07 | BR86: 280.1569336 | BS86: 250 | BT86: 250 | BU86: 250 | BY86: 250 | BZ86: 250 | CA86: 250 | CB86: 250 | CC86: 250 | CD86: 250 | CE86: 250 | CF86: 250 | CG86: 250 | CH86: 250 | CI86: 250 | CJ86: 250 | CK86: 250 | CL86: 250 | CM86: 250 | CN86: 250 | CO86: 250 | CP86: 250 | CQ86: 250 | CR86: 250 | CS86: 250 | CT86: 250 | CU86: 250 | CV86: 250 | CW86: 250 | CX86: 250 | CY86: 250 | CZ86: 250 | DA86: 250 | DB86: 250 | DC86: 250 | DD86: 250 | DE86: 250 | DF86: 250 | DG86: 250 | DH86: 250 | DI86: 250 | DJ86: 250 | DK86: 250 | DL86: 250 | DM86: 250 | DN86: 250 | DO86: 250 | DP86: 250 | DQ86: 250 | DR86: 250 | DS86: 0 | DT86: 0 | DU86: 0 | DV86: 0 | DW86: 0 | DX86: 0 | DY86: 0 | DZ86: 0 | EA86: 0 | EB86: 0 | EC86: 0 | ED86: 0 | EE86: 0 | EF86: 0 | EG86: 0 | EH86: 0 | EI86: 0 | EJ86: 0 | EK86: 0 | EL86: 0 | EM86: 0 | EN86: 0 | EO86: 0 | EP86: 0 | EQ86: 0 | ER86: 0 | ES86: 0 | ET86: 0 | EU86: 0 | EV86: 0 | EW86: 0 | EX86: 0
A87: 2005-05-01 | B87: domingo | C87: Dia do Trabalho | F87: 1591 | G87: 52 | H87: 2030-02-07 | I87: 250 | J87: 119.1922101 | K87: 119.1922101 | L87: 3.567422847 | S87: 52 | T87: 250 | U87: 109.2712613 | V87: 109.2712613 | W87: 109.2712613 | X87: 109.2712613 | Y87: 109.2712613 | Z87: 109.2712613 | AH87: 0 | AI87: 0 | AJ87: 0 | AK87: 0 | AL87: 0 | AM87: 0 | AN87: 0 | AO87: 0 | AP87: 0 | AQ87: 0 | AR87: 0 | AS87: 0 | AU87: 250 | AV87: 250 | AW87: 250 | AX87: 250 | AY87: 250 | AZ87: 250 | BA87: 250 | BB87: 250 | BC87: 250 | BD87: 250 | BE87: 250 | BF87: 250 | BH87: 1591 | BI87: 52 | BJ87: 2030-02-07 | BK87: 250 | BL87: 250 | BM87: 250 | BN87: 250 | BO87: 2030-02-07 | BP87: 2030-02-07 | BR87: 280.1569336 | BS87: 250 | BT87: 250 | BU87: 250 | BY87: 250 | BZ87: 250 | CA87: 250 | CB87: 250 | CC87: 250 | CD87: 250 | CE87: 250 | CF87: 250 | CG87: 250 | CH87: 250 | CI87: 250 | CJ87: 250 | CK87: 250 | CL87: 250 | CM87: 250 | CN87: 250 | CO87: 250 | CP87: 250 | CQ87: 250 | CR87: 250 | CS87: 250 | CT87: 250 | CU87: 250 | CV87: 250 | CW87: 250 | CX87: 250 | CY87: 250 | CZ87: 250 | DA87: 250 | DB87: 250 | DC87: 250 | DD87: 250 | DE87: 250 | DF87: 250 | DG87: 250 | DH87: 250 | DI87: 250 | DJ87: 250 | DK87: 250 | DL87: 250 | DM87: 250 | DN87: 250 | DO87: 250 | DP87: 250 | DQ87: 250 | DR87: 0 | DS87: 0 | DT87: 0 | DU87: 0 | DV87: 0 | DW87: 0 | DX87: 0 | DY87: 0 | DZ87: 0 | EA87: 0 | EB87: 0 | EC87: 0 | ED87: 0 | EE87: 0 | EF87: 0 | EG87: 0 | EH87: 0 | EI87: 0 | EJ87: 0 | EK87: 0 | EL87: 0 | EM87: 0 | EN87: 0 | EO87: 0 | EP87: 0 | EQ87: 0 | ER87: 0 | ES87: 0 | ET87: 0 | EU87: 0 | EV87: 0 | EW87: 0 | EX87: 0
A88: 2005-05-26 | B88: quinta-feira | C88: Corpus Christi | F88: 1619 | G88: 53 | H88: 2030-03-07 | I88: 250 | J88: 117.6485054 | K88: 117.6485054 | L88: 3.521219768 | S88: 53 | T88: 250 | U88: 107.6912154 | V88: 107.6912154 | W88: 107.6912154 | X88: 107.6912154 | Y88: 107.6912154 | Z88: 107.6912154 | AH88: 0 | AI88: 0 | AJ88: 0 | AK88: 0 | AL88: 0 | AM88: 0 | AN88: 0 | AO88: 0 | AP88: 0 | AQ88: 0 | AR88: 0 | AS88: 0 | AU88: 250 | AV88: 250 | AW88: 250 | AX88: 250 | AY88: 250 | AZ88: 250 | BA88: 250 | BB88: 250 | BC88: 250 | BD88: 250 | BE88: 250 | BF88: 250 | BH88: 1619 | BI88: 53 | BJ88: 2030-03-07 | BK88: 250 | BL88: 250 | BM88: 250 | BN88: 250 | BO88: 2030-03-07 | BP88: 2030-03-07 | BR88: 280.1569336 | BS88: 250 | BT88: 250 | BU88: 250 | BY88: 250 | BZ88: 250 | CA88: 250 | CB88: 250 | CC88: 250 | CD88: 250 | CE88: 250 | CF88: 250 | CG88: 250 | CH88: 250 | CI88: 250 | CJ88: 250 | CK88: 250 | CL88: 250 | CM88: 250 | CN88: 250 | CO88: 250 | CP88: 250 | CQ88: 250 | CR88: 250 | CS88: 250 | CT88: 250 | CU88: 250 | CV88: 250 | CW88: 250 | CX88: 250 | CY88: 250 | CZ88: 250 | DA88: 250 | DB88: 250 | DC88: 250 | DD88: 250 | DE88: 250 | DF88: 250 | DG88: 250 | DH88: 250 | DI88: 250 | DJ88: 250 | DK88: 250 | DL88: 250 | DM88: 250 | DN88: 250 | DO88: 250 | DP88: 250 | DQ88: 0 | DR88: 0 | DS88: 0 | DT88: 0 | DU88: 0 | DV88: 0 | DW88: 0 | DX88: 0 | DY88: 0 | DZ88: 0 | EA88: 0 | EB88: 0 | EC88: 0 | ED88: 0 | EE88: 0 | EF88: 0 | EG88: 0 | EH88: 0 | EI88: 0 | EJ88: 0 | EK88: 0 | EL88: 0 | EM88: 0 | EN88: 0 | EO88: 0 | EP88: 0 | EQ88: 0 | ER88: 0 | ES88: 0 | ET88: 0 | EU88: 0 | EV88: 0 | EW88: 0 | EX88: 0
A89: 2005-09-07 | B89: quarta-feira | C89: Independência do Brasil | F89: 1650 | G89: 54 | H89: 2030-04-07 | I89: 250 | J89: 115.9627141 | K89: 115.9627141 | L89: 3.470764034 | S89: 54 | T89: 250 | U89: 105.9685152 | V89: 105.9685152 | W89: 105.9685152 | X89: 105.9685152 | Y89: 105.9685152 | Z89: 105.9685152 | AH89: 0 | AI89: 0 | AJ89: 0 | AK89: 0 | AL89: 0 | AM89: 0 | AN89: 0 | AO89: 0 | AP89: 0 | AQ89: 0 | AR89: 0 | AS89: 0 | AU89: 250 | AV89: 250 | AW89: 250 | AX89: 250 | AY89: 250 | AZ89: 250 | BA89: 250 | BB89: 250 | BC89: 250 | BD89: 250 | BE89: 250 | BF89: 250 | BH89: 1650 | BI89: 54 | BJ89: 2030-04-07 | BK89: 250 | BL89: 250 | BM89: 250 | BN89: 250 | BO89: 2030-04-07 | BP89: 2030-04-07 | BR89: 280.1569336 | BS89: 250 | BT89: 250 | BU89: 250 | BY89: 250 | BZ89: 250 | CA89: 250 | CB89: 250 | CC89: 250 | CD89: 250 | CE89: 250 | CF89: 250 | CG89: 250 | CH89: 250 | CI89: 250 | CJ89: 250 | CK89: 250 | CL89: 250 | CM89: 250 | CN89: 250 | CO89: 250 | CP89: 250 | CQ89: 250 | CR89: 250 | CS89: 250 | CT89: 250 | CU89: 250 | CV89: 250 | CW89: 250 | CX89: 250 | CY89: 250 | CZ89: 250 | DA89: 250 | DB89: 250 | DC89: 250 | DD89: 250 | DE89: 250 | DF89: 250 | DG89: 250 | DH89: 250 | DI89: 250 | DJ89: 250 | DK89: 250 | DL89: 250 | DM89: 250 | DN89: 250 | DO89: 250 | DP89: 0 | DQ89: 0 | DR89: 0 | DS89: 0 | DT89: 0 | DU89: 0 | DV89: 0 | DW89: 0 | DX89: 0 | DY89: 0 | DZ89: 0 | EA89: 0 | EB89: 0 | EC89: =IF($G89>EC$33,0,$I$9) -> 0 | ED89: 0 | EE89: 0 | EF89: 0 | EG89: 0 | EH89: 0 | EI89: 0 | EJ89: 0 | EK89: 0 | EL89: 0 | EM89: 0 | EN89: 0 | EO89: 0 | EP89: 0 | EQ89: 0 | ER89: 0 | ES89: 0 | ET89: 0 | EU89: 0 | EV89: 0 | EW89: 0 | EX89: 0
A90: 2005-10-12 | B90: quarta-feira | C90: Nossa Sr.a Aparecida - Padroeira do Brasil | F90: 1680 | G90: 55 | H90: 2030-05-07 | I90: 250 | J90: 114.3543063 | K90: 114.3543063 | L90: 3.422624387 | S90: 55 | T90: 250 | U90: 104.3276289 | V90: 104.3276289 | W90: 104.3276289 | X90: 104.3276289 | Y90: 104.3276289 | Z90: 104.3276289 | AH90: 0 | AI90: 0 | AJ90: 0 | AK90: 0 | AL90: 0 | AM90: 0 | AN90: 0 | AO90: 0 | AP90: 0 | AQ90: 0 | AR90: 0 | AS90: 0 | AU90: 250 | AV90: 250 | AW90: 250 | AX90: 250 | AY90: 250 | AZ90: 250 | BA90: 250 | BB90: 250 | BC90: 250 | BD90: 250 | BE90: 250 | BF90: 250 | BH90: 1680 | BI90: 55 | BJ90: 2030-05-07 | BK90: 250 | BL90: 250 | BM90: 250 | BN90: 250 | BO90: 2030-05-07 | BP90: 2030-05-07 | BR90: 280.1569336 | BS90: 250 | BT90: 250 | BU90: 250 | BY90: 250 | BZ90: 250 | CA90: 250 | CB90: 250 | CC90: 250 | CD90: 250 | CE90: 250 | CF90: 250 | CG90: 250 | CH90: 250 | CI90: 250 | CJ90: 250 | CK90: 250 | CL90: 250 | CM90: 250 | CN90: 250 | CO90: 250 | CP90: 250 | CQ90: 250 | CR90: 250 | CS90: 250 | CT90: 250 | CU90: 250 | CV90: 250 | CW90: 250 | CX90: 250 | CY90: 250 | CZ90: 250 | DA90: 250 | DB90: 250 | DC90: 250 | DD90: 250 | DE90: 250 | DF90: 250 | DG90: 250 | DH90: 250 | DI90: 250 | DJ90: 250 | DK90: 250 | DL90: 250 | DM90: 250 | DN90: 250 | DO90: 0 | DP90: 0 | DQ90: 0 | DR90: 0 | DS90: 0 | DT90: 0 | DU90: 0 | DV90: 0 | DW90: 0 | DX90: 0 | DY90: 0 | DZ90: 0 | EA90: 0 | EB90: 0 | EC90: 0 | ED90: 0 | EE90: 0 | EF90: 0 | EG90: 0 | EH90: 0 | EI90: 0 | EJ90: 0 | EK90: 0 | EL90: 0 | EM90: 0 | EN90: 0 | EO90: 0 | EP90: 0 | EQ90: 0 | ER90: 0 | ES90: 0 | ET90: 0 | EU90: 0 | EV90: 0 | EW90: 0 | EX90: 0
A91: 2005-11-02 | B91: quarta-feira | C91: Finados | F91: 1711 | G91: 56 | H91: 2030-06-07 | I91: 250 | J91: 112.7157177 | K91: 112.7157177 | L91: 3.373581431 | S91: 56 | T91: 250 | U91: 102.6587349 | V91: 102.6587349 | W91: 102.6587349 | X91: 102.6587349 | Y91: 102.6587349 | Z91: 102.6587349 | AH91: 0 | AI91: 0 | AJ91: 0 | AK91: 0 | AL91: 0 | AM91: 0 | AN91: 0 | AO91: 0 | AP91: 0 | AQ91: 0 | AR91: 0 | AS91: 0 | AU91: 250 | AV91: 250 | AW91: 250 | AX91: 250 | AY91: 250 | AZ91: 250 | BA91: 250 | BB91: 250 | BC91: 250 | BD91: 250 | BE91: 250 | BF91: 250 | BH91: 1711 | BI91: 56 | BJ91: 2030-06-07 | BK91: 250 | BL91: 250 | BM91: 250 | BN91: 250 | BO91: 2030-06-07 | BP91: 2030-06-07 | BR91: 280.1569336 | BS91: 250 | BT91: 250 | BU91: 250 | BY91: 250 | BZ91: 250 | CA91: 250 | CB91: 250 | CC91: 250 | CD91: 250 | CE91: 250 | CF91: 250 | CG91: 250 | CH91: 250 | CI91: 250 | CJ91: 250 | CK91: 250 | CL91: 250 | CM91: 250 | CN91: 250 | CO91: 250 | CP91: 250 | CQ91: 250 | CR91: 250 | CS91: 250 | CT91: 250 | CU91: 250 | CV91: 250 | CW91: 250 | CX91: 250 | CY91: 250 | CZ91: 250 | DA91: 250 | DB91: 250 | DC91: 250 | DD91: 250 | DE91: 250 | DF91: 250 | DG91: 250 | DH91: 250 | DI91: 250 | DJ91: 250 | DK91: 250 | DL91: 250 | DM91: 250 | DN91: 0 | DO91: 0 | DP91: 0 | DQ91: 0 | DR91: 0 | DS91: 0 | DT91: 0 | DU91: 0 | DV91: 0 | DW91: 0 | DX91: 0 | DY91: 0 | DZ91: 0 | EA91: 0 | EB91: 0 | EC91: 0 | ED91: 0 | EE91: 0 | EF91: 0 | EG91: 0 | EH91: 0 | EI91: 0 | EJ91: 0 | EK91: 0 | EL91: 0 | EM91: 0 | EN91: 0 | EO91: 0 | EP91: 0 | EQ91: 0 | ER91: 0 | ES91: 0 | ET91: 0 | EU91: 0 | EV91: 0 | EW91: 0 | EX91: 0
A92: 2005-11-15 | B92: terça-feira | C92: Proclamação da República | F92: 1741 | G92: 57 | H92: 2030-07-07 | I92: 250 | J92: 111.1523458 | K92: 111.1523458 | L92: 3.326789711 | S92: 57 | T92: 250 | U92: 101.0690995 | V92: 101.0690995 | W92: 101.0690995 | X92: 101.0690995 | Y92: 101.0690995 | Z92: 101.0690995 | AH92: 0 | AI92: 0 | AJ92: 0 | AK92: 0 | AL92: 0 | AM92: 0 | AN92: 0 | AO92: 0 | AP92: 0 | AQ92: 0 | AR92: 0 | AS92: 0 | AU92: 250 | AV92: 250 | AW92: 250 | AX92: 250 | AY92: 250 | AZ92: 250 | BA92: 250 | BB92: 250 | BC92: 250 | BD92: 250 | BE92: 250 | BF92: 250 | BH92: 1741 | BI92: 57 | BJ92: 2030-07-07 | BK92: 250 | BL92: 250 | BM92: 250 | BN92: 250 | BO92: 2030-07-07 | BP92: 2030-07-07 | BR92: 280.1569336 | BS92: 250 | BT92: 250 | BU92: 250 | BY92: 250 | BZ92: 250 | CA92: 250 | CB92: 250 | CC92: 250 | CD92: 250 | CE92: 250 | CF92: 250 | CG92: 250 | CH92: 250 | CI92: 250 | CJ92: 250 | CK92: 250 | CL92: 250 | CM92: 250 | CN92: 250 | CO92: 250 | CP92: 250 | CQ92: 250 | CR92: 250 | CS92: 250 | CT92: 250 | CU92: 250 | CV92: 250 | CW92: 250 | CX92: 250 | CY92: 250 | CZ92: 250 | DA92: 250 | DB92: 250 | DC92: 250 | DD92: 250 | DE92: 250 | DF92: 250 | DG92: 250 | DH92: 250 | DI92: 250 | DJ92: 250 | DK92: 250 | DL92: 250 | DM92: 0 | DN92: 0 | DO92: 0 | DP92: 0 | DQ92: 0 | DR92: 0 | DS92: 0 | DT92: 0 | DU92: 0 | DV92: 0 | DW92: 0 | DX92: 0 | DY92: 0 | DZ92: 0 | EA92: 0 | EB92: 0 | EC92: 0 | ED92: 0 | EE92: 0 | EF92: 0 | EG92: 0 | EH92: 0 | EI92: 0 | EJ92: 0 | EK92: 0 | EL92: 0 | EM92: 0 | EN92: 0 | EO92: 0 | EP92: 0 | EQ92: 0 | ER92: 0 | ES92: 0 | ET92: 0 | EU92: 0 | EV92: 0 | EW92: 0 | EX92: 0
A93: 2005-12-25 | B93: domingo | C93: Natal | F93: 1772 | G93: 58 | H93: 2030-08-07 | I93: 250 | J93: 109.5596383 | K93: 109.5596383 | L93: 3.279119975 | S93: 58 | T93: 250 | U93: 99.45233108 | V93: 99.45233108 | W93: 99.45233108 | X93: 99.45233108 | Y93: 99.45233108 | Z93: 99.45233108 | AH93: 0 | AI93: 0 | AJ93: 0 | AK93: 0 | AL93: 0 | AM93: 0 | AN93: 0 | AO93: 0 | AP93: 0 | AQ93: 0 | AR93: 0 | AS93: 0 | AU93: 250 | AV93: 250 | AW93: 250 | AX93: 250 | AY93: 250 | AZ93: 250 | BA93: 250 | BB93: 250 | BC93: 250 | BD93: 250 | BE93: 250 | BF93: 250 | BH93: 1772 | BI93: 58 | BJ93: 2030-08-07 | BK93: 250 | BL93: 250 | BM93: 250 | BN93: 250 | BO93: 2030-08-07 | BP93: 2030-08-07 | BR93: 280.1569336 | BS93: 250 | BT93: 250 | BU93: 250 | BY93: 250 | BZ93: 250 | CA93: 250 | CB93: 250 | CC93: 250 | CD93: 250 | CE93: 250 | CF93: 250 | CG93: 250 | CH93: 250 | CI93: 250 | CJ93: 250 | CK93: 250 | CL93: 250 | CM93: 250 | CN93: 250 | CO93: 250 | CP93: 250 | CQ93: 250 | CR93: 250 | CS93: 250 | CT93: 250 | CU93: 250 | CV93: 250 | CW93: 250 | CX93: 250 | CY93: 250 | CZ93: 250 | DA93: 250 | DB93: 250 | DC93: 250 | DD93: 250 | DE93: 250 | DF93: 250 | DG93: 250 | DH93: 250 | DI93: 250 | DJ93: 250 | DK93: 250 | DL93: 0 | DM93: 0 | DN93: 0 | DO93: 0 | DP93: 0 | DQ93: 0 | DR93: 0 | DS93: 0 | DT93: 0 | DU93: 0 | DV93: 0 | DW93: 0 | DX93: 0 | DY93: 0 | DZ93: 0 | EA93: 0 | EB93: 0 | EC93: 0 | ED93: 0 | EE93: 0 | EF93: 0 | EG93: 0 | EH93: 0 | EI93: 0 | EJ93: 0 | EK93: 0 | EL93: 0 | EM93: 0 | EN93: 0 | EO93: 0 | EP93: 0 | EQ93: 0 | ER93: 0 | ES93: 0 | ET93: 0 | EU93: 0 | EV93: 0 | EW93: 0 | EX93: 0
A94: 2006-01-01 | B94: domingo | C94: Confraternização Universal | F94: 1803 | G94: 59 | H94: 2030-09-07 | I94: 250 | J94: 107.9897528 | K94: 107.9897528 | L94: 3.232133301 | S94: 59 | T94: 250 | U94: 97.86142559 | V94: 97.86142559 | W94: 97.86142559 | X94: 97.86142559 | Y94: 97.86142559 | Z94: =$T94/((Z$29)^($H94-$H$35)) -> 97.86142559 | AH94: 0 | AI94: 0 | AJ94: 0 | AK94: 0 | AL94: 0 | AM94: 0 | AN94: 0 | AO94: 0 | AP94: 0 | AQ94: 0 | AR94: 0 | AS94: 0 | AU94: 250 | AV94: 250 | AW94: 250 | AX94: 250 | AY94: 250 | AZ94: 250 | BA94: 250 | BB94: 250 | BC94: 250 | BD94: 250 | BE94: 250 | BF94: 250 | BH94: 1803 | BI94: 59 | BJ94: 2030-09-07 | BK94: 250 | BL94: 250 | BM94: 250 | BN94: 0 | BO94: 2030-09-07 | BP94: 2030-09-07 | BR94: 280.1569336 | BS94: 250 | BT94: 250 | BU94: 250 | BY94: 250 | BZ94: 250 | CA94: 250 | CB94: 250 | CC94: 250 | CD94: 250 | CE94: 250 | CF94: 250 | CG94: 250 | CH94: 250 | CI94: 250 | CJ94: 250 | CK94: 250 | CL94: 250 | CM94: 250 | CN94: 250 | CO94: 250 | CP94: 250 | CQ94: 250 | CR94: 250 | CS94: 250 | CT94: 250 | CU94: 250 | CV94: 250 | CW94: 250 | CX94: 250 | CY94: 250 | CZ94: 250 | DA94: 250 | DB94: 250 | DC94: 250 | DD94: 250 | DE94: 250 | DF94: 250 | DG94: 250 | DH94: 250 | DI94: 250 | DJ94: 250 | DK94: 0 | DL94: 0 | DM94: 0 | DN94: 0 | DO94: 0 | DP94: 0 | DQ94: 0 | DR94: 0 | DS94: =IF($G94>DS$33,0,$I$9) -> 0 | DT94: 0 | DU94: 0 | DV94: 0 | DW94: 0 | DX94: 0 | DY94: 0 | DZ94: 0 | EA94: 0 | EB94: 0 | EC94: 0 | ED94: 0 | EE94: 0 | EF94: 0 | EG94: 0 | EH94: 0 | EI94: 0 | EJ94: 0 | EK94: 0 | EL94: 0 | EM94: 0 | EN94: 0 | EO94: 0 | EP94: 0 | EQ94: 0 | ER94: 0 | ES94: 0 | ET94: 0 | EU94: 0 | EV94: 0 | EW94: 0 | EX94: 0
A95: 2006-02-27 | B95: segunda-feira | C95: Carnaval | F95: 1833 | G95: 60 | H95: 2030-10-07 | I95: 250 | J95: 106.4919303 | K95: 106.4919303 | L95: 3.187303473 | S95: 60 | T95: 250 | U95: 96.34607482 | V95: 96.34607482 | W95: 96.34607482 | X95: 96.34607482 | Y95: 96.34607482 | Z95: 96.34607482 | AH95: 0 | AI95: 0 | AJ95: 0 | AK95: 0 | AL95: 0 | AM95: 0 | AN95: 0 | AO95: 0 | AP95: 0 | AQ95: 0 | AR95: 0 | AS95: 0 | AU95: 250 | AV95: 250 | AW95: 250 | AX95: 250 | AY95: 250 | AZ95: 250 | BA95: 250 | BB95: 250 | BC95: 250 | BD95: 250 | BE95: 250 | BF95: 250 | BH95: 1833 | BI95: 60 | BJ95: 2030-10-07 | BK95: 250 | BL95: 250 | BM95: 0 | BN95: 0 | BO95: 2030-10-07 | BP95: 2030-10-07 | BR95: 280.1569336 | BS95: 250 | BT95: 250 | BU95: 250 | BY95: 250 | BZ95: 250 | CA95: 250 | CB95: 250 | CC95: 250 | CD95: 250 | CE95: 250 | CF95: 250 | CG95: 250 | CH95: 250 | CI95: 250 | CJ95: 250 | CK95: 250 | CL95: 250 | CM95: 250 | CN95: 250 | CO95: 250 | CP95: 250 | CQ95: 250 | CR95: 250 | CS95: 250 | CT95: 250 | CU95: 250 | CV95: 250 | CW95: 250 | CX95: 250 | CY95: 250 | CZ95: 250 | DA95: 250 | DB95: 250 | DC95: 250 | DD95: 250 | DE95: 250 | DF95: 250 | DG95: 250 | DH95: 250 | DI95: 250 | DJ95: 0 | DK95: 0 | DL95: 0 | DM95: 0 | DN95: 0 | DO95: 0 | DP95: 0 | DQ95: 0 | DR95: 0 | DS95: 0 | DT95: 0 | DU95: 0 | DV95: 0 | DW95: 0 | DX95: 0 | DY95: 0 | DZ95: 0 | EA95: 0 | EB95: 0 | EC95: 0 | ED95: 0 | EE95: 0 | EF95: 0 | EG95: 0 | EH95: 0 | EI95: 0 | EJ95: 0 | EK95: 0 | EL95: 0 | EM95: 0 | EN95: 0 | EO95: 0 | EP95: 0 | EQ95: 0 | ER95: 0 | ES95: 0 | ET95: 0 | EU95: 0 | EV95: 0 | EW95: 0 | EX95: 0
A96: 2006-02-28 | B96: terça-feira | C96: Carnaval | F96: 1864 | G96: 61 | H96: 2030-11-07 | I96: 0 | J96: 0 | K96: 0 | L96: 0 | S96: 61 | T96: 250 | U96: 94.80485907 | V96: 94.80485907 | W96: 94.80485907 | X96: 94.80485907 | Y96: 94.80485907 | Z96: 94.80485907 | AH96: 2.837509432 | AI96: 2.837509432 | AJ96: 2.837509432 | AK96: 2.837509432 | AL96: 2.837509432 | AM96: 2.837509432 | AU96: 250 | AV96: 250 | AW96: 250 | AX96: 250 | AY96: 250 | AZ96: 250 | BA96: 250 | BB96: 250 | BC96: 250 | BD96: 250 | BE96: 250 | BF96: 250 | BH96: 1864 | BI96: 61 | BJ96: 2030-11-07 | BK96: 250 | BL96: 250 | BM96: 0 | BN96: 0 | BO96: 2030-11-07 | BP96: 2030-11-07 | BR96: 0 | BS96: 0 | BT96: 0 | BU96: 0 | BY96: 250 | BZ96: 250 | CA96: 250 | CB96: 250 | CC96: 250 | CD96: 250 | CE96: 250 | CF96: 250 | CG96: 250 | CH96: 250 | CI96: 250 | CJ96: 250 | CK96: 250 | CL96: 250 | CM96: 250 | CN96: 250 | CO96: 250 | CP96: 250 | CQ96: 250 | CR96: 250 | CS96: 250 | CT96: 250 | CU96: 250 | CV96: 250 | CW96: 250 | CX96: 250 | CY96: 250 | CZ96: 250 | DA96: 250 | DB96: 250 | DC96: 250 | DD96: 250 | DE96: 250 | DF96: 250 | DG96: 250 | DH96: 250 | DI96: 0 | DJ96: 0 | DK96: 0 | DL96: 0 | DM96: 0 | DN96: 0 | DO96: 0 | DP96: 0 | DQ96: 0 | DR96: 0 | DS96: 0 | DT96: 0 | DU96: 0 | DV96: 0 | DW96: 0 | DX96: 0 | DY96: 0 | DZ96: 0 | EA96: 0 | EB96: 0 | EC96: 0 | ED96: 0 | EE96: 0 | EF96: 0 | EG96: 0 | EH96: 0 | EI96: 0 | EJ96: 0 | EK96: 0 | EL96: 0 | EM96: 0 | EN96: 0 | EO96: 0 | EP96: 0 | EQ96: 0 | ER96: 0 | ES96: 0 | ET96: 0 | EU96: 0 | EV96: 0 | EW96: 0 | EX96: 0
A97: 2006-04-14 | B97: sexta-feira | C97: Paixão de Cristo | F97: 1894 | G97: 62 | H97: 2030-12-07 | I97: 0 | J97: 0 | K97: 0 | L97: 0 | S97: 62 | T97: 250 | U97: 93.33683819 | V97: 93.33683819 | W97: 93.33683819 | X97: 93.33683819 | Y97: 93.33683819 | Z97: 93.33683819 | AH97: 2.793571567 | AI97: 2.793571567 | AJ97: 2.793571567 | AK97: 2.793571567 | AL97: 2.793571567 | AM97: 2.793571567 | AU97: 250 | AV97: 250 | AW97: 250 | AX97: 250 | AY97: 250 | AZ97: 250 | BA97: 250 | BB97: 250 | BC97: 250 | BD97: 250 | BE97: 250 | BF97: 250 | BH97: 1894 | BI97: 62 | BJ97: 2030-12-07 | BK97: 0 | BL97: 250 | BM97: 0 | BN97: 0 | BO97: 2030-12-07 | BP97: 2030-12-07 | BR97: 0 | BS97: 0 | BT97: 0 | BU97: 0 | BY97: 250 | BZ97: 250 | CA97: 250 | CB97: 250 | CC97: 250 | CD97: 250 | CE97: 250 | CF97: 250 | CG97: 250 | CH97: 250 | CI97: 250 | CJ97: 250 | CK97: 250 | CL97: 250 | CM97: 250 | CN97: 250 | CO97: 250 | CP97: 250 | CQ97: 250 | CR97: 250 | CS97: 250 | CT97: 250 | CU97: 250 | CV97: 250 | CW97: 250 | CX97: 250 | CY97: 250 | CZ97: 250 | DA97: 250 | DB97: 250 | DC97: 250 | DD97: 250 | DE97: 250 | DF97: 250 | DG97: 250 | DH97: 0 | DI97: 0 | DJ97: 0 | DK97: 0 | DL97: 0 | DM97: 0 | DN97: 0 | DO97: 0 | DP97: 0 | DQ97: 0 | DR97: 0 | DS97: 0 | DT97: 0 | DU97: 0 | DV97: 0 | DW97: 0 | DX97: 0 | DY97: 0 | DZ97: 0 | EA97: 0 | EB97: 0 | EC97: 0 | ED97: 0 | EE97: 0 | EF97: 0 | EG97: 0 | EH97: 0 | EI97: 0 | EJ97: 0 | EK97: 0 | EL97: 0 | EM97: 0 | EN97: 0 | EO97: 0 | EP97: 0 | EQ97: 0 | ER97: 0 | ES97: 0 | ET97: 0 | EU97: 0 | EV97: 0 | EW97: 0 | EX97: 0
A98: 2006-04-21 | B98: sexta-feira | C98: Tiradentes | F98: 1925 | G98: 63 | H98: 2031-01-07 | I98: 0 | J98: 0 | K98: 0 | L98: 0 | S98: 63 | T98: 250 | U98: 91.84376019 | V98: 91.84376019 | W98: 91.84376019 | X98: 91.84376019 | Y98: 91.84376019 | Z98: 91.84376019 | AH98: 2.748883742 | AI98: 2.748883742 | AJ98: 2.748883742 | AK98: 2.748883742 | AL98: 2.748883742 | AM98: 2.748883742 | AU98: 250 | AV98: 250 | AW98: 250 | AX98: 250 | AY98: 250 | AZ98: 250 | BA98: 250 | BB98: 250 | BC98: 250 | BD98: 250 | BE98: 250 | BF98: 250 | BH98: 1925 | BI98: 63 | BJ98: 2031-01-07 | BK98: 0 | BL98: 0 | BM98: 0 | BN98: 0 | BO98: 2031-01-07 | BP98: 2031-01-07 | BR98: 0 | BS98: 0 | BT98: 0 | BU98: 0 | BY98: 250 | BZ98: 250 | CA98: 250 | CB98: 250 | CC98: 250 | CD98: 250 | CE98: 250 | CF98: 250 | CG98: 250 | CH98: 250 | CI98: 250 | CJ98: 250 | CK98: 250 | CL98: 250 | CM98: 250 | CN98: 250 | CO98: 250 | CP98: 250 | CQ98: 250 | CR98: 250 | CS98: 250 | CT98: 250 | CU98: 250 | CV98: 250 | CW98: 250 | CX98: 250 | CY98: 250 | CZ98: 250 | DA98: 250 | DB98: 250 | DC98: 250 | DD98: 250 | DE98: 250 | DF98: 250 | DG98: 0 | DH98: 0 | DI98: 0 | DJ98: 0 | DK98: 0 | DL98: 0 | DM98: 0 | DN98: 0 | DO98: 0 | DP98: 0 | DQ98: 0 | DR98: 0 | DS98: 0 | DT98: 0 | DU98: 0 | DV98: 0 | DW98: 0 | DX98: 0 | DY98: 0 | DZ98: 0 | EA98: 0 | EB98: 0 | EC98: 0 | ED98: 0 | EE98: 0 | EF98: 0 | EG98: 0 | EH98: 0 | EI98: 0 | EJ98: 0 | EK98: 0 | EL98: 0 | EM98: 0 | EN98: 0 | EO98: 0 | EP98: 0 | EQ98: 0 | ER98: 0 | ES98: 0 | ET98: 0 | EU98: 0 | EV98: 0 | EW98: 0 | EX98: 0
A99: 2006-05-01 | B99: segunda-feira | C99: Dia do Trabalho | F99: 1956 | G99: 64 | H99: 2031-02-07 | I99: 0 | J99: 0 | K99: 0 | L99: 0 | S99: =S98+1 -> 64 | T99: 250 | U99: 90.37456645 | V99: 90.37456645 | W99: 90.37456645 | X99: 90.37456645 | Y99: 90.37456645 | Z99: 90.37456645 | AH99: 2.704910774 | AI99: 2.704910774 | AJ99: 2.704910774 | AK99: 2.704910774 | AL99: 2.704910774 | AM99: 2.704910774 | AU99: 250 | AV99: 250 | AW99: 250 | AX99: 250 | AY99: 250 | AZ99: 250 | BA99: 250 | BB99: 250 | BC99: 250 | BD99: 250 | BE99: 250 | BF99: 250 | BH99: 1956 | BI99: 64 | BJ99: 2031-02-07 | BK99: 0 | BL99: 0 | BM99: 0 | BN99: 0 | BO99: 2031-02-07 | BP99: 2031-02-07 | BR99: 0 | BS99: 0 | BT99: 0 | BU99: 0 | BY99: 250 | BZ99: 250 | CA99: 250 | CB99: 250 | CC99: 250 | CD99: 250 | CE99: 250 | CF99: 250 | CG99: 250 | CH99: 250 | CI99: 250 | CJ99: 250 | CK99: 250 | CL99: 250 | CM99: 250 | CN99: 250 | CO99: 250 | CP99: 250 | CQ99: 250 | CR99: 250 | CS99: 250 | CT99: 250 | CU99: 250 | CV99: 250 | CW99: 250 | CX99: 250 | CY99: 250 | CZ99: 250 | DA99: 250 | DB99: 250 | DC99: 250 | DD99: 250 | DE99: 250 | DF99: 0 | DG99: 0 | DH99: 0 | DI99: =IF($G99>DI$33,0,$I$9) -> 0 | DJ99: 0 | DK99: 0 | DL99: 0 | DM99: 0 | DN99: 0 | DO99: 0 | DP99: 0 | DQ99: 0 | DR99: 0 | DS99: 0 | DT99: 0 | DU99: 0 | DV99: 0 | DW99: 0 | DX99: 0 | DY99: 0 | DZ99: 0 | EA99: 0 | EB99: 0 | EC99: 0 | ED99: 0 | EE99: 0 | EF99: 0 | EG99: 0 | EH99: 0 | EI99: 0 | EJ99: 0 | EK99: 0 | EL99: 0 | EM99: 0 | EN99: 0 | EO99: 0 | EP99: 0 | EQ99: 0 | ER99: 0 | ES99: 0 | ET99: 0 | EU99: 0 | EV99: 0 | EW99: 0 | EX99: 0
A100: 2006-06-15 | B100: quinta-feira | C100: Corpus Christi | F100: 1984 | G100: 65 | H100: 2031-03-07 | I100: =IF($G100>$I$10,0,$I$9) -> 0 | J100: =I100/($J$32^(H100-$H$35)) -> 0 | K100: =I100/($I$32^(H100-$H$35)) -> 0 | L100: =J100*0.0082%*MIN(F100,365) -> 0 | S100: 65 | T100: =IF($G100>$P$3,0,$J$9) -> 250 | U100: =$T100/((U$29)^($H100-$H$35)) -> 89.06776385 | V100: 89.06776385 | W100: 89.06776385 | X100: 89.06776385 | Y100: 89.06776385 | Z100: 89.06776385 | AH100: 2.665798172 | AI100: =IF($I100<>0,0,V100*$B$1*MIN($F100,365)) -> 2.665798172 | AJ100: =IF($I100<>0,0,W100*$B$1*MIN($F100,365)) -> 2.665798172 | AK100: =IF($I100<>0,0,X100*$B$1*MIN($F100,365)) -> 2.665798172 | AL100: =IF($I100<>0,0,Y100*$B$1*MIN($F100,365)) -> 2.665798172 | AM100: =IF($I100<>0,0,Z100*$B$1*MIN($F100,365)) -> 2.665798172 | AN100: =IF($I100<>0,0,AA100*$B$1*MIN($F100,365)) ->  | AO100: =IF($I100<>0,0,AB100*$B$1*MIN($F100,365)) ->  | AP100: =IF($I100<>0,0,AC100*$B$1*MIN($F100,365)) ->  | AQ100: =IF($I100<>0,0,AD100*$B$1*MIN($F100,365)) ->  | AR100: =IF($I100<>0,0,AE100*$B$1*MIN($F100,365)) ->  | AS100: =IF($I100<>0,0,AF100*$B$1*MIN($F100,365)) ->  | AU100: =$T100 -> 250 | AV100: 250 | AW100: 250 | AX100: 250 | AY100: 250 | AZ100: 250 | BA100: 250 | BB100: 250 | BC100: 250 | BD100: 250 | BE100: 250 | BF100: 250 | BH100: 1984 | BI100: 65 | BJ100: 2031-03-07 | BK100: 0 | BL100: 0 | BM100: 0 | BN100: 0 | BO100: =H100 -> 2031-03-07 | BP100: 2031-03-07 | BR100: 0 | BS100: 0 | BT100: 0 | BU100: 0 | BY100: 250 | BZ100: 250 | CA100: 250 | CB100: 250 | CC100: 250 | CD100: 250 | CE100: 250 | CF100: 250 | CG100: 250 | CH100: 250 | CI100: 250 | CJ100: 250 | CK100: 250 | CL100: 250 | CM100: 250 | CN100: =IF($G100>CN$33,0,$I$9) -> 250 | CO100: 250 | CP100: 250 | CQ100: 250 | CR100: 250 | CS100: 250 | CT100: 250 | CU100: 250 | CV100: 250 | CW100: 250 | CX100: 250 | CY100: 250 | CZ100: 250 | DA100: 250 | DB100: 250 | DC100: 250 | DD100: =IF($G100>DD$33,0,$I$9) -> 250 | DE100: 0 | DF100: 0 | DG100: 0 | DH100: 0 | DI100: 0 | DJ100: 0 | DK100: 0 | DL100: 0 | DM100: 0 | DN100: 0 | DO100: 0 | DP100: 0 | DQ100: 0 | DR100: 0 | DS100: 0 | DT100: 0 | DU100: 0 | DV100: 0 | DW100: 0 | DX100: 0 | DY100: 0 | DZ100: 0 | EA100: 0 | EB100: 0 | EC100: 0 | ED100: 0 | EE100: 0 | EF100: 0 | EG100: 0 | EH100: 0 | EI100: 0 | EJ100: 0 | EK100: 0 | EL100: 0 | EM100: 0 | EN100: 0 | EO100: 0 | EP100: 0 | EQ100: 0 | ER100: 0 | ES100: 0 | ET100: 0 | EU100: 0 | EV100: 0 | EW100: 0 | EX100: 0
A101: 2006-09-07 | B101: quinta-feira | C101: Independência do Brasil | F101: =H101-$H$35 -> 2015 | G101: 66 | H101: 2031-04-07 | I101: 0 | J101: 0 | K101: 0 | L101: 0 | S101: 66 | T101: 250 | U101: 87.64297679 | V101: 87.64297679 | W101: 87.64297679 | X101: =$T101/((X$29)^($H101-$H$35)) -> 87.64297679 | Y101: 87.64297679 | Z101: 87.64297679 | AH101: =IF($I101<>0,0,U101*$B$1*MIN($F101,365)) -> 2.623154295 | AI101: 2.623154295 | AJ101: 2.623154295 | AK101: 2.623154295 | AL101: 2.623154295 | AM101: 2.623154295 | AU101: 250 | AV101: 250 | AW101: 250 | AX101: 250 | AY101: 250 | AZ101: 250 | BA101: 250 | BB101: 250 | BC101: 250 | BD101: 250 | BE101: 250 | BF101: 250 | BH101: =BJ101-$H$35 -> 2015 | BI101: 66 | BJ101: 2031-04-07 | BK101: 0 | BL101: 0 | BM101: =I102 -> 0 | BN101: =BM102 -> 0 | BO101: 2031-04-07 | BP101: =BJ101 -> 2031-04-07 | BR101: =IF(I101=0,0,PMT($BR$31,$I$10,$BR$35)) -> 0 | BS101: =MIN(BR101,$I$9) -> 0 | BT101: 0 | BU101: =IF(G101>$BU$31,0,$BU$32) -> 0 | BY101: =IF($G101>BY$33,0,$I$9) -> 250 | BZ101: 250 | CA101: 250 | CB101: 250 | CC101: 250 | CD101: 250 | CE101: 250 | CF101: 250 | CG101: 250 | CH101: 250 | CI101: 250 | CJ101: 250 | CK101: 250 | CL101: 250 | CM101: 250 | CN101: 250 | CO101: 250 | CP101: 250 | CQ101: 250 | CR101: 250 | CS101: 250 | CT101: 250 | CU101: 250 | CV101: 250 | CW101: 250 | CX101: 250 | CY101: 250 | CZ101: 250 | DA101: 250 | DB101: 250 | DC101: 250 | DD101: 0 | DE101: 0 | DF101: 0 | DG101: 0 | DH101: 0 | DI101: 0 | DJ101: 0 | DK101: 0 | DL101: 0 | DM101: 0 | DN101: 0 | DO101: 0 | DP101: 0 | DQ101: 0 | DR101: 0 | DS101: 0 | DT101: 0 | DU101: 0 | DV101: 0 | DW101: 0 | DX101: 0 | DY101: 0 | DZ101: 0 | EA101: 0 | EB101: 0 | EC101: 0 | ED101: 0 | EE101: 0 | EF101: 0 | EG101: 0 | EH101: 0 | EI101: 0 | EJ101: 0 | EK101: 0 | EL101: 0 | EM101: 0 | EN101: 0 | EO101: 0 | EP101: 0 | EQ101: 0 | ER101: 0 | ES101: 0 | ET101: 0 | EU101: 0 | EV101: 0 | EW101: 0 | EX101: 0
A102: 2006-10-12 | B102: quinta-feira | C102: Nossa Sr.a Aparecida - Padroeira do Brasil | F102: 2045 | G102: =G101+1 -> 67 | H102: =EDATE(H101,1) -> 2031-05-07 | I102: 0 | J102: 0 | K102: 0 | L102: 0 | S102: 67 | T102: 250 | U102: 86.28585522 | V102: 86.28585522 | W102: 86.28585522 | X102: 86.28585522 | Y102: 86.28585522 | Z102: 86.28585522 | AH102: 2.582535647 | AI102: 2.582535647 | AJ102: 2.582535647 | AK102: 2.582535647 | AL102: 2.582535647 | AM102: 2.582535647 | AU102: 250 | AV102: 250 | AW102: 250 | AX102: 250 | AY102: 250 | AZ102: 250 | BA102: 250 | BB102: 250 | BC102: 250 | BD102: 250 | BE102: 250 | BF102: 250 | BH102: 2045 | BI102: =BI101+1 -> 67 | BJ102: =EDATE(BJ101,1) -> 2031-05-07 | BK102: =I101 -> 0 | BL102: =BK101 -> 0 | BM102: 0 | BN102: 0 | BO102: 2031-05-07 | BP102: 2031-05-07 | BR102: 0 | BS102: 0 | BT102: =IF(G102>$BT$31,0,$BT$32) -> 0 | BU102: 0 | BY102: 250 | BZ102: 250 | CA102: 250 | CB102: 250 | CC102: 250 | CD102: 250 | CE102: 250 | CF102: 250 | CG102: 250 | CH102: 250 | CI102: 250 | CJ102: 250 | CK102: 250 | CL102: 250 | CM102: 250 | CN102: 250 | CO102: 250 | CP102: 250 | CQ102: 250 | CR102: 250 | CS102: 250 | CT102: 250 | CU102: 250 | CV102: 250 | CW102: 250 | CX102: 250 | CY102: 250 | CZ102: 250 | DA102: 250 | DB102: 250 | DC102: 0 | DD102: 0 | DE102: 0 | DF102: 0 | DG102: 0 | DH102: 0 | DI102: 0 | DJ102: 0 | DK102: 0 | DL102: 0 | DM102: 0 | DN102: 0 | DO102: 0 | DP102: 0 | DQ102: 0 | DR102: 0 | DS102: 0 | DT102: 0 | DU102: 0 | DV102: 0 | DW102: 0 | DX102: 0 | DY102: 0 | DZ102: 0 | EA102: 0 | EB102: 0 | EC102: 0 | ED102: 0 | EE102: 0 | EF102: 0 | EG102: 0 | EH102: 0 | EI102: 0 | EJ102: 0 | EK102: 0 | EL102: 0 | EM102: 0 | EN102: 0 | EO102: 0 | EP102: 0 | EQ102: 0 | ER102: 0 | ES102: 0 | ET102: 0 | EU102: 0 | EV102: 0 | EW102: 0 | EX102: 0
A103: 2006-11-02 | B103: quinta-feira | C103: Finados | F103: 2076 | G103: 68 | H103: 2031-06-07 | I103: 0 | J103: 0 | K103: 0 | L103: 0 | S103: 68 | T103: 250 | U103: 84.90556941 | V103: 84.90556941 | W103: 84.90556941 | X103: 84.90556941 | Y103: 84.90556941 | Z103: 84.90556941 | AH103: 2.541223693 | AI103: 2.541223693 | AJ103: 2.541223693 | AK103: 2.541223693 | AL103: 2.541223693 | AM103: 2.541223693 | AU103: 250 | AV103: 250 | AW103: 250 | AX103: 250 | AY103: 250 | AZ103: 250 | BA103: 250 | BB103: 250 | BC103: 250 | BD103: 250 | BE103: 250 | BF103: 250 | BH103: 2076 | BI103: 68 | BJ103: 2031-06-07 | BK103: 0 | BL103: 0 | BM103: 0 | BN103: 0 | BO103: 2031-06-07 | BP103: 2031-06-07 | BR103: 0 | BS103: 0 | BT103: 0 | BU103: 0 | BY103: 250 | BZ103: 250 | CA103: 250 | CB103: 250 | CC103: 250 | CD103: 250 | CE103: 250 | CF103: 250 | CG103: 250 | CH103: 250 | CI103: 250 | CJ103: 250 | CK103: 250 | CL103: 250 | CM103: 250 | CN103: 250 | CO103: 250 | CP103: 250 | CQ103: 250 | CR103: 250 | CS103: 250 | CT103: 250 | CU103: 250 | CV103: 250 | CW103: 250 | CX103: 250 | CY103: 250 | CZ103: 250 | DA103: 250 | DB103: 0 | DC103: 0 | DD103: 0 | DE103: 0 | DF103: 0 | DG103: 0 | DH103: 0 | DI103: 0 | DJ103: 0 | DK103: 0 | DL103: 0 | DM103: 0 | DN103: 0 | DO103: 0 | DP103: 0 | DQ103: 0 | DR103: 0 | DS103: 0 | DT103: 0 | DU103: 0 | DV103: 0 | DW103: 0 | DX103: 0 | DY103: 0 | DZ103: 0 | EA103: 0 | EB103: 0 | EC103: 0 | ED103: 0 | EE103: 0 | EF103: 0 | EG103: 0 | EH103: 0 | EI103: 0 | EJ103: 0 | EK103: 0 | EL103: 0 | EM103: 0 | EN103: 0 | EO103: 0 | EP103: 0 | EQ103: 0 | ER103: 0 | ES103: 0 | ET103: 0 | EU103: 0 | EV103: 0 | EW103: 0 | EX103: 0
A104: 2006-11-15 | B104: quarta-feira | C104: Proclamação da República | F104: 2106 | G104: 69 | H104: 2031-07-07 | I104: 0 | J104: 0 | K104: 0 | L104: 0 | S104: 69 | T104: 250 | U104: 83.59083566 | V104: 83.59083566 | W104: 83.59083566 | X104: 83.59083566 | Y104: 83.59083566 | Z104: 83.59083566 | AH104: 2.501873711 | AI104: 2.501873711 | AJ104: 2.501873711 | AK104: 2.501873711 | AL104: 2.501873711 | AM104: 2.501873711 | AU104: 250 | AV104: 250 | AW104: 250 | AX104: 250 | AY104: 250 | AZ104: 250 | BA104: 250 | BB104: 250 | BC104: 250 | BD104: 250 | BE104: 250 | BF104: 250 | BH104: 2106 | BI104: 69 | BJ104: 2031-07-07 | BK104: 0 | BL104: 0 | BM104: 0 | BN104: 0 | BO104: 2031-07-07 | BP104: 2031-07-07 | BR104: 0 | BS104: 0 | BT104: 0 | BU104: 0 | BY104: 250 | BZ104: 250 | CA104: 250 | CB104: 250 | CC104: 250 | CD104: 250 | CE104: 250 | CF104: 250 | CG104: 250 | CH104: 250 | CI104: 250 | CJ104: 250 | CK104: 250 | CL104: 250 | CM104: 250 | CN104: 250 | CO104: 250 | CP104: 250 | CQ104: 250 | CR104: 250 | CS104: 250 | CT104: 250 | CU104: 250 | CV104: 250 | CW104: 250 | CX104: 250 | CY104: 250 | CZ104: 250 | DA104: 0 | DB104: 0 | DC104: 0 | DD104: 0 | DE104: 0 | DF104: 0 | DG104: 0 | DH104: 0 | DI104: 0 | DJ104: 0 | DK104: 0 | DL104: 0 | DM104: 0 | DN104: 0 | DO104: 0 | DP104: 0 | DQ104: 0 | DR104: 0 | DS104: 0 | DT104: 0 | DU104: 0 | DV104: 0 | DW104: 0 | DX104: 0 | DY104: 0 | DZ104: 0 | EA104: 0 | EB104: 0 | EC104: 0 | ED104: 0 | EE104: 0 | EF104: 0 | EG104: 0 | EH104: 0 | EI104: 0 | EJ104: 0 | EK104: 0 | EL104: 0 | EM104: 0 | EN104: 0 | EO104: 0 | EP104: 0 | EQ104: 0 | ER104: 0 | ES104: 0 | ET104: 0 | EU104: =IF($G104>EU$33,0,$I$9) -> 0 | EV104: 0 | EW104: 0 | EX104: 0
A105: 2006-12-25 | B105: segunda-feira | C105: Natal | F105: 2137 | G105: 70 | H105: 2031-08-07 | I105: 0 | J105: 0 | K105: 0 | L105: 0 | S105: 70 | T105: 250 | U105: 82.25366118 | V105: 82.25366118 | W105: 82.25366118 | X105: 82.25366118 | Y105: 82.25366118 | Z105: 82.25366118 | AH105: 2.461852079 | AI105: 2.461852079 | AJ105: 2.461852079 | AK105: 2.461852079 | AL105: 2.461852079 | AM105: 2.461852079 | AU105: 250 | AV105: 250 | AW105: 250 | AX105: 250 | AY105: 250 | AZ105: 250 | BA105: 250 | BB105: 250 | BC105: 250 | BD105: 250 | BE105: 250 | BF105: 250 | BH105: 2137 | BI105: 70 | BJ105: 2031-08-07 | BK105: 0 | BL105: 0 | BM105: 0 | BN105: 0 | BO105: 2031-08-07 | BP105: 2031-08-07 | BR105: 0 | BS105: 0 | BT105: 0 | BU105: 0 | BY105: 250 | BZ105: 250 | CA105: 250 | CB105: 250 | CC105: 250 | CD105: 250 | CE105: 250 | CF105: 250 | CG105: 250 | CH105: 250 | CI105: 250 | CJ105: 250 | CK105: 250 | CL105: 250 | CM105: 250 | CN105: 250 | CO105: 250 | CP105: 250 | CQ105: 250 | CR105: 250 | CS105: 250 | CT105: 250 | CU105: 250 | CV105: 250 | CW105: 250 | CX105: 250 | CY105: 250 | CZ105: 0 | DA105: 0 | DB105: 0 | DC105: 0 | DD105: 0 | DE105: 0 | DF105: 0 | DG105: 0 | DH105: 0 | DI105: 0 | DJ105: 0 | DK105: 0 | DL105: 0 | DM105: 0 | DN105: 0 | DO105: 0 | DP105: 0 | DQ105: 0 | DR105: 0 | DS105: 0 | DT105: 0 | DU105: 0 | DV105: 0 | DW105: 0 | DX105: 0 | DY105: 0 | DZ105: 0 | EA105: 0 | EB105: 0 | EC105: 0 | ED105: 0 | EE105: 0 | EF105: 0 | EG105: 0 | EH105: 0 | EI105: 0 | EJ105: 0 | EK105: 0 | EL105: 0 | EM105: 0 | EN105: 0 | EO105: 0 | EP105: 0 | EQ105: 0 | ER105: 0 | ES105: 0 | ET105: 0 | EU105: 0 | EV105: 0 | EW105: 0 | EX105: 0
A106: 2007-01-01 | B106: segunda-feira | C106: Confraternização Universal | F106: 2168 | G106: 71 | H106: 2031-09-07 | I106: 0 | J106: 0 | K106: 0 | L106: 0 | S106: 71 | T106: 250 | U106: 80.93787702 | V106: 80.93787702 | W106: 80.93787702 | X106: 80.93787702 | Y106: 80.93787702 | Z106: 80.93787702 | AH106: 2.422470659 | AI106: 2.422470659 | AJ106: 2.422470659 | AK106: 2.422470659 | AL106: 2.422470659 | AM106: 2.422470659 | AU106: 250 | AV106: 250 | AW106: 250 | AX106: 250 | AY106: 250 | AZ106: 250 | BA106: 250 | BB106: 250 | BC106: 250 | BD106: 250 | BE106: 250 | BF106: 250 | BH106: 2168 | BI106: 71 | BJ106: 2031-09-07 | BK106: 0 | BL106: 0 | BM106: 0 | BN106: 0 | BO106: 2031-09-07 | BP106: 2031-09-07 | BR106: 0 | BS106: 0 | BT106: 0 | BU106: 0 | BY106: 250 | BZ106: 250 | CA106: 250 | CB106: 250 | CC106: 250 | CD106: 250 | CE106: 250 | CF106: 250 | CG106: 250 | CH106: 250 | CI106: 250 | CJ106: 250 | CK106: 250 | CL106: 250 | CM106: 250 | CN106: 250 | CO106: 250 | CP106: 250 | CQ106: 250 | CR106: 250 | CS106: 250 | CT106: 250 | CU106: 250 | CV106: 250 | CW106: 250 | CX106: 250 | CY106: 0 | CZ106: 0 | DA106: 0 | DB106: 0 | DC106: 0 | DD106: 0 | DE106: 0 | DF106: 0 | DG106: 0 | DH106: 0 | DI106: 0 | DJ106: 0 | DK106: 0 | DL106: 0 | DM106: 0 | DN106: 0 | DO106: 0 | DP106: 0 | DQ106: 0 | DR106: 0 | DS106: 0 | DT106: 0 | DU106: 0 | DV106: 0 | DW106: 0 | DX106: 0 | DY106: 0 | DZ106: 0 | EA106: 0 | EB106: 0 | EC106: 0 | ED106: 0 | EE106: 0 | EF106: 0 | EG106: 0 | EH106: 0 | EI106: 0 | EJ106: 0 | EK106: 0 | EL106: 0 | EM106: 0 | EN106: 0 | EO106: 0 | EP106: 0 | EQ106: 0 | ER106: 0 | ES106: 0 | ET106: 0 | EU106: 0 | EV106: 0 | EW106: 0 | EX106: 0
A107: 2007-02-19 | B107: segunda-feira | C107: Carnaval | F107: 2198 | G107: 72 | H107: 2031-10-07 | I107: 0 | J107: 0 | K107: 0 | L107: 0 | S107: 72 | T107: 250 | U107: 79.68458163 | V107: 79.68458163 | W107: 79.68458163 | X107: 79.68458163 | Y107: 79.68458163 | Z107: 79.68458163 | AH107: 2.384959528 | AI107: 2.384959528 | AJ107: 2.384959528 | AK107: 2.384959528 | AL107: 2.384959528 | AM107: 2.384959528 | AU107: 250 | AV107: 250 | AW107: 250 | AX107: 250 | AY107: 250 | AZ107: 250 | BA107: 250 | BB107: 250 | BC107: 250 | BD107: 250 | BE107: 250 | BF107: 250 | BH107: 2198 | BI107: 72 | BJ107: 2031-10-07 | BK107: 0 | BL107: 0 | BM107: 0 | BN107: 0 | BO107: 2031-10-07 | BP107: 2031-10-07 | BR107: 0 | BS107: 0 | BT107: 0 | BU107: 0 | BY107: 250 | BZ107: 250 | CA107: 250 | CB107: 250 | CC107: 250 | CD107: 250 | CE107: 250 | CF107: 250 | CG107: 250 | CH107: 250 | CI107: 250 | CJ107: 250 | CK107: 250 | CL107: 250 | CM107: 250 | CN107: 250 | CO107: 250 | CP107: 250 | CQ107: 250 | CR107: 250 | CS107: 250 | CT107: 250 | CU107: 250 | CV107: 250 | CW107: 250 | CX107: 0 | CY107: 0 | CZ107: 0 | DA107: 0 | DB107: 0 | DC107: 0 | DD107: 0 | DE107: 0 | DF107: 0 | DG107: 0 | DH107: 0 | DI107: 0 | DJ107: 0 | DK107: 0 | DL107: 0 | DM107: 0 | DN107: 0 | DO107: 0 | DP107: 0 | DQ107: 0 | DR107: 0 | DS107: 0 | DT107: 0 | DU107: 0 | DV107: 0 | DW107: 0 | DX107: 0 | DY107: 0 | DZ107: 0 | EA107: 0 | EB107: 0 | EC107: 0 | ED107: 0 | EE107: 0 | EF107: 0 | EG107: 0 | EH107: 0 | EI107: 0 | EJ107: 0 | EK107: 0 | EL107: 0 | EM107: 0 | EN107: 0 | EO107: 0 | EP107: 0 | EQ107: 0 | ER107: 0 | ES107: 0 | ET107: 0 | EU107: 0 | EV107: 0 | EW107: 0 | EX107: 0
A108: 2007-02-20 | B108: terça-feira | C108: Carnaval | F108: 2229 | G108: 73 | H108: 2031-11-07 | I108: 0 | J108: 0 | K108: 0 | L108: 0 | S108: 73 | T108: 250 | U108: 78.40989418 | V108: 78.40989418 | W108: 78.40989418 | X108: 78.40989418 | Y108: 78.40989418 | Z108: 78.40989418 | AF108: =$T108/((AF$29)^($H108-$H$35)) ->  | AH108: 2.346808133 | AI108: 2.346808133 | AJ108: 2.346808133 | AK108: 2.346808133 | AL108: 2.346808133 | AM108: 2.346808133 | AU108: 250 | AV108: 250 | AW108: 250 | AX108: 250 | AY108: 250 | AZ108: 250 | BA108: 250 | BB108: 250 | BC108: 250 | BD108: 250 | BE108: 250 | BF108: 250 | BH108: 2229 | BI108: 73 | BJ108: 2031-11-07 | BK108: 0 | BL108: 0 | BM108: 0 | BN108: 0 | BO108: 2031-11-07 | BP108: 2031-11-07 | BR108: 0 | BS108: 0 | BT108: 0 | BU108: 0 | BY108: 250 | BZ108: 250 | CA108: 250 | CB108: 250 | CC108: 250 | CD108: 250 | CE108: 250 | CF108: 250 | CG108: 250 | CH108: 250 | CI108: 250 | CJ108: 250 | CK108: 250 | CL108: 250 | CM108: 250 | CN108: 250 | CO108: 250 | CP108: 250 | CQ108: 250 | CR108: 250 | CS108: 250 | CT108: 250 | CU108: 250 | CV108: 250 | CW108: 0 | CX108: 0 | CY108: 0 | CZ108: 0 | DA108: 0 | DB108: 0 | DC108: 0 | DD108: 0 | DE108: 0 | DF108: 0 | DG108: 0 | DH108: 0 | DI108: 0 | DJ108: 0 | DK108: 0 | DL108: 0 | DM108: 0 | DN108: 0 | DO108: 0 | DP108: 0 | DQ108: 0 | DR108: 0 | DS108: 0 | DT108: 0 | DU108: 0 | DV108: 0 | DW108: 0 | DX108: 0 | DY108: 0 | DZ108: 0 | EA108: 0 | EB108: 0 | EC108: 0 | ED108: 0 | EE108: 0 | EF108: 0 | EG108: 0 | EH108: 0 | EI108: 0 | EJ108: 0 | EK108: 0 | EL108: 0 | EM108: 0 | EN108: 0 | EO108: 0 | EP108: 0 | EQ108: 0 | ER108: 0 | ES108: 0 | ET108: 0 | EU108: 0 | EV108: 0 | EW108: 0 | EX108: 0
A109: 2007-04-06 | B109: sexta-feira | C109: Paixão de Cristo | F109: 2259 | G109: 74 | H109: 2031-12-07 | I109: 0 | J109: 0 | K109: 0 | L109: 0 | S109: 74 | T109: 250 | U109: 77.19574374 | V109: 77.19574374 | W109: 77.19574374 | X109: 77.19574374 | Y109: 77.19574374 | Z109: 77.19574374 | AH109: 2.31046861 | AI109: 2.31046861 | AJ109: 2.31046861 | AK109: 2.31046861 | AL109: 2.31046861 | AM109: 2.31046861 | AU109: 250 | AV109: 250 | AW109: 250 | AX109: 250 | AY109: 250 | AZ109: 250 | BA109: 250 | BB109: 250 | BC109: 250 | BD109: 250 | BE109: 250 | BF109: 250 | BH109: 2259 | BI109: 74 | BJ109: 2031-12-07 | BK109: 0 | BL109: 0 | BM109: 0 | BN109: 0 | BO109: 2031-12-07 | BP109: 2031-12-07 | BR109: 0 | BS109: 0 | BT109: 0 | BU109: 0 | BY109: 250 | BZ109: 250 | CA109: 250 | CB109: 250 | CC109: 250 | CD109: 250 | CE109: 250 | CF109: 250 | CG109: 250 | CH109: 250 | CI109: 250 | CJ109: 250 | CK109: 250 | CL109: 250 | CM109: 250 | CN109: 250 | CO109: 250 | CP109: 250 | CQ109: 250 | CR109: 250 | CS109: 250 | CT109: 250 | CU109: 250 | CV109: 0 | CW109: 0 | CX109: 0 | CY109: 0 | CZ109: 0 | DA109: 0 | DB109: 0 | DC109: 0 | DD109: 0 | DE109: 0 | DF109: 0 | DG109: 0 | DH109: 0 | DI109: 0 | DJ109: 0 | DK109: 0 | DL109: 0 | DM109: 0 | DN109: 0 | DO109: 0 | DP109: 0 | DQ109: 0 | DR109: 0 | DS109: 0 | DT109: 0 | DU109: 0 | DV109: 0 | DW109: 0 | DX109: 0 | DY109: 0 | DZ109: 0 | EA109: 0 | EB109: 0 | EC109: 0 | ED109: 0 | EE109: 0 | EF109: 0 | EG109: 0 | EH109: 0 | EI109: 0 | EJ109: 0 | EK109: =IF($G109>EK$33,0,$I$9) -> 0 | EL109: 0 | EM109: 0 | EN109: 0 | EO109: 0 | EP109: 0 | EQ109: 0 | ER109: 0 | ES109: 0 | ET109: 0 | EU109: 0 | EV109: 0 | EW109: 0 | EX109: 0
A110: 2007-04-21 | B110: sábado | C110: Tiradentes | F110: 2290 | G110: 75 | H110: 2032-01-07 | I110: 0 | J110: 0 | K110: 0 | L110: 0 | S110: 75 | T110: 250 | U110: 75.96086939 | V110: 75.96086939 | W110: 75.96086939 | X110: 75.96086939 | Y110: 75.96086939 | Z110: 75.96086939 | AH110: 2.273508821 | AI110: 2.273508821 | AJ110: 2.273508821 | AK110: 2.273508821 | AL110: 2.273508821 | AM110: 2.273508821 | AU110: 250 | AV110: 250 | AW110: 250 | AX110: 250 | AY110: 250 | AZ110: 250 | BA110: 250 | BB110: 250 | BC110: 250 | BD110: 250 | BE110: 250 | BF110: 250 | BH110: 2290 | BI110: 75 | BJ110: 2032-01-07 | BK110: 0 | BL110: 0 | BM110: 0 | BN110: 0 | BO110: 2032-01-07 | BP110: 2032-01-07 | BR110: 0 | BS110: 0 | BT110: 0 | BU110: 0 | BY110: 250 | BZ110: 250 | CA110: 250 | CB110: 250 | CC110: 250 | CD110: 250 | CE110: 250 | CF110: 250 | CG110: 250 | CH110: 250 | CI110: 250 | CJ110: 250 | CK110: 250 | CL110: 250 | CM110: 250 | CN110: 250 | CO110: 250 | CP110: 250 | CQ110: 250 | CR110: 250 | CS110: 250 | CT110: 250 | CU110: 0 | CV110: 0 | CW110: 0 | CX110: 0 | CY110: 0 | CZ110: 0 | DA110: 0 | DB110: 0 | DC110: 0 | DD110: 0 | DE110: 0 | DF110: 0 | DG110: 0 | DH110: 0 | DI110: 0 | DJ110: 0 | DK110: 0 | DL110: 0 | DM110: 0 | DN110: 0 | DO110: 0 | DP110: 0 | DQ110: 0 | DR110: 0 | DS110: 0 | DT110: 0 | DU110: 0 | DV110: 0 | DW110: 0 | DX110: 0 | DY110: 0 | DZ110: 0 | EA110: 0 | EB110: 0 | EC110: 0 | ED110: 0 | EE110: 0 | EF110: 0 | EG110: 0 | EH110: 0 | EI110: 0 | EJ110: 0 | EK110: 0 | EL110: 0 | EM110: 0 | EN110: 0 | EO110: 0 | EP110: 0 | EQ110: 0 | ER110: 0 | ES110: 0 | ET110: 0 | EU110: 0 | EV110: 0 | EW110: 0 | EX110: 0
A111: 2007-05-01 | B111: terça-feira | C111: Dia do Trabalho | F111: 2321 | G111: 76 | H111: 2032-02-07 | I111: 0 | J111: 0 | K111: 0 | L111: 0 | S111: 76 | T111: 250 | U111: 74.74574891 | V111: 74.74574891 | W111: 74.74574891 | X111: 74.74574891 | Y111: 74.74574891 | Z111: 74.74574891 | AH111: 2.237140265 | AI111: 2.237140265 | AJ111: 2.237140265 | AK111: 2.237140265 | AL111: 2.237140265 | AM111: 2.237140265 | AU111: 250 | AV111: 250 | AW111: 250 | AX111: 250 | AY111: 250 | AZ111: 250 | BA111: 250 | BB111: 250 | BC111: 250 | BD111: 250 | BE111: 250 | BF111: 250 | BH111: 2321 | BI111: 76 | BJ111: 2032-02-07 | BK111: 0 | BL111: 0 | BM111: 0 | BN111: 0 | BO111: 2032-02-07 | BP111: 2032-02-07 | BR111: 0 | BS111: 0 | BT111: 0 | BU111: 0 | BY111: 250 | BZ111: 250 | CA111: 250 | CB111: 250 | CC111: 250 | CD111: 250 | CE111: 250 | CF111: 250 | CG111: 250 | CH111: 250 | CI111: 250 | CJ111: 250 | CK111: 250 | CL111: 250 | CM111: 250 | CN111: 250 | CO111: 250 | CP111: 250 | CQ111: 250 | CR111: 250 | CS111: 250 | CT111: 0 | CU111: 0 | CV111: 0 | CW111: 0 | CX111: 0 | CY111: 0 | CZ111: 0 | DA111: 0 | DB111: 0 | DC111: 0 | DD111: 0 | DE111: 0 | DF111: 0 | DG111: 0 | DH111: 0 | DI111: 0 | DJ111: 0 | DK111: 0 | DL111: 0 | DM111: 0 | DN111: 0 | DO111: 0 | DP111: 0 | DQ111: 0 | DR111: 0 | DS111: 0 | DT111: 0 | DU111: 0 | DV111: 0 | DW111: 0 | DX111: 0 | DY111: 0 | DZ111: 0 | EA111: 0 | EB111: 0 | EC111: 0 | ED111: 0 | EE111: 0 | EF111: 0 | EG111: 0 | EH111: 0 | EI111: 0 | EJ111: 0 | EK111: 0 | EL111: 0 | EM111: 0 | EN111: 0 | EO111: 0 | EP111: 0 | EQ111: 0 | ER111: 0 | ES111: 0 | ET111: 0 | EU111: 0 | EV111: 0 | EW111: 0 | EX111: 0
A112: 2007-06-07 | B112: quinta-feira | C112: Corpus Christi | F112: 2350 | G112: 77 | H112: 2032-03-07 | I112: 0 | J112: 0 | K112: 0 | L112: 0 | S112: 77 | T112: 250 | U112: 73.62662662 | V112: 73.62662662 | W112: 73.62662662 | X112: 73.62662662 | Y112: 73.62662662 | Z112: 73.62662662 | AH112: 2.203644935 | AI112: 2.203644935 | AJ112: 2.203644935 | AK112: 2.203644935 | AL112: 2.203644935 | AM112: 2.203644935 | AU112: 250 | AV112: 250 | AW112: 250 | AX112: 250 | AY112: 250 | AZ112: 250 | BA112: 250 | BB112: 250 | BC112: 250 | BD112: 250 | BE112: 250 | BF112: 250 | BH112: 2350 | BI112: 77 | BJ112: 2032-03-07 | BK112: 0 | BL112: 0 | BM112: 0 | BN112: 0 | BO112: 2032-03-07 | BP112: 2032-03-07 | BR112: 0 | BS112: 0 | BT112: 0 | BU112: 0 | BY112: 250 | BZ112: 250 | CA112: 250 | CB112: 250 | CC112: 250 | CD112: 250 | CE112: 250 | CF112: 250 | CG112: 250 | CH112: 250 | CI112: 250 | CJ112: 250 | CK112: 250 | CL112: 250 | CM112: 250 | CN112: 250 | CO112: 250 | CP112: 250 | CQ112: 250 | CR112: 250 | CS112: 0 | CT112: 0 | CU112: 0 | CV112: 0 | CW112: 0 | CX112: 0 | CY112: 0 | CZ112: 0 | DA112: 0 | DB112: 0 | DC112: 0 | DD112: 0 | DE112: 0 | DF112: 0 | DG112: 0 | DH112: 0 | DI112: 0 | DJ112: 0 | DK112: 0 | DL112: 0 | DM112: 0 | DN112: 0 | DO112: 0 | DP112: 0 | DQ112: 0 | DR112: 0 | DS112: 0 | DT112: 0 | DU112: 0 | DV112: 0 | DW112: 0 | DX112: 0 | DY112: 0 | DZ112: 0 | EA112: 0 | EB112: 0 | EC112: 0 | ED112: 0 | EE112: 0 | EF112: 0 | EG112: 0 | EH112: 0 | EI112: 0 | EJ112: 0 | EK112: 0 | EL112: 0 | EM112: 0 | EN112: 0 | EO112: 0 | EP112: 0 | EQ112: 0 | ER112: 0 | ES112: 0 | ET112: 0 | EU112: 0 | EV112: 0 | EW112: 0 | EX112: 0
A113: 2007-09-07 | B113: sexta-feira | C113: Independência do Brasil | F113: 2381 | G113: 78 | H113: 2032-04-07 | I113: 0 | J113: 0 | K113: 0 | L113: 0 | S113: 78 | T113: 250 | U113: 72.44884624 | V113: 72.44884624 | W113: 72.44884624 | X113: 72.44884624 | Y113: 72.44884624 | Z113: 72.44884624 | AH113: 2.168393968 | AI113: 2.168393968 | AJ113: 2.168393968 | AK113: 2.168393968 | AL113: 2.168393968 | AM113: 2.168393968 | AU113: 250 | AV113: 250 | AW113: 250 | AX113: 250 | AY113: 250 | AZ113: 250 | BA113: 250 | BB113: 250 | BC113: 250 | BD113: 250 | BE113: 250 | BF113: 250 | BH113: 2381 | BI113: 78 | BJ113: 2032-04-07 | BK113: 0 | BL113: 0 | BM113: 0 | BN113: 0 | BO113: 2032-04-07 | BP113: 2032-04-07 | BR113: 0 | BS113: 0 | BT113: 0 | BU113: 0 | BY113: 250 | BZ113: 250 | CA113: 250 | CB113: 250 | CC113: 250 | CD113: 250 | CE113: 250 | CF113: 250 | CG113: 250 | CH113: 250 | CI113: 250 | CJ113: 250 | CK113: 250 | CL113: 250 | CM113: 250 | CN113: 250 | CO113: 250 | CP113: 250 | CQ113: 250 | CR113: 0 | CS113: 0 | CT113: 0 | CU113: 0 | CV113: 0 | CW113: 0 | CX113: 0 | CY113: 0 | CZ113: 0 | DA113: 0 | DB113: 0 | DC113: 0 | DD113: 0 | DE113: 0 | DF113: 0 | DG113: 0 | DH113: 0 | DI113: 0 | DJ113: 0 | DK113: 0 | DL113: 0 | DM113: 0 | DN113: 0 | DO113: 0 | DP113: 0 | DQ113: 0 | DR113: 0 | DS113: 0 | DT113: 0 | DU113: 0 | DV113: 0 | DW113: 0 | DX113: 0 | DY113: 0 | DZ113: 0 | EA113: 0 | EB113: 0 | EC113: 0 | ED113: 0 | EE113: 0 | EF113: 0 | EG113: 0 | EH113: 0 | EI113: 0 | EJ113: 0 | EK113: 0 | EL113: 0 | EM113: 0 | EN113: 0 | EO113: 0 | EP113: 0 | EQ113: 0 | ER113: 0 | ES113: 0 | ET113: 0 | EU113: 0 | EV113: 0 | EW113: 0 | EX113: 0
A114: 2007-10-12 | B114: sexta-feira | C114: Nossa Sr.a Aparecida - Padroeira do Brasil | F114: 2411 | G114: 79 | H114: 2032-05-07 | I114: 0 | J114: 0 | K114: 0 | L114: 0 | S114: 79 | T114: 250 | U114: 71.32700059 | V114: 71.32700059 | W114: 71.32700059 | X114: 71.32700059 | Y114: 71.32700059 | Z114: 71.32700059 | AH114: 2.134817128 | AI114: 2.134817128 | AJ114: 2.134817128 | AK114: 2.134817128 | AL114: 2.134817128 | AM114: 2.134817128 | AU114: 250 | AV114: 250 | AW114: 250 | AX114: 250 | AY114: 250 | AZ114: 250 | BA114: 250 | BB114: 250 | BC114: 250 | BD114: 250 | BE114: 250 | BF114: 250 | BH114: 2411 | BI114: 79 | BJ114: 2032-05-07 | BK114: 0 | BL114: 0 | BM114: 0 | BN114: 0 | BO114: 2032-05-07 | BP114: 2032-05-07 | BR114: 0 | BS114: 0 | BT114: 0 | BU114: 0 | BY114: 250 | BZ114: 250 | CA114: 250 | CB114: 250 | CC114: 250 | CD114: 250 | CE114: 250 | CF114: 250 | CG114: 250 | CH114: 250 | CI114: 250 | CJ114: 250 | CK114: 250 | CL114: 250 | CM114: 250 | CN114: 250 | CO114: 250 | CP114: 250 | CQ114: 0 | CR114: 0 | CS114: 0 | CT114: 0 | CU114: 0 | CV114: 0 | CW114: 0 | CX114: 0 | CY114: 0 | CZ114: 0 | DA114: 0 | DB114: 0 | DC114: 0 | DD114: 0 | DE114: 0 | DF114: 0 | DG114: 0 | DH114: 0 | DI114: 0 | DJ114: 0 | DK114: 0 | DL114: 0 | DM114: 0 | DN114: 0 | DO114: 0 | DP114: 0 | DQ114: 0 | DR114: 0 | DS114: 0 | DT114: 0 | DU114: 0 | DV114: 0 | DW114: 0 | DX114: 0 | DY114: 0 | DZ114: 0 | EA114: =IF($G114>EA$33,0,$I$9) -> 0 | EB114: 0 | EC114: 0 | ED114: 0 | EE114: 0 | EF114: 0 | EG114: 0 | EH114: 0 | EI114: 0 | EJ114: 0 | EK114: 0 | EL114: 0 | EM114: 0 | EN114: 0 | EO114: 0 | EP114: 0 | EQ114: 0 | ER114: 0 | ES114: 0 | ET114: 0 | EU114: 0 | EV114: 0 | EW114: 0 | EX114: 0
A115: 2007-11-02 | B115: sexta-feira | C115: Finados | F115: 2442 | G115: 80 | H115: 2032-06-07 | I115: 0 | J115: 0 | K115: 0 | L115: 0 | S115: 80 | T115: 250 | U115: 70.18600655 | V115: 70.18600655 | W115: 70.18600655 | X115: 70.18600655 | Y115: 70.18600655 | Z115: 70.18600655 | AH115: 2.100667176 | AI115: 2.100667176 | AJ115: 2.100667176 | AK115: 2.100667176 | AL115: 2.100667176 | AM115: 2.100667176 | AU115: 250 | AV115: 250 | AW115: 250 | AX115: 250 | AY115: 250 | AZ115: 250 | BA115: 250 | BB115: 250 | BC115: 250 | BD115: 250 | BE115: 250 | BF115: 250 | BH115: 2442 | BI115: 80 | BJ115: 2032-06-07 | BK115: 0 | BL115: 0 | BM115: 0 | BN115: 0 | BO115: 2032-06-07 | BP115: 2032-06-07 | BR115: 0 | BS115: 0 | BT115: 0 | BU115: 0 | BY115: 250 | BZ115: 250 | CA115: 250 | CB115: 250 | CC115: 250 | CD115: 250 | CE115: 250 | CF115: 250 | CG115: 250 | CH115: 250 | CI115: 250 | CJ115: 250 | CK115: 250 | CL115: 250 | CM115: 250 | CN115: 250 | CO115: 250 | CP115: 0 | CQ115: 0 | CR115: 0 | CS115: 0 | CT115: 0 | CU115: 0 | CV115: 0 | CW115: 0 | CX115: 0 | CY115: 0 | CZ115: 0 | DA115: 0 | DB115: 0 | DC115: 0 | DD115: 0 | DE115: 0 | DF115: 0 | DG115: 0 | DH115: 0 | DI115: 0 | DJ115: 0 | DK115: 0 | DL115: 0 | DM115: 0 | DN115: 0 | DO115: 0 | DP115: 0 | DQ115: 0 | DR115: 0 | DS115: 0 | DT115: 0 | DU115: 0 | DV115: 0 | DW115: 0 | DX115: 0 | DY115: 0 | DZ115: 0 | EA115: 0 | EB115: 0 | EC115: 0 | ED115: 0 | EE115: 0 | EF115: 0 | EG115: 0 | EH115: 0 | EI115: 0 | EJ115: 0 | EK115: 0 | EL115: 0 | EM115: 0 | EN115: 0 | EO115: 0 | EP115: 0 | EQ115: 0 | ER115: 0 | ES115: 0 | ET115: 0 | EU115: 0 | EV115: 0 | EW115: 0 | EX115: 0
A116: 2007-11-15 | B116: quinta-feira | C116: Proclamação da República | F116: 2472 | G116: 81 | H116: 2032-07-07 | I116: 0 | J116: 0 | K116: 0 | L116: 0 | S116: 81 | T116: 250 | U116: =$T116/((U$29)^($H116-$H$35)) -> 69.0992002 | V116: 69.0992002 | W116: 69.0992002 | X116: 69.0992002 | Y116: 69.0992002 | Z116: 69.0992002 | AH116: 2.068139062 | AI116: 2.068139062 | AJ116: 2.068139062 | AK116: 2.068139062 | AL116: 2.068139062 | AM116: 2.068139062 | AU116: =$T116 -> 250 | AV116: 250 | AW116: 250 | AX116: 250 | AY116: 250 | AZ116: 250 | BA116: 250 | BB116: 250 | BC116: 250 | BD116: 250 | BE116: 250 | BF116: 250 | BH116: 2472 | BI116: 81 | BJ116: 2032-07-07 | BK116: 0 | BL116: 0 | BM116: 0 | BN116: 0 | BO116: 2032-07-07 | BP116: 2032-07-07 | BR116: 0 | BS116: 0 | BT116: 0 | BU116: 0 | BY116: 250 | BZ116: 250 | CA116: 250 | CB116: 250 | CC116: 250 | CD116: 250 | CE116: 250 | CF116: 250 | CG116: 250 | CH116: 250 | CI116: 250 | CJ116: 250 | CK116: 250 | CL116: 250 | CM116: 250 | CN116: 250 | CO116: =IF($G116>CO$33,0,$I$9) -> 0 | CP116: 0 | CQ116: 0 | CR116: 0 | CS116: 0 | CT116: 0 | CU116: 0 | CV116: 0 | CW116: 0 | CX116: 0 | CY116: 0 | CZ116: 0 | DA116: 0 | DB116: 0 | DC116: 0 | DD116: 0 | DE116: 0 | DF116: 0 | DG116: 0 | DH116: 0 | DI116: 0 | DJ116: 0 | DK116: 0 | DL116: 0 | DM116: 0 | DN116: 0 | DO116: 0 | DP116: 0 | DQ116: 0 | DR116: 0 | DS116: 0 | DT116: 0 | DU116: 0 | DV116: 0 | DW116: 0 | DX116: 0 | DY116: 0 | DZ116: 0 | EA116: 0 | EB116: 0 | EC116: 0 | ED116: 0 | EE116: 0 | EF116: 0 | EG116: 0 | EH116: 0 | EI116: 0 | EJ116: 0 | EK116: 0 | EL116: 0 | EM116: 0 | EN116: 0 | EO116: 0 | EP116: 0 | EQ116: 0 | ER116: 0 | ES116: 0 | ET116: 0 | EU116: 0 | EV116: 0 | EW116: 0 | EX116: 0
A117: 2007-12-25 | B117: terça-feira | C117: Natal | F117: 2503 | G117: 82 | H117: 2032-08-07 | I117: 0 | J117: 0 | K117: 0 | L117: 0 | S117: 82 | T117: 250 | U117: 67.99384354 | V117: 67.99384354 | W117: 67.99384354 | X117: 67.99384354 | Y117: 67.99384354 | Z117: 67.99384354 | AH117: 2.035055737 | AI117: 2.035055737 | AJ117: 2.035055737 | AK117: 2.035055737 | AL117: 2.035055737 | AM117: 2.035055737 | AU117: 250 | AV117: 250 | AW117: 250 | AX117: 250 | AY117: 250 | AZ117: 250 | BA117: 250 | BB117: 250 | BC117: 250 | BD117: 250 | BE117: 250 | BF117: 250 | BH117: 2503 | BI117: 82 | BJ117: 2032-08-07 | BK117: 0 | BL117: 0 | BM117: 0 | BN117: 0 | BO117: 2032-08-07 | BP117: 2032-08-07 | BR117: 0 | BS117: 0 | BT117: 0 | BU117: 0 | BY117: =IF($G117>BY$33,0,$I$9) -> 250 | BZ117: 250 | CA117: 250 | CB117: 250 | CC117: 250 | CD117: 250 | CE117: 250 | CF117: 250 | CG117: 250 | CH117: 250 | CI117: 250 | CJ117: 250 | CK117: 250 | CL117: 250 | CM117: 250 | CN117: 0 | CO117: 0 | CP117: 0 | CQ117: 0 | CR117: 0 | CS117: 0 | CT117: 0 | CU117: 0 | CV117: 0 | CW117: 0 | CX117: 0 | CY117: 0 | CZ117: 0 | DA117: 0 | DB117: 0 | DC117: 0 | DD117: 0 | DE117: 0 | DF117: 0 | DG117: 0 | DH117: 0 | DI117: 0 | DJ117: 0 | DK117: 0 | DL117: 0 | DM117: 0 | DN117: 0 | DO117: 0 | DP117: 0 | DQ117: 0 | DR117: 0 | DS117: 0 | DT117: 0 | DU117: 0 | DV117: 0 | DW117: 0 | DX117: 0 | DY117: 0 | DZ117: 0 | EA117: 0 | EB117: 0 | EC117: 0 | ED117: 0 | EE117: 0 | EF117: 0 | EG117: 0 | EH117: 0 | EI117: 0 | EJ117: 0 | EK117: 0 | EL117: 0 | EM117: 0 | EN117: 0 | EO117: 0 | EP117: 0 | EQ117: 0 | ER117: 0 | ES117: 0 | ET117: 0 | EU117: 0 | EV117: 0 | EW117: 0 | EX117: 0
A118: 2008-01-01 | B118: terça-feira | C118: Confraternização Universal | F118: 2534 | G118: 83 | H118: 2032-09-07 | I118: 0 | J118: 0 | K118: 0 | L118: 0 | S118: 83 | T118: 250 | U118: 66.90616889 | V118: 66.90616889 | W118: 66.90616889 | X118: 66.90616889 | Y118: 66.90616889 | Z118: 66.90616889 | AH118: 2.002501635 | AI118: 2.002501635 | AJ118: 2.002501635 | AK118: 2.002501635 | AL118: 2.002501635 | AM118: 2.002501635 | AU118: 250 | AV118: 250 | AW118: 250 | AX118: 250 | AY118: 250 | AZ118: 250 | BA118: 250 | BB118: 250 | BC118: 250 | BD118: 250 | BE118: 250 | BF118: 250 | BH118: 2534 | BI118: 83 | BJ118: 2032-09-07 | BK118: 0 | BL118: 0 | BM118: 0 | BN118: 0 | BO118: 2032-09-07 | BP118: 2032-09-07 | BR118: 0 | BS118: 0 | BT118: 0 | BU118: 0 | BY118: 250 | BZ118: 250 | CA118: 250 | CB118: 250 | CC118: 250 | CD118: 250 | CE118: 250 | CF118: 250 | CG118: 250 | CH118: 250 | CI118: 250 | CJ118: 250 | CK118: 250 | CL118: 250 | CM118: 0 | CN118: 0 | CO118: 0 | CP118: 0 | CQ118: 0 | CR118: 0 | CS118: 0 | CT118: 0 | CU118: 0 | CV118: 0 | CW118: 0 | CX118: 0 | CY118: 0 | CZ118: 0 | DA118: 0 | DB118: 0 | DC118: 0 | DD118: 0 | DE118: 0 | DF118: 0 | DG118: 0 | DH118: 0 | DI118: 0 | DJ118: 0 | DK118: 0 | DL118: 0 | DM118: 0 | DN118: 0 | DO118: 0 | DP118: 0 | DQ118: 0 | DR118: 0 | DS118: 0 | DT118: 0 | DU118: 0 | DV118: 0 | DW118: 0 | DX118: 0 | DY118: 0 | DZ118: 0 | EA118: 0 | EB118: 0 | EC118: 0 | ED118: 0 | EE118: 0 | EF118: 0 | EG118: 0 | EH118: 0 | EI118: 0 | EJ118: 0 | EK118: 0 | EL118: 0 | EM118: 0 | EN118: 0 | EO118: 0 | EP118: 0 | EQ118: 0 | ER118: 0 | ES118: 0 | ET118: 0 | EU118: 0 | EV118: 0 | EW118: 0 | EX118: 0
A119: 2008-02-04 | B119: segunda-feira | C119: Carnaval | F119: 2564 | G119: 84 | H119: 2032-10-07 | I119: 0 | J119: 0 | K119: 0 | L119: 0 | S119: 84 | T119: 250 | U119: 65.87014971 | V119: 65.87014971 | W119: 65.87014971 | X119: 65.87014971 | Y119: 65.87014971 | Z119: 65.87014971 | AH119: 1.971493581 | AI119: 1.971493581 | AJ119: 1.971493581 | AK119: 1.971493581 | AL119: 1.971493581 | AM119: 1.971493581 | AU119: 250 | AV119: 250 | AW119: 250 | AX119: 250 | AY119: 250 | AZ119: 250 | BA119: 250 | BB119: 250 | BC119: 250 | BD119: 250 | BE119: 250 | BF119: 250 | BH119: 2564 | BI119: 84 | BJ119: 2032-10-07 | BK119: 0 | BL119: 0 | BM119: 0 | BN119: 0 | BO119: 2032-10-07 | BP119: 2032-10-07 | BR119: 0 | BS119: 0 | BT119: 0 | BU119: 0 | BY119: 250 | BZ119: 250 | CA119: 250 | CB119: 250 | CC119: 250 | CD119: 250 | CE119: 250 | CF119: 250 | CG119: 250 | CH119: 250 | CI119: 250 | CJ119: 250 | CK119: 250 | CL119: 0 | CM119: 0 | CN119: 0 | CO119: 0 | CP119: 0 | CQ119: 0 | CR119: 0 | CS119: 0 | CT119: 0 | CU119: 0 | CV119: 0 | CW119: 0 | CX119: 0 | CY119: 0 | CZ119: 0 | DA119: 0 | DB119: 0 | DC119: 0 | DD119: 0 | DE119: 0 | DF119: 0 | DG119: 0 | DH119: 0 | DI119: 0 | DJ119: 0 | DK119: 0 | DL119: 0 | DM119: 0 | DN119: 0 | DO119: 0 | DP119: 0 | DQ119: 0 | DR119: 0 | DS119: 0 | DT119: 0 | DU119: 0 | DV119: 0 | DW119: 0 | DX119: =IF($G119>DX$33,0,$I$9) -> 0 | DY119: 0 | DZ119: 0 | EA119: 0 | EB119: 0 | EC119: 0 | ED119: 0 | EE119: 0 | EF119: 0 | EG119: 0 | EH119: 0 | EI119: 0 | EJ119: 0 | EK119: 0 | EL119: 0 | EM119: 0 | EN119: 0 | EO119: 0 | EP119: 0 | EQ119: 0 | ER119: 0 | ES119: 0 | ET119: 0 | EU119: 0 | EV119: 0 | EW119: 0 | EX119: 0
A120: 2008-02-05 | B120: terça-feira | C120: Carnaval | F120: 2595 | G120: 85 | H120: 2032-11-07 | I120: 0 | J120: 0 | K120: 0 | L120: 0 | S120: 85 | T120: 250 | U120: 64.81644708 | V120: 64.81644708 | W120: 64.81644708 | X120: 64.81644708 | Y120: 64.81644708 | Z120: 64.81644708 | AH120: 1.939956261 | AI120: 1.939956261 | AJ120: 1.939956261 | AK120: 1.939956261 | AL120: 1.939956261 | AM120: 1.939956261 | AU120: 250 | AV120: 250 | AW120: 250 | AX120: 250 | AY120: 250 | AZ120: 250 | BA120: 250 | BB120: 250 | BC120: 250 | BD120: 250 | BE120: 250 | BF120: 250 | BH120: 2595 | BI120: 85 | BJ120: 2032-11-07 | BK120: 0 | BL120: 0 | BM120: 0 | BN120: 0 | BO120: 2032-11-07 | BP120: 2032-11-07 | BR120: 0 | BS120: 0 | BT120: 0 | BU120: 0 | BY120: 250 | BZ120: 250 | CA120: 250 | CB120: 250 | CC120: 250 | CD120: 250 | CE120: 250 | CF120: 250 | CG120: 250 | CH120: 250 | CI120: 250 | CJ120: 250 | CK120: 0 | CL120: 0 | CM120: 0 | CN120: 0 | CO120: 0 | CP120: 0 | CQ120: 0 | CR120: 0 | CS120: 0 | CT120: 0 | CU120: 0 | CV120: 0 | CW120: 0 | CX120: 0 | CY120: 0 | CZ120: 0 | DA120: 0 | DB120: 0 | DC120: 0 | DD120: 0 | DE120: 0 | DF120: 0 | DG120: 0 | DH120: 0 | DI120: 0 | DJ120: 0 | DK120: 0 | DL120: 0 | DM120: 0 | DN120: 0 | DO120: 0 | DP120: 0 | DQ120: 0 | DR120: 0 | DS120: 0 | DT120: 0 | DU120: 0 | DV120: 0 | DW120: 0 | DX120: 0 | DY120: 0 | DZ120: 0 | EA120: 0 | EB120: 0 | EC120: 0 | ED120: 0 | EE120: 0 | EF120: 0 | EG120: 0 | EH120: 0 | EI120: 0 | EJ120: 0 | EK120: 0 | EL120: 0 | EM120: 0 | EN120: 0 | EO120: 0 | EP120: 0 | EQ120: 0 | ER120: 0 | ES120: 0 | ET120: 0 | EU120: 0 | EV120: 0 | EW120: 0 | EX120: 0
A121: 2008-03-21 | B121: sexta-feira | C121: Paixão de Cristo | F121: 2625 | G121: 86 | H121: 2032-12-07 | I121: 0 | J121: 0 | K121: 0 | L121: 0 | S121: 86 | T121: 250 | U121: 63.81278653 | V121: 63.81278653 | W121: 63.81278653 | X121: 63.81278653 | Y121: 63.81278653 | Z121: 63.81278653 | AH121: 1.909916701 | AI121: 1.909916701 | AJ121: 1.909916701 | AK121: 1.909916701 | AL121: 1.909916701 | AM121: 1.909916701 | AU121: 250 | AV121: 250 | AW121: 250 | AX121: 250 | AY121: 250 | AZ121: 250 | BA121: 250 | BB121: 250 | BC121: 250 | BD121: 250 | BE121: 250 | BF121: 250 | BH121: 2625 | BI121: 86 | BJ121: 2032-12-07 | BK121: 0 | BL121: 0 | BM121: 0 | BN121: 0 | BO121: 2032-12-07 | BP121: 2032-12-07 | BR121: 0 | BS121: 0 | BT121: 0 | BU121: 0 | BY121: 250 | BZ121: 250 | CA121: 250 | CB121: 250 | CC121: 250 | CD121: 250 | CE121: 250 | CF121: 250 | CG121: 250 | CH121: 250 | CI121: 250 | CJ121: 0 | CK121: 0 | CL121: 0 | CM121: 0 | CN121: 0 | CO121: 0 | CP121: 0 | CQ121: 0 | CR121: 0 | CS121: 0 | CT121: 0 | CU121: 0 | CV121: 0 | CW121: 0 | CX121: 0 | CY121: 0 | CZ121: 0 | DA121: 0 | DB121: 0 | DC121: 0 | DD121: 0 | DE121: 0 | DF121: 0 | DG121: 0 | DH121: 0 | DI121: 0 | DJ121: 0 | DK121: 0 | DL121: 0 | DM121: 0 | DN121: 0 | DO121: 0 | DP121: 0 | DQ121: 0 | DR121: 0 | DS121: 0 | DT121: 0 | DU121: 0 | DV121: 0 | DW121: 0 | DX121: 0 | DY121: 0 | DZ121: 0 | EA121: 0 | EB121: 0 | EC121: 0 | ED121: 0 | EE121: 0 | EF121: 0 | EG121: 0 | EH121: 0 | EI121: 0 | EJ121: 0 | EK121: 0 | EL121: 0 | EM121: 0 | EN121: 0 | EO121: 0 | EP121: 0 | EQ121: 0 | ER121: 0 | ES121: 0 | ET121: 0 | EU121: 0 | EV121: 0 | EW121: 0 | EX121: 0
A122: 2008-04-21 | B122: segunda-feira | C122: Tiradentes | F122: 2656 | G122: 87 | H122: 2033-01-07 | I122: 0 | J122: 0 | K122: 0 | L122: 0 | S122: 87 | T122: 250 | U122: 62.79199484 | V122: 62.79199484 | W122: 62.79199484 | X122: 62.79199484 | Y122: 62.79199484 | Z122: 62.79199484 | AH122: 1.879364406 | AI122: 1.879364406 | AJ122: 1.879364406 | AK122: 1.879364406 | AL122: 1.879364406 | AM122: 1.879364406 | AU122: 250 | AV122: 250 | AW122: 250 | AX122: 250 | AY122: 250 | AZ122: 250 | BA122: 250 | BB122: 250 | BC122: 250 | BD122: 250 | BE122: 250 | BF122: 250 | BH122: 2656 | BI122: 87 | BJ122: 2033-01-07 | BK122: 0 | BL122: 0 | BM122: 0 | BN122: 0 | BO122: 2033-01-07 | BP122: 2033-01-07 | BR122: 0 | BS122: 0 | BT122: 0 | BU122: 0 | BY122: 250 | BZ122: 250 | CA122: 250 | CB122: 250 | CC122: 250 | CD122: 250 | CE122: 250 | CF122: 250 | CG122: 250 | CH122: 250 | CI122: 0 | CJ122: 0 | CK122: 0 | CL122: 0 | CM122: 0 | CN122: 0 | CO122: 0 | CP122: 0 | CQ122: 0 | CR122: 0 | CS122: 0 | CT122: 0 | CU122: 0 | CV122: 0 | CW122: 0 | CX122: 0 | CY122: 0 | CZ122: 0 | DA122: 0 | DB122: 0 | DC122: 0 | DD122: 0 | DE122: 0 | DF122: 0 | DG122: 0 | DH122: 0 | DI122: 0 | DJ122: 0 | DK122: 0 | DL122: 0 | DM122: 0 | DN122: 0 | DO122: 0 | DP122: 0 | DQ122: 0 | DR122: 0 | DS122: 0 | DT122: 0 | DU122: 0 | DV122: 0 | DW122: 0 | DX122: 0 | DY122: 0 | DZ122: 0 | EA122: 0 | EB122: 0 | EC122: 0 | ED122: 0 | EE122: 0 | EF122: 0 | EG122: 0 | EH122: 0 | EI122: 0 | EJ122: 0 | EK122: 0 | EL122: 0 | EM122: 0 | EN122: 0 | EO122: 0 | EP122: 0 | EQ122: 0 | ER122: 0 | ES122: 0 | ET122: 0 | EU122: 0 | EV122: 0 | EW122: 0 | EX122: 0
A123: 2008-05-01 | B123: quinta-feira | C123: Dia do Trabalho | F123: 2687 | G123: 88 | H123: 2033-02-07 | I123: 0 | J123: 0 | K123: 0 | L123: 0 | S123: 88 | T123: 250 | U123: 61.78753242 | V123: 61.78753242 | W123: 61.78753242 | X123: 61.78753242 | Y123: 61.78753242 | Z123: 61.78753242 | AH123: 1.849300845 | AI123: 1.849300845 | AJ123: 1.849300845 | AK123: 1.849300845 | AL123: 1.849300845 | AM123: 1.849300845 | AU123: 250 | AV123: 250 | AW123: 250 | AX123: 250 | AY123: 250 | AZ123: 250 | BA123: 250 | BB123: 250 | BC123: 250 | BD123: 250 | BE123: 250 | BF123: 250 | BH123: 2687 | BI123: 88 | BJ123: 2033-02-07 | BK123: 0 | BL123: 0 | BM123: 0 | BN123: 0 | BO123: 2033-02-07 | BP123: 2033-02-07 | BR123: 0 | BS123: 0 | BT123: 0 | BU123: 0 | BY123: 250 | BZ123: 250 | CA123: 250 | CB123: 250 | CC123: 250 | CD123: 250 | CE123: 250 | CF123: 250 | CG123: 250 | CH123: 0 | CI123: 0 | CJ123: 0 | CK123: 0 | CL123: 0 | CM123: 0 | CN123: 0 | CO123: 0 | CP123: 0 | CQ123: 0 | CR123: 0 | CS123: 0 | CT123: 0 | CU123: 0 | CV123: 0 | CW123: 0 | CX123: 0 | CY123: 0 | CZ123: 0 | DA123: 0 | DB123: 0 | DC123: 0 | DD123: 0 | DE123: 0 | DF123: 0 | DG123: 0 | DH123: 0 | DI123: 0 | DJ123: 0 | DK123: 0 | DL123: 0 | DM123: 0 | DN123: 0 | DO123: 0 | DP123: 0 | DQ123: 0 | DR123: 0 | DS123: 0 | DT123: 0 | DU123: 0 | DV123: 0 | DW123: 0 | DX123: 0 | DY123: 0 | DZ123: 0 | EA123: 0 | EB123: 0 | EC123: 0 | ED123: 0 | EE123: 0 | EF123: 0 | EG123: 0 | EH123: 0 | EI123: 0 | EJ123: 0 | EK123: 0 | EL123: 0 | EM123: 0 | EN123: 0 | EO123: 0 | EP123: 0 | EQ123: 0 | ER123: 0 | ES123: 0 | ET123: 0 | EU123: 0 | EV123: 0 | EW123: 0 | EX123: 0
A124: 2008-05-22 | B124: quinta-feira | C124: Corpus Christi | F124: 2715 | G124: 89 | H124: 2033-03-07 | I124: 0 | J124: 0 | K124: 0 | L124: 0 | S124: 89 | T124: 250 | U124: 60.89409403 | V124: 60.89409403 | W124: 60.89409403 | X124: 60.89409403 | Y124: 60.89409403 | Z124: 60.89409403 | AH124: 1.822560234 | AI124: 1.822560234 | AJ124: 1.822560234 | AK124: 1.822560234 | AL124: 1.822560234 | AM124: 1.822560234 | AU124: 250 | AV124: 250 | AW124: 250 | AX124: 250 | AY124: 250 | AZ124: 250 | BA124: 250 | BB124: 250 | BC124: 250 | BD124: 250 | BE124: 250 | BF124: 250 | BH124: 2715 | BI124: 89 | BJ124: 2033-03-07 | BK124: 0 | BL124: 0 | BM124: 0 | BN124: 0 | BO124: 2033-03-07 | BP124: 2033-03-07 | BR124: 0 | BS124: 0 | BT124: 0 | BU124: 0 | BY124: 250 | BZ124: 250 | CA124: 250 | CB124: 250 | CC124: 250 | CD124: 250 | CE124: 250 | CF124: 250 | CG124: 0 | CH124: 0 | CI124: 0 | CJ124: 0 | CK124: 0 | CL124: 0 | CM124: 0 | CN124: 0 | CO124: 0 | CP124: 0 | CQ124: 0 | CR124: 0 | CS124: 0 | CT124: 0 | CU124: 0 | CV124: 0 | CW124: 0 | CX124: 0 | CY124: 0 | CZ124: 0 | DA124: 0 | DB124: 0 | DC124: 0 | DD124: 0 | DE124: 0 | DF124: 0 | DG124: 0 | DH124: 0 | DI124: 0 | DJ124: 0 | DK124: 0 | DL124: 0 | DM124: 0 | DN124: =IF($G124>DN$33,0,$I$9) -> 0 | DO124: 0 | DP124: 0 | DQ124: 0 | DR124: 0 | DS124: 0 | DT124: 0 | DU124: 0 | DV124: 0 | DW124: 0 | DX124: 0 | DY124: 0 | DZ124: 0 | EA124: 0 | EB124: 0 | EC124: 0 | ED124: 0 | EE124: 0 | EF124: 0 | EG124: 0 | EH124: 0 | EI124: 0 | EJ124: 0 | EK124: 0 | EL124: 0 | EM124: 0 | EN124: 0 | EO124: 0 | EP124: 0 | EQ124: 0 | ER124: 0 | ES124: 0 | ET124: 0 | EU124: 0 | EV124: 0 | EW124: 0 | EX124: 0
A125: 2008-09-07 | B125: domingo | C125: Independência do Brasil | F125: 2746 | G125: 90 | H125: 2033-04-07 | I125: 0 | J125: 0 | K125: 0 | L125: 0 | S125: 90 | T125: 250 | U125: 59.91999169 | V125: 59.91999169 | W125: 59.91999169 | X125: 59.91999169 | Y125: 59.91999169 | Z125: 59.91999169 | AH125: 1.793405351 | AI125: 1.793405351 | AJ125: 1.793405351 | AK125: 1.793405351 | AL125: 1.793405351 | AM125: 1.793405351 | AU125: 250 | AV125: 250 | AW125: 250 | AX125: 250 | AY125: 250 | AZ125: 250 | BA125: 250 | BB125: 250 | BC125: 250 | BD125: 250 | BE125: 250 | BF125: 250 | BH125: 2746 | BI125: 90 | BJ125: 2033-04-07 | BK125: 0 | BL125: 0 | BM125: 0 | BN125: 0 | BO125: 2033-04-07 | BP125: 2033-04-07 | BR125: 0 | BS125: 0 | BT125: 0 | BU125: 0 | BY125: 250 | BZ125: 250 | CA125: 250 | CB125: 250 | CC125: 250 | CD125: 250 | CE125: 250 | CF125: 0 | CG125: 0 | CH125: 0 | CI125: 0 | CJ125: 0 | CK125: 0 | CL125: 0 | CM125: 0 | CN125: 0 | CO125: 0 | CP125: 0 | CQ125: 0 | CR125: 0 | CS125: 0 | CT125: 0 | CU125: 0 | CV125: 0 | CW125: 0 | CX125: 0 | CY125: 0 | CZ125: 0 | DA125: 0 | DB125: 0 | DC125: 0 | DD125: 0 | DE125: 0 | DF125: 0 | DG125: 0 | DH125: 0 | DI125: 0 | DJ125: 0 | DK125: 0 | DL125: 0 | DM125: 0 | DN125: 0 | DO125: 0 | DP125: 0 | DQ125: 0 | DR125: 0 | DS125: 0 | DT125: 0 | DU125: 0 | DV125: 0 | DW125: 0 | DX125: 0 | DY125: 0 | DZ125: 0 | EA125: 0 | EB125: 0 | EC125: 0 | ED125: 0 | EE125: 0 | EF125: 0 | EG125: 0 | EH125: 0 | EI125: 0 | EJ125: 0 | EK125: 0 | EL125: 0 | EM125: 0 | EN125: 0 | EO125: 0 | EP125: 0 | EQ125: 0 | ER125: 0 | ES125: 0 | ET125: 0 | EU125: 0 | EV125: 0 | EW125: 0 | EX125: 0
A126: 2008-10-12 | B126: domingo | C126: Nossa Sr.a Aparecida - Padroeira do Brasil | F126: 2776 | G126: 91 | H126: 2033-05-07 | I126: 0 | J126: 0 | K126: 0 | L126: 0 | S126: 91 | T126: 250 | U126: 58.99215107 | V126: 58.99215107 | W126: 58.99215107 | X126: 58.99215107 | Y126: 58.99215107 | Z126: 58.99215107 | AH126: 1.765635082 | AI126: 1.765635082 | AJ126: 1.765635082 | AK126: 1.765635082 | AL126: 1.765635082 | AM126: 1.765635082 | AU126: 250 | AV126: 250 | AW126: 250 | AX126: 250 | AY126: 250 | AZ126: 250 | BA126: 250 | BB126: 250 | BC126: 250 | BD126: 250 | BE126: 250 | BF126: 250 | BH126: 2776 | BI126: 91 | BJ126: 2033-05-07 | BK126: 0 | BL126: 0 | BM126: 0 | BN126: 0 | BO126: 2033-05-07 | BP126: 2033-05-07 | BR126: 0 | BS126: 0 | BT126: 0 | BU126: 0 | BY126: 250 | BZ126: 250 | CA126: 250 | CB126: 250 | CC126: 250 | CD126: 250 | CE126: 0 | CF126: 0 | CG126: 0 | CH126: 0 | CI126: 0 | CJ126: 0 | CK126: 0 | CL126: 0 | CM126: 0 | CN126: 0 | CO126: 0 | CP126: 0 | CQ126: 0 | CR126: 0 | CS126: 0 | CT126: 0 | CU126: 0 | CV126: 0 | CW126: 0 | CX126: 0 | CY126: 0 | CZ126: 0 | DA126: 0 | DB126: 0 | DC126: 0 | DD126: 0 | DE126: 0 | DF126: 0 | DG126: 0 | DH126: 0 | DI126: 0 | DJ126: 0 | DK126: 0 | DL126: 0 | DM126: 0 | DN126: 0 | DO126: 0 | DP126: 0 | DQ126: 0 | DR126: 0 | DS126: 0 | DT126: 0 | DU126: 0 | DV126: 0 | DW126: 0 | DX126: 0 | DY126: 0 | DZ126: 0 | EA126: 0 | EB126: 0 | EC126: 0 | ED126: 0 | EE126: 0 | EF126: 0 | EG126: 0 | EH126: 0 | EI126: 0 | EJ126: 0 | EK126: 0 | EL126: 0 | EM126: 0 | EN126: 0 | EO126: 0 | EP126: 0 | EQ126: 0 | ER126: 0 | ES126: 0 | ET126: 0 | EU126: 0 | EV126: 0 | EW126: 0 | EX126: 0
A127: 2008-11-02 | B127: domingo | C127: Finados | F127: 2807 | G127: 92 | H127: 2033-06-07 | I127: 0 | J127: 0 | K127: 0 | L127: 0 | S127: 92 | T127: 250 | U127: 58.04847347 | V127: 58.04847347 | W127: 58.04847347 | X127: 58.04847347 | Y127: 58.04847347 | Z127: 58.04847347 | AH127: 1.737390811 | AI127: 1.737390811 | AJ127: 1.737390811 | AK127: 1.737390811 | AL127: 1.737390811 | AM127: 1.737390811 | AU127: 250 | AV127: 250 | AW127: 250 | AX127: 250 | AY127: 250 | AZ127: 250 | BA127: 250 | BB127: 250 | BC127: 250 | BD127: 250 | BE127: 250 | BF127: 250 | BH127: 2807 | BI127: 92 | BJ127: 2033-06-07 | BK127: 0 | BL127: 0 | BM127: 0 | BN127: 0 | BO127: 2033-06-07 | BP127: 2033-06-07 | BR127: 0 | BS127: 0 | BT127: 0 | BU127: 0 | BY127: 250 | BZ127: 250 | CA127: 250 | CB127: 250 | CC127: 250 | CD127: 0 | CE127: 0 | CF127: 0 | CG127: 0 | CH127: 0 | CI127: 0 | CJ127: 0 | CK127: 0 | CL127: 0 | CM127: 0 | CN127: 0 | CO127: 0 | CP127: 0 | CQ127: 0 | CR127: 0 | CS127: 0 | CT127: 0 | CU127: 0 | CV127: 0 | CW127: 0 | CX127: 0 | CY127: 0 | CZ127: 0 | DA127: 0 | DB127: 0 | DC127: 0 | DD127: 0 | DE127: 0 | DF127: 0 | DG127: 0 | DH127: 0 | DI127: 0 | DJ127: 0 | DK127: 0 | DL127: 0 | DM127: 0 | DN127: 0 | DO127: 0 | DP127: 0 | DQ127: 0 | DR127: 0 | DS127: 0 | DT127: 0 | DU127: 0 | DV127: 0 | DW127: 0 | DX127: 0 | DY127: 0 | DZ127: 0 | EA127: 0 | EB127: 0 | EC127: 0 | ED127: 0 | EE127: 0 | EF127: 0 | EG127: 0 | EH127: 0 | EI127: 0 | EJ127: 0 | EK127: 0 | EL127: 0 | EM127: 0 | EN127: 0 | EO127: 0 | EP127: 0 | EQ127: 0 | ER127: 0 | ES127: 0 | ET127: 0 | EU127: 0 | EV127: 0 | EW127: 0 | EX127: 0
A128: 2008-11-15 | B128: sábado | C128: Proclamação da República | F128: 2837 | G128: 93 | H128: 2033-07-07 | I128: 0 | J128: 0 | K128: 0 | L128: 0 | S128: 93 | T128: 250 | U128: 57.14961268 | V128: 57.14961268 | W128: 57.14961268 | X128: 57.14961268 | Y128: 57.14961268 | Z128: 57.14961268 | AH128: 1.710487908 | AI128: 1.710487908 | AJ128: 1.710487908 | AK128: 1.710487908 | AL128: 1.710487908 | AM128: 1.710487908 | AU128: 250 | AV128: 250 | AW128: 250 | AX128: 250 | AY128: 250 | AZ128: 250 | BA128: 250 | BB128: 250 | BC128: 250 | BD128: 250 | BE128: 250 | BF128: 250 | BH128: 2837 | BI128: 93 | BJ128: 2033-07-07 | BK128: 0 | BL128: 0 | BM128: 0 | BN128: 0 | BO128: 2033-07-07 | BP128: 2033-07-07 | BR128: 0 | BS128: 0 | BT128: 0 | BU128: 0 | BY128: 250 | BZ128: 250 | CA128: 250 | CB128: 250 | CC128: 0 | CD128: 0 | CE128: 0 | CF128: 0 | CG128: 0 | CH128: 0 | CI128: 0 | CJ128: 0 | CK128: 0 | CL128: 0 | CM128: 0 | CN128: 0 | CO128: 0 | CP128: 0 | CQ128: 0 | CR128: 0 | CS128: 0 | CT128: 0 | CU128: 0 | CV128: 0 | CW128: 0 | CX128: 0 | CY128: 0 | CZ128: 0 | DA128: 0 | DB128: 0 | DC128: 0 | DD128: 0 | DE128: 0 | DF128: 0 | DG128: 0 | DH128: 0 | DI128: 0 | DJ128: 0 | DK128: 0 | DL128: 0 | DM128: 0 | DN128: 0 | DO128: 0 | DP128: 0 | DQ128: 0 | DR128: 0 | DS128: 0 | DT128: 0 | DU128: 0 | DV128: 0 | DW128: 0 | DX128: 0 | DY128: 0 | DZ128: 0 | EA128: 0 | EB128: 0 | EC128: 0 | ED128: 0 | EE128: 0 | EF128: 0 | EG128: 0 | EH128: 0 | EI128: 0 | EJ128: 0 | EK128: 0 | EL128: 0 | EM128: 0 | EN128: 0 | EO128: 0 | EP128: 0 | EQ128: 0 | ER128: 0 | ES128: 0 | ET128: 0 | EU128: 0 | EV128: 0 | EW128: 0 | EX128: 0
A129: 2008-12-25 | B129: quinta-feira | C129: Natal | F129: 2868 | G129: 94 | H129: 2033-08-07 | I129: 0 | J129: 0 | K129: 0 | L129: 0 | S129: 94 | T129: 250 | U129: 56.23540955 | V129: 56.23540955 | W129: 56.23540955 | X129: 56.23540955 | Y129: 56.23540955 | Z129: 56.23540955 | AH129: 1.683125808 | AI129: 1.683125808 | AJ129: 1.683125808 | AK129: 1.683125808 | AL129: 1.683125808 | AM129: 1.683125808 | AU129: 250 | AV129: 250 | AW129: 250 | AX129: 250 | AY129: 250 | AZ129: 250 | BA129: 250 | BB129: 250 | BC129: 250 | BD129: 250 | BE129: 250 | BF129: 250 | BH129: 2868 | BI129: 94 | BJ129: 2033-08-07 | BK129: 0 | BL129: 0 | BM129: 0 | BN129: 0 | BO129: 2033-08-07 | BP129: 2033-08-07 | BR129: 0 | BS129: 0 | BT129: 0 | BU129: 0 | BY129: 250 | BZ129: 250 | CA129: 250 | CB129: 0 | CC129: 0 | CD129: 0 | CE129: 0 | CF129: 0 | CG129: 0 | CH129: 0 | CI129: 0 | CJ129: 0 | CK129: 0 | CL129: 0 | CM129: 0 | CN129: 0 | CO129: 0 | CP129: 0 | CQ129: 0 | CR129: 0 | CS129: 0 | CT129: 0 | CU129: 0 | CV129: 0 | CW129: 0 | CX129: 0 | CY129: 0 | CZ129: 0 | DA129: 0 | DB129: 0 | DC129: 0 | DD129: =IF($G129>DD$33,0,$I$9) -> 0 | DE129: 0 | DF129: 0 | DG129: 0 | DH129: 0 | DI129: 0 | DJ129: 0 | DK129: 0 | DL129: 0 | DM129: 0 | DN129: 0 | DO129: 0 | DP129: 0 | DQ129: 0 | DR129: 0 | DS129: 0 | DT129: 0 | DU129: 0 | DV129: 0 | DW129: 0 | DX129: 0 | DY129: 0 | DZ129: 0 | EA129: 0 | EB129: 0 | EC129: 0 | ED129: 0 | EE129: 0 | EF129: 0 | EG129: 0 | EH129: 0 | EI129: 0 | EJ129: 0 | EK129: 0 | EL129: 0 | EM129: 0 | EN129: 0 | EO129: 0 | EP129: 0 | EQ129: 0 | ER129: 0 | ES129: 0 | ET129: 0 | EU129: 0 | EV129: 0 | EW129: 0 | EX129: 0
A130: 2009-01-01 | B130: quinta-feira | C130: Confraternização Universal | F130: 2899 | G130: 95 | H130: 2033-09-07 | I130: 0 | J130: 0 | K130: 0 | L130: 0 | S130: 95 | T130: 250 | U130: 55.33583061 | V130: 55.33583061 | W130: 55.33583061 | X130: 55.33583061 | Y130: 55.33583061 | Z130: 55.33583061 | AH130: 1.65620141 | AI130: 1.65620141 | AJ130: 1.65620141 | AK130: 1.65620141 | AL130: 1.65620141 | AM130: 1.65620141 | AU130: 250 | AV130: 250 | AW130: 250 | AX130: 250 | AY130: 250 | AZ130: 250 | BA130: 250 | BB130: 250 | BC130: 250 | BD130: 250 | BE130: 250 | BF130: 250 | BH130: 2899 | BI130: 95 | BJ130: 2033-09-07 | BK130: 0 | BL130: 0 | BM130: 0 | BN130: 0 | BO130: 2033-09-07 | BP130: 2033-09-07 | BR130: 0 | BS130: 0 | BT130: 0 | BU130: 0 | BY130: 250 | BZ130: 250 | CA130: 0 | CB130: 0 | CC130: 0 | CD130: 0 | CE130: 0 | CF130: 0 | CG130: 0 | CH130: 0 | CI130: 0 | CJ130: 0 | CK130: 0 | CL130: 0 | CM130: 0 | CN130: 0 | CO130: 0 | CP130: 0 | CQ130: 0 | CR130: 0 | CS130: 0 | CT130: 0 | CU130: 0 | CV130: 0 | CW130: 0 | CX130: 0 | CY130: 0 | CZ130: 0 | DA130: 0 | DB130: 0 | DC130: 0 | DD130: 0 | DE130: 0 | DF130: 0 | DG130: 0 | DH130: 0 | DI130: 0 | DJ130: 0 | DK130: 0 | DL130: 0 | DM130: 0 | DN130: 0 | DO130: 0 | DP130: 0 | DQ130: 0 | DR130: 0 | DS130: 0 | DT130: 0 | DU130: 0 | DV130: 0 | DW130: 0 | DX130: 0 | DY130: 0 | DZ130: 0 | EA130: 0 | EB130: 0 | EC130: 0 | ED130: 0 | EE130: 0 | EF130: 0 | EG130: 0 | EH130: 0 | EI130: 0 | EJ130: 0 | EK130: 0 | EL130: 0 | EM130: 0 | EN130: 0 | EO130: 0 | EP130: 0 | EQ130: 0 | ER130: 0 | ES130: 0 | ET130: 0 | EU130: 0 | EV130: 0 | EW130: 0 | EX130: 0
A131: 2009-02-23 | B131: segunda-feira | C131: Carnaval | F131: 2929 | G131: 96 | H131: 2033-10-07 | I131: 0 | J131: 0 | K131: 0 | L131: 0 | S131: =S130+1 -> 96 | T131: 250 | U131: 54.47897417 | V131: 54.47897417 | W131: 54.47897417 | X131: 54.47897417 | Y131: 54.47897417 | Z131: 54.47897417 | AH131: 1.630555697 | AI131: 1.630555697 | AJ131: 1.630555697 | AK131: 1.630555697 | AL131: 1.630555697 | AM131: 1.630555697 | AU131: 250 | AV131: 250 | AW131: 250 | AX131: 250 | AY131: 250 | AZ131: 250 | BA131: 250 | BB131: 250 | BC131: 250 | BD131: 250 | BE131: 250 | BF131: 250 | BH131: 2929 | BI131: 96 | BJ131: 2033-10-07 | BK131: 0 | BL131: 0 | BM131: 0 | BN131: 0 | BO131: 2033-10-07 | BP131: 2033-10-07 | BR131: 0 | BS131: 0 | BT131: 0 | BU131: 0 | BY131: 250 | BZ131: 0 | CA131: 0 | CB131: 0 | CC131: 0 | CD131: 0 | CE131: 0 | CF131: 0 | CG131: 0 | CH131: 0 | CI131: 0 | CJ131: 0 | CK131: 0 | CL131: 0 | CM131: 0 | CN131: 0 | CO131: 0 | CP131: 0 | CQ131: 0 | CR131: 0 | CS131: 0 | CT131: 0 | CU131: 0 | CV131: 0 | CW131: 0 | CX131: 0 | CY131: 0 | CZ131: 0 | DA131: 0 | DB131: 0 | DC131: 0 | DD131: 0 | DE131: 0 | DF131: 0 | DG131: 0 | DH131: 0 | DI131: 0 | DJ131: 0 | DK131: 0 | DL131: 0 | DM131: 0 | DN131: 0 | DO131: 0 | DP131: 0 | DQ131: 0 | DR131: 0 | DS131: 0 | DT131: 0 | DU131: 0 | DV131: 0 | DW131: 0 | DX131: 0 | DY131: 0 | DZ131: 0 | EA131: 0 | EB131: 0 | EC131: 0 | ED131: 0 | EE131: 0 | EF131: 0 | EG131: 0 | EH131: 0 | EI131: 0 | EJ131: 0 | EK131: 0 | EL131: 0 | EM131: 0 | EN131: 0 | EO131: 0 | EP131: 0 | EQ131: 0 | ER131: 0 | ES131: 0 | ET131: 0 | EU131: 0 | EV131: 0 | EW131: 0 | EX131: 0
A132: 2009-02-24 | B132: terça-feira | C132: Carnaval
A133: 2009-04-10 | B133: sexta-feira | C133: Paixão de Cristo
A134: 2009-04-21 | B134: terça-feira | C134: Tiradentes
A135: 2009-05-01 | B135: sexta-feira | C135: Dia do Trabalho
A136: 2009-06-11 | B136: quinta-feira | C136: Corpus Christi
A137: 2009-09-07 | B137: segunda-feira | C137: Independência do Brasil
A138: 2009-10-12 | B138: segunda-feira | C138: Nossa Sr.a Aparecida - Padroeira do Brasil
A139: 2009-11-02 | B139: segunda-feira | C139: Finados
A140: 2009-11-15 | B140: domingo | C140: Proclamação da República
A141: 2009-12-25 | B141: sexta-feira | C141: Natal
A142: 2010-01-01 | B142: sexta-feira | C142: Confraternização Universal
A143: 2010-02-15 | B143: segunda-feira | C143: Carnaval
A144: 2010-02-16 | B144: terça-feira | C144: Carnaval
A145: 2010-04-02 | B145: sexta-feira | C145: Paixão de Cristo
A146: 2010-04-21 | B146: quarta-feira | C146: Tiradentes
A147: 2010-05-01 | B147: sábado | C147: Dia do Trabalho
A148: 2010-06-03 | B148: quinta-feira | C148: Corpus Christi
A149: 2010-09-07 | B149: terça-feira | C149: Independência do Brasil
A150: 2010-10-12 | B150: terça-feira | C150: Nossa Sr.a Aparecida - Padroeira do Brasil
A151: 2010-11-02 | B151: terça-feira | C151: Finados
A152: 2010-11-15 | B152: segunda-feira | C152: Proclamação da República
A153: 2010-12-25 | B153: sábado | C153: Natal
A154: 2011-01-01 | B154: sábado | C154: Confraternização Universal
A155: 2011-03-07 | B155: segunda-feira | C155: Carnaval
A156: 2011-03-08 | B156: terça-feira | C156: Carnaval
A157: 2011-04-21 | B157: quinta-feira | C157: Tiradentes
A158: 2011-04-22 | B158: sexta-feira | C158: Paixão de Cristo
A159: 2011-05-01 | B159: domingo | C159: Dia do Trabalho
A160: 2011-06-23 | B160: quinta-feira | C160: Corpus Christi
A161: 2011-09-07 | B161: quarta-feira | C161: Independência do Brasil
A162: 2011-10-12 | B162: quarta-feira | C162: Nossa Sr.a Aparecida - Padroeira do Brasil
A163: 2011-11-02 | B163: quarta-feira | C163: Finados
A164: 2011-11-15 | B164: terça-feira | C164: Proclamação da República
A165: 2011-12-25 | B165: domingo | C165: Natal
A166: 2012-01-01 | B166: domingo | C166: Confraternização Universal
A167: 2012-02-20 | B167: segunda-feira | C167: Carnaval
A168: 2012-02-21 | B168: terça-feira | C168: Carnaval
A169: 2012-04-06 | B169: sexta-feira | C169: Paixão de Cristo
A170: 2012-04-21 | B170: sábado | C170: Tiradentes
A171: 2012-05-01 | B171: terça-feira | C171: Dia do Trabalho
A172: 2012-06-07 | B172: quinta-feira | C172: Corpus Christi
A173: 2012-09-07 | B173: sexta-feira | C173: Independência do Brasil
A174: 2012-10-12 | B174: sexta-feira | C174: Nossa Sr.a Aparecida - Padroeira do Brasil
A175: 2012-11-02 | B175: sexta-feira | C175: Finados
A176: 2012-11-15 | B176: quinta-feira | C176: Proclamação da República
A177: 2012-12-25 | B177: terça-feira | C177: Natal
A178: 2013-01-01 | B178: terça-feira | C178: Confraternização Universal
A179: 2013-02-11 | B179: segunda-feira | C179: Carnaval
A180: 2013-02-12 | B180: terça-feira | C180: Carnaval
A181: 2013-03-29 | B181: sexta-feira | C181: Paixão de Cristo
A182: 2013-04-21 | B182: domingo | C182: Tiradentes
A183: 2013-05-01 | B183: quarta-feira | C183: Dia do Trabalho
A184: 2013-05-30 | B184: quinta-feira | C184: Corpus Christi
A185: 2013-09-07 | B185: sábado | C185: Independência do Brasil
A186: 2013-10-12 | B186: sábado | C186: Nossa Sr.a Aparecida - Padroeira do Brasil
A187: 2013-11-02 | B187: sábado | C187: Finados
A188: 2013-11-15 | B188: sexta-feira | C188: Proclamação da República
A189: 2013-12-25 | B189: quarta-feira | C189: Natal
A190: 2014-01-01 | B190: quarta-feira | C190: Confraternização Universal
A191: 2014-03-03 | B191: segunda-feira | C191: Carnaval
A192: 2014-03-04 | B192: terça-feira | C192: Carnaval
A193: 2014-04-18 | B193: sexta-feira | C193: Paixão de Cristo
A194: 2014-04-21 | B194: segunda-feira | C194: Tiradentes
A195: 2014-05-01 | B195: quinta-feira | C195: Dia do Trabalho
A196: 2014-06-19 | B196: quinta-feira | C196: Corpus Christi
A197: 2014-09-07 | B197: domingo | C197: Independência do Brasil
A198: 2014-10-12 | B198: domingo | C198: Nossa Sr.a Aparecida - Padroeira do Brasil
A199: 2014-11-02 | B199: domingo | C199: Finados
A200: 2014-11-15 | B200: sábado | C200: Proclamação da República
... 1097 more rows

Sheet PZO (hidden)
A1: IOF ad | B1: =ROUND(3%/365,6) -> 8.2e-05 | U1: Port final | W1: =J16 -> 0.01406512714 | X1: =IF($P$2=$AH$4,AH1,AP1) -> INSS | Y1: =IF($P$2=$AH$4,AI1,AQ1) -> 0.0135 | Z1: =IF($P$2=$AH$4,AJ1,AR1) -> 0.0185 | AA1: =IF($P$2=$AH$4,AK1,AS1) -> Port | AB1: ='Simulador Port'!C18 -> FLEX 1 | AH1: INSS | AI1: ='Planilha 1'!AI1 -> 0.0135 | AJ1: ='Planilha 1'!AJ1 -> 0.0185 | AK1: Port | AP1: SIAPE | AQ1: ='Planilha 1'!AQ1 -> 0.016 | AR1: ='Planilha 1'!AR1 -> 0.018 | AS1: Port
A2: IOF adic. | B2: 0.0038 | H2: CONVÊNIO | P2: ='Planilha 1'!P2 -> INSS | U2: TAXA TETO PONDERADO | V2: =((W1*W2)+(Z1*(Z2-W2)))/P3 -> 0.01572820447 | W2: =J10 -> 60 | Z2: =P3 -> 96 | AQ2: 96
O3: Prazo simulado (meses) | P3: ='Planilha 1'!P3 -> 96 | X3: Convenio | Y3: TxMax | Z3: TxMin | AA3: Nome | AC3: Fator um jr | AD3: Novo Saldo | AE3: IOF | AF3: TROCO | AG3: VLR FIN | AH3: Convenio | AI3: TxMax | AJ3: TxMin | AK3: Nome | AL3: Nome | AP3: Convenio | AQ3: TxMax | AR3: TxMin | AS3: Nome | AT3: Nome
S4: =IF(AG4<$V$6,0,IF(AND(Z4>$V$2,Y4>$V$2),0,IF(OR(AF4/AD4>$V$4,$AF4>=$V$5),W3+1,0))) -> 0 | U4: Torco min % | V4: ='Planilha 1'!V4 -> 0 | W4: =IF(AND(X4="INSS",$AB$1="NORMAL",OR(AA4=$AK$8,AA4=$AK$9)),0,IF($I$17<$Y$1,0,IFERROR(IF(AG4<$V$6,0,IF(AND(Z4>$V$2,Y4>$V$2),0,IF(OR(AF4/AD4>$V$4,$AF4>=$V$5),W3+1,0))),0))) -> 0 | X4: =IF($P$2=$AH$4,AH4,AP4) -> INSS | Y4: =IF($P$2=$AH$4,AI4,AQ4) -> 0.0185 | Z4: =IF($P$2=$AH$4,AJ4,AR4) -> 0.0178 | AA4: =IF($P$2=$AH$4,AK4,AS4) -> Normal | AB4: =IF($P$2=$AH$4,AL4,AT4) -> INSS RfnPort Tx1,850%~1,780% Normal | AC4: =(1+MIN(Y4,$V$2))^(1/30) -> 1.000520329 | AD4: =OFFSET($U$32,,ROW()-ROW($AD$4)) -> 12195.16429 | AE4: =OFFSET($AH$29,,ROW()-ROW($AE$4)) -> 86.84090718 | AF4: =AD4-AE4-$J$8 -> 2108.323463 | AG4: =SUM(AD4,AF4) -> 14303.48776 | AH4: ='Planilha 1'!AH4 -> INSS | AI4: ='Planilha 1'!AI4 -> 0.0185 | AJ4: ='Planilha 1'!AJ4 -> 0.0178 | AK4: ='Planilha 1'!AK4 -> Normal | AL4: ='Planilha 1'!AL4 -> INSS RfnPort Tx1,850%~1,780% Normal | AP4: ='Planilha 1'!AP4 -> SIAPE | AQ4: ='Planilha 1'!AQ4 -> 0.01799 | AR4: ='Planilha 1'!AR4 -> 0.01799 | AS4: ='Planilha 1'!AS4 -> Normal | AT4: ='Planilha 1'!AT4 -> SIAPE RfnPort Tx1.799 Normal Web
U5: Torco min R$ | V5: ='Planilha 1'!V5 -> 50 | W5: =IF(AND(X5="INSS",$AB$1="NORMAL",OR(AA5=$AK$8,AA5=$AK$9)),0,IF($I$17<$Y$1,0,IFERROR(IF(AG5<$V$6,0,IF(AND(Z5>$V$2,Y5>$V$2),0,IF(OR(AF5/AD5>$V$4,$AF5>=$V$5),W4+1,0))),0))) -> 0 | X5: =IF($P$2=$AH$4,AH5,AP5) -> INSS | Y5: =IF($P$2=$AH$4,AI5,AQ5) -> 0.01779 | Z5: =IF($P$2=$AH$4,AJ5,AR5) -> 0.0174 | AA5: =IF($P$2=$AH$4,AK5,AS5) -> Flex 1 | AB5: =IF($P$2=$AH$4,AL5,AT5) -> INSS RfnPort Tx1,779%~1,740% Flex1 | AC5: =(1+MIN(Y5,$V$2))^(1/30) -> 1.000520329 | AD5: =OFFSET($U$32,,ROW()-ROW($AD$4)) -> 12195.16429 | AE5: =OFFSET($AH$29,,ROW()-ROW($AE$4)) -> 86.84090718 | AF5: =AD5-AE5-$J$8 -> 2108.323463 | AG5: =SUM(AD5,AF5) -> 14303.48776 | AH5: ='Planilha 1'!AH5 -> INSS | AI5: ='Planilha 1'!AI5 -> 0.01779 | AJ5: ='Planilha 1'!AJ5 -> 0.0174 | AK5: ='Planilha 1'!AK5 -> Flex 1 | AL5: ='Planilha 1'!AL5 -> INSS RfnPort Tx1,779%~1,740% Flex1 | AP5: ='Planilha 1'!AP5 -> SIAPE | AQ5: ='Planilha 1'!AQ5 -> 0.01798 | AR5: ='Planilha 1'!AR5 -> 0.0175 | AS5: ='Planilha 1'!AS5 -> Flex 1 | AT5: ='Planilha 1'!AT5 -> SIAPE RfnPort Tx1.798 ~ 1.75 Flex 1 Web
K6: Observação | M6: Tabela | O6: Val Fin Novo | P6: Troco | U6: Ticket Min | V6: ='Planilha 1'!V6 -> 2000 | W6: 0 | X6: INSS | Y6: 0.01739 | Z6: 0.017 | AA6: Flex 2 | AB6: INSS RfnPort Tx1,739%~1,700% Flex2 | AC6: =(1+MIN(Y6,$V$2))^(1/30) -> 1.000520329 | AD6: 12195.16429 | AE6: 86.84090718 | AF6: 2108.323463 | AG6: 14303.48776 | AH6: ='Planilha 1'!AH6 -> INSS | AI6: ='Planilha 1'!AI6 -> 0.01739 | AJ6: ='Planilha 1'!AJ6 -> 0.017 | AK6: ='Planilha 1'!AK6 -> Flex 2 | AL6: ='Planilha 1'!AL6 -> INSS RfnPort Tx1,739%~1,700% Flex2 | AP6: ='Planilha 1'!AP6 -> SIAPE | AQ6: ='Planilha 1'!AQ6 -> 0.01749 | AR6: ='Planilha 1'!AR6 -> 0.017 | AS6: ='Planilha 1'!AS6 -> Flex 2 | AT6: ='Planilha 1'!AT6 -> SIAPE RfnPort Tx1.749 ~ 1.70 Flex 2 Web
H7: Data Saldo | I7: ='Simulador Port'!C7 -> 2025-09-30 | J7: =TODAY() -> 2025-09-30 | K7: ='Simulador Port'!D7 -> 0 | W7: 0 | X7: INSS | Y7: 0.01699 | Z7: 0.0165 | AA7: Flex 3 | AB7: INSS RfnPort Tx1,699%~1,650% Flex3 | AC7: 1.000520329 | AD7: 12195.16429 | AE7: 86.84090718 | AF7: 2108.323463 | AG7: 14303.48776 | AH7: ='Planilha 1'!AH7 -> INSS | AI7: ='Planilha 1'!AI7 -> 0.01699 | AJ7: ='Planilha 1'!AJ7 -> 0.0165 | AK7: ='Planilha 1'!AK7 -> Flex 3 | AL7: ='Planilha 1'!AL7 -> INSS RfnPort Tx1,699%~1,650% Flex3 | AP7: ='Planilha 1'!AP7 -> SIAPE | AQ7: ='Planilha 1'!AQ7 -> 0.01699 | AR7: ='Planilha 1'!AR7 -> 0.0165 | AS7: ='Planilha 1'!AS7 -> Flex 3 | AT7: ='Planilha 1'!AT7 -> SIAPE RfnPort Tx1.699 ~ 1.65 Flex 3 Web
H8: Saldo Portado | I8: ='Simulador Port'!C8 -> 10000 | J8: =SUM(PZO!J35:J131) -> 9999.999922 | K8: =T8 ->  | L8: 1 | M8: =IFERROR(VLOOKUP(L8,$W$4:$AF$15,6,0),"") -> INSS RfnPort Tx1,599%~1,550% Flex5 | O8: =IFERROR(VLOOKUP(L8,$W$4:$AF$15,8,0),"") -> 12195.16429 | P8: =IFERROR(VLOOKUP(L8,$W$4:$AF$15,10,0),"") -> 2108.323463 | R8: =O8-$I$8 -> 2195.164293 | T8: =IF(OR((J17-I17)/I17>2%,(J17-I17)/I17<-2%),"Saldo e Parcela não correspondem à taxa informada","") ->  | U8: TAXA TROCO | W8: 0 | X8: INSS | Y8: 0.01649 | Z8: 0.016 | AA8: Flex 4 | AB8: INSS RfnPort Tx1,649%~1,600% Flex4 | AC8: 1.000520329 | AD8: 12195.16429 | AE8: 86.84090718 | AF8: 2108.323463 | AG8: 14303.48776 | AH8: ='Planilha 1'!AH8 -> INSS | AI8: ='Planilha 1'!AI8 -> 0.01649 | AJ8: ='Planilha 1'!AJ8 -> 0.016 | AK8: ='Planilha 1'!AK8 -> Flex 4 | AL8: ='Planilha 1'!AL8 -> INSS RfnPort Tx1,649%~1,600% Flex4
H9: Valor Parcela | I9: ='Simulador Port'!C22 -> 250 | J9: =I9 -> 250 | K9: ='Simulador Port'!D9 -> 0 | L9: =L8+1 -> 2 | M9: =IFERROR(VLOOKUP(L9,$W$4:$AF$15,6,0),"") ->  | O9: =IFERROR(VLOOKUP(L9,$W$4:$AF$15,8,0),"") ->  | P9: =IFERROR(VLOOKUP(L9,$W$4:$AF$15,10,0),"") ->  | R9: =O9-$I$8 ->  | W9: 1 | X9: INSS | Y9: 0.01599 | Z9: 0.0155 | AA9: Flex 5 | AB9: INSS RfnPort Tx1,599%~1,550% Flex5 | AC9: 1.000520329 | AD9: 12195.16429 | AE9: 86.84090718 | AF9: 2108.323463 | AG9: 14303.48776 | AH9: ='Planilha 1'!AH9 -> INSS | AI9: ='Planilha 1'!AI9 -> 0.01599 | AJ9: ='Planilha 1'!AJ9 -> 0.0155 | AK9: ='Planilha 1'!AK9 -> Flex 5 | AL9: ='Planilha 1'!AL9 -> INSS RfnPort Tx1,599%~1,550% Flex5
H10: Nº de Parcelas Restantes | I10: ='Simulador Port'!C21 -> 60 | J10: =I10 -> 60 | K10: =T10 ->  | L10: =L9+1 -> 3 | T10: =IF(P3-J10<12,"Contrato com menos de 12 parcelas pagas","") ->  | W10: 0 | X10: 0 | Y10: 0 | Z10: 0 | AA10: 0 | AB10: 0 | AC10: 1 | AH10: ='Planilha 1'!AH10 -> 0 | AI10: ='Planilha 1'!AI10 -> 0 | AJ10: ='Planilha 1'!AJ10 -> 0 | AK10: ='Planilha 1'!AK10 -> 0 | AL10: ='Planilha 1'!AL10 -> 0
L11: 4 | W11: 0 | X11: 0 | Y11: 0 | Z11: 0 | AA11: 0 | AB11: 0 | AC11: 1 | AH11: ='Planilha 1'!AH11 -> 0 | AI11: ='Planilha 1'!AI11 -> 0 | AJ11: ='Planilha 1'!AJ11 -> 0 | AK11: ='Planilha 1'!AK11 -> 0 | AL11: ='Planilha 1'!AL11 -> 0
L12: 5 | W12: 0 | X12: 0 | Y12: 0 | Z12: 0 | AA12: 0 | AB12: 0 | AC12: 1 | AH12: ='Planilha 1'!AH12 -> 0 | AI12: ='Planilha 1'!AI12 -> 0 | AJ12: ='Planilha 1'!AJ12 -> 0 | AK12: ='Planilha 1'!AK12 -> 0 | AL12: ='Planilha 1'!AL12 -> 0 | AW12: ;
L13: 6 | W13: 0 | X13: 0 | Y13: 0 | Z13: 0 | AA13: 0 | AB13: 0 | AC13: 1 | AH13: ='Planilha 1'!AH13 -> 0 | AI13: ='Planilha 1'!AI13 -> 0 | AJ13: ='Planilha 1'!AJ13 -> 0 | AK13: ='Planilha 1'!AK13 -> 0 | AL13: ='Planilha 1'!AL13 -> 0
L14: 7 | W14: 0 | X14: 0 | Y14: 0 | Z14: 0 | AA14: 0 | AB14: 0 | AC14: 1
L15: 8 | W15: 0 | X15: 0 | Y15: 0 | Z15: 0 | AA15: 0 | AB15: 0 | AC15: 1
J16: =(1+XIRR(PZO!$I$35:$I$131,PZO!$H$35:$H$131))^(30/365)-1 -> 0.01406512714 | L16: 9
H17: Taxa de Juros | I17: =J17 -> 0.01406512714 | J17: =(1+XIRR(PZO!$I$35:$I$131,PZO!$H$35:$H$131))^(360/365)^(30/360)-1 -> 0.01406512714 | K17: =T17 ->  | L17: 10 | T17: =IF(J17<PZO!Y1,"Taxa original inferior a mínima","") -> 
H18: Saldo Calculado pela Taxa | I18: =SUM(PZO!K36:K131) -> 9999.999922 | J18: =SUM(J36:J131) -> 9999.999922 | K18: ='Simulador Port'!F20 -> 0 | L18: 11 | Z18: =IFERROR(VLOOKUP(M8,PZO!$AB$4:$AG$15,3,0),"") ->  | BK18: saldo | BL18: 14510.87162
L19: 12
BL21: =BL32*1000 -> 15.03309254
H22: Taxa AP considerando base 365 | I22: =J16 -> 0.01406512714 | AB22: =IFERROR(VLOOKUP(M8,PZO!$AB$4:$AG$15,3,0),"") ->  | BL22: =1.55%*1000 -> 15.5 | BM22: =BL22-BL21 -> 0.4669074615
H23: Taxa CET da PORT | I23: =J17 -> 0.01406512714
K25: ;
BJ26: SEM MUDA PRAZO | BK26: SOMAR 1 PARCELA | BL26: SOMAR 2 PARCELAS | BM26: TIRAR 1 PARCELA | BN26: TIRAR 2 PARCELAS
AT27: =XIRR(AU$35:AU$131,$H$35:$H$131) -> 0.019681409 | AU27: 0.019681409 | AV27: 0.019681409 | AW27: 0.019681409 | AX27: 0.019681409 | AY27: 0.019681409 | BJ27: =IF(K17<>"","Taxa original inferior a mínima","") ->  | BK27: =IF(BK32<PZO!$Y$1,"Taxa original inferior a mínima","") ->  | BL27: =IF(BL32<PZO!$Y$1,"Taxa original inferior a mínima","") ->  | BM27: =IF(BM32<PZO!$Y$1,"Taxa original inferior a mínima","") ->  | BN27: =IF(BN32<PZO!$Y$1,"Taxa original inferior a mínima","") -> Taxa original inferior a mínima
AH28: =U32-$J$8 -> 2195.164371 | AI28: =V32-$J$8 -> 2195.164371 | AJ28: 2195.164371 | AK28: 2195.164371 | AL28: 2195.164371 | AM28: 2195.164371
T29: Taxa REFIN | U29: =VLOOKUP(U34,$AA$4:$AC$15,3,0) -> 1.000520329 | V29: =VLOOKUP(V34,$AA$4:$AC$15,3,0) -> 1.000520329 | W29: =VLOOKUP(W34,$AA$4:$AC$15,3,0) -> 1.000520329 | X29: =VLOOKUP(X34,$AA$4:$AC$15,3,0) -> 1.000520329 | Y29: 1.000520329 | Z29: 1.000520329 | AH29: =SUM(AH35:AH131) -> 86.84090718 | AI29: =SUM(AI35:AI131) -> 86.84090718 | AJ29: 86.84090718 | AK29: 86.84090718 | AL29: 86.84090718 | AM29: 86.84090718 | AU29: =(1+AT27)^(30/365)-1 -> 0.00160322086 | AV29: 0.00160322086 | AW29: 0.00160322086 | AX29: 0.00160322086 | AY29: 0.00160322086 | AZ29: 0.00160322086
H30: dt ini fx pmt | I30: =EDATE(J31,-1) -> 2025-10-07 | J30: =NETWORKDAYS(EOMONTH(I7,-1)+1,I7,$A$34:$A$1297) -> 22 | BJ30: dt ini fx pmt | BK30: =I30 -> 2025-10-07
H31: Prox Vencimento | J31: ='Planilha 1'!J31 -> 2025-11-07 | U31: =U32-$I$8 -> 2195.164293 | V31: =V32-$I$8 -> 2195.164293 | W31: 2195.164293 | X31: 2195.164293 | Y31: 2195.164293 | Z31: 2195.164293 | AE31: =AE32-$I$8 ->  | BJ31: Prox Vencimento | BL31: =J31 -> 2025-11-07
H32: Fator Dia | I32: =(1+I17)^(1/30) -> 1.000465679 | J32: =(1+J17)^(1/30) -> 1.000465679 | T32: Vlr Troco | U32: =SUM(U36:U131) -> 12195.16429 | V32: =SUM(V36:V131) -> 12195.16429 | W32: =SUM(W36:W131) -> 12195.16429 | X32: =SUM(X36:X131) -> 12195.16429 | Y32: 12195.16429 | Z32: 12195.16429 | BJ32: XITR | BK32: =(1+XIRR(PZO!BK$35:BK$131,PZO!$BJ$35:$BJ$131))^(30/360)-1 -> 0.01465644156 | BL32: =(1+XIRR(PZO!BL$35:BL$131,PZO!$BJ$35:$BJ$131))^(30/360)-1 -> 0.01503309254 | BM32: =(1+XIRR(PZO!BM$35:BM$131,PZO!$BJ$35:$BJ$131))^(30/360)-1 -> 0.01384807611 | BN32: =(1+XIRR(PZO!BN$35:BN$131,PZO!$BJ$35:$BJ$131))^(30/360)-1 -> 0.0134140948
A33: Data | B33: Dia da Semana | C33: Feriado | H33: OPERAÇÃO ORIGINAL | T33: REFINANCIAMENTO | AH33: IOF | AU33: REFINANCIAMENTO | BJ33: OPERAÇÃO ORIGINAL
A34: 2001-01-01 | B34: segunda-feira | C34: Confraternização Universal | H34: DATA EV | I34: FLUXO | J34: Principal | K34: Principal2 | L34: IOF | T34: FX Refin | U34: Normal | V34: Flex 1 | W34: Flex 2 | X34: Flex 3 | Y34: Flex 4 | Z34: Flex 5 | AA34: Flex 6 | AB34: Flex 7 | AC34: Flex 8 | AD34: Flex 9 | AE34: Flex 10 | AF34: Flex 11 | AH34: Normal | AI34: Flex 1 | AJ34: Flex 2 | AK34: Flex 3 | AL34: Flex 4 | AM34: Flex 5 | AN34: Flex 6 | AO34: Flex 7 | AP34: Flex 8 | AQ34: Flex 9 | AR34: Flex 10 | AS34: Flex 11 | AU34: Normal | AV34: Flex 1 | AW34: Flex 2 | AX34: Flex 3 | AY34: Flex 4 | AZ34: Flex 5 | BA34: Flex 6 | BB34: Flex 7 | BC34: Flex 8 | BD34: Flex 9 | BE34: Flex 10 | BF34: Flex 11 | BJ34: DATA EV | BK34: FLUXO1 | BL34: FLUXO2 | BM34: FLUXO3 | BN34: FLUXO4
A35: 2001-02-26 | B35: segunda-feira | C35: Carnaval | G35: 0 | H35: =I7 -> 2025-09-30 | I35: =-I8 -> -10000 | L35: =I35*-0.38% -> 38 | T35: =I35 -> -10000 | AH35: =(U31)*$B$2 -> 8.341624312 | AI35: =(V31)*$B$2 -> 8.341624312 | AJ35: 8.341624312 | AK35: 8.341624312 | AL35: 8.341624312 | AM35: 8.341624312 | AU35: =-U32+$I$35 -> -22195.16429 | AV35: =-V32+$I$35 -> -22195.16429 | AW35: -22195.16429 | AX35: -22195.16429 | AY35: -22195.16429 | AZ35: -22195.16429 | BI35: 0 | BJ35: =H35 -> 2025-09-30 | BK35: =I35 -> -10000 | BL35: =BK35 -> -10000 | BM35: =BL35 -> -10000 | BN35: =BM35 -> -10000
A36: 2001-02-27 | B36: terça-feira | C36: Carnaval | F36: =H36-$H$35 -> 38 | G36: 1 | H36: =J31 -> 2025-11-07 | I36: =IF($G36>$I$10,0,$I$9) -> 250 | J36: =I36/($J$32^(H36-$H$35)) -> 245.61597 | K36: =I36/($I$32^(H36-$H$35)) -> 245.61597 | L36: =J36*0.0082%*MIN(F36,365) -> 0.7653393625 | S36: 1 | T36: =IF($G36>$P$3,0,$J$9) -> 250 | U36: =$T36/((U$29)^($H36-$H$35)) -> 245.1066872 | V36: =$T36/((V$29)^($H36-$H$35)) -> 245.1066872 | W36: 245.1066872 | X36: 245.1066872 | Y36: 245.1066872 | Z36: 245.1066872 | AH36: =IF($I36<>0,0,U36*$B$1*MIN($F36,365)) -> 0 | AI36: =IF($I36<>0,0,V36*$B$1*MIN($F36,365)) -> 0 | AJ36: 0 | AK36: 0 | AL36: 0 | AM36: 0 | AN36: 0 | AO36: 0 | AP36: 0 | AQ36: 0 | AR36: 0 | AS36: 0 | AU36: =$T36 -> 250 | AV36: 250 | AW36: 250 | AX36: 250 | AY36: 250 | AZ36: 250 | BA36: 250 | BB36: 250 | BC36: 250 | BD36: 250 | BE36: 250 | BF36: 250 | BH36: =BJ36-$H$35 -> 38 | BI36: 1 | BJ36: =BL31 -> 2025-11-07 | BK36: =I36 -> 250 | BL36: =BK36 -> 250 | BM36: =I37 -> 250 | BN36: =BM37 -> 250
A37: 2001-04-13 | B37: sexta-feira | C37: Paixão de Cristo | F37: =H37-$H$35 -> 68 | G37: =G36+1 -> 2 | H37: =EDATE(H36,1) -> 2025-12-07 | I37: =IF($G37>$I$10,0,$I$9) -> 250 | J37: =I37/($J$32^(H37-$H$35)) -> 242.2092659 | K37: 242.2092659 | L37: =J37*0.0082%*MIN(F37,365) -> 1.350558866 | S37: =S36+1 -> 2 | T37: 250 | U37: 241.3112938 | V37: 241.3112938 | W37: 241.3112938 | X37: 241.3112938 | Y37: 241.3112938 | Z37: 241.3112938 | AH37: 0 | AI37: 0 | AJ37: 0 | AK37: 0 | AL37: 0 | AM37: 0 | AN37: 0 | AO37: 0 | AP37: 0 | AQ37: 0 | AR37: 0 | AS37: 0 | AU37: 250 | AV37: 250 | AW37: 250 | AX37: 250 | AY37: 250 | AZ37: 250 | BA37: 250 | BB37: 250 | BC37: 250 | BD37: 250 | BE37: 250 | BF37: 250 | BH37: =BJ37-$H$35 -> 68 | BI37: =BI36+1 -> 2 | BJ37: =EDATE(BJ36,1) -> 2025-12-07 | BK37: =I36 -> 250 | BL37: =BK36 -> 250 | BM37: =I38 -> 250 | BN37: =BM38 -> 250
A38: 2001-04-21 | B38: sábado | C38: Tiradentes | F38: 99 | G38: =G37+1 -> 3 | H38: =EDATE(H37,1) -> 2026-01-07 | I38: =IF($G38>$I$10,0,$I$9) -> 250 | J38: 238.7386372 | K38: 238.7386372 | L38: 1.938080257 | S38: 3 | T38: 250 | U38: 237.4511182 | V38: 237.4511182 | W38: 237.4511182 | X38: 237.4511182 | Y38: 237.4511182 | Z38: 237.4511182 | AH38: 0 | AI38: 0 | AJ38: 0 | AK38: 0 | AL38: 0 | AM38: 0 | AN38: 0 | AO38: 0 | AP38: 0 | AQ38: 0 | AR38: 0 | AS38: 0 | AU38: 250 | AV38: 250 | AW38: 250 | AX38: 250 | AY38: 250 | AZ38: 250 | BA38: 250 | BB38: 250 | BC38: 250 | BD38: 250 | BE38: 250 | BF38: 250 | BH38: 99 | BI38: =BI37+1 -> 3 | BJ38: =EDATE(BJ37,1) -> 2026-01-07 | BK38: =I37 -> 250 | BL38: =BK37 -> 250 | BM38: 250 | BN38: 250
A39: 2001-05-01 | B39: terça-feira | C39: Dia do Trabalho | F39: 130 | G39: 4 | H39: 2026-02-07 | I39: =IF($G39>$I$10,0,$I$9) -> 250 | J39: 235.3177394 | K39: 235.3177394 | L39: 2.508487102 | S39: 4 | T39: 250 | U39: 233.6526925 | V39: 233.6526925 | W39: 233.6526925 | X39: 233.6526925 | Y39: 233.6526925 | Z39: 233.6526925 | AH39: 0 | AI39: 0 | AJ39: 0 | AK39: 0 | AL39: 0 | AM39: 0 | AN39: 0 | AO39: 0 | AP39: 0 | AQ39: 0 | AR39: 0 | AS39: 0 | AU39: 250 | AV39: 250 | AW39: 250 | AX39: 250 | AY39: 250 | AZ39: 250 | BA39: 250 | BB39: 250 | BC39: 250 | BD39: 250 | BE39: 250 | BF39: 250 | BH39: 130 | BI39: 4 | BJ39: 2026-02-07 | BK39: 250 | BL39: 250 | BM39: 250 | BN39: 250
A40: 2001-06-14 | B40: quinta-feira | C40: Corpus Christi | F40: 158 | G40: 5 | H40: 2026-03-07 | I40: 250 | J40: 232.2700479 | K40: 232.2700479 | L40: 3.00929074 | S40: 5 | T40: 250 | U40: 230.2741099 | V40: 230.2741099 | W40: 230.2741099 | X40: 230.2741099 | Y40: 230.2741099 | Z40: 230.2741099 | AH40: 0 | AI40: 0 | AJ40: 0 | AK40: 0 | AL40: 0 | AM40: 0 | AN40: 0 | AO40: 0 | AP40: 0 | AQ40: 0 | AR40: 0 | AS40: 0 | AU40: 250 | AV40: 250 | AW40: 250 | AX40: 250 | AY40: 250 | AZ40: 250 | BA40: 250 | BB40: 250 | BC40: 250 | BD40: 250 | BE40: 250 | BF40: 250 | BH40: 158 | BI40: 5 | BJ40: 2026-03-07 | BK40: 250 | BL40: 250 | BM40: 250 | BN40: 250
A41: 2001-09-07 | B41: sexta-feira | C41: Independência do Brasil | F41: 189 | G41: 6 | H41: 2026-04-07 | I41: 250 | J41: 228.9418388 | K41: 228.9418388 | L41: 3.548140617 | S41: 6 | T41: 250 | U41: 226.5904924 | V41: 226.5904924 | W41: 226.5904924 | X41: 226.5904924 | Y41: 226.5904924 | Z41: 226.5904924 | AH41: 0 | AI41: 0 | AJ41: 0 | AK41: 0 | AL41: 0 | AM41: 0 | AN41: 0 | AO41: 0 | AP41: 0 | AQ41: 0 | AR41: 0 | AS41: 0 | AU41: 250 | AV41: 250 | AW41: 250 | AX41: 250 | AY41: 250 | AZ41: 250 | BA41: 250 | BB41: 250 | BC41: 250 | BD41: 250 | BE41: 250 | BF41: 250 | BH41: 189 | BI41: 6 | BJ41: 2026-04-07 | BK41: 250 | BL41: 250 | BM41: 250 | BN41: 250
A42: 2001-10-12 | B42: sexta-feira | C42: Nossa Sr.a Aparecida - Padroeira do Brasil | F42: 219 | G42: 7 | H42: 2026-05-07 | I42: 250 | J42: 225.7664056 | K42: 225.7664056 | L42: 4.054313111 | S42: 7 | T42: 250 | U42: 223.081816 | V42: 223.081816 | W42: 223.081816 | X42: 223.081816 | Y42: 223.081816 | Z42: 223.081816 | AH42: 0 | AI42: 0 | AJ42: 0 | AK42: 0 | AL42: 0 | AM42: 0 | AN42: 0 | AO42: 0 | AP42: 0 | AQ42: 0 | AR42: 0 | AS42: 0 | AU42: 250 | AV42: 250 | AW42: 250 | AX42: 250 | AY42: 250 | AZ42: 250 | BA42: 250 | BB42: 250 | BC42: 250 | BD42: 250 | BE42: 250 | BF42: 250 | BH42: 219 | BI42: 7 | BJ42: 2026-05-07 | BK42: 250 | BL42: 250 | BM42: 250 | BN42: 250
A43: 2001-11-02 | B43: sexta-feira | C43: Finados | F43: 250 | G43: 8 | H43: 2026-06-07 | I43: 250 | J43: 222.5313875 | K43: 222.5313875 | L43: 4.561893444 | S43: 8 | T43: 250 | U43: 219.5132512 | V43: 219.5132512 | W43: 219.5132512 | X43: 219.5132512 | Y43: 219.5132512 | Z43: 219.5132512 | AH43: 0 | AI43: 0 | AJ43: 0 | AK43: 0 | AL43: 0 | AM43: 0 | AN43: 0 | AO43: 0 | AP43: 0 | AQ43: 0 | AR43: 0 | AS43: 0 | AU43: 250 | AV43: 250 | AW43: 250 | AX43: 250 | AY43: 250 | AZ43: 250 | BA43: 250 | BB43: 250 | BC43: 250 | BD43: 250 | BE43: 250 | BF43: 250 | BH43: 250 | BI43: 8 | BJ43: 2026-06-07 | BK43: 250 | BL43: 250 | BM43: 250 | BN43: 250
A44: 2001-11-15 | B44: quinta-feira | C44: Proclamação da República | F44: 280 | G44: 9 | H44: 2026-07-07 | I44: 250 | J44: 219.4448675 | K44: 219.4448675 | L44: 5.038454158 | S44: 9 | T44: 250 | U44: 216.1141634 | V44: 216.1141634 | W44: 216.1141634 | X44: 216.1141634 | Y44: 216.1141634 | Z44: 216.1141634 | AH44: 0 | AI44: 0 | AJ44: 0 | AK44: 0 | AL44: 0 | AM44: 0 | AN44: 0 | AO44: 0 | AP44: 0 | AQ44: 0 | AR44: 0 | AS44: 0 | AU44: 250 | AV44: 250 | AW44: 250 | AX44: 250 | AY44: 250 | AZ44: 250 | BA44: 250 | BB44: 250 | BC44: 250 | BD44: 250 | BE44: 250 | BF44: 250 | BH44: 280 | BI44: 9 | BJ44: 2026-07-07 | BK44: 250 | BL44: 250 | BM44: 250 | BN44: 250
A45: 2001-12-25 | B45: terça-feira | C45: Natal | F45: 311 | G45: 10 | H45: 2026-08-07 | I45: 250 | J45: 216.3004311 | K45: 216.3004311 | L45: 5.516093593 | S45: 10 | T45: 250 | U45: 212.6570578 | V45: 212.6570578 | W45: 212.6570578 | X45: 212.6570578 | Y45: 212.6570578 | Z45: 212.6570578 | AH45: 0 | AI45: 0 | AJ45: 0 | AK45: 0 | AL45: 0 | AM45: 0 | AN45: 0 | AO45: 0 | AP45: 0 | AQ45: 0 | AR45: 0 | AS45: 0 | AU45: 250 | AV45: 250 | AW45: 250 | AX45: 250 | AY45: 250 | AZ45: 250 | BA45: 250 | BB45: 250 | BC45: 250 | BD45: 250 | BE45: 250 | BF45: 250 | BH45: 311 | BI45: 10 | BJ45: 2026-08-07 | BK45: 250 | BL45: 250 | BM45: 250 | BN45: 250
A46: 2002-01-01 | B46: terça-feira | C46: Confraternização Universal | F46: 342 | G46: 11 | H46: 2026-09-07 | I46: 250 | J46: 213.2010514 | K46: 213.2010514 | L46: 5.979010285 | S46: 11 | T46: 250 | U46: 209.2552544 | V46: 209.2552544 | W46: 209.2552544 | X46: 209.2552544 | Y46: 209.2552544 | Z46: 209.2552544 | AH46: 0 | AI46: 0 | AJ46: 0 | AK46: 0 | AL46: 0 | AM46: 0 | AN46: 0 | AO46: 0 | AP46: 0 | AQ46: 0 | AR46: 0 | AS46: 0 | AU46: 250 | AV46: 250 | AW46: 250 | AX46: 250 | AY46: 250 | AZ46: 250 | BA46: 250 | BB46: 250 | BC46: 250 | BD46: 250 | BE46: 250 | BF46: 250 | BH46: 342 | BI46: 11 | BJ46: 2026-09-07 | BK46: 250 | BL46: 250 | BM46: 250 | BN46: 250
A47: 2002-02-11 | B47: segunda-feira | C47: Carnaval | F47: 372 | G47: 12 | H47: 2026-10-07 | I47: 250 | J47: 210.2439436 | K47: 210.2439436 | L47: 6.292601232 | S47: 12 | T47: 250 | U47: 206.0150082 | V47: 206.0150082 | W47: 206.0150082 | X47: 206.0150082 | Y47: 206.0150082 | Z47: 206.0150082 | AH47: 0 | AI47: 0 | AJ47: 0 | AK47: 0 | AL47: 0 | AM47: 0 | AN47: 0 | AO47: 0 | AP47: 0 | AQ47: 0 | AR47: 0 | AS47: 0 | AU47: 250 | AV47: 250 | AW47: 250 | AX47: 250 | AY47: 250 | AZ47: 250 | BA47: 250 | BB47: 250 | BC47: 250 | BD47: 250 | BE47: 250 | BF47: 250 | BH47: 372 | BI47: 12 | BJ47: 2026-10-07 | BK47: 250 | BL47: 250 | BM47: 250 | BN47: 250
A48: 2002-02-12 | B48: terça-feira | C48: Carnaval | F48: 403 | G48: 13 | H48: 2026-11-07 | I48: 250 | J48: 207.2313476 | K48: 207.2313476 | L48: 6.202434235 | S48: 13 | T48: 250 | U48: 202.7194554 | V48: 202.7194554 | W48: 202.7194554 | X48: 202.7194554 | Y48: 202.7194554 | Z48: 202.7194554 | AH48: 0 | AI48: 0 | AJ48: 0 | AK48: 0 | AL48: 0 | AM48: 0 | AN48: 0 | AO48: 0 | AP48: 0 | AQ48: 0 | AR48: 0 | AS48: 0 | AU48: 250 | AV48: 250 | AW48: 250 | AX48: 250 | AY48: 250 | AZ48: 250 | BA48: 250 | BB48: 250 | BC48: 250 | BD48: 250 | BE48: 250 | BF48: 250 | BH48: 403 | BI48: 13 | BJ48: 2026-11-07 | BK48: 250 | BL48: 250 | BM48: 250 | BN48: 250
A49: 2002-03-29 | B49: sexta-feira | C49: Paixão de Cristo | F49: 433 | G49: 14 | H49: 2026-12-07 | I49: 250 | J49: 204.3570399 | K49: 204.3570399 | L49: 6.116406204 | S49: 14 | T49: 250 | U49: 199.5804139 | V49: 199.5804139 | W49: 199.5804139 | X49: 199.5804139 | Y49: 199.5804139 | Z49: 199.5804139 | AH49: 0 | AI49: 0 | AJ49: 0 | AK49: 0 | AL49: 0 | AM49: 0 | AN49: 0 | AO49: 0 | AP49: 0 | AQ49: 0 | AR49: 0 | AS49: 0 | AU49: 250 | AV49: 250 | AW49: 250 | AX49: 250 | AY49: 250 | AZ49: 250 | BA49: 250 | BB49: 250 | BC49: 250 | BD49: 250 | BE49: 250 | BF49: 250 | BH49: 433 | BI49: 14 | BJ49: 2026-12-07 | BK49: 250 | BL49: 250 | BM49: 250 | BN49: 250
A50: 2002-04-21 | B50: domingo | C50: Tiradentes | F50: 464 | G50: 15 | H50: 2027-01-07 | I50: 250 | J50: 201.4287977 | K50: 201.4287977 | L50: 6.028763914 | S50: 15 | T50: 250 | U50: 196.3877931 | V50: 196.3877931 | W50: 196.3877931 | X50: 196.3877931 | Y50: 196.3877931 | Z50: 196.3877931 | AH50: 0 | AI50: 0 | AJ50: 0 | AK50: 0 | AL50: 0 | AM50: 0 | AN50: 0 | AO50: 0 | AP50: 0 | AQ50: 0 | AR50: 0 | AS50: 0 | AU50: 250 | AV50: 250 | AW50: 250 | AX50: 250 | AY50: 250 | AZ50: 250 | BA50: 250 | BB50: 250 | BC50: 250 | BD50: 250 | BE50: 250 | BF50: 250 | BH50: 464 | BI50: 15 | BJ50: 2027-01-07 | BK50: 250 | BL50: 250 | BM50: 250 | BN50: 250
A51: 2002-05-01 | B51: quarta-feira | C51: Dia do Trabalho | F51: 495 | G51: 16 | H51: 2027-02-07 | I51: 250 | J51: 198.5425144 | K51: 198.5425144 | L51: 5.942377455 | S51: 16 | T51: 250 | U51: 193.2462437 | V51: 193.2462437 | W51: 193.2462437 | X51: 193.2462437 | Y51: 193.2462437 | Z51: 193.2462437 | AH51: 0 | AI51: 0 | AJ51: 0 | AK51: 0 | AL51: 0 | AM51: 0 | AN51: 0 | AO51: 0 | AP51: 0 | AQ51: 0 | AR51: 0 | AS51: 0 | AU51: 250 | AV51: 250 | AW51: 250 | AX51: 250 | AY51: 250 | AZ51: 250 | BA51: 250 | BB51: 250 | BC51: 250 | BD51: 250 | BE51: 250 | BF51: 250 | BH51: 495 | BI51: 16 | BJ51: 2027-02-07 | BK51: 250 | BL51: 250 | BM51: 250 | BN51: 250
A52: 2002-05-30 | B52: quinta-feira | C52: Corpus Christi | F52: 523 | G52: 17 | H52: 2027-03-07 | I52: 250 | J52: 195.9711131 | K52: 195.9711131 | L52: 5.865415416 | S52: 17 | T52: 250 | U52: =$T52/((U$29)^($H52-$H$35)) -> 190.4519321 | V52: 190.4519321 | W52: 190.4519321 | X52: 190.4519321 | Y52: 190.4519321 | Z52: 190.4519321 | AH52: 0 | AI52: 0 | AJ52: 0 | AK52: 0 | AL52: 0 | AM52: 0 | AN52: 0 | AO52: 0 | AP52: 0 | AQ52: 0 | AR52: 0 | AS52: 0 | AU52: =$T52 -> 250 | AV52: 250 | AW52: 250 | AX52: 250 | AY52: 250 | AZ52: 250 | BA52: 250 | BB52: 250 | BC52: 250 | BD52: 250 | BE52: 250 | BF52: 250 | BH52: 523 | BI52: 17 | BJ52: 2027-03-07 | BK52: 250 | BL52: 250 | BM52: 250 | BN52: 250
A53: 2002-09-07 | B53: sábado | C53: Independência do Brasil | F53: 554 | G53: 18 | H53: 2027-04-07 | I53: 250 | J53: 193.1630333 | K53: 193.1630333 | L53: 5.781369586 | S53: 18 | T53: 250 | U53: 187.4053366 | V53: 187.4053366 | W53: 187.4053366 | X53: 187.4053366 | Y53: 187.4053366 | Z53: 187.4053366 | AH53: 0 | AI53: 0 | AJ53: 0 | AK53: 0 | AL53: 0 | AM53: 0 | AN53: 0 | AO53: 0 | AP53: 0 | AQ53: 0 | AR53: 0 | AS53: 0 | AU53: 250 | AV53: 250 | AW53: 250 | AX53: 250 | AY53: 250 | AZ53: 250 | BA53: 250 | BB53: 250 | BC53: 250 | BD53: 250 | BE53: 250 | BF53: 250 | BH53: 554 | BI53: 18 | BJ53: 2027-04-07 | BK53: 250 | BL53: 250 | BM53: 250 | BN53: 250
A54: 2002-10-12 | B54: sábado | C54: Nossa Sr.a Aparecida - Padroeira do Brasil | F54: 584 | G54: 19 | H54: 2027-05-07 | I54: 250 | J54: 190.4838536 | K54: 190.4838536 | L54: 5.70118174 | S54: 19 | T54: 250 | U54: 184.503429 | V54: 184.503429 | W54: 184.503429 | X54: 184.503429 | Y54: 184.503429 | Z54: 184.503429 | AH54: 0 | AI54: 0 | AJ54: 0 | AK54: 0 | AL54: 0 | AM54: 0 | AN54: 0 | AO54: 0 | AP54: 0 | AQ54: 0 | AR54: 0 | AS54: 0 | AU54: 250 | AV54: 250 | AW54: 250 | AX54: 250 | AY54: 250 | AZ54: 250 | BA54: 250 | BB54: 250 | BC54: 250 | BD54: 250 | BE54: 250 | BF54: 250 | BH54: 584 | BI54: 19 | BJ54: 2027-05-07 | BK54: 250 | BL54: 250 | BM54: 250 | BN54: 250
A55: 2002-11-02 | B55: sábado | C55: Finados | F55: 615 | G55: 20 | H55: 2027-06-07 | I55: 250 | J55: 187.754401 | K55: 187.754401 | L55: 5.619489222 | S55: 20 | T55: 250 | U55: 181.5519897 | V55: 181.5519897 | W55: 181.5519897 | X55: 181.5519897 | Y55: 181.5519897 | Z55: 181.5519897 | AH55: 0 | AI55: 0 | AJ55: 0 | AK55: 0 | AL55: 0 | AM55: 0 | AN55: 0 | AO55: 0 | AP55: 0 | AQ55: 0 | AR55: 0 | AS55: 0 | AU55: 250 | AV55: 250 | AW55: 250 | AX55: 250 | AY55: 250 | AZ55: 250 | BA55: 250 | BB55: 250 | BC55: 250 | BD55: 250 | BE55: 250 | BF55: 250 | BH55: 615 | BI55: 20 | BJ55: 2027-06-07 | BK55: 250 | BL55: 250 | BM55: 250 | BN55: 250
A56: 2002-11-15 | B56: sexta-feira | C56: Proclamação da República | F56: 645 | G56: 21 | H56: 2027-07-07 | I56: 250 | J56: 185.1502393 | K56: 185.1502393 | L56: 5.541546664 | S56: 21 | T56: 250 | U56: 178.7407191 | V56: 178.7407191 | W56: 178.7407191 | X56: 178.7407191 | Y56: 178.7407191 | Z56: 178.7407191 | AH56: 0 | AI56: 0 | AJ56: 0 | AK56: 0 | AL56: 0 | AM56: 0 | AN56: 0 | AO56: 0 | AP56: 0 | AQ56: 0 | AR56: 0 | AS56: 0 | AU56: 250 | AV56: 250 | AW56: 250 | AX56: 250 | AY56: 250 | AZ56: 250 | BA56: 250 | BB56: 250 | BC56: 250 | BD56: 250 | BE56: 250 | BF56: 250 | BH56: 645 | BI56: 21 | BJ56: 2027-07-07 | BK56: 250 | BL56: 250 | BM56: 250 | BN56: 250
A57: 2002-12-25 | B57: quarta-feira | C57: Natal | F57: 676 | G57: 22 | H57: 2027-08-07 | I57: 250 | J57: 182.4972123 | K57: 182.4972123 | L57: 5.462141565 | S57: 22 | T57: 250 | U57: 175.8814639 | V57: 175.8814639 | W57: 175.8814639 | X57: 175.8814639 | Y57: 175.8814639 | Z57: 175.8814639 | AH57: 0 | AI57: 0 | AJ57: 0 | AK57: 0 | AL57: 0 | AM57: 0 | AN57: 0 | AO57: 0 | AP57: 0 | AQ57: 0 | AR57: 0 | AS57: 0 | AU57: 250 | AV57: 250 | AW57: 250 | AX57: 250 | AY57: 250 | AZ57: 250 | BA57: 250 | BB57: 250 | BC57: 250 | BD57: 250 | BE57: 250 | BF57: 250 | BH57: 676 | BI57: 22 | BJ57: 2027-08-07 | BK57: 250 | BL57: 250 | BM57: 250 | BN57: 250
A58: 2003-01-01 | B58: quarta-feira | C58: Confraternização Universal | F58: 707 | G58: 23 | H58: 2027-09-07 | I58: 250 | J58: 179.8822007 | K58: 179.8822007 | L58: 5.383874266 | S58: 23 | T58: 250 | U58: 173.0679473 | V58: 173.0679473 | W58: 173.0679473 | X58: 173.0679473 | Y58: 173.0679473 | Z58: 173.0679473 | AH58: 0 | AI58: 0 | AJ58: 0 | AK58: 0 | AL58: 0 | AM58: 0 | AN58: 0 | AO58: 0 | AP58: 0 | AQ58: 0 | AR58: 0 | AS58: 0 | AU58: 250 | AV58: 250 | AW58: 250 | AX58: 250 | AY58: 250 | AZ58: 250 | BA58: 250 | BB58: 250 | BC58: 250 | BD58: 250 | BE58: 250 | BF58: 250 | BH58: 707 | BI58: 23 | BJ58: 2027-09-07 | BK58: 250 | BL58: 250 | BM58: 250 | BN58: 250
A59: 2003-03-03 | B59: segunda-feira | C59: Carnaval | F59: 737 | G59: 24 | H59: 2027-10-07 | I59: 250 | J59: 177.3872268 | K59: 177.3872268 | L59: 5.309199697 | S59: 24 | T59: 250 | U59: 170.3880492 | V59: 170.3880492 | W59: 170.3880492 | X59: 170.3880492 | Y59: 170.3880492 | Z59: 170.3880492 | AH59: 0 | AI59: 0 | AJ59: 0 | AK59: =IF($I59<>0,0,X59*$B$1*MIN($F59,365)) -> 0 | AL59: 0 | AM59: 0 | AN59: 0 | AO59: 0 | AP59: 0 | AQ59: 0 | AR59: 0 | AS59: 0 | AU59: 250 | AV59: 250 | AW59: 250 | AX59: 250 | AY59: 250 | AZ59: 250 | BA59: 250 | BB59: 250 | BC59: 250 | BD59: 250 | BE59: 250 | BF59: 250 | BH59: 737 | BI59: 24 | BJ59: 2027-10-07 | BK59: 250 | BL59: 250 | BM59: 250 | BN59: 250
A60: 2003-03-04 | B60: terça-feira | C60: Carnaval | F60: 768 | G60: 25 | H60: 2027-11-07 | I60: 250 | J60: 174.8454363 | K60: 174.8454363 | L60: 5.23312391 | S60: 25 | T60: 250 | U60: 167.6624089 | V60: 167.6624089 | W60: 167.6624089 | X60: 167.6624089 | Y60: 167.6624089 | Z60: 167.6624089 | AH60: 0 | AI60: =IF($I60<>0,0,V60*$B$1*MIN($F60,365)) -> 0 | AJ60: =IF($I60<>0,0,W60*$B$1*MIN($F60,365)) -> 0 | AK60: 0 | AL60: 0 | AM60: 0 | AN60: 0 | AO60: 0 | AP60: 0 | AQ60: 0 | AR60: 0 | AS60: 0 | AU60: 250 | AV60: 250 | AW60: 250 | AX60: 250 | AY60: 250 | AZ60: 250 | BA60: 250 | BB60: 250 | BC60: 250 | BD60: 250 | BE60: 250 | BF60: 250 | BH60: 768 | BI60: 25 | BJ60: 2027-11-07 | BK60: 250 | BL60: 250 | BM60: 250 | BN60: 250
A61: 2003-04-18 | B61: sexta-feira | C61: Paixão de Cristo | F61: 798 | G61: 26 | H61: 2027-12-07 | I61: 250 | J61: 172.4203226 | K61: 172.4203226 | L61: 5.160540255 | S61: 26 | T61: 250 | U61: 165.0662138 | V61: 165.0662138 | W61: 165.0662138 | X61: 165.0662138 | Y61: 165.0662138 | Z61: 165.0662138 | AH61: 0 | AI61: 0 | AJ61: 0 | AK61: 0 | AL61: 0 | AM61: 0 | AN61: 0 | AO61: 0 | AP61: 0 | AQ61: 0 | AR61: 0 | AS61: 0 | AU61: 250 | AV61: 250 | AW61: 250 | AX61: 250 | AY61: 250 | AZ61: 250 | BA61: 250 | BB61: 250 | BC61: 250 | BD61: 250 | BE61: 250 | BF61: 250 | BH61: 798 | BI61: 26 | BJ61: 2027-12-07 | BK61: 250 | BL61: 250 | BM61: 250 | BN61: 250
A62: 2003-04-21 | B62: segunda-feira | C62: Tiradentes | F62: 829 | G62: 27 | H62: 2028-01-07 | I62: 250 | J62: 169.9497032 | K62: 169.9497032 | L62: 5.086594616 | S62: 27 | T62: 250 | U62: 162.4257051 | V62: 162.4257051 | W62: 162.4257051 | X62: 162.4257051 | Y62: 162.4257051 | Z62: 162.4257051 | AH62: 0 | AI62: 0 | AJ62: 0 | AK62: 0 | AL62: 0 | AM62: 0 | AN62: 0 | AO62: 0 | AP62: 0 | AQ62: 0 | AR62: 0 | AS62: 0 | AU62: 250 | AV62: 250 | AW62: 250 | AX62: 250 | AY62: 250 | AZ62: 250 | BA62: 250 | BB62: 250 | BC62: 250 | BD62: 250 | BE62: 250 | BF62: 250 | BH62: 829 | BI62: 27 | BJ62: 2028-01-07 | BK62: 250 | BL62: 250 | BM62: 250 | BN62: 250
A63: 2003-05-01 | B63: quinta-feira | C63: Dia do Trabalho | F63: 860 | G63: 28 | H63: 2028-02-07 | I63: 250 | J63: 167.5144854 | K63: 167.5144854 | L63: 5.013708548 | S63: 28 | T63: 250 | U63: 159.8274357 | V63: 159.8274357 | W63: 159.8274357 | X63: 159.8274357 | Y63: 159.8274357 | Z63: 159.8274357 | AH63: 0 | AI63: 0 | AJ63: 0 | AK63: 0 | AL63: 0 | AM63: 0 | AN63: 0 | AO63: 0 | AP63: 0 | AQ63: 0 | AR63: 0 | AS63: 0 | AU63: 250 | AV63: 250 | AW63: 250 | AX63: 250 | AY63: 250 | AZ63: 250 | BA63: 250 | BB63: 250 | BC63: 250 | BD63: 250 | BE63: 250 | BF63: 250 | BH63: 860 | BI63: 28 | BJ63: 2028-02-07 | BK63: 250 | BL63: 250 | BM63: 250 | BN63: 250
A64: 2003-06-19 | B64: quinta-feira | C64: Corpus Christi | F64: 889 | G64: 29 | H64: 2028-03-07 | I64: 250 | J64: 165.2679783 | K64: 165.2679783 | L64: 4.946470591 | S64: 29 | T64: 250 | U64: 157.4344375 | V64: 157.4344375 | W64: 157.4344375 | X64: 157.4344375 | Y64: 157.4344375 | Z64: 157.4344375 | AH64: 0 | AI64: 0 | AJ64: 0 | AK64: 0 | AL64: 0 | AM64: 0 | AN64: 0 | AO64: 0 | AP64: 0 | AQ64: 0 | AR64: 0 | AS64: 0 | AU64: 250 | AV64: 250 | AW64: 250 | AX64: 250 | AY64: 250 | AZ64: 250 | BA64: 250 | BB64: 250 | BC64: 250 | BD64: 250 | BE64: 250 | BF64: 250 | BH64: 889 | BI64: 29 | BJ64: 2028-03-07 | BK64: 250 | BL64: 250 | BM64: 250 | BN64: 250
A65: 2003-09-07 | B65: domingo | C65: Independência do Brasil | F65: 920 | G65: 30 | H65: 2028-04-07 | I65: 250 | J65: 162.8998452 | K65: 162.8998452 | L65: 4.875592367 | S65: 30 | T65: 250 | U65: 154.9160117 | V65: 154.9160117 | W65: 154.9160117 | X65: 154.9160117 | Y65: 154.9160117 | Z65: 154.9160117 | AH65: 0 | AI65: 0 | AJ65: 0 | AK65: 0 | AL65: 0 | AM65: 0 | AN65: 0 | AO65: 0 | AP65: 0 | AQ65: 0 | AR65: 0 | AS65: 0 | AU65: 250 | AV65: 250 | AW65: 250 | AX65: 250 | AY65: 250 | AZ65: 250 | BA65: 250 | BB65: 250 | BC65: 250 | BD65: 250 | BE65: 250 | BF65: 250 | BH65: 920 | BI65: 30 | BJ65: 2028-04-07 | BK65: 250 | BL65: 250 | BM65: 250 | BN65: 250
A66: 2003-10-12 | B66: domingo | C66: Nossa Sr.a Aparecida - Padroeira do Brasil | F66: 950 | G66: 31 | H66: 2028-05-07 | I66: 250 | J66: 160.6404173 | K66: 160.6404173 | L66: 4.80796769 | S66: 31 | T66: 250 | U66: 152.5171902 | V66: 152.5171902 | W66: 152.5171902 | X66: 152.5171902 | Y66: 152.5171902 | Z66: 152.5171902 | AH66: 0 | AI66: 0 | AJ66: 0 | AK66: 0 | AL66: 0 | AM66: 0 | AN66: 0 | AO66: 0 | AP66: 0 | AQ66: 0 | AR66: 0 | AS66: 0 | AU66: 250 | AV66: 250 | AW66: 250 | AX66: 250 | AY66: 250 | AZ66: 250 | BA66: 250 | BB66: 250 | BC66: 250 | BD66: 250 | BE66: 250 | BF66: 250 | BH66: 950 | BI66: 31 | BJ66: 2028-05-07 | BK66: 250 | BL66: 250 | BM66: 250 | BN66: 250
A67: 2003-11-02 | B67: domingo | C67: Finados | F67: 981 | G67: 32 | H67: 2028-06-07 | I67: 250 | J67: 158.3385928 | K67: 158.3385928 | L67: 4.739074081 | S67: 32 | T67: 250 | U67: 150.077424 | V67: 150.077424 | W67: 150.077424 | X67: 150.077424 | Y67: 150.077424 | Z67: 150.077424 | AH67: 0 | AI67: 0 | AJ67: 0 | AK67: 0 | AL67: 0 | AM67: 0 | AN67: 0 | AO67: 0 | AP67: 0 | AQ67: 0 | AR67: 0 | AS67: 0 | AU67: 250 | AV67: 250 | AW67: 250 | AX67: 250 | AY67: 250 | AZ67: 250 | BA67: 250 | BB67: 250 | BC67: 250 | BD67: 250 | BE67: 250 | BF67: 250 | BH67: 981 | BI67: 32 | BJ67: 2028-06-07 | BK67: 250 | BL67: 250 | BM67: 250 | BN67: 250
A68: 2003-11-15 | B68: sábado | C68: Proclamação da República | F68: 1011 | G68: 33 | H68: 2028-07-07 | I68: 250 | J68: 156.1424296 | K68: 156.1424296 | L68: 4.673342919 | S68: 33 | T68: 250 | U68: =$T68/((U$29)^($H68-$H$35)) -> 147.7535263 | V68: 147.7535263 | W68: 147.7535263 | X68: 147.7535263 | Y68: 147.7535263 | Z68: 147.7535263 | AH68: =IF($I68<>0,0,U68*$B$1*MIN($F68,365)) -> 0 | AI68: 0 | AJ68: 0 | AK68: 0 | AL68: 0 | AM68: 0 | AN68: 0 | AO68: 0 | AP68: 0 | AQ68: 0 | AR68: 0 | AS68: 0 | AU68: =$T68 -> 250 | AV68: 250 | AW68: 250 | AX68: 250 | AY68: 250 | AZ68: 250 | BA68: 250 | BB68: 250 | BC68: 250 | BD68: 250 | BE68: 250 | BF68: 250 | BH68: 1011 | BI68: 33 | BJ68: 2028-07-07 | BK68: 250 | BL68: 250 | BM68: 250 | BN68: 250
A69: 2003-12-25 | B69: quinta-feira | C69: Natal | F69: 1042 | G69: 34 | H69: 2028-08-07 | I69: 250 | J69: 153.905057 | K69: 153.905057 | L69: 4.606378355 | S69: 34 | T69: 250 | U69: 145.3899628 | V69: 145.3899628 | W69: 145.3899628 | X69: 145.3899628 | Y69: 145.3899628 | Z69: 145.3899628 | AH69: 0 | AI69: 0 | AJ69: 0 | AK69: 0 | AL69: 0 | AM69: 0 | AN69: 0 | AO69: 0 | AP69: 0 | AQ69: 0 | AR69: 0 | AS69: 0 | AU69: 250 | AV69: 250 | AW69: 250 | AX69: 250 | AY69: 250 | AZ69: 250 | BA69: 250 | BB69: 250 | BC69: 250 | BD69: 250 | BE69: 250 | BF69: 250 | BH69: 1042 | BI69: 34 | BJ69: 2028-08-07 | BK69: 250 | BL69: 250 | BM69: 250 | BN69: 250
A70: 2004-01-01 | B70: quinta-feira | C70: Confraternização Universal | F70: 1073 | G70: 35 | H70: 2028-09-07 | I70: 250 | J70: 151.6997437 | K70: 151.6997437 | L70: 4.540373329 | S70: 35 | T70: 250 | U70: 143.0642085 | V70: 143.0642085 | W70: 143.0642085 | X70: 143.0642085 | Y70: 143.0642085 | Z70: 143.0642085 | AH70: 0 | AI70: 0 | AJ70: 0 | AK70: 0 | AL70: 0 | AM70: 0 | AN70: 0 | AO70: 0 | AP70: 0 | AQ70: 0 | AR70: 0 | AS70: 0 | AU70: 250 | AV70: 250 | AW70: 250 | AX70: 250 | AY70: 250 | AZ70: 250 | BA70: 250 | BB70: 250 | BC70: 250 | BD70: 250 | BE70: 250 | BF70: 250 | BH70: 1073 | BI70: 35 | BJ70: 2028-09-07 | BK70: 250 | BL70: 250 | BM70: 250 | BN70: 250
A71: 2004-02-23 | B71: segunda-feira | C71: Carnaval | F71: 1103 | G71: 36 | H71: 2028-10-07 | I71: 250 | J71: 149.5956617 | K71: 149.5956617 | L71: 4.477398155 | S71: 36 | T71: 250 | U71: 140.8489081 | V71: 140.8489081 | W71: 140.8489081 | X71: 140.8489081 | Y71: 140.8489081 | Z71: 140.8489081 | AH71: 0 | AI71: 0 | AJ71: 0 | AK71: 0 | AL71: 0 | AM71: 0 | AN71: 0 | AO71: 0 | AP71: 0 | AQ71: 0 | AR71: 0 | AS71: 0 | AU71: 250 | AV71: 250 | AW71: 250 | AX71: 250 | AY71: 250 | AZ71: 250 | BA71: 250 | BB71: 250 | BC71: 250 | BD71: 250 | BE71: 250 | BF71: 250 | BH71: 1103 | BI71: 36 | BJ71: 2028-10-07 | BK71: 250 | BL71: 250 | BM71: 250 | BN71: 250
A72: 2004-02-24 | B72: terça-feira | C72: Carnaval | F72: 1134 | G72: 37 | H72: 2028-11-07 | I72: 250 | J72: 147.452098 | K72: 147.452098 | L72: 4.413241293 | S72: 37 | T72: 250 | U72: 138.5957955 | V72: 138.5957955 | W72: 138.5957955 | X72: 138.5957955 | Y72: 138.5957955 | Z72: 138.5957955 | AH72: 0 | AI72: 0 | AJ72: 0 | AK72: 0 | AL72: 0 | AM72: 0 | AN72: 0 | AO72: 0 | AP72: 0 | AQ72: 0 | AR72: 0 | AS72: 0 | AU72: 250 | AV72: 250 | AW72: 250 | AX72: 250 | AY72: 250 | AZ72: 250 | BA72: 250 | BB72: 250 | BC72: 250 | BD72: 250 | BE72: 250 | BF72: 250 | BH72: 1134 | BI72: 37 | BJ72: 2028-11-07 | BK72: 250 | BL72: 250 | BM72: 250 | BN72: 250
A73: 2004-04-09 | B73: sexta-feira | C73: Paixão de Cristo | F73: 1164 | G73: 38 | H73: 2028-12-07 | I73: 250 | J73: 145.406931 | K73: 145.406931 | L73: 4.352029446 | S73: 38 | T73: 250 | U73: 136.4496869 | V73: 136.4496869 | W73: 136.4496869 | X73: 136.4496869 | Y73: 136.4496869 | Z73: 136.4496869 | AH73: 0 | AI73: 0 | AJ73: 0 | AK73: 0 | AL73: 0 | AM73: 0 | AN73: 0 | AO73: 0 | AP73: 0 | AQ73: 0 | AR73: 0 | AS73: 0 | AU73: 250 | AV73: 250 | AW73: 250 | AX73: 250 | AY73: 250 | AZ73: 250 | BA73: 250 | BB73: 250 | BC73: 250 | BD73: 250 | BE73: 250 | BF73: 250 | BH73: 1164 | BI73: 38 | BJ73: 2028-12-07 | BK73: 250 | BL73: 250 | BM73: 250 | BN73: 250
A74: 2004-04-21 | B74: quarta-feira | C74: Tiradentes | F74: 1195 | G74: 39 | H74: 2029-01-07 | I74: 250 | J74: 143.3233879 | K74: 143.3233879 | L74: 4.289668999 | S74: 39 | T74: 250 | U74: 134.2669471 | V74: 134.2669471 | W74: 134.2669471 | X74: 134.2669471 | Y74: 134.2669471 | Z74: 134.2669471 | AH74: 0 | AI74: 0 | AJ74: 0 | AK74: 0 | AL74: 0 | AM74: 0 | AN74: 0 | AO74: 0 | AP74: 0 | AQ74: 0 | AR74: 0 | AS74: 0 | AU74: 250 | AV74: 250 | AW74: 250 | AX74: 250 | AY74: 250 | AZ74: 250 | BA74: 250 | BB74: 250 | BC74: 250 | BD74: 250 | BE74: 250 | BF74: 250 | BH74: 1195 | BI74: 39 | BJ74: 2029-01-07 | BK74: 250 | BL74: 250 | BM74: 250 | BN74: 250
A75: 2004-05-01 | B75: sábado | C75: Dia do Trabalho | F75: 1226 | G75: 40 | H75: 2029-02-07 | I75: 250 | J75: 141.2696999 | K75: 141.2696999 | L75: 4.228202118 | S75: 40 | T75: 250 | U75: 132.1191239 | V75: 132.1191239 | W75: 132.1191239 | X75: 132.1191239 | Y75: 132.1191239 | Z75: 132.1191239 | AH75: 0 | AI75: 0 | AJ75: 0 | AK75: 0 | AL75: 0 | AM75: 0 | AN75: 0 | AO75: 0 | AP75: 0 | AQ75: 0 | AR75: 0 | AS75: 0 | AU75: 250 | AV75: 250 | AW75: 250 | AX75: 250 | AY75: 250 | AZ75: 250 | BA75: 250 | BB75: 250 | BC75: 250 | BD75: 250 | BE75: 250 | BF75: 250 | BH75: 1226 | BI75: 40 | BJ75: 2029-02-07 | BK75: 250 | BL75: 250 | BM75: 250 | BN75: 250
A76: 2004-06-10 | B76: quinta-feira | C76: Corpus Christi | F76: 1254 | G76: 41 | H76: 2029-03-07 | I76: 250 | J76: 139.4400611 | K76: 139.4400611 | L76: 4.173441029 | S76: 41 | T76: 250 | U76: 130.2087014 | V76: 130.2087014 | W76: 130.2087014 | X76: 130.2087014 | Y76: 130.2087014 | Z76: 130.2087014 | AH76: 0 | AI76: 0 | AJ76: 0 | AK76: 0 | AL76: 0 | AM76: 0 | AN76: 0 | AO76: 0 | AP76: 0 | AQ76: 0 | AR76: 0 | AS76: 0 | AU76: 250 | AV76: 250 | AW76: 250 | AX76: 250 | AY76: 250 | AZ76: 250 | BA76: 250 | BB76: 250 | BC76: 250 | BD76: 250 | BE76: 250 | BF76: 250 | BH76: 1254 | BI76: 41 | BJ76: 2029-03-07 | BK76: 250 | BL76: 250 | BM76: 250 | BN76: 250
A77: 2004-09-07 | B77: terça-feira | C77: Independência do Brasil | F77: 1285 | G77: 42 | H77: 2029-04-07 | I77: 250 | J77: 137.4420175 | K77: 137.4420175 | L77: 4.113639585 | S77: 42 | T77: 250 | U77: 128.1257966 | V77: 128.1257966 | W77: 128.1257966 | X77: 128.1257966 | Y77: 128.1257966 | Z77: 128.1257966 | AH77: 0 | AI77: 0 | AJ77: 0 | AK77: 0 | AL77: 0 | AM77: 0 | AN77: 0 | AO77: 0 | AP77: 0 | AQ77: 0 | AR77: 0 | AS77: 0 | AU77: 250 | AV77: 250 | AW77: 250 | AX77: 250 | AY77: 250 | AZ77: 250 | BA77: 250 | BB77: 250 | BC77: 250 | BD77: 250 | BE77: 250 | BF77: 250 | BH77: 1285 | BI77: 42 | BJ77: 2029-04-07 | BK77: 250 | BL77: 250 | BM77: 250 | BN77: 250
A78: 2004-10-12 | B78: terça-feira | C78: Nossa Sr.a Aparecida - Padroeira do Brasil | F78: 1315 | G78: 43 | H78: 2029-05-07 | I78: 250 | J78: 135.5356908 | K78: 135.5356908 | L78: 4.056583226 | S78: 43 | T78: 250 | U78: 126.1418123 | V78: 126.1418123 | W78: 126.1418123 | X78: 126.1418123 | Y78: 126.1418123 | Z78: 126.1418123 | AH78: 0 | AI78: 0 | AJ78: 0 | AK78: 0 | AL78: 0 | AM78: 0 | AN78: 0 | AO78: 0 | AP78: 0 | AQ78: 0 | AR78: 0 | AS78: 0 | AU78: 250 | AV78: 250 | AW78: 250 | AX78: 250 | AY78: 250 | AZ78: 250 | BA78: 250 | BB78: 250 | BC78: 250 | BD78: 250 | BE78: 250 | BF78: 250 | BH78: 1315 | BI78: 43 | BJ78: 2029-05-07 | BK78: 250 | BL78: 250 | BM78: 250 | BN78: 250
A79: 2004-11-02 | B79: terça-feira | C79: Finados | F79: 1346 | G79: 44 | H79: 2029-06-07 | I79: 250 | J79: 133.5935931 | K79: 133.5935931 | L79: 3.998456242 | S79: 44 | T79: 250 | U79: 124.1239642 | V79: 124.1239642 | W79: 124.1239642 | X79: 124.1239642 | Y79: 124.1239642 | Z79: 124.1239642 | AH79: 0 | AI79: 0 | AJ79: 0 | AK79: 0 | AL79: 0 | AM79: 0 | AN79: 0 | AO79: 0 | AP79: 0 | AQ79: 0 | AR79: 0 | AS79: 0 | AU79: 250 | AV79: 250 | AW79: 250 | AX79: 250 | AY79: 250 | AZ79: 250 | BA79: 250 | BB79: 250 | BC79: 250 | BD79: 250 | BE79: 250 | BF79: 250 | BH79: 1346 | BI79: 44 | BJ79: 2029-06-07 | BK79: 250 | BL79: 250 | BM79: 250 | BN79: 250
A80: 2004-11-15 | B80: segunda-feira | C80: Proclamação da República | F80: 1376 | G80: 45 | H80: 2029-07-07 | I80: 250 | J80: 131.7406442 | K80: 131.7406442 | L80: 3.942997481 | S80: 45 | T80: 250 | U80: 122.201947 | V80: 122.201947 | W80: 122.201947 | X80: 122.201947 | Y80: 122.201947 | Z80: 122.201947 | AH80: 0 | AI80: 0 | AJ80: 0 | AK80: 0 | AL80: 0 | AM80: 0 | AN80: 0 | AO80: 0 | AP80: 0 | AQ80: 0 | AR80: 0 | AS80: 0 | AU80: 250 | AV80: 250 | AW80: 250 | AX80: 250 | AY80: 250 | AZ80: 250 | BA80: 250 | BB80: 250 | BC80: 250 | BD80: 250 | BE80: 250 | BF80: 250 | BH80: 1376 | BI80: 45 | BJ80: 2029-07-07 | BK80: 250 | BL80: 250 | BM80: 250 | BN80: 250
A81: 2004-12-25 | B81: sábado | C81: Natal | F81: 1407 | G81: 46 | H81: 2029-08-07 | I81: 250 | J81: 129.8529259 | K81: 129.8529259 | L81: 3.886498074 | S81: 46 | T81: 250 | U81: 120.2471235 | V81: 120.2471235 | W81: 120.2471235 | X81: 120.2471235 | Y81: 120.2471235 | Z81: 120.2471235 | AH81: 0 | AI81: 0 | AJ81: 0 | AK81: 0 | AL81: 0 | AM81: 0 | AN81: 0 | AO81: 0 | AP81: 0 | AQ81: 0 | AR81: 0 | AS81: 0 | AU81: 250 | AV81: 250 | AW81: 250 | AX81: 250 | AY81: 250 | AZ81: 250 | BA81: 250 | BB81: 250 | BC81: 250 | BD81: 250 | BE81: 250 | BF81: 250 | BH81: 1407 | BI81: 46 | BJ81: 2029-08-07 | BK81: 250 | BL81: 250 | BM81: 250 | BN81: 250
A82: 2005-01-01 | B82: sábado | C82: Confraternização Universal | F82: 1438 | G82: 47 | H82: 2029-09-07 | I82: 250 | J82: 127.9922569 | K82: 127.9922569 | L82: 3.830808249 | S82: 47 | T82: 250 | U82: 118.3235707 | V82: 118.3235707 | W82: 118.3235707 | X82: 118.3235707 | Y82: 118.3235707 | Z82: 118.3235707 | AH82: 0 | AI82: 0 | AJ82: 0 | AK82: 0 | AL82: 0 | AM82: 0 | AN82: 0 | AO82: 0 | AP82: 0 | AQ82: 0 | AR82: 0 | AS82: 0 | AU82: 250 | AV82: 250 | AW82: 250 | AX82: 250 | AY82: 250 | AZ82: 250 | BA82: 250 | BB82: 250 | BC82: 250 | BD82: 250 | BE82: 250 | BF82: 250 | BH82: 1438 | BI82: 47 | BJ82: 2029-09-07 | BK82: 250 | BL82: 250 | BM82: 250 | BN82: 250
A83: 2005-02-07 | B83: segunda-feira | C83: Carnaval | F83: 1468 | G83: 48 | H83: 2029-10-07 | I83: 250 | J83: 126.2169988 | K83: 126.2169988 | L83: 3.777674773 | S83: 48 | T83: 250 | U83: 116.4913706 | V83: 116.4913706 | W83: 116.4913706 | X83: 116.4913706 | Y83: 116.4913706 | Z83: 116.4913706 | AH83: 0 | AI83: 0 | AJ83: 0 | AK83: 0 | AL83: 0 | AM83: 0 | AN83: 0 | AO83: 0 | AP83: 0 | AQ83: 0 | AR83: 0 | AS83: 0 | AU83: 250 | AV83: 250 | AW83: 250 | AX83: 250 | AY83: 250 | AZ83: 250 | BA83: 250 | BB83: 250 | BC83: 250 | BD83: 250 | BE83: 250 | BF83: 250 | BH83: 1468 | BI83: 48 | BJ83: 2029-10-07 | BK83: 250 | BL83: 250 | BM83: 250 | BN83: 250
A84: 2005-02-08 | B84: terça-feira | C84: Carnaval | F84: 1499 | G84: 49 | H84: 2029-11-07 | I84: 250 | J84: 124.4084291 | K84: 124.4084291 | L84: 3.723544282 | S84: 49 | T84: 250 | U84: =$T84/((U$29)^($H84-$H$35)) -> 114.6278974 | V84: 114.6278974 | W84: 114.6278974 | X84: 114.6278974 | Y84: 114.6278974 | Z84: 114.6278974 | AH84: 0 | AI84: 0 | AJ84: 0 | AK84: 0 | AL84: 0 | AM84: 0 | AN84: 0 | AO84: 0 | AP84: 0 | AQ84: 0 | AR84: 0 | AS84: 0 | AU84: =$T84 -> 250 | AV84: 250 | AW84: 250 | AX84: 250 | AY84: 250 | AZ84: 250 | BA84: 250 | BB84: 250 | BC84: 250 | BD84: 250 | BE84: 250 | BF84: 250 | BH84: 1499 | BI84: 49 | BJ84: 2029-11-07 | BK84: 250 | BL84: 250 | BM84: 250 | BN84: 250
A85: 2005-03-25 | B85: sexta-feira | C85: Paixão de Cristo | F85: 1529 | G85: 50 | H85: 2029-12-07 | I85: 250 | J85: 122.6828788 | K85: 122.6828788 | L85: 3.671898562 | S85: 50 | T85: 250 | U85: 112.8529235 | V85: 112.8529235 | W85: 112.8529235 | X85: 112.8529235 | Y85: 112.8529235 | Z85: 112.8529235 | AH85: 0 | AI85: 0 | AJ85: 0 | AK85: 0 | AL85: 0 | AM85: 0 | AN85: 0 | AO85: 0 | AP85: 0 | AQ85: 0 | AR85: 0 | AS85: 0 | AU85: 250 | AV85: 250 | AW85: 250 | AX85: 250 | AY85: 250 | AZ85: 250 | BA85: 250 | BB85: 250 | BC85: 250 | BD85: 250 | BE85: 250 | BF85: 250 | BH85: 1529 | BI85: 50 | BJ85: 2029-12-07 | BK85: 250 | BL85: 250 | BM85: 250 | BN85: 250
A86: 2005-04-21 | B86: quinta-feira | C86: Tiradentes | F86: 1560 | G86: 51 | H86: 2030-01-07 | I86: 250 | J86: 120.9249497 | K86: 120.9249497 | L86: 3.619283744 | S86: 51 | T86: 250 | U86: 111.0476533 | V86: 111.0476533 | W86: 111.0476533 | X86: 111.0476533 | Y86: 111.0476533 | Z86: 111.0476533 | AH86: 0 | AI86: 0 | AJ86: 0 | AK86: 0 | AL86: 0 | AM86: 0 | AN86: 0 | AO86: 0 | AP86: 0 | AQ86: 0 | AR86: 0 | AS86: 0 | AU86: 250 | AV86: 250 | AW86: 250 | AX86: 250 | AY86: 250 | AZ86: 250 | BA86: 250 | BB86: 250 | BC86: 250 | BD86: 250 | BE86: 250 | BF86: 250 | BH86: 1560 | BI86: 51 | BJ86: 2030-01-07 | BK86: 250 | BL86: 250 | BM86: 250 | BN86: 250
A87: 2005-05-01 | B87: domingo | C87: Dia do Trabalho | F87: 1591 | G87: 52 | H87: 2030-02-07 | I87: 250 | J87: 119.1922101 | K87: 119.1922101 | L87: 3.567422847 | S87: 52 | T87: 250 | U87: 109.2712613 | V87: 109.2712613 | W87: 109.2712613 | X87: 109.2712613 | Y87: 109.2712613 | Z87: 109.2712613 | AH87: 0 | AI87: 0 | AJ87: 0 | AK87: 0 | AL87: 0 | AM87: 0 | AN87: =IF($I87<>0,0,AA87*$B$1*MIN($F87,365)) -> 0 | AO87: 0 | AP87: 0 | AQ87: 0 | AR87: 0 | AS87: 0 | AU87: 250 | AV87: 250 | AW87: 250 | AX87: 250 | AY87: 250 | AZ87: 250 | BA87: 250 | BB87: 250 | BC87: 250 | BD87: 250 | BE87: 250 | BF87: 250 | BH87: 1591 | BI87: 52 | BJ87: 2030-02-07 | BK87: 250 | BL87: 250 | BM87: 250 | BN87: 250
A88: 2005-05-26 | B88: quinta-feira | C88: Corpus Christi | F88: 1619 | G88: 53 | H88: 2030-03-07 | I88: 250 | J88: 117.6485054 | K88: 117.6485054 | L88: 3.521219768 | S88: 53 | T88: 250 | U88: 107.6912154 | V88: 107.6912154 | W88: 107.6912154 | X88: 107.6912154 | Y88: 107.6912154 | Z88: 107.6912154 | AH88: 0 | AI88: 0 | AJ88: 0 | AK88: =IF($I88<>0,0,X88*$B$1*MIN($F88,365)) -> 0 | AL88: =IF($I88<>0,0,Y88*$B$1*MIN($F88,365)) -> 0 | AM88: =IF($I88<>0,0,Z88*$B$1*MIN($F88,365)) -> 0 | AN88: 0 | AO88: 0 | AP88: 0 | AQ88: 0 | AR88: 0 | AS88: 0 | AU88: 250 | AV88: 250 | AW88: 250 | AX88: 250 | AY88: 250 | AZ88: 250 | BA88: 250 | BB88: 250 | BC88: 250 | BD88: 250 | BE88: 250 | BF88: 250 | BH88: 1619 | BI88: 53 | BJ88: 2030-03-07 | BK88: 250 | BL88: 250 | BM88: 250 | BN88: 250
A89: 2005-09-07 | B89: quarta-feira | C89: Independência do Brasil | F89: 1650 | G89: 54 | H89: 2030-04-07 | I89: 250 | J89: 115.9627141 | K89: 115.9627141 | L89: 3.470764034 | S89: 54 | T89: 250 | U89: 105.9685152 | V89: 105.9685152 | W89: 105.9685152 | X89: 105.9685152 | Y89: 105.9685152 | Z89: 105.9685152 | AH89: 0 | AI89: 0 | AJ89: 0 | AK89: 0 | AL89: 0 | AM89: 0 | AN89: 0 | AO89: 0 | AP89: 0 | AQ89: 0 | AR89: 0 | AS89: 0 | AU89: 250 | AV89: 250 | AW89: 250 | AX89: 250 | AY89: 250 | AZ89: 250 | BA89: 250 | BB89: 250 | BC89: 250 | BD89: 250 | BE89: 250 | BF89: 250 | BH89: 1650 | BI89: 54 | BJ89: 2030-04-07 | BK89: 250 | BL89: 250 | BM89: 250 | BN89: 250
A90: 2005-10-12 | B90: quarta-feira | C90: Nossa Sr.a Aparecida - Padroeira do Brasil | F90: 1680 | G90: 55 | H90: 2030-05-07 | I90: 250 | J90: 114.3543063 | K90: 114.3543063 | L90: 3.422624387 | S90: 55 | T90: 250 | U90: 104.3276289 | V90: 104.3276289 | W90: 104.3276289 | X90: 104.3276289 | Y90: 104.3276289 | Z90: 104.3276289 | AH90: 0 | AI90: 0 | AJ90: 0 | AK90: 0 | AL90: 0 | AM90: 0 | AN90: 0 | AO90: 0 | AP90: 0 | AQ90: 0 | AR90: 0 | AS90: 0 | AU90: 250 | AV90: 250 | AW90: 250 | AX90: 250 | AY90: 250 | AZ90: 250 | BA90: 250 | BB90: 250 | BC90: 250 | BD90: 250 | BE90: 250 | BF90: 250 | BH90: 1680 | BI90: 55 | BJ90: 2030-05-07 | BK90: 250 | BL90: 250 | BM90: 250 | BN90: 250
A91: 2005-11-02 | B91: quarta-feira | C91: Finados | F91: 1711 | G91: 56 | H91: 2030-06-07 | I91: 250 | J91: 112.7157177 | K91: 112.7157177 | L91: 3.373581431 | S91: 56 | T91: 250 | U91: 102.6587349 | V91: 102.6587349 | W91: 102.6587349 | X91: 102.6587349 | Y91: 102.6587349 | Z91: 102.6587349 | AH91: 0 | AI91: 0 | AJ91: 0 | AK91: 0 | AL91: 0 | AM91: 0 | AN91: 0 | AO91: 0 | AP91: 0 | AQ91: 0 | AR91: 0 | AS91: 0 | AU91: 250 | AV91: 250 | AW91: 250 | AX91: 250 | AY91: 250 | AZ91: 250 | BA91: 250 | BB91: 250 | BC91: 250 | BD91: 250 | BE91: 250 | BF91: 250 | BH91: 1711 | BI91: 56 | BJ91: 2030-06-07 | BK91: 250 | BL91: 250 | BM91: 250 | BN91: 250
A92: 2005-11-15 | B92: terça-feira | C92: Proclamação da República | F92: 1741 | G92: 57 | H92: 2030-07-07 | I92: 250 | J92: 111.1523458 | K92: 111.1523458 | L92: 3.326789711 | S92: 57 | T92: 250 | U92: 101.0690995 | V92: 101.0690995 | W92: 101.0690995 | X92: 101.0690995 | Y92: 101.0690995 | Z92: 101.0690995 | AH92: 0 | AI92: 0 | AJ92: 0 | AK92: 0 | AL92: 0 | AM92: 0 | AN92: 0 | AO92: 0 | AP92: 0 | AQ92: 0 | AR92: 0 | AS92: 0 | AU92: 250 | AV92: 250 | AW92: 250 | AX92: 250 | AY92: 250 | AZ92: 250 | BA92: 250 | BB92: 250 | BC92: 250 | BD92: 250 | BE92: 250 | BF92: 250 | BH92: 1741 | BI92: 57 | BJ92: 2030-07-07 | BK92: 250 | BL92: 250 | BM92: 250 | BN92: 250
A93: 2005-12-25 | B93: domingo | C93: Natal | F93: 1772 | G93: 58 | H93: 2030-08-07 | I93: 250 | J93: 109.5596383 | K93: 109.5596383 | L93: 3.279119975 | S93: 58 | T93: 250 | U93: 99.45233108 | V93: 99.45233108 | W93: 99.45233108 | X93: 99.45233108 | Y93: 99.45233108 | Z93: 99.45233108 | AH93: 0 | AI93: 0 | AJ93: 0 | AK93: 0 | AL93: 0 | AM93: 0 | AN93: 0 | AO93: 0 | AP93: 0 | AQ93: 0 | AR93: 0 | AS93: 0 | AU93: 250 | AV93: 250 | AW93: 250 | AX93: 250 | AY93: 250 | AZ93: 250 | BA93: 250 | BB93: 250 | BC93: 250 | BD93: 250 | BE93: 250 | BF93: 250 | BH93: 1772 | BI93: 58 | BJ93: 2030-08-07 | BK93: 250 | BL93: 250 | BM93: 250 | BN93: 250
A94: 2006-01-01 | B94: domingo | C94: Confraternização Universal | F94: 1803 | G94: 59 | H94: 2030-09-07 | I94: 250 | J94: 107.9897528 | K94: 107.9897528 | L94: 3.232133301 | S94: 59 | T94: 250 | U94: 97.86142559 | V94: 97.86142559 | W94: 97.86142559 | X94: 97.86142559 | Y94: 97.86142559 | Z94: 97.86142559 | AH94: 0 | AI94: 0 | AJ94: 0 | AK94: 0 | AL94: 0 | AM94: 0 | AN94: 0 | AO94: 0 | AP94: 0 | AQ94: 0 | AR94: 0 | AS94: 0 | AU94: 250 | AV94: 250 | AW94: 250 | AX94: 250 | AY94: 250 | AZ94: 250 | BA94: 250 | BB94: 250 | BC94: 250 | BD94: 250 | BE94: 250 | BF94: 250 | BH94: 1803 | BI94: 59 | BJ94: 2030-09-07 | BK94: 250 | BL94: 250 | BM94: 250 | BN94: 0
A95: 2006-02-27 | B95: segunda-feira | C95: Carnaval | F95: 1833 | G95: 60 | H95: 2030-10-07 | I95: 250 | J95: 106.4919303 | K95: 106.4919303 | L95: 3.187303473 | S95: 60 | T95: 250 | U95: 96.34607482 | V95: 96.34607482 | W95: 96.34607482 | X95: 96.34607482 | Y95: 96.34607482 | Z95: 96.34607482 | AH95: 0 | AI95: 0 | AJ95: 0 | AK95: 0 | AL95: 0 | AM95: 0 | AN95: 0 | AO95: 0 | AP95: 0 | AQ95: 0 | AR95: 0 | AS95: 0 | AU95: 250 | AV95: 250 | AW95: 250 | AX95: 250 | AY95: 250 | AZ95: 250 | BA95: 250 | BB95: 250 | BC95: 250 | BD95: 250 | BE95: 250 | BF95: 250 | BH95: 1833 | BI95: 60 | BJ95: 2030-10-07 | BK95: 250 | BL95: 250 | BM95: 0 | BN95: 0
A96: 2006-02-28 | B96: terça-feira | C96: Carnaval | F96: 1864 | G96: 61 | H96: 2030-11-07 | I96: 0 | J96: 0 | K96: 0 | L96: 0 | S96: 61 | T96: 250 | U96: 94.80485907 | V96: 94.80485907 | W96: 94.80485907 | X96: 94.80485907 | Y96: 94.80485907 | Z96: 94.80485907 | AH96: 2.837509432 | AI96: 2.837509432 | AJ96: 2.837509432 | AK96: 2.837509432 | AL96: 2.837509432 | AM96: 2.837509432 | AU96: 250 | AV96: 250 | AW96: 250 | AX96: 250 | AY96: 250 | AZ96: 250 | BA96: 250 | BB96: 250 | BC96: 250 | BD96: 250 | BE96: 250 | BF96: 250 | BH96: 1864 | BI96: 61 | BJ96: 2030-11-07 | BK96: 250 | BL96: 250 | BM96: 0 | BN96: 0
A97: 2006-04-14 | B97: sexta-feira | C97: Paixão de Cristo | F97: 1894 | G97: 62 | H97: 2030-12-07 | I97: 0 | J97: 0 | K97: 0 | L97: 0 | S97: 62 | T97: 250 | U97: 93.33683819 | V97: 93.33683819 | W97: 93.33683819 | X97: 93.33683819 | Y97: 93.33683819 | Z97: 93.33683819 | AH97: 2.793571567 | AI97: 2.793571567 | AJ97: 2.793571567 | AK97: 2.793571567 | AL97: 2.793571567 | AM97: 2.793571567 | AU97: 250 | AV97: 250 | AW97: 250 | AX97: 250 | AY97: 250 | AZ97: 250 | BA97: 250 | BB97: 250 | BC97: 250 | BD97: 250 | BE97: 250 | BF97: 250 | BH97: 1894 | BI97: 62 | BJ97: 2030-12-07 | BK97: 0 | BL97: 250 | BM97: 0 | BN97: 0
A98: 2006-04-21 | B98: sexta-feira | C98: Tiradentes | F98: 1925 | G98: 63 | H98: 2031-01-07 | I98: 0 | J98: 0 | K98: 0 | L98: 0 | S98: 63 | T98: 250 | U98: 91.84376019 | V98: 91.84376019 | W98: 91.84376019 | X98: 91.84376019 | Y98: 91.84376019 | Z98: 91.84376019 | AH98: 2.748883742 | AI98: 2.748883742 | AJ98: 2.748883742 | AK98: 2.748883742 | AL98: 2.748883742 | AM98: 2.748883742 | AU98: 250 | AV98: 250 | AW98: 250 | AX98: 250 | AY98: 250 | AZ98: 250 | BA98: 250 | BB98: 250 | BC98: 250 | BD98: 250 | BE98: 250 | BF98: 250 | BH98: 1925 | BI98: 63 | BJ98: 2031-01-07 | BK98: 0 | BL98: 0 | BM98: 0 | BN98: 0
A99: 2006-05-01 | B99: segunda-feira | C99: Dia do Trabalho | F99: 1956 | G99: 64 | H99: 2031-02-07 | I99: 0 | J99: 0 | K99: 0 | L99: 0 | S99: 64 | T99: 250 | U99: 90.37456645 | V99: 90.37456645 | W99: 90.37456645 | X99: 90.37456645 | Y99: 90.37456645 | Z99: 90.37456645 | AH99: 2.704910774 | AI99: 2.704910774 | AJ99: 2.704910774 | AK99: 2.704910774 | AL99: 2.704910774 | AM99: 2.704910774 | AU99: 250 | AV99: 250 | AW99: 250 | AX99: 250 | AY99: 250 | AZ99: 250 | BA99: 250 | BB99: 250 | BC99: 250 | BD99: 250 | BE99: 250 | BF99: 250 | BH99: 1956 | BI99: 64 | BJ99: 2031-02-07 | BK99: 0 | BL99: 0 | BM99: 0 | BN99: 0
A100: 2006-06-15 | B100: quinta-feira | C100: Corpus Christi | F100: 1984 | G100: 65 | H100: 2031-03-07 | I100: 0 | J100: =I100/($J$32^(H100-$H$35)) -> 0 | K100: =I100/($I$32^(H100-$H$35)) -> 0 | L100: 0 | S100: 65 | T100: =IF($G100>$P$3,0,$J$9) -> 250 | U100: =$T100/((U$29)^($H100-$H$35)) -> 89.06776385 | V100: 89.06776385 | W100: 89.06776385 | X100: 89.06776385 | Y100: 89.06776385 | Z100: 89.06776385 | AH100: 2.665798172 | AI100: 2.665798172 | AJ100: 2.665798172 | AK100: 2.665798172 | AL100: 2.665798172 | AM100: 2.665798172 | AU100: =$T100 -> 250 | AV100: 250 | AW100: 250 | AX100: 250 | AY100: 250 | AZ100: 250 | BA100: 250 | BB100: 250 | BC100: 250 | BD100: 250 | BE100: 250 | BF100: 250 | BH100: 1984 | BI100: 65 | BJ100: 2031-03-07 | BK100: 0 | BL100: 0 | BM100: 0 | BN100: 0
A101: 2006-09-07 | B101: quinta-feira | C101: Independência do Brasil | F101: =H101-$H$35 -> 2015 | G101: 66 | H101: 2031-04-07 | I101: 0 | J101: 0 | K101: 0 | L101: =J101*0.0082%*MIN(F101,365) -> 0 | S101: =S100+1 -> 66 | T101: 250 | U101: 87.64297679 | V101: 87.64297679 | W101: 87.64297679 | X101: 87.64297679 | Y101: 87.64297679 | Z101: 87.64297679 | AH101: =IF($I101<>0,0,U101*$B$1*MIN($F101,365)) -> 2.623154295 | AI101: 2.623154295 | AJ101: 2.623154295 | AK101: 2.623154295 | AL101: 2.623154295 | AM101: 2.623154295 | AU101: 250 | AV101: 250 | AW101: 250 | AX101: 250 | AY101: 250 | AZ101: 250 | BA101: 250 | BB101: 250 | BC101: 250 | BD101: 250 | BE101: 250 | BF101: 250 | BH101: =BJ101-$H$35 -> 2015 | BI101: 66 | BJ101: 2031-04-07 | BK101: 0 | BL101: 0 | BM101: =I102 -> 0 | BN101: =BM102 -> 0
A102: 2006-10-12 | B102: quinta-feira | C102: Nossa Sr.a Aparecida - Padroeira do Brasil | F102: 2045 | G102: =G101+1 -> 67 | H102: =EDATE(H101,1) -> 2031-05-07 | I102: =IF($G102>$I$10,0,$I$9) -> 0 | J102: 0 | K102: 0 | L102: 0 | S102: 67 | T102: 250 | U102: 86.28585522 | V102: 86.28585522 | W102: 86.28585522 | X102: 86.28585522 | Y102: 86.28585522 | Z102: 86.28585522 | AH102: 2.582535647 | AI102: 2.582535647 | AJ102: 2.582535647 | AK102: 2.582535647 | AL102: 2.582535647 | AM102: 2.582535647 | AU102: 250 | AV102: 250 | AW102: 250 | AX102: 250 | AY102: 250 | AZ102: 250 | BA102: 250 | BB102: 250 | BC102: 250 | BD102: 250 | BE102: 250 | BF102: 250 | BH102: 2045 | BI102: =BI101+1 -> 67 | BJ102: =EDATE(BJ101,1) -> 2031-05-07 | BK102: =I101 -> 0 | BL102: =BK101 -> 0 | BM102: 0 | BN102: 0
A103: 2006-11-02 | B103: quinta-feira | C103: Finados | F103: 2076 | G103: 68 | H103: 2031-06-07 | I103: 0 | J103: 0 | K103: 0 | L103: 0 | S103: 68 | T103: 250 | U103: 84.90556941 | V103: 84.90556941 | W103: 84.90556941 | X103: 84.90556941 | Y103: 84.90556941 | Z103: 84.90556941 | AH103: 2.541223693 | AI103: 2.541223693 | AJ103: 2.541223693 | AK103: 2.541223693 | AL103: 2.541223693 | AM103: 2.541223693 | AU103: 250 | AV103: 250 | AW103: 250 | AX103: 250 | AY103: 250 | AZ103: 250 | BA103: 250 | BB103: 250 | BC103: 250 | BD103: 250 | BE103: 250 | BF103: 250 | BH103: 2076 | BI103: 68 | BJ103: 2031-06-07 | BK103: 0 | BL103: 0 | BM103: 0 | BN103: 0
A104: 2006-11-15 | B104: quarta-feira | C104: Proclamação da República | F104: 2106 | G104: 69 | H104: 2031-07-07 | I104: 0 | J104: 0 | K104: 0 | L104: 0 | S104: 69 | T104: 250 | U104: 83.59083566 | V104: 83.59083566 | W104: 83.59083566 | X104: 83.59083566 | Y104: 83.59083566 | Z104: 83.59083566 | AH104: 2.501873711 | AI104: 2.501873711 | AJ104: 2.501873711 | AK104: 2.501873711 | AL104: 2.501873711 | AM104: 2.501873711 | AU104: 250 | AV104: 250 | AW104: 250 | AX104: 250 | AY104: 250 | AZ104: 250 | BA104: 250 | BB104: 250 | BC104: 250 | BD104: 250 | BE104: 250 | BF104: 250 | BH104: 2106 | BI104: 69 | BJ104: 2031-07-07 | BK104: 0 | BL104: 0 | BM104: 0 | BN104: 0
A105: 2006-12-25 | B105: segunda-feira | C105: Natal | F105: 2137 | G105: 70 | H105: 2031-08-07 | I105: 0 | J105: 0 | K105: 0 | L105: 0 | S105: 70 | T105: 250 | U105: 82.25366118 | V105: 82.25366118 | W105: 82.25366118 | X105: 82.25366118 | Y105: 82.25366118 | Z105: 82.25366118 | AH105: 2.461852079 | AI105: 2.461852079 | AJ105: 2.461852079 | AK105: 2.461852079 | AL105: 2.461852079 | AM105: 2.461852079 | AU105: 250 | AV105: 250 | AW105: 250 | AX105: 250 | AY105: 250 | AZ105: 250 | BA105: 250 | BB105: 250 | BC105: 250 | BD105: 250 | BE105: 250 | BF105: 250 | BH105: 2137 | BI105: 70 | BJ105: 2031-08-07 | BK105: 0 | BL105: 0 | BM105: 0 | BN105: 0
A106: 2007-01-01 | B106: segunda-feira | C106: Confraternização Universal | F106: 2168 | G106: 71 | H106: 2031-09-07 | I106: 0 | J106: 0 | K106: 0 | L106: 0 | S106: 71 | T106: 250 | U106: 80.93787702 | V106: 80.93787702 | W106: 80.93787702 | X106: 80.93787702 | Y106: 80.93787702 | Z106: 80.93787702 | AH106: 2.422470659 | AI106: 2.422470659 | AJ106: 2.422470659 | AK106: 2.422470659 | AL106: 2.422470659 | AM106: 2.422470659 | AU106: 250 | AV106: 250 | AW106: 250 | AX106: 250 | AY106: 250 | AZ106: 250 | BA106: 250 | BB106: 250 | BC106: 250 | BD106: 250 | BE106: 250 | BF106: 250 | BH106: 2168 | BI106: 71 | BJ106: 2031-09-07 | BK106: 0 | BL106: 0 | BM106: 0 | BN106: 0
A107: 2007-02-19 | B107: segunda-feira | C107: Carnaval | F107: 2198 | G107: 72 | H107: 2031-10-07 | I107: 0 | J107: 0 | K107: 0 | L107: 0 | S107: 72 | T107: 250 | U107: 79.68458163 | V107: 79.68458163 | W107: 79.68458163 | X107: 79.68458163 | Y107: 79.68458163 | Z107: 79.68458163 | AH107: 2.384959528 | AI107: 2.384959528 | AJ107: 2.384959528 | AK107: 2.384959528 | AL107: 2.384959528 | AM107: 2.384959528 | AU107: 250 | AV107: 250 | AW107: 250 | AX107: 250 | AY107: 250 | AZ107: 250 | BA107: 250 | BB107: 250 | BC107: 250 | BD107: 250 | BE107: 250 | BF107: 250 | BH107: 2198 | BI107: 72 | BJ107: 2031-10-07 | BK107: 0 | BL107: 0 | BM107: 0 | BN107: 0
A108: 2007-02-20 | B108: terça-feira | C108: Carnaval | F108: 2229 | G108: 73 | H108: 2031-11-07 | I108: 0 | J108: 0 | K108: 0 | L108: 0 | S108: 73 | T108: 250 | U108: 78.40989418 | V108: 78.40989418 | W108: 78.40989418 | X108: 78.40989418 | Y108: 78.40989418 | Z108: 78.40989418 | AH108: 2.346808133 | AI108: 2.346808133 | AJ108: 2.346808133 | AK108: 2.346808133 | AL108: 2.346808133 | AM108: 2.346808133 | AU108: 250 | AV108: 250 | AW108: 250 | AX108: 250 | AY108: 250 | AZ108: 250 | BA108: 250 | BB108: 250 | BC108: 250 | BD108: 250 | BE108: 250 | BF108: 250 | BH108: 2229 | BI108: 73 | BJ108: 2031-11-07 | BK108: 0 | BL108: 0 | BM108: 0 | BN108: 0
A109: 2007-04-06 | B109: sexta-feira | C109: Paixão de Cristo | F109: 2259 | G109: 74 | H109: 2031-12-07 | I109: 0 | J109: 0 | K109: 0 | L109: 0 | S109: 74 | T109: 250 | U109: 77.19574374 | V109: 77.19574374 | W109: 77.19574374 | X109: 77.19574374 | Y109: 77.19574374 | Z109: 77.19574374 | AH109: 2.31046861 | AI109: 2.31046861 | AJ109: 2.31046861 | AK109: 2.31046861 | AL109: 2.31046861 | AM109: 2.31046861 | AU109: 250 | AV109: 250 | AW109: 250 | AX109: 250 | AY109: 250 | AZ109: 250 | BA109: 250 | BB109: 250 | BC109: 250 | BD109: 250 | BE109: 250 | BF109: 250 | BH109: 2259 | BI109: 74 | BJ109: 2031-12-07 | BK109: 0 | BL109: 0 | BM109: 0 | BN109: 0
A110: 2007-04-21 | B110: sábado | C110: Tiradentes | F110: 2290 | G110: 75 | H110: 2032-01-07 | I110: 0 | J110: 0 | K110: 0 | L110: 0 | S110: 75 | T110: 250 | U110: 75.96086939 | V110: 75.96086939 | W110: 75.96086939 | X110: 75.96086939 | Y110: 75.96086939 | Z110: 75.96086939 | AH110: 2.273508821 | AI110: 2.273508821 | AJ110: 2.273508821 | AK110: 2.273508821 | AL110: 2.273508821 | AM110: 2.273508821 | AU110: 250 | AV110: 250 | AW110: 250 | AX110: 250 | AY110: 250 | AZ110: 250 | BA110: 250 | BB110: 250 | BC110: 250 | BD110: 250 | BE110: 250 | BF110: 250 | BH110: 2290 | BI110: 75 | BJ110: 2032-01-07 | BK110: 0 | BL110: 0 | BM110: 0 | BN110: 0
A111: 2007-05-01 | B111: terça-feira | C111: Dia do Trabalho | F111: 2321 | G111: 76 | H111: 2032-02-07 | I111: 0 | J111: 0 | K111: 0 | L111: 0 | S111: 76 | T111: 250 | U111: 74.74574891 | V111: 74.74574891 | W111: 74.74574891 | X111: 74.74574891 | Y111: 74.74574891 | Z111: 74.74574891 | AH111: 2.237140265 | AI111: 2.237140265 | AJ111: 2.237140265 | AK111: 2.237140265 | AL111: 2.237140265 | AM111: 2.237140265 | AU111: 250 | AV111: 250 | AW111: 250 | AX111: 250 | AY111: 250 | AZ111: 250 | BA111: 250 | BB111: 250 | BC111: 250 | BD111: 250 | BE111: 250 | BF111: 250 | BH111: 2321 | BI111: 76 | BJ111: 2032-02-07 | BK111: 0 | BL111: 0 | BM111: 0 | BN111: 0
A112: 2007-06-07 | B112: quinta-feira | C112: Corpus Christi | F112: 2350 | G112: 77 | H112: 2032-03-07 | I112: 0 | J112: 0 | K112: 0 | L112: 0 | S112: 77 | T112: 250 | U112: 73.62662662 | V112: 73.62662662 | W112: 73.62662662 | X112: 73.62662662 | Y112: 73.62662662 | Z112: 73.62662662 | AH112: 2.203644935 | AI112: 2.203644935 | AJ112: 2.203644935 | AK112: 2.203644935 | AL112: 2.203644935 | AM112: 2.203644935 | AU112: 250 | AV112: 250 | AW112: 250 | AX112: 250 | AY112: 250 | AZ112: 250 | BA112: 250 | BB112: 250 | BC112: 250 | BD112: 250 | BE112: 250 | BF112: 250 | BH112: 2350 | BI112: 77 | BJ112: 2032-03-07 | BK112: 0 | BL112: 0 | BM112: 0 | BN112: 0
A113: 2007-09-07 | B113: sexta-feira | C113: Independência do Brasil | F113: 2381 | G113: 78 | H113: 2032-04-07 | I113: 0 | J113: 0 | K113: 0 | L113: 0 | S113: 78 | T113: 250 | U113: 72.44884624 | V113: 72.44884624 | W113: 72.44884624 | X113: 72.44884624 | Y113: 72.44884624 | Z113: 72.44884624 | AH113: 2.168393968 | AI113: 2.168393968 | AJ113: 2.168393968 | AK113: 2.168393968 | AL113: 2.168393968 | AM113: 2.168393968 | AU113: 250 | AV113: 250 | AW113: 250 | AX113: 250 | AY113: 250 | AZ113: 250 | BA113: 250 | BB113: 250 | BC113: 250 | BD113: 250 | BE113: 250 | BF113: 250 | BH113: 2381 | BI113: 78 | BJ113: 2032-04-07 | BK113: 0 | BL113: 0 | BM113: 0 | BN113: 0
A114: 2007-10-12 | B114: sexta-feira | C114: Nossa Sr.a Aparecida - Padroeira do Brasil | F114: 2411 | G114: 79 | H114: 2032-05-07 | I114: 0 | J114: 0 | K114: 0 | L114: 0 | S114: 79 | T114: 250 | U114: 71.32700059 | V114: 71.32700059 | W114: 71.32700059 | X114: 71.32700059 | Y114: 71.32700059 | Z114: 71.32700059 | AH114: 2.134817128 | AI114: 2.134817128 | AJ114: 2.134817128 | AK114: 2.134817128 | AL114: 2.134817128 | AM114: 2.134817128 | AU114: 250 | AV114: 250 | AW114: 250 | AX114: 250 | AY114: 250 | AZ114: 250 | BA114: 250 | BB114: 250 | BC114: 250 | BD114: 250 | BE114: 250 | BF114: 250 | BH114: 2411 | BI114: 79 | BJ114: 2032-05-07 | BK114: 0 | BL114: 0 | BM114: 0 | BN114: 0
A115: 2007-11-02 | B115: sexta-feira | C115: Finados | F115: 2442 | G115: 80 | H115: 2032-06-07 | I115: 0 | J115: 0 | K115: 0 | L115: 0 | S115: 80 | T115: 250 | U115: 70.18600655 | V115: 70.18600655 | W115: 70.18600655 | X115: 70.18600655 | Y115: 70.18600655 | Z115: 70.18600655 | AH115: 2.100667176 | AI115: 2.100667176 | AJ115: 2.100667176 | AK115: 2.100667176 | AL115: 2.100667176 | AM115: 2.100667176 | AU115: 250 | AV115: 250 | AW115: 250 | AX115: 250 | AY115: 250 | AZ115: 250 | BA115: 250 | BB115: 250 | BC115: 250 | BD115: 250 | BE115: 250 | BF115: 250 | BH115: 2442 | BI115: 80 | BJ115: 2032-06-07 | BK115: 0 | BL115: 0 | BM115: 0 | BN115: 0
A116: 2007-11-15 | B116: quinta-feira | C116: Proclamação da República | F116: 2472 | G116: 81 | H116: 2032-07-07 | I116: 0 | J116: 0 | K116: 0 | L116: 0 | S116: 81 | T116: 250 | U116: =$T116/((U$29)^($H116-$H$35)) -> 69.0992002 | V116: 69.0992002 | W116: 69.0992002 | X116: 69.0992002 | Y116: 69.0992002 | Z116: 69.0992002 | AH116: 2.068139062 | AI116: 2.068139062 | AJ116: 2.068139062 | AK116: 2.068139062 | AL116: 2.068139062 | AM116: 2.068139062 | AU116: =$T116 -> 250 | AV116: 250 | AW116: 250 | AX116: 250 | AY116: 250 | AZ116: 250 | BA116: 250 | BB116: 250 | BC116: 250 | BD116: 250 | BE116: 250 | BF116: 250 | BH116: 2472 | BI116: 81 | BJ116: 2032-07-07 | BK116: 0 | BL116: 0 | BM116: 0 | BN116: 0
A117: 2007-12-25 | B117: terça-feira | C117: Natal | F117: 2503 | G117: 82 | H117: 2032-08-07 | I117: 0 | J117: 0 | K117: 0 | L117: 0 | S117: 82 | T117: 250 | U117: 67.99384354 | V117: 67.99384354 | W117: 67.99384354 | X117: 67.99384354 | Y117: 67.99384354 | Z117: 67.99384354 | AH117: 2.035055737 | AI117: 2.035055737 | AJ117: 2.035055737 | AK117: 2.035055737 | AL117: 2.035055737 | AM117: 2.035055737 | AU117: 250 | AV117: 250 | AW117: 250 | AX117: 250 | AY117: 250 | AZ117: 250 | BA117: 250 | BB117: 250 | BC117: 250 | BD117: 250 | BE117: 250 | BF117: 250 | BH117: 2503 | BI117: 82 | BJ117: 2032-08-07 | BK117: 0 | BL117: 0 | BM117: 0 | BN117: 0
A118: 2008-01-01 | B118: terça-feira | C118: Confraternização Universal | F118: 2534 | G118: 83 | H118: 2032-09-07 | I118: 0 | J118: 0 | K118: 0 | L118: 0 | S118: 83 | T118: 250 | U118: 66.90616889 | V118: 66.90616889 | W118: 66.90616889 | X118: 66.90616889 | Y118: 66.90616889 | Z118: 66.90616889 | AH118: 2.002501635 | AI118: 2.002501635 | AJ118: 2.002501635 | AK118: 2.002501635 | AL118: 2.002501635 | AM118: 2.002501635 | AU118: 250 | AV118: 250 | AW118: 250 | AX118: 250 | AY118: 250 | AZ118: 250 | BA118: 250 | BB118: 250 | BC118: 250 | BD118: 250 | BE118: 250 | BF118: 250 | BH118: 2534 | BI118: 83 | BJ118: 2032-09-07 | BK118: 0 | BL118: 0 | BM118: 0 | BN118: 0
A119: 2008-02-04 | B119: segunda-feira | C119: Carnaval | F119: 2564 | G119: 84 | H119: 2032-10-07 | I119: 0 | J119: 0 | K119: 0 | L119: 0 | S119: 84 | T119: 250 | U119: 65.87014971 | V119: 65.87014971 | W119: 65.87014971 | X119: 65.87014971 | Y119: 65.87014971 | Z119: 65.87014971 | AH119: 1.971493581 | AI119: 1.971493581 | AJ119: 1.971493581 | AK119: 1.971493581 | AL119: 1.971493581 | AM119: 1.971493581 | AU119: 250 | AV119: 250 | AW119: 250 | AX119: 250 | AY119: 250 | AZ119: 250 | BA119: 250 | BB119: 250 | BC119: 250 | BD119: 250 | BE119: 250 | BF119: 250 | BH119: 2564 | BI119: 84 | BJ119: 2032-10-07 | BK119: 0 | BL119: 0 | BM119: 0 | BN119: 0
A120: 2008-02-05 | B120: terça-feira | C120: Carnaval | F120: 2595 | G120: 85 | H120: 2032-11-07 | I120: 0 | J120: 0 | K120: 0 | L120: 0 | S120: 85 | T120: 250 | U120: 64.81644708 | V120: 64.81644708 | W120: 64.81644708 | X120: 64.81644708 | Y120: 64.81644708 | Z120: 64.81644708 | AH120: 1.939956261 | AI120: 1.939956261 | AJ120: 1.939956261 | AK120: 1.939956261 | AL120: 1.939956261 | AM120: 1.939956261 | AU120: 250 | AV120: 250 | AW120: 250 | AX120: 250 | AY120: 250 | AZ120: 250 | BA120: 250 | BB120: 250 | BC120: 250 | BD120: 250 | BE120: 250 | BF120: 250 | BH120: 2595 | BI120: 85 | BJ120: 2032-11-07 | BK120: 0 | BL120: 0 | BM120: 0 | BN120: 0
A121: 2008-03-21 | B121: sexta-feira | C121: Paixão de Cristo | F121: 2625 | G121: 86 | H121: 2032-12-07 | I121: 0 | J121: 0 | K121: 0 | L121: 0 | S121: 86 | T121: 250 | U121: 63.81278653 | V121: 63.81278653 | W121: 63.81278653 | X121: 63.81278653 | Y121: 63.81278653 | Z121: 63.81278653 | AH121: 1.909916701 | AI121: 1.909916701 | AJ121: 1.909916701 | AK121: 1.909916701 | AL121: 1.909916701 | AM121: 1.909916701 | AU121: 250 | AV121: 250 | AW121: 250 | AX121: 250 | AY121: 250 | AZ121: 250 | BA121: 250 | BB121: 250 | BC121: 250 | BD121: 250 | BE121: 250 | BF121: 250 | BH121: 2625 | BI121: 86 | BJ121: 2032-12-07 | BK121: 0 | BL121: 0 | BM121: 0 | BN121: 0
A122: 2008-04-21 | B122: segunda-feira | C122: Tiradentes | F122: 2656 | G122: 87 | H122: 2033-01-07 | I122: 0 | J122: 0 | K122: 0 | L122: 0 | S122: 87 | T122: 250 | U122: 62.79199484 | V122: 62.79199484 | W122: 62.79199484 | X122: 62.79199484 | Y122: 62.79199484 | Z122: 62.79199484 | AH122: 1.879364406 | AI122: 1.879364406 | AJ122: 1.879364406 | AK122: 1.879364406 | AL122: 1.879364406 | AM122: 1.879364406 | AU122: 250 | AV122: 250 | AW122: 250 | AX122: 250 | AY122: 250 | AZ122: 250 | BA122: 250 | BB122: 250 | BC122: 250 | BD122: 250 | BE122: 250 | BF122: 250 | BH122: 2656 | BI122: 87 | BJ122: 2033-01-07 | BK122: 0 | BL122: 0 | BM122: 0 | BN122: 0
A123: 2008-05-01 | B123: quinta-feira | C123: Dia do Trabalho | F123: 2687 | G123: 88 | H123: 2033-02-07 | I123: 0 | J123: 0 | K123: 0 | L123: 0 | S123: 88 | T123: 250 | U123: 61.78753242 | V123: 61.78753242 | W123: 61.78753242 | X123: 61.78753242 | Y123: 61.78753242 | Z123: 61.78753242 | AH123: 1.849300845 | AI123: 1.849300845 | AJ123: 1.849300845 | AK123: 1.849300845 | AL123: 1.849300845 | AM123: 1.849300845 | AU123: 250 | AV123: 250 | AW123: 250 | AX123: 250 | AY123: 250 | AZ123: 250 | BA123: 250 | BB123: 250 | BC123: 250 | BD123: 250 | BE123: 250 | BF123: 250 | BH123: 2687 | BI123: 88 | BJ123: 2033-02-07 | BK123: 0 | BL123: 0 | BM123: 0 | BN123: 0
A124: 2008-05-22 | B124: quinta-feira | C124: Corpus Christi | F124: 2715 | G124: 89 | H124: 2033-03-07 | I124: 0 | J124: 0 | K124: 0 | L124: 0 | S124: 89 | T124: 250 | U124: 60.89409403 | V124: 60.89409403 | W124: 60.89409403 | X124: 60.89409403 | Y124: 60.89409403 | Z124: 60.89409403 | AH124: 1.822560234 | AI124: 1.822560234 | AJ124: 1.822560234 | AK124: 1.822560234 | AL124: 1.822560234 | AM124: 1.822560234 | AU124: 250 | AV124: 250 | AW124: 250 | AX124: 250 | AY124: 250 | AZ124: 250 | BA124: 250 | BB124: 250 | BC124: 250 | BD124: 250 | BE124: 250 | BF124: 250 | BH124: 2715 | BI124: 89 | BJ124: 2033-03-07 | BK124: 0 | BL124: 0 | BM124: 0 | BN124: 0
A125: 2008-09-07 | B125: domingo | C125: Independência do Brasil | F125: 2746 | G125: 90 | H125: 2033-04-07 | I125: 0 | J125: 0 | K125: 0 | L125: 0 | S125: 90 | T125: 250 | U125: 59.91999169 | V125: 59.91999169 | W125: 59.91999169 | X125: 59.91999169 | Y125: 59.91999169 | Z125: 59.91999169 | AH125: 1.793405351 | AI125: 1.793405351 | AJ125: 1.793405351 | AK125: 1.793405351 | AL125: 1.793405351 | AM125: 1.793405351 | AU125: 250 | AV125: 250 | AW125: 250 | AX125: 250 | AY125: 250 | AZ125: 250 | BA125: 250 | BB125: 250 | BC125: 250 | BD125: 250 | BE125: 250 | BF125: 250 | BH125: 2746 | BI125: 90 | BJ125: 2033-04-07 | BK125: 0 | BL125: 0 | BM125: 0 | BN125: 0
A126: 2008-10-12 | B126: domingo | C126: Nossa Sr.a Aparecida - Padroeira do Brasil | F126: 2776 | G126: 91 | H126: 2033-05-07 | I126: 0 | J126: 0 | K126: 0 | L126: 0 | S126: 91 | T126: 250 | U126: 58.99215107 | V126: 58.99215107 | W126: 58.99215107 | X126: 58.99215107 | Y126: 58.99215107 | Z126: 58.99215107 | AH126: 1.765635082 | AI126: 1.765635082 | AJ126: 1.765635082 | AK126: 1.765635082 | AL126: 1.765635082 | AM126: 1.765635082 | AU126: 250 | AV126: 250 | AW126: 250 | AX126: 250 | AY126: 250 | AZ126: 250 | BA126: 250 | BB126: 250 | BC126: 250 | BD126: 250 | BE126: 250 | BF126: 250 | BH126: 2776 | BI126: 91 | BJ126: 2033-05-07 | BK126: 0 | BL126: 0 | BM126: 0 | BN126: 0
A127: 2008-11-02 | B127: domingo | C127: Finados | F127: 2807 | G127: 92 | H127: 2033-06-07 | I127: 0 | J127: 0 | K127: 0 | L127: 0 | S127: 92 | T127: 250 | U127: 58.04847347 | V127: 58.04847347 | W127: 58.04847347 | X127: 58.04847347 | Y127: 58.04847347 | Z127: 58.04847347 | AH127: 1.737390811 | AI127: 1.737390811 | AJ127: 1.737390811 | AK127: 1.737390811 | AL127: 1.737390811 | AM127: 1.737390811 | AU127: 250 | AV127: 250 | AW127: 250 | AX127: 250 | AY127: 250 | AZ127: 250 | BA127: 250 | BB127: 250 | BC127: 250 | BD127: 250 | BE127: 250 | BF127: 250 | BH127: 2807 | BI127: 92 | BJ127: 2033-06-07 | BK127: 0 | BL127: 0 | BM127: 0 | BN127: 0
A128: 2008-11-15 | B128: sábado | C128: Proclamação da República | F128: 2837 | G128: 93 | H128: 2033-07-07 | I128: 0 | J128: 0 | K128: 0 | L128: 0 | S128: 93 | T128: 250 | U128: 57.14961268 | V128: 57.14961268 | W128: 57.14961268 | X128: 57.14961268 | Y128: 57.14961268 | Z128: 57.14961268 | AH128: 1.710487908 | AI128: 1.710487908 | AJ128: 1.710487908 | AK128: 1.710487908 | AL128: 1.710487908 | AM128: 1.710487908 | AU128: 250 | AV128: 250 | AW128: 250 | AX128: 250 | AY128: 250 | AZ128: 250 | BA128: 250 | BB128: 250 | BC128: 250 | BD128: 250 | BE128: 250 | BF128: 250 | BH128: 2837 | BI128: 93 | BJ128: 2033-07-07 | BK128: 0 | BL128: 0 | BM128: 0 | BN128: 0
A129: 2008-12-25 | B129: quinta-feira | C129: Natal | F129: 2868 | G129: 94 | H129: 2033-08-07 | I129: 0 | J129: 0 | K129: 0 | L129: 0 | S129: 94 | T129: 250 | U129: 56.23540955 | V129: 56.23540955 | W129: 56.23540955 | X129: 56.23540955 | Y129: 56.23540955 | Z129: 56.23540955 | AH129: 1.683125808 | AI129: 1.683125808 | AJ129: 1.683125808 | AK129: 1.683125808 | AL129: 1.683125808 | AM129: 1.683125808 | AQ129: =IF($I129<>0,0,AD129*$B$1*MIN($F129,365)) ->  | AU129: 250 | AV129: 250 | AW129: 250 | AX129: 250 | AY129: 250 | AZ129: 250 | BA129: 250 | BB129: 250 | BC129: 250 | BD129: 250 | BE129: 250 | BF129: 250 | BH129: 2868 | BI129: 94 | BJ129: 2033-08-07 | BK129: 0 | BL129: 0 | BM129: 0 | BN129: 0
A130: 2009-01-01 | B130: quinta-feira | C130: Confraternização Universal | F130: 2899 | G130: 95 | H130: 2033-09-07 | I130: 0 | J130: 0 | K130: 0 | L130: 0 | S130: 95 | T130: 250 | U130: 55.33583061 | V130: 55.33583061 | W130: 55.33583061 | X130: 55.33583061 | Y130: 55.33583061 | Z130: 55.33583061 | AH130: 1.65620141 | AI130: 1.65620141 | AJ130: 1.65620141 | AK130: 1.65620141 | AL130: 1.65620141 | AM130: 1.65620141 | AU130: 250 | AV130: 250 | AW130: 250 | AX130: 250 | AY130: 250 | AZ130: 250 | BA130: 250 | BB130: 250 | BC130: 250 | BD130: 250 | BE130: 250 | BF130: 250 | BH130: 2899 | BI130: 95 | BJ130: 2033-09-07 | BK130: 0 | BL130: 0 | BM130: 0 | BN130: 0
A131: 2009-02-23 | B131: segunda-feira | C131: Carnaval | F131: 2929 | G131: 96 | H131: 2033-10-07 | I131: 0 | J131: 0 | K131: 0 | L131: 0 | S131: =S130+1 -> 96 | T131: 250 | U131: 54.47897417 | V131: 54.47897417 | W131: 54.47897417 | X131: 54.47897417 | Y131: 54.47897417 | Z131: 54.47897417 | AH131: 1.630555697 | AI131: 1.630555697 | AJ131: 1.630555697 | AK131: 1.630555697 | AL131: 1.630555697 | AM131: 1.630555697 | AU131: 250 | AV131: 250 | AW131: 250 | AX131: 250 | AY131: 250 | AZ131: 250 | BA131: 250 | BB131: 250 | BC131: 250 | BD131: 250 | BE131: 250 | BF131: 250 | BH131: 2929 | BI131: 96 | BJ131: 2033-10-07 | BK131: 0 | BL131: 0 | BM131: 0 | BN131: 0
A132: 2009-02-24 | B132: terça-feira | C132: Carnaval
A133: 2009-04-10 | B133: sexta-feira | C133: Paixão de Cristo
A134: 2009-04-21 | B134: terça-feira | C134: Tiradentes
A135: 2009-05-01 | B135: sexta-feira | C135: Dia do Trabalho
A136: 2009-06-11 | B136: quinta-feira | C136: Corpus Christi
A137: 2009-09-07 | B137: segunda-feira | C137: Independência do Brasil
A138: 2009-10-12 | B138: segunda-feira | C138: Nossa Sr.a Aparecida - Padroeira do Brasil
A139: 2009-11-02 | B139: segunda-feira | C139: Finados
A140: 2009-11-15 | B140: domingo | C140: Proclamação da República
A141: 2009-12-25 | B141: sexta-feira | C141: Natal
A142: 2010-01-01 | B142: sexta-feira | C142: Confraternização Universal
A143: 2010-02-15 | B143: segunda-feira | C143: Carnaval
A144: 2010-02-16 | B144: terça-feira | C144: Carnaval
A145: 2010-04-02 | B145: sexta-feira | C145: Paixão de Cristo
A146: 2010-04-21 | B146: quarta-feira | C146: Tiradentes
A147: 2010-05-01 | B147: sábado | C147: Dia do Trabalho
A148: 2010-06-03 | B148: quinta-feira | C148: Corpus Christi
A149: 2010-09-07 | B149: terça-feira | C149: Independência do Brasil
A150: 2010-10-12 | B150: terça-feira | C150: Nossa Sr.a Aparecida - Padroeira do Brasil
A151: 2010-11-02 | B151: terça-feira | C151: Finados
A152: 2010-11-15 | B152: segunda-feira | C152: Proclamação da República
A153: 2010-12-25 | B153: sábado | C153: Natal
A154: 2011-01-01 | B154: sábado | C154: Confraternização Universal
A155: 2011-03-07 | B155: segunda-feira | C155: Carnaval
A156: 2011-03-08 | B156: terça-feira | C156: Carnaval
A157: 2011-04-21 | B157: quinta-feira | C157: Tiradentes
A158: 2011-04-22 | B158: sexta-feira | C158: Paixão de Cristo
A159: 2011-05-01 | B159: domingo | C159: Dia do Trabalho
A160: 2011-06-23 | B160: quinta-feira | C160: Corpus Christi
A161: 2011-09-07 | B161: quarta-feira | C161: Independência do Brasil
A162: 2011-10-12 | B162: quarta-feira | C162: Nossa Sr.a Aparecida - Padroeira do Brasil
A163: 2011-11-02 | B163: quarta-feira | C163: Finados
A164: 2011-11-15 | B164: terça-feira | C164: Proclamação da República
A165: 2011-12-25 | B165: domingo | C165: Natal
A166: 2012-01-01 | B166: domingo | C166: Confraternização Universal
A167: 2012-02-20 | B167: segunda-feira | C167: Carnaval
A168: 2012-02-21 | B168: terça-feira | C168: Carnaval
A169: 2012-04-06 | B169: sexta-feira | C169: Paixão de Cristo
A170: 2012-04-21 | B170: sábado | C170: Tiradentes
A171: 2012-05-01 | B171: terça-feira | C171: Dia do Trabalho
A172: 2012-06-07 | B172: quinta-feira | C172: Corpus Christi
A173: 2012-09-07 | B173: sexta-feira | C173: Independência do Brasil
A174: 2012-10-12 | B174: sexta-feira | C174: Nossa Sr.a Aparecida - Padroeira do Brasil
A175: 2012-11-02 | B175: sexta-feira | C175: Finados
A176: 2012-11-15 | B176: quinta-feira | C176: Proclamação da República
A177: 2012-12-25 | B177: terça-feira | C177: Natal
A178: 2013-01-01 | B178: terça-feira | C178: Confraternização Universal
A179: 2013-02-11 | B179: segunda-feira | C179: Carnaval
A180: 2013-02-12 | B180: terça-feira | C180: Carnaval
A181: 2013-03-29 | B181: sexta-feira | C181: Paixão de Cristo
A182: 2013-04-21 | B182: domingo | C182: Tiradentes
A183: 2013-05-01 | B183: quarta-feira | C183: Dia do Trabalho
A184: 2013-05-30 | B184: quinta-feira | C184: Corpus Christi
A185: 2013-09-07 | B185: sábado | C185: Independência do Brasil
A186: 2013-10-12 | B186: sábado | C186: Nossa Sr.a Aparecida - Padroeira do Brasil
A187: 2013-11-02 | B187: sábado | C187: Finados
A188: 2013-11-15 | B188: sexta-feira | C188: Proclamação da República
A189: 2013-12-25 | B189: quarta-feira | C189: Natal
A190: 2014-01-01 | B190: quarta-feira | C190: Confraternização Universal
A191: 2014-03-03 | B191: segunda-feira | C191: Carnaval
A192: 2014-03-04 | B192: terça-feira | C192: Carnaval
A193: 2014-04-18 | B193: sexta-feira | C193: Paixão de Cristo
A194: 2014-04-21 | B194: segunda-feira | C194: Tiradentes
A195: 2014-05-01 | B195: quinta-feira | C195: Dia do Trabalho
A196: 2014-06-19 | B196: quinta-feira | C196: Corpus Christi
A197: 2014-09-07 | B197: domingo | C197: Independência do Brasil
A198: 2014-10-12 | B198: domingo | C198: Nossa Sr.a Aparecida - Padroeira do Brasil
A199: 2014-11-02 | B199: domingo | C199: Finados
A200: 2014-11-15 | B200: sábado | C200: Proclamação da República
A201: 2014-12-25 | B201: quinta-feira | C201: Natal
A202: 2015-01-01 | B202: quinta-feira | C202: Confraternização Universal
... 1095 more rows

Sheet VL_PARC (hidden)
A1: IOF ad | B1: =ROUND(3%/365,6) -> 8.2e-05 | U1: TETO | W1: =J16 -> 0.01406512714 | X1: =IF($P$2=$AH$4,AH1,AP1) -> INSS | Y1: =IF($P$2=$AH$4,AI1,AQ1) -> 0.0135 | Z1: =IF($P$2=$AH$4,AJ1,AR1) -> 0.0185 | AA1: =IF($P$2=$AH$4,AK1,AS1) -> Port | AB1: ='Simulador Port'!E18 -> FLEX 1 | AH1: INSS | AI1: ='Planilha 1'!AI1 -> 0.0135 | AJ1: ='Planilha 1'!AJ1 -> 0.0185 | AK1: Port | AP1: SIAPE | AQ1: ='Planilha 1'!AQ1 -> 0.016 | AR1: ='Planilha 1'!AR1 -> 0.018 | AS1: Port
A2: IOF adic. | B2: 0.0038 | H2: CONVÊNIO | P2: ='Planilha 1'!P2 -> INSS | U2: TAXA TETO PONDERADO | V2: =((W1*W2)+(Z1*(Z2-W2)))/P3 -> 0.01572820447 | W2: =J10 -> 60 | Z2: =P3 -> 96 | AQ2: 96
O3: Prazo simulado (meses) | P3: ='Planilha 1'!P3 -> 96 | X3: Convenio | Y3: TxMax | Z3: TxMin | AA3: Nome | AC3: Fator um jr | AD3: Novo Saldo | AE3: IOF | AF3: TROCO | AG3: VLR FIN | AH3: Convenio | AI3: TxMax | AJ3: TxMin | AK3: Nome | AL3: Nome | AP3: Convenio | AQ3: TxMax | AR3: TxMin | AS3: Nome | AT3: Nome
U4: Torco min % | V4: 0 | W4: =IF(AND(X4="INSS",$AB$1="NORMAL",OR(AA4=$AK$8,AA4=$AK$9)),0,IF($I$17<$Y$1,0,IFERROR(IF(AG4<$V$6,0,IF(AND(Z4>$V$2,Y4>$V$2),0,IF(OR(AF4/AD4>$V$4,$AF4>=$V$5),W3+1,0))),0))) -> 0 | X4: =IF($P$2=$AH$4,AH4,AP4) -> INSS | Y4: =IF($P$2=$AH$4,AI4,AQ4) -> 0.0185 | Z4: =IF($P$2=$AH$4,AJ4,AR4) -> 0.0178 | AA4: Normal | AB4: =IF($P$2=$AH$4,AL4,AT4) -> INSS RfnPort Tx1,850%~1,780% Normal | AC4: =(1+MIN(Y4,$V$2))^(1/30) -> 1.000520329 | AD4: =OFFSET($U$32,,ROW()-ROW($AD$4)) -> 12195.16429 | AE4: =OFFSET($AH$29,,ROW()-ROW($AE$4)) -> 86.84090718 | AF4: =AD4-AE4-$J$8 -> 2108.323463 | AG4: =SUM(AD4,AF4) -> 14303.48776 | AH4: ='Planilha 1'!AH4 -> INSS | AI4: ='Planilha 1'!AI4 -> 0.0185 | AJ4: ='Planilha 1'!AJ4 -> 0.0178 | AK4: ='Planilha 1'!AK4 -> Normal | AL4: ='Planilha 1'!AL4 -> INSS RfnPort Tx1,850%~1,780% Normal | AP4: ='Planilha 1'!AP4 -> SIAPE | AQ4: ='Planilha 1'!AQ4 -> 0.01799 | AR4: ='Planilha 1'!AR4 -> 0.01799 | AS4: ='Planilha 1'!AS4 -> Normal | AT4: ='Planilha 1'!AT4 -> SIAPE RfnPort Tx1.799 Normal Web | AX4: =AJ4<AI4 -> TRUE
U5: Torco min R$ | V5: 50 | W5: =IF(AND(X5="INSS",$AB$1="NORMAL",OR(AA5=$AK$8,AA5=$AK$9)),0,IF($I$17<$Y$1,0,IFERROR(IF(AG5<$V$6,0,IF(AND(Z5>$V$2,Y5>$V$2),0,IF(OR(AF5/AD5>$V$4,$AF5>=$V$5),W4+1,0))),0))) -> 0 | X5: INSS | Y5: =IF($P$2=$AH$4,AI5,AQ5) -> 0.01779 | Z5: =IF($P$2=$AH$4,AJ5,AR5) -> 0.0174 | AA5: Flex 1 | AB5: INSS RfnPort Tx1,779%~1,740% Flex1 | AC5: =(1+MIN(Y5,$V$2))^(1/30) -> 1.000520329 | AD5: =OFFSET($U$32,,ROW()-ROW($AD$4)) -> 12195.16429 | AE5: =OFFSET($AH$29,,ROW()-ROW($AE$4)) -> 86.84090718 | AF5: =AD5-AE5-$J$8 -> 2108.323463 | AG5: =SUM(AD5,AF5) -> 14303.48776 | AH5: ='Planilha 1'!AH5 -> INSS | AI5: ='Planilha 1'!AI5 -> 0.01779 | AJ5: ='Planilha 1'!AJ5 -> 0.0174 | AK5: ='Planilha 1'!AK5 -> Flex 1 | AL5: ='Planilha 1'!AL5 -> INSS RfnPort Tx1,779%~1,740% Flex1 | AP5: ='Planilha 1'!AP5 -> SIAPE | AQ5: ='Planilha 1'!AQ5 -> 0.01798 | AR5: ='Planilha 1'!AR5 -> 0.0175 | AS5: ='Planilha 1'!AS5 -> Flex 1 | AT5: ='Planilha 1'!AT5 -> SIAPE RfnPort Tx1.798 ~ 1.75 Flex 1 Web
K6: Observação | M6: Tabela | O6: Val Fin Novo | P6: Troco | U6: Ticket Min | V6: 2000 | W6: 0 | X6: INSS | Y6: 0.01739 | Z6: 0.017 | AA6: Flex 2 | AB6: INSS RfnPort Tx1,739%~1,700% Flex2 | AC6: 1.000520329 | AD6: 12195.16429 | AE6: 86.84090718 | AF6: 2108.323463 | AG6: 14303.48776 | AH6: ='Planilha 1'!AH6 -> INSS | AI6: ='Planilha 1'!AI6 -> 0.01739 | AJ6: ='Planilha 1'!AJ6 -> 0.017 | AK6: ='Planilha 1'!AK6 -> Flex 2 | AL6: ='Planilha 1'!AL6 -> INSS RfnPort Tx1,739%~1,700% Flex2 | AP6: ='Planilha 1'!AP6 -> SIAPE | AQ6: ='Planilha 1'!AQ6 -> 0.01749 | AR6: ='Planilha 1'!AR6 -> 0.017 | AS6: ='Planilha 1'!AS6 -> Flex 2 | AT6: ='Planilha 1'!AT6 -> SIAPE RfnPort Tx1.749 ~ 1.70 Flex 2 Web
H7: Data Saldo | I7: ='Simulador Port'!C7 -> 2025-09-30 | J7: =TODAY() -> 2025-09-30 | K7: ='Simulador Port'!D7 -> 0 | W7: 0 | X7: INSS | Y7: 0.01699 | Z7: 0.0165 | AA7: Flex 3 | AB7: INSS RfnPort Tx1,699%~1,650% Flex3 | AC7: =(1+MIN(Y7,$V$2))^(1/30) -> 1.000520329 | AD7: 12195.16429 | AE7: 86.84090718 | AF7: =AD7-AE7-$J$8 -> 2108.323463 | AG7: 14303.48776 | AH7: ='Planilha 1'!AH7 -> INSS | AI7: ='Planilha 1'!AI7 -> 0.01699 | AJ7: ='Planilha 1'!AJ7 -> 0.0165 | AK7: ='Planilha 1'!AK7 -> Flex 3 | AL7: ='Planilha 1'!AL7 -> INSS RfnPort Tx1,699%~1,650% Flex3 | AP7: ='Planilha 1'!AP7 -> SIAPE | AQ7: ='Planilha 1'!AQ7 -> 0.01699 | AR7: ='Planilha 1'!AR7 -> 0.0165 | AS7: ='Planilha 1'!AS7 -> Flex 3 | AT7: ='Planilha 1'!AT7 -> SIAPE RfnPort Tx1.699 ~ 1.65 Flex 3 Web
H8: Saldo Portado | I8: ='Simulador Port'!C8 -> 10000 | J8: =SUM(VL_PARC!J35:J131) -> 9999.999922 | K8: =T8 ->  | L8: 1 | M8: =IFERROR(VLOOKUP(L8,$W$4:$AF$15,6,0),"") -> INSS RfnPort Tx1,599%~1,550% Flex5 | O8: =IFERROR(VLOOKUP(L8,$W$4:$AF$15,8,0),"") -> 12195.16429 | P8: =IFERROR(VLOOKUP(L8,$W$4:$AF$15,10,0),"") -> 2108.323463 | R8: =O8-$I$8 -> 2195.164293 | T8: =IF(OR((J17-I17)/I17>2%,(J17-I17)/I17<-2%),"Saldo e Parcela não correspondem à taxa informada","") ->  | U8: TAXA TROCO | W8: 0 | X8: INSS | Y8: 0.01649 | Z8: 0.016 | AA8: Flex 4 | AB8: INSS RfnPort Tx1,649%~1,600% Flex4 | AC8: =(1+MIN(Y8,$V$2))^(1/30) -> 1.000520329 | AD8: =OFFSET($U$32,,ROW()-ROW($AD$4)) -> 12195.16429 | AE8: 86.84090718 | AF8: =AD8-AE8-$J$8 -> 2108.323463 | AG8: 14303.48776 | AH8: ='Planilha 1'!AH8 -> INSS | AI8: ='Planilha 1'!AI8 -> 0.01649 | AJ8: ='Planilha 1'!AJ8 -> 0.016 | AK8: ='Planilha 1'!AK8 -> Flex 4 | AL8: ='Planilha 1'!AL8 -> INSS RfnPort Tx1,649%~1,600% Flex4
H9: Valor Parcela | I9: ='Simulador Port'!E22 -> 250 | J9: =I9 -> 250 | K9: ='Simulador Port'!D9 -> 0 | L9: =L8+1 -> 2 | M9: =IFERROR(VLOOKUP(L9,$W$4:$AF$15,6,0),"") ->  | O9: =IFERROR(VLOOKUP(L9,$W$4:$AF$15,8,0),"") ->  | P9: =IFERROR(VLOOKUP(L9,$W$4:$AF$15,10,0),"") ->  | R9: =O9-$I$8 ->  | W9: 1 | X9: INSS | Y9: 0.01599 | Z9: 0.0155 | AA9: Flex 5 | AB9: INSS RfnPort Tx1,599%~1,550% Flex5 | AC9: 1.000520329 | AD9: 12195.16429 | AE9: 86.84090718 | AF9: 2108.323463 | AG9: 14303.48776 | AH9: ='Planilha 1'!AH9 -> INSS | AI9: ='Planilha 1'!AI9 -> 0.01599 | AJ9: ='Planilha 1'!AJ9 -> 0.0155 | AK9: ='Planilha 1'!AK9 -> Flex 5 | AL9: ='Planilha 1'!AL9 -> INSS RfnPort Tx1,599%~1,550% Flex5
H10: Nº de Parcelas Restantes | I10: ='Simulador Port'!C10 -> 60 | J10: =I10 -> 60 | K10: =T10 ->  | L10: =L9+1 -> 3 | T10: =IF(P3-J10<12,"Contrato com menos de 12 parcelas pagas","") ->  | W10: 0 | X10: 0 | Y10: 0 | Z10: 0 | AA10: 0 | AB10: 0 | AC10: 1 | AH10: ='Planilha 1'!AH10 -> 0 | AI10: ='Planilha 1'!AI10 -> 0 | AJ10: ='Planilha 1'!AJ10 -> 0 | AK10: ='Planilha 1'!AK10 -> 0 | AL10: ='Planilha 1'!AL10 -> 0
L11: 4 | W11: 0 | X11: 0 | Y11: 0 | Z11: 0 | AA11: 0 | AB11: 0 | AC11: 1 | AH11: ='Planilha 1'!AH11 -> 0 | AI11: ='Planilha 1'!AI11 -> 0 | AJ11: ='Planilha 1'!AJ11 -> 0 | AK11: ='Planilha 1'!AK11 -> 0 | AL11: ='Planilha 1'!AL11 -> 0
L12: 5 | W12: 0 | X12: 0 | Y12: 0 | Z12: 0 | AA12: 0 | AB12: 0 | AC12: 1 | AH12: ='Planilha 1'!AH12 -> 0 | AI12: ='Planilha 1'!AI12 -> 0 | AJ12: ='Planilha 1'!AJ12 -> 0 | AK12: ='Planilha 1'!AK12 -> 0 | AL12: ='Planilha 1'!AL12 -> 0 | AW12: ;
L13: 6 | W13: 0 | X13: 0 | Y13: 0 | Z13: 0 | AA13: 0 | AB13: 0 | AC13: 1 | AH13: ='Planilha 1'!AH13 -> 0 | AI13: ='Planilha 1'!AI13 -> 0 | AJ13: ='Planilha 1'!AJ13 -> 0 | AK13: ='Planilha 1'!AK13 -> 0 | AL13: ='Planilha 1'!AL13 -> 0
L14: 7 | W14: 0 | X14: 0 | Y14: 0 | Z14: 0 | AA14: 0 | AB14: 0 | AC14: 1 | AH14: ='Planilha 1'!AH14 -> 0 | AI14: ='Planilha 1'!AI14 -> 0 | AJ14: ='Planilha 1'!AJ14 -> 0 | AK14: ='Planilha 1'!AK14 -> 0 | AL14: ='Planilha 1'!AL14 -> 0 | BX14: Maior Parcela
L15: 8 | W15: 0 | X15: 0 | Y15: 0 | Z15: 0 | AA15: 0 | AB15: 0 | AC15: 1 | AH15: ='Planilha 1'!AH15 -> 0 | AI15: ='Planilha 1'!AI15 -> 0 | AJ15: ='Planilha 1'!AJ15 -> 0 | AK15: ='Planilha 1'!AK15 -> 0 | AL15: ='Planilha 1'!AL15 -> 0 | BX15: Pzo | BY15: =I10 -> 60
J16: =(1+XIRR(VL_PARC!$I$35:$I$131,VL_PARC!$H$35:$H$131))^(360/365)^(30/360)-1 -> 0.01406512714 | L16: 9 | BX16: Parcela | BY16: =BS36 -> 250
H17: Taxa de Juros | I17: =J17 -> 0.01406512714 | J17: =(1+XIRR(VL_PARC!$I$35:$I$131,VL_PARC!$H$35:$H$131))^(360/365)^(30/360)-1 -> 0.01406512714 | K17: =T17 ->  | L17: 10 | T17: =IF(J17<VL_PARC!Y1,"Taxa original inferior a mínima","") -> 
H18: Saldo Calculado pela Taxa | I18: =SUM(VL_PARC!K36:K131) -> 9999.999922 | J18: =SUM(J36:J131) -> 9999.999922 | K18: ='Simulador Port'!F20 -> 0 | L18: 11 | BK18: saldo | BL18: 14510.87162 | BX18: Maior Prazo
L19: 12 | BZ19: 1 | CB19: Maior Prazo | CC19: =MAX(BX29:EW29)-1 -> 2
BL21: =BL32*1000 -> 15.03309254
H22: Taxa AP considerando base 365 | I22: =J16 -> 0.01406512714 | BL22: =1.55%*1000 -> 15.5 | BM22: =BL22-BL21 -> 0.4669074615
H23: Taxa CET da PORT | I23: =J17 -> 0.01406512714 | BV23: Teto Conv | BW23: =Z1 -> 0.0185
BV24: Pzo Conv | BW24: =Z2 -> 96 | BX24: =SUM(BX25:EW25) -> 0.0007222141032
K25: ; | BX25: =PRODUCT(BX26:BX28) -> 0 | BY25: =PRODUCT(BY26:BY28) -> 0 | BZ25: 0 | CA25: 0 | CB25: 0 | CC25: 0 | CD25: 0 | CE25: 0 | CF25: 0 | CG25: 0 | CH25: 0 | CI25: 0 | CJ25: 0 | CK25: 0 | CL25: 0 | CM25: 0 | CN25: 0 | CO25: 0 | CP25: 0 | CQ25: 0 | CR25: 0 | CS25: 0 | CT25: 0 | CU25: 0 | CV25: 0 | CW25: 0 | CX25: 0 | CY25: 0 | CZ25: 0 | DA25: 0 | DB25: 0 | DC25: 0 | DD25: 0 | DE25: 0 | DF25: 0 | DG25: 0 | DH25: 0.000565127145 | DI25: 0.0001570869583 | DJ25: 0 | DK25: 0 | DL25: 0 | DM25: 0 | DN25: 0 | DO25: 0 | DP25: 0 | DQ25: 0 | DR25: 0 | DS25: 0 | DT25: 0 | DU25: 0 | DV25: 0 | DW25: 0 | DX25: 0 | DY25: 0 | DZ25: 0 | EA25: 0 | EB25: 0 | EC25: 0 | ED25: 0 | EE25: 0 | EF25: 0 | EG25: 0 | EH25: 0 | EI25: 0 | EJ25: 0 | EK25: =PRODUCT(EK26:EK28) -> 0 | EL25: 0 | EM25: 0 | EN25: 0 | EO25: 0 | EP25: 0 | EQ25: 0 | ER25: 0 | ES25: 0 | ET25: 0 | EU25: 0 | EV25: 0 | EW25: 0
BJ26: SEM MUDA PRAZO | BK26: SOMAR 1 PARCELA | BL26: SOMAR 2 PARCELAS | BM26: TIRAR 1 PARCELA | BN26: TIRAR 2 PARCELAS | BV26: Tx Alvo | BW26: Teto Pond | BX26: =IF(((BX32*BX31)+($BW$23*($BW$24-BX31)))/$BW$24<$BW$23,1,0) -> 0 | BY26: =IF(((BY32*BY31)+($BW$23*($BW$24-BY31)))/$BW$24<$BW$23,1,0) -> 0 | BZ26: 0 | CA26: 0 | CB26: 0 | CC26: 0 | CD26: 0 | CE26: 0 | CF26: 0 | CG26: 0 | CH26: 0 | CI26: 0 | CJ26: 0 | CK26: 0 | CL26: 0 | CM26: 0 | CN26: 0 | CO26: 0 | CP26: 0 | CQ26: 0 | CR26: 0 | CS26: 1 | CT26: 1 | CU26: 1 | CV26: 1 | CW26: 1 | CX26: 1 | CY26: 1 | CZ26: 1 | DA26: 1 | DB26: 1 | DC26: 1 | DD26: 1 | DE26: 1 | DF26: 1 | DG26: 1 | DH26: 1 | DI26: 1 | DJ26: 1 | DK26: 1 | DL26: 1 | DM26: 1 | DN26: 1 | DO26: 1 | DP26: 1 | DQ26: 1 | DR26: 1 | DS26: 1 | DT26: 1 | DU26: 1 | DV26: 1 | DW26: 1 | DX26: 1 | DY26: 1 | DZ26: 1 | EA26: 1 | EB26: 1 | EC26: 1 | ED26: 1 | EE26: 1 | EF26: 1 | EG26: 1 | EH26: 1 | EI26: 1 | EJ26: 1 | EK26: =IF(((EK32*EK31)+($BW$23*($BW$24-EK31)))/$BW$24<$BW$23,1,0) -> 1 | EL26: 1 | EM26: 1 | EN26: 1 | EO26: 1 | EP26: 1 | EQ26: 1 | ER26: 1 | ES26: 1 | ET26: 1 | EU26: 1 | EV26: 1 | EW26: 1
AT27: =XIRR(AU$35:AU$131,$H$35:$H$131) -> 0.019681409 | AU27: 0.019681409 | AV27: 0.019681409 | AW27: 0.019681409 | AX27: 0.019681409 | AY27: 0.019681409 | BJ27: =IF(K17<>"","Taxa original inferior a mínima","") ->  | BK27: =IF(BK32<VL_PARC!$Y$1,"Taxa original inferior a mínima","") ->  | BL27: =IF(BL32<VL_PARC!$Y$1,"Taxa original inferior a mínima","") ->  | BM27: =IF(BM32<VL_PARC!$Y$1,"Taxa original inferior a mínima","") ->  | BN27: =IF(BN32<VL_PARC!$Y$1,"Taxa original inferior a mínima","") -> Taxa original inferior a mínima | BW27: VAlid1 | BX27: =IF(BX31>$P$3-12,0,IF(BX31>$I$10,0,1)) -> 0 | BY27: =IF(BY31>$P$3-12,0,IF(BY31>$I$10,0,1)) -> 0 | BZ27: 0 | CA27: 0 | CB27: 0 | CC27: 0 | CD27: 0 | CE27: 0 | CF27: 0 | CG27: 0 | CH27: 0 | CI27: 0 | CJ27: 0 | CK27: 0 | CL27: 0 | CM27: 0 | CN27: 0 | CO27: 0 | CP27: 0 | CQ27: 0 | CR27: 0 | CS27: 0 | CT27: 0 | CU27: 0 | CV27: 0 | CW27: 0 | CX27: 0 | CY27: 0 | CZ27: 0 | DA27: 0 | DB27: 0 | DC27: 0 | DD27: 0 | DE27: 0 | DF27: 0 | DG27: 0 | DH27: 1 | DI27: 1 | DJ27: 1 | DK27: 1 | DL27: 1 | DM27: 1 | DN27: 1 | DO27: 1 | DP27: 1 | DQ27: 1 | DR27: 1 | DS27: 1 | DT27: 1 | DU27: 1 | DV27: 1 | DW27: 1 | DX27: 1 | DY27: 1 | DZ27: 1 | EA27: 1 | EB27: 1 | EC27: 1 | ED27: 1 | EE27: 1 | EF27: 1 | EG27: 1 | EH27: 1 | EI27: 1 | EJ27: 1 | EK27: =IF(EK31>$P$3-12,0,IF(EK31>$I$10,0,1)) -> 1 | EL27: 1 | EM27: 1 | EN27: 1 | EO27: 1 | EP27: 1 | EQ27: 1 | ER27: 1 | ES27: 1 | ET27: 1 | EU27: 1 | EV27: 1 | EW27: 1
AH28: =U32-$J$8 -> 2195.164371 | AI28: =V32-$J$8 -> 2195.164371 | AJ28: 2195.164371 | AK28: 2195.164371 | AL28: 2195.164371 | AM28: 2195.164371 | BV28: Tx Alvo | BW28: =Y1 -> 0.0135 | BX28: =MAX((BX32-$BW$28)*BX27*BX26,0) -> 0 | BY28: 0 | BZ28: 0 | CA28: 0 | CB28: 0 | CC28: 0 | CD28: 0 | CE28: 0 | CF28: 0 | CG28: 0 | CH28: 0 | CI28: 0 | CJ28: 0 | CK28: 0 | CL28: 0 | CM28: 0 | CN28: 0 | CO28: 0 | CP28: 0 | CQ28: 0 | CR28: 0 | CS28: 0 | CT28: 0 | CU28: 0 | CV28: =MAX((CV32-$BW$28)*CV27*CV26,0) -> 0 | CW28: =MAX((CW32-$BW$28)*CW27*CW26,0) -> 0 | CX28: 0 | CY28: 0 | CZ28: 0 | DA28: 0 | DB28: 0 | DC28: 0 | DD28: 0 | DE28: 0 | DF28: 0 | DG28: 0 | DH28: 0.000565127145 | DI28: 0.0001570869583 | DJ28: 0 | DK28: 0 | DL28: 0 | DM28: 0 | DN28: 0 | DO28: 0 | DP28: 0 | DQ28: 0 | DR28: 0 | DS28: 0 | DT28: 0 | DU28: 0 | DV28: 0 | DW28: 0 | DX28: 0 | DY28: 0 | DZ28: 0 | EA28: 0 | EB28: 0 | EC28: 0 | ED28: 0 | EE28: 0 | EF28: 0 | EG28: 0 | EH28: 0 | EI28: 0 | EJ28: 0 | EK28: 0 | EL28: 0 | EM28: 0 | EN28: 0 | EO28: 0 | EP28: 0 | EQ28: 0 | ER28: 0 | ES28: 0 | ET28: 0 | EU28: 0 | EV28: 0 | EW28: 0
T29: Taxa REFIN | U29: =VLOOKUP(U34,$AA$4:$AC$15,3,0) -> 1.000520329 | V29: =VLOOKUP(V34,$AA$4:$AC$15,3,0) -> 1.000520329 | W29: =VLOOKUP(W34,$AA$4:$AC$15,3,0) -> 1.000520329 | X29: =VLOOKUP(X34,$AA$4:$AC$15,3,0) -> 1.000520329 | Y29: 1.000520329 | Z29: 1.000520329 | AH29: =SUM(AH35:AH131) -> 86.84090718 | AI29: =SUM(AI35:AI131) -> 86.84090718 | AJ29: 86.84090718 | AK29: 86.84090718 | AL29: 86.84090718 | AM29: 86.84090718 | AU29: =(1+AT27)^(30/365)-1 -> 0.00160322086 | AV29: 0.00160322086 | AW29: 0.00160322086 | AX29: 0.00160322086 | AY29: 0.00160322086 | AZ29: 0.00160322086 | BX29: =RANK(BX28,$BX$28:$EW$28,0) -> 3 | BY29: 3 | BZ29: 3 | CA29: 3 | CB29: 3 | CC29: 3 | CD29: 3 | CE29: 3 | CF29: 3 | CG29: 3 | CH29: 3 | CI29: 3 | CJ29: 3 | CK29: 3 | CL29: 3 | CM29: 3 | CN29: 3 | CO29: 3 | CP29: 3 | CQ29: 3 | CR29: 3 | CS29: 3 | CT29: 3 | CU29: 3 | CV29: 3 | CW29: 3 | CX29: 3 | CY29: 3 | CZ29: 3 | DA29: 3 | DB29: 3 | DC29: 3 | DD29: 3 | DE29: 3 | DF29: 3 | DG29: 3 | DH29: 1 | DI29: 2 | DJ29: 3 | DK29: 3 | DL29: 3 | DM29: 3 | DN29: 3 | DO29: 3 | DP29: 3 | DQ29: 3 | DR29: 3 | DS29: 3 | DT29: 3 | DU29: 3 | DV29: 3 | DW29: 3 | DX29: 3 | DY29: 3 | DZ29: 3 | EA29: 3 | EB29: 3 | EC29: 3 | ED29: 3 | EE29: 3 | EF29: 3 | EG29: 3 | EH29: 3 | EI29: 3 | EJ29: 3 | EK29: =RANK(EK28,$BX$28:$EW$28,0) -> 3 | EL29: 3 | EM29: 3 | EN29: 3 | EO29: 3 | EP29: 3 | EQ29: 3 | ER29: 3 | ES29: 3 | ET29: 3 | EU29: 3 | EV29: 3 | EW29: 3
H30: dt ini fx pmt | I30: =EDATE(J31,-1) -> 2025-10-07 | J30: =NETWORKDAYS(EOMONTH(I7,-1)+1,I7,$A$34:$A$1297) -> 22 | BJ30: dt ini fx pmt | BK30: =I30 -> 2025-10-07
H31: Prox Vencimento | J31: ='Planilha 1'!J31 -> 2025-11-07 | U31: =U32-$I$8 -> 2195.164293 | V31: =V32-$I$8 -> 2195.164293 | W31: 2195.164293 | X31: 2195.164293 | Y31: 2195.164293 | Z31: 2195.164293 | AE31: =AE32-$I$8 ->  | BJ31: Prox Vencimento | BL31: =J31 -> 2025-11-07 | BR31: =(1+BR32)^((365/12)/30)-1 -> 0.01875933967 | BW31: Pzo | BX31: =COUNTIFS(BX36:BX131,">"&0) -> 96 | BY31: =COUNTIFS(BY36:BY131,">"&0) -> 95 | BZ31: =COUNTIFS(BZ36:BZ131,">"&0) -> 94 | CA31: 93 | CB31: 92 | CC31: 91 | CD31: 90 | CE31: 89 | CF31: 88 | CG31: 87 | CH31: 86 | CI31: 85 | CJ31: 84 | CK31: 83 | CL31: 82 | CM31: 81 | CN31: 80 | CO31: 79 | CP31: 78 | CQ31: 77 | CR31: 76 | CS31: 75 | CT31: 74 | CU31: 73 | CV31: 72 | CW31: 71 | CX31: 70 | CY31: 69 | CZ31: 68 | DA31: 67 | DB31: 66 | DC31: 65 | DD31: 64 | DE31: 63 | DF31: 62 | DG31: 61 | DH31: 60 | DI31: 59 | DJ31: 58 | DK31: 57 | DL31: 56 | DM31: 55 | DN31: 54 | DO31: 53 | DP31: 52 | DQ31: 51 | DR31: 50 | DS31: 49 | DT31: 48 | DU31: 47 | DV31: 46 | DW31: 45 | DX31: 44 | DY31: 43 | DZ31: 42 | EA31: 41 | EB31: 40 | EC31: 39 | ED31: 38 | EE31: 37 | EF31: 36 | EG31: 35 | EH31: 34 | EI31: 33 | EJ31: 32 | EK31: 31 | EL31: =COUNTIFS(EL36:EL131,">"&0) -> 30 | EM31: 29 | EN31: 28 | EO31: 27 | EP31: 26 | EQ31: 25 | ER31: 24 | ES31: 23 | ET31: 22 | EU31: 21 | EV31: 20 | EW31: 19
